Workbook

Sheet aggiusta dal 1 1 96
E3: aggiusta le date sulla base dell arrotondamento dal 1 1 96
D5: anz solo economica | F5: =_anz1 -> 
D6: arr. All' 1 -1- 1996 | F6: =ARR ->  | H6: anni | I6: mesi | J6: giorni
E7: tot | F7: =SUM(F5:F6) ->  | H7: =INT(F7/360) ->  | I7: =INT((F7-(360*H7))/30) ->  | J7: =INT(F7-((H7*360)+I7*30)) -> 
E9: =Foglio2!L107 -> valore della data corretta ed effettiva per il passagio di gradone
E10: =Foglio2!M108 ->  | F10: =IF(YEAR(E10)>1995,E10-F7,E10) ->  | G10: =IF(YEAR(E10)>1995,DAYS360(F10,E10),0) ->  | H10: =IF(YEAR(E10)>1995,F7-G10,0) ->  | I10: =IF(YEAR(E10)>1995,F10-H10,0) ->  | J10: =IF(YEAR(E10)>1995,DAYS360(I10,E10),0) ->  | K10: =F7-J10 ->  | L10: =I10-K10 -> 
E11: =Foglio2!M109 ->  | F11: =IF(YEAR(E11)>1995,E11-F7,E11) ->  | H11: =IF(YEAR(E11)>1995,F7-G11,0) ->  | K11: =F7-J11 -> 
E12: =Foglio2!M110 ->  | F12: =IF(YEAR(E12)>1995,E12-F7,E12) ->  | H12: =IF(YEAR(E12)>1995,F7-G12,0) ->  | K12: =F7-J12 -> 
E13: =Foglio2!M111 ->  | F13: =IF(YEAR(E13)>1995,E13-F7,E13) ->  | H13: =IF(YEAR(E13)>1995,F7-G13,0) ->  | K13: =F7-J13 -> 
E14: =Foglio2!M112 ->  | F14: =IF(YEAR(E14)>1995,E14-F7,E14) ->  | H14: =IF(YEAR(E14)>1995,F7-G14,0) ->  | K14: =F7-J14 -> 
E15: =Foglio2!M113 ->  | F15: =IF(YEAR(E15)>1995,E15-F7,E15) ->  | H15: =IF(YEAR(E15)>1995,F7-G15,0) ->  | K15: =F7-J15 -> 
D19: ECCO I VALORI AGGIUSTATI
M20: riscontro
D21: 3-8 | E21: =IF(I10>10000,L10,Foglio2!L108) ->  | M21: =DAYS360(E10,E21) -> 
D22: 9-14 | E22: =IF(I11>10000,L11,Foglio2!L109) -> 
D23: 15 - 20 | E23: =IF(I12>10000,L12,Foglio2!L110) -> 
D24: 21-27 | E24: =IF(I13>10000,L13,Foglio2!L111) -> 
D25: 28-34 | E25: =IF(I14>10000,L14,Foglio2!L112) -> 
D26: oltre 35 | E26: =IF(I15>10000,L15,Foglio2!L113) -> 
E27: =IF(E16>0,VALORE.DATA(CONCATENATE(N17,"/",M17,"/",L17)),"") -> 
E28: =IF(E17>0,VALORE.DATA(CONCATENATE(N18,"/",M18,"/",L18)),"") -> 
E29: =IF(E18>0,VALORE.DATA(CONCATENATE(N19,"/",M19,"/",L19)),"") -> 

Sheet Foglio6
E6: Nominativo: | G6: ='dec. da copiare e incollare'!E11 -> 0
E7: ='dec. da copiare e incollare'!A12 -> Qualifica: | G7: ='dec. da copiare e incollare'!C12 -> Docente scuola Media e laureato 1 grado | I7: ='dec. da copiare e incollare'!E12 -> Codice Fiscale: | K7: ='dec. da copiare e incollare'!G12 -> 0
A8: ='dec. da copiare e incollare'!A13 -> Decorrenza della ricostruzione | D8: ='dec. da copiare e incollare'!D13 -> 00:00:00 | E8: ='dec. da copiare e incollare'!E13 -> Decorrenza giuridica economica | G8: ='dec. da copiare e incollare'!G13 -> 00:00:00
C11: Data di decorrenza:
C12: =IF('tabella sintetica'!C20>0,'tabella sintetica'!C20,"") -> 2000-01-01
C13: =IF('tabella sintetica'!C21>0,'tabella sintetica'!C21,"") -> 2000-07-01
C14: =IF('tabella sintetica'!C22>0,'tabella sintetica'!C22,"") -> 2001-01-01
C15: =IF('tabella sintetica'!C23>0,'tabella sintetica'!C23,"") -> 2002-01-01
C16: =IF('tabella sintetica'!C24>0,'tabella sintetica'!C24,"") -> 2003-01-01
C17: =IF('tabella sintetica'!C25>0,'tabella sintetica'!C25,"") -> 2004-01-01
C18: =IF('tabella sintetica'!C26>0,'tabella sintetica'!C26,"") -> 2005-02-01
C19: =IF('tabella sintetica'!C27>0,'tabella sintetica'!C27,"") -> 2006-01-01
C20: =IF('tabella sintetica'!C28>0,'tabella sintetica'!C28,"") -> 2007-01-01
C21: =IF('tabella sintetica'!C29>0,'tabella sintetica'!C29,"") -> 2007-02-01
C22: =IF('tabella sintetica'!C30>0,'tabella sintetica'!C30,"") -> 2008-01-01
C23: =IF('tabella sintetica'!C31>0,'tabella sintetica'!C31,"") -> 2008-04-01
C24: =IF('tabella sintetica'!C32>0,'tabella sintetica'!C32,"") -> 2008-07-01
C25: =IF('tabella sintetica'!C33>0,'tabella sintetica'!C33,"") -> 2009-01-01
C26: =IF('tabella sintetica'!C34>0,'tabella sintetica'!C34,"") -> 2010-04-01
C27: =IF('tabella sintetica'!C35>0,'tabella sintetica'!C35,"") -> 2010-07-01
C28: =IF('tabella sintetica'!C36>0,'tabella sintetica'!C36,"") -> 2010-09-01
C29: =IF('tabella sintetica'!C37>0,'tabella sintetica'!C37,"") -> 2176-01-04
C30: =IF('tabella sintetica'!C38>0,'tabella sintetica'!C38,"") -> 2182-01-02
C31: =IF('tabella sintetica'!C39>0,'tabella sintetica'!C39,"") -> 2188-01-01
C32: =IF('tabella sintetica'!C40>0,'tabella sintetica'!C40,"") -> 2193-12-30
C33: =IF('tabella sintetica'!C41>0,'tabella sintetica'!C41,"") -> 2200-12-29
C34: =IF('tabella sintetica'!C42>0,'tabella sintetica'!C42,"") -> 2207-12-28
C35: =IF('tabella sintetica'!C43>0,'tabella sintetica'!C43,"") -> 
C36: =IF('tabella sintetica'!C44>0,'tabella sintetica'!C44,"") -> 
C37: =IF('tabella sintetica'!C45>0,'tabella sintetica'!C45,"") -> 
C38: =IF('tabella sintetica'!C46>0,'tabella sintetica'!C46,"") -> 
C39: =IF('tabella sintetica'!C47>0,'tabella sintetica'!C47,"") -> 
C40: =IF('tabella sintetica'!C48>0,'tabella sintetica'!C48,"") -> 
C41: =IF('tabella sintetica'!C49>0,'tabella sintetica'!C49,"") -> 
C42: =IF('tabella sintetica'!C50>0,'tabella sintetica'!C50,"") -> 
C43: =IF('tabella sintetica'!C51>0,'tabella sintetica'!C51,"") -> 
C44: =IF('tabella sintetica'!C52>0,'tabella sintetica'!C52,"") -> 
C45: =IF('tabella sintetica'!C53>0,'tabella sintetica'!C53,"") -> 
C46: =IF('tabella sintetica'!C54>0,'tabella sintetica'!C54,"") -> 
C47: =IF('tabella sintetica'!C55>0,'tabella sintetica'!C55,"") -> 

Sheet dipt.i.
A1: INTESTAZIONE
A2: INTESTAZIONE
A3: INTESTAZIONE
A6: data:
A7: Decreto n.
A8: IL DIRIGENTE SCOLASTICO
A9: VISTO il ricorso presentato da: Qualifica: nata a -il c.f. _____________, data di iscrizione a ruolo del ricorso: (riportare la data del ricorso)
A10: VISTA la sentenza n. _________ del Giudice del Lavoro del Tribunale di ____ (riportare gli estremi della sentenza); VISTO l’obbligo da parte di quest’ufficio di dare esecuzione alla sentenza; VISTI i contratti collettivi nazionali del Lavoro Comparto Scuola sottoscritti il 01.08.1996 VISTI i contratti collettivi nazionali del Lavoro Comparto Scuola sottoscritti il 26.05.1999 VISTI i contratti collettivi nazionali del Lavoro Comparto Scuola sottoscritti il 15.03.2001 VISTI i contratti collettivi nazionali del Lavoro Comparto Scuola sottoscritti il 24.07.2003 VISTI i contratti collettivi nazionali del Lavoro Comparto Scuola sottoscritti il 29.11.2007 VISTI i contratti collettivi nazionali del Lavoro Comparto Scuola sottoscritti il 04.08.2011
A11: VISTO il D.P.R. n. 122 del 04 settembre 2013 con riferimento all’art.1 comma 1, lett.b, che sancisce il BLOCCO dell'anno 2013 che sarà considerato non utile ai fini della progressione di carriera
A13: TENUTO CONTO, come da sentenza del tribunale, che per effetto della prescrizione quinquennale applicata, dovranno essere riconosciute all'interessato, le differenze retributive a partire dalla data:_______ e fino alla data: _________ (se presente la prescrizione quinquennale, riportare da quale data dovranno essere riconosciute le differenze stipendiali)
A14: VISTO lo stato matricolare della suddetta . Che si allega e dal quale risulta che la dipendente ha prestato i seguenti servizi:
A18: Vista la documentazione presentata da: | E18: 0
A19: Qualifica: | C19: Docente scuola Media e laureato 1 grado | E19: Codice Fiscale: | G19: 0
A20: Decorrenza della ricostruzione | D20: 2000-01-01 | E20: Decorrenza giuridica economica | G20: 2000-01-01
AA21: =LEN(CONCATENATE(A21,B21,C21,D21,E21,F21,G21,H21)) -> 0
A22: Considerato che al ricorrente spetta la stessa progressione di carriera spettante al personale di ruolo - e che in tal caso tale progressione risulta essere: Fascia di anzianità:0 -2 anni con decorrenza dal 1/1/2000 SI DECRETA: | AA22: =LEN(CONCATENATE(A22,B22,C22,D22,E22,F22,G22,H22)) -> 229
D23: ARTICOLO | E23: 1 | AA23: =LEN(CONCATENATE(A23,B23,C23,D23,E23,F23,G23,H23)) -> 9
AA24: =LEN(CONCATENATE(A24,B24,C24,D24,E24,F24,G24,H24)) -> 0
A25: Con decorrenza dal: | C25: 2000-01-01 | D25: spetta: | AA25: 31
A26: Decorrenza della Ricostruzione di Carriera | L26: progressione di carriera | AA26: 43
A27: Retribuzione | E27: 10253.21882 | L27: Fascia di anzianità:0 -2 anni | M27: =CONCATENATE(" con decorrenza dal ", DAY( 'front utente'!K38),"/", MONTH( 'front utente'!K38),"/", YEAR( 'front utente'!K38) ) -> con decorrenza dal 0/1/1900 | AA27: 30
L28: =IF('front utente'!K39<>"", " - Fascia di anzianità 3 - 8 anni","") ->  | M28: =IF('front utente'!K39<>"", CONCATENATE(" con decorrenza dal ", DAY( 'front utente'!K39),"/", MONTH( 'front utente'!K39),"/", YEAR( 'front utente'!K39) ),"") ->  | AA28: 0
L29: =IF('front utente'!K40<>"", " - Fascia di anzianità 9 - 14 anni","") ->  | M29: =IF('front utente'!K40<>"", CONCATENATE(" con decorrenza dal ", DAY( 'front utente'!K40),"/", MONTH( 'front utente'!K40),"/", YEAR( 'front utente'!K40) ),"") ->  | AA29: 0
L30: =IF('front utente'!K41<>"", " Fascia di anzianità 15 - 20 anni","") ->  | M30: =IF('front utente'!K41<>"", CONCATENATE("-decorrenza: ", DAY( 'front utente'!K41),"/", MONTH( 'front utente'!K41),"/", YEAR( 'front utente'!K41) ),"") ->  | AA30: 0
A31: Retribuzione professionale Docente | E31: 594.96 | L31: =IF('front utente'!K42<>"", " Fascia di anzianità 21 - 27 anni","") ->  | M31: =IF('front utente'!K42<>"", CONCATENATE("-decorrenza: ", DAY( 'front utente'!K42),"/", MONTH( 'front utente'!K42),"/", YEAR( 'front utente'!K42) ),"") ->  | AA31: 42
D32: Totale | E32: 10848.17882 | L32: =IF('front utente'!K43<>"", " - Fascia di anzianità 28 -34 anni","") ->  | M32: =IF('front utente'!K43<>"", CONCATENATE(" con decorrenza dal ", DAY( 'front utente'!K43),"/", MONTH( 'front utente'!K43),"/", YEAR( 'front utente'!K43) ),"") ->  | AA32: 23
B33: altri assegni previsti per legge | L33: =IF('front utente'!K44<>"", " - Fascia di anzianità 35 anni","") ->  | M33: =IF('front utente'!K44<>"", CONCATENATE(" con decorrenza dal ", DAY( 'front utente'!K44),"/", MONTH( 'front utente'!K44),"/", YEAR( 'front utente'!K44) ),"") ->  | AA33: 32
D34: ARTICOLO | E34: 2 | L34: =CONCATENATE(L39," ",L27,M27,L28,M28,L29,M29, L30, M30, L31, M31, L32, M32, L33,M33) ->  | AA34: 9
AA35: 0
A36: Con decorrenza dal: | C36: 2000-07-01 | D36: spetta: | AA36: 31
A37: fascia di anzianità da 0-2 anni C.C.N.L. del 26/05/1999 incluso incremento stipendiale dal 01/11/1998 - Annuo lordo | AA37: 116
A38: Retribuzione | E38: 10451.53827 | AA38: 30
L39: Considerato che al ricorrente spetta la stessa progressione di carriera spettante al personale di ruolo - e che in tal caso tale progressione risulta essere: | AA39: 0
AA40: 0
AA41: 0
A42: Retribuzione professionale Docente | E42: 594.96 | AA42: 42
D43: Totale | E43: 11046.49827 | AA43: 23
B44: altri assegni previsti per legge | AA44: 32
AA45: 0
AA46: 0
AA47: 0
AA48: 0
AA49: 0
AA50: 0
AA51: 0
AA52: 0
AA53: 0
A54: GLI EFFETTI DEL PRESENTE DECRETO SONO SUBORDINATI AL PERDURARE | AA54: 63
A55: DELL’ATTUALE RAPPORTO DI IMPIEGO. | AA55: 34
A56: OVE, PER QUALSIASI CAUSA, DETTO RAPPORTO VENGA A SUBIRE MODIFICAZIONI | AA56: 70
A57: O A CESSARE PRIMA DELLA DATA SUINDICATA, L’EFFICACIA DEL PRESENTE DECRETO | AA57: 75
A58: VA LIMITATA ALLA DATA DELLA INTERVENUTA MODIFICAZIONE O CESSAZIONE. LO STIPENDIO | AA58: 81
A59: VA RAPPORTATO ALLE EFFETTIVE ORE DI SERVIZIO PRESTATE. | AA59: 54
A60: IL PRESENTE DECRETO SARA’ INVIATO ALLA RAGIONERIA PROVINCIALE DELLO STATO | AA60: 74
A61: PER QUANTO DI COMPETENZA . | AA61: 26
A62: LA DIREZIONE PROVINCIALE DEL TESORO E’ AUTORIZZATA, AI SENSI DELLE CITATE NORME, | AA62: 80
A63: A VARIARE LA RELATIVA PARTITA DI SPESA FISSA. | AA63: 45
A64: SONO FATTI SALVI EVENTUALI CONGUAGLI A DEBITO O A CREDITO CONSEGUENTI A | AA64: 72
A65: OSSERVAZIONI DEL SUDDETTO ORGANO DEL MINISTERO DEL TESORO, DEL BILANCIO E | AA65: 75
A66: DELLA PROGRAMMAZIONE ECONOMICA. AVVERSO IL PRESENTE DECRETO E’ ESPERIBILE | AA66: 73
A67: IMPUGNATIVA A NORMA DELL'ART. 63 E SEGUENTI DEL D.LVO 30/03/2001 N. 165 | AA67: 72
AA68: 0
A69: IL DIRIGENTE SCOLASTICO | AA69: 23
AA70: 0
AA71: 0
AA72: 0
AA73: 0
AA74: 0
AA75: 0
AA76: 0
AA77: 0
AA78: 0
AA79: 0
AA80: 0
AA81: 0
AA82: 0
AA83: 0
AA84: 0
AA85: 0
AA86: 0
AA87: 0
AA88: =LEN(CONCATENATE(A88,B88,C88,D88,E88,F88,G88,H88)) -> 0
AA89: 0
AA90: 0
AA91: 0
AA92: 0
AA93: 0
AA94: 0
AA95: 0
AA96: 0
AA97: 0
AA98: 0
AA99: 0
AA100: 0
AA101: 0
AA102: 0
AA103: 0
AA104: 0
AA105: 0
AA106: 0
AA107: 0
AA108: 0
AA109: 0
AA110: 0
AA111: 0
AA112: 0
AA113: 0
AA114: 0
AA115: 0
AA116: 0
AA117: 0
AA118: 0
AA119: 0
AA120: 0
AA121: 0
AA122: 0
AA123: 0
AA124: 0
AA125: 0
AA126: 0
AA127: 0
AA128: 0
AA129: 0
AA130: 0
AA131: 0
AA132: 0
AA133: 0
AA134: 0
AA135: 0
AA136: 0
AA137: 0
AA138: 0
AA139: 0
AA140: 0
AA141: 0
AA142: 0
AA143: 0
AA144: 0
AA145: 0
AA146: 0
AA147: 0
AA148: 0
AA149: 0
AA150: 0
AA151: 0
AA152: =LEN(CONCATENATE(A152,B152,C152,D152,E152,F152,G152,H152)) -> 0
AA153: 0
AA154: 0
AA155: 0
AA156: 0
AA157: 0
AA158: 0
AA159: 0
AA160: 0
AA161: 0
AA162: 0
AA163: 0
AA164: 0
AA165: 0
AA166: 0
AA167: 0
AA168: 0
AA169: 0
AA170: 0
AA171: 0
AA172: 0
AA173: 0
AA174: 0
AA175: 0
AA176: 0
AA177: 0
AA178: 0
AA179: 0
AA180: 0
AA181: 0
AA182: 0
AA183: 0
AA184: 0
AA185: 0
AA186: 0
AA187: 0
AA188: 0
AA189: 0
AA190: 0
AA191: 0
AA192: 0
AA193: 0
AA194: 0
AA195: 0
AA196: 0
AA197: 0
AA198: 0
AA199: 0
AA200: 0
AA201: 0
AA202: 0
AA203: 0
AA204: 0
AA205: 0
AA206: 0
... 167 more rows

Sheet DEC REL. T.I.
A1: Intestazione Circolo/Istituto
A4: DECRETO N. Data:
A6: IL DIRIGENTE SCOLASTICO
A7: VISTO il D.L. 19.6.1970, convertito in Legge 26/07/1970, n. 576;
A8: VISTO il D.P.R. 31/05/1974, n. 417;
A9: VISTO l’art. 53 – ultimo comma- della Legge 11.07.1980 n. 312, che così stabilisce testualmente: “Ai docenti di religione dopo quattro anni di insegnamento si applica una progressione economica di carriera con classi di stipendio corrispondenti all’80% di quelle attribuite ai docenti laureati di ruolo con l’obbligo di costituzione e accettazione di posto orario con trattamento di cattedra.”;
A10: VISTO il D.P.R. 2.6.1981, n. 271;
A11: VISTO il D.P.R. 25.6.1983, n. 345;
A12: VISTO l’art. 2 – co. 8 – del D.P.R. 10.4.1987, n. 209, che stabilisce che i docenti di religione di scuola secondaria, con effetto dal 01.01.1987, hanno diritto ad un trattamento economico corrispondente a quello dei docenti laureati della scuola secondaria superiore;
A13: VISTO il D.P.R. 17/09/1987, n. 494;
A14: VISTO l’art. 3, co. 6, del D.P.R. 21.3.1988, n. 399;
A15: VISTA la C.M. n. 36 del 28.01.1989;
A16: VISTO il D. L.vo 03/02/1993, n. 29 e ss. mm. ii.;
A17: VISTO il D. L.vo 16/04/1994, n. 297;
A18: VISTO l’art. 66 – co. 7 – del C.C.N.L. sottoscritto il 4.8.95, che così testualmente stabilisce:
A19: “Per gli insegnanti di religione restano in vigore le norme di cui all’art. 53 della legge n. 312 del 1980, modificate e integrate dal D.P.R. 399 del 1988 , art. 3 – co 6 e 7”;
A20: VISTO il C.C.N.L. sottoscritto il 01.08.1996;
A21: VISTA la Circolare Ministeriale, applicativa del citato CCNL, n. 595 del 20.09.1996, che precisa che per i docenti di religione nelle scuole materne, elementari e secondarie, con almeno un quadriennio di insegnamento e con orario di cattedra o equiparato, l’inquadramento nelle fasce di anzianità, di cui al citato CCNL, si effettua in base alla complessiva anzianità di carriera al 31.12.1995: tanto quella utile ai fini giuridici ed economici che quella utile ai soli fini economici, trovandosi per quanto riguarda la progressione economica equiparati ai docenti di ruolo;
A22: VISTA la C.M. 466 del 01.12.1998, che chiarisce che, per gli inquadramenti dal 01.09.1996 in poi, si procede secondo le disposizioni già impartite dal D.L. 19 giugno 1970 n. 370, art. 3, co 1 e 2, con il riconoscimento per intero dei primi quattro anni e, per la parte eccedente, 2/3 ai fini giuridici ed economici e 1/3 ai soli fini economici e che, pertanto, al momento della ricostruzione carriera si sommeranno i 4 anni + i 2/3 dell’eccedente per individuare l’anzianità valida per l’ inserimento nei gradoni e quella, invece, utile ai soli fini economici, ai sensi del comma 3 dell’ art. 4 del D.P.R. 399/88, verrà accantonata e utilizzata solo al raggiungimento del 16° e del 18° anno a seconda del tipo di scuola;
A23: VISTO il D.P.R. 8.3.1999, n. 275, recante il regolamento in materia di autonomia delle istituzioni scolastiche, ai sensi dell’art. 21 della Legge 15 marzo 1997, n. 59;
A24: VISTO il C.C.N.L. sottoscritto il 26.05.1999;
A25: VISTA la Circolare Ministeriale 3 gennaio 2001, n. 2, che precisa che, qualora i docenti di scuola secondaria ritornino ad aver un posto con orario cattedra, si provvederà a riconoscere il periodo di servizio durante il quale non c'è stata progressione di carriera, valutandolo agli effetti della carriera nella misura di due terzi ai fini giuridici ed economici e di un terzo ai soli fini economici, aggiungendo i primi all’anzianità maturata al momento della perdita dell’orario di cattedra;
A26: VISTO il C.C.N.L. sottoscritto il 15.03.2001;
A27: VISTA la Legge 18.07.2003, n. 186, art. 3, commi 1 e 3, che stabiliscono le condizioni e i titoli di accesso ai relativi ruoli dei docenti incaricati di religione;
A28: VISTO il C.C.N.L. sottoscritto il 24.07.2003;
A29: VISTO il C.C.N.L. sottoscritto il 07.12.2005;
A30: VISTO il C.C.N.L. sottoscritto il 29.11.2007;
A31: VISTA LA SEQUENZA CONTRATTUALE DEL 14/02/2008 VISTO IL C.C.N.L. sottoscritto il 04 / agosto 2011
A32: VISTO il provvedimento di individuazione di destinatario di contratto individuale di lavoro in data ___________
A33: e successivo contratto prot. n. ________ del _________ dell’USR della Regione
A34: ____________ – USP di ________________, con il quale __l__ docente ____________________ ,
A35: nat_ a ____________________ il _____________ Cod. Fisc. ____________________ , è stat_ assunt_ per l'insegnamento della Religione Cattolica con decorrenza giuridica dall’inizio dell’anno scolastico _________ (1° settembre ______) ed economica dalla data di effettiva assunzione in servizio avvenuta il _____________;
A36: CONSIDERATO che _l_ docente ha superato il periodo di prova nell’anno scolastico _______ ed è stat_ confermat_ in ruolo con decorrenza dal 1° settembre ________;
A37: CONSIDERATO che ha reso la dichiarazione dei servizi ai sensi dell'art.145 del T.U. approvato con D.P.R. 29/12/73, n.1092;
A38: VISTA l’istanza documentata, con la quale _l_ docente chiede il riconoscimento dei servizi prestati dall’anno scolastico _________ all’anno scolastico _________ per complessivi anni ___;
A39: VISTI i certificati di servizio, prestato dal__ docente con il possesso del titolo di studio prescritto per l’accesso ai relativi ruoli dall’art. 3, commi 1 e 3, della Legge 18.07.2003, n. 186;
A40: CONSIDERATO che, per effetto del riconoscimento dei servizi resi negli anni scolastici: ________ (giorni ­­­­_____), ________ (giorni ­­­­_____), ________ (giorni ­­­­_____), ________ (giorni ­­­­_____), ________ (giorni ­­­­_____), ________ (giorni ­­­­_____) – Totale anni _____, alla data del ­­__________, data di decorrenza giuridica del contratto di lavoro a tempo indeterminato (ruolo) _l_ medesim_ docente ha diritto ad essere collocat_ nella fascia stipendiale da __ a __ anni, con l’attribuzione di un’anzianità di anni __ e mesi __ ai fini giuridici ed economici ed anni __ e mesi __ ai soli fini economici;
A502: Retribuzione professionale Docente | E502: 2424
D503: Totale | E503: 24892.78
D512: ARTICOLO | E512: 24
A514: Con decorrenza dal: | C514: 2009-01-02 | D514: spetta:
A515: per passaggio, in questa data, al gradone 21-27 anni - inclusa l'i.i.s. - Annuo lordo
A516: Retribuzione | E516: 24223.94
A522: Retribuzione professionale Docente | E522: 2424
D523: Totale | E523: 26647.94

Sheet DECRETO

Sheet Foglio7
A1: GLI EFFETTI DEL PRESENTE DECRETO SONO SUBORDINATI AL PERDURARE
A2: DELL’ATTUALE RAPPORTO DI IMPIEGO.
A3: OVE, PER QUALSIASI CAUSA, DETTO RAPPORTO VENGA A SUBIRE MODIFICAZIONI
A4: O A CESSARE PRIMA DELLA DATA SUINDICATA, L’EFFICACIA DEL PRESENTE DECRETO
A5: VA LIMITATA ALLA DATA DELLA INTERVENUTA MODIFICAZIONE O CESSAZIONE. LO STIPENDIO
A6: VA RAPPORTATO ALLE EFFETTIVE ORE DI SERVIZIO PRESTATE.
A7: IL PRESENTE DECRETO SARA’ INVIATO ALLA RAGIONERIA PROVINCIALE DELLO STATO
A8: PER QUANTO DI COMPETENZA .
A9: LA DIREZIONE PROVINCIALE DEL TESORO E’ AUTORIZZATA, AI SENSI DELLE CITATE NORME,
A10: A VARIARE LA RELATIVA PARTITA DI SPESA FISSA.
A11: SONO FATTI SALVI EVENTUALI CONGUAGLI A DEBITO O A CREDITO CONSEGUENTI A
A12: OSSERVAZIONI DEL SUDDETTO ORGANO DEL MINISTERO DEL TESORO, DEL BILANCIO E
A13: DELLA PROGRAMMAZIONE ECONOMICA. AVVERSO IL PRESENTE DECRETO E’ ESPERIBILE
A14: IMPUGNATIVA A NORMA DELL'ART. 63 E SEGUENTI DEL D.LVO 30/03/2001 N. 165
A16: IL DIRIGENTE SCOLASTICO

Sheet DEC REL. INC. ANN.
A1: intestazione
A2: INTESTAZIONE
A3: INTESTAZIONE
A4: DECRETO N. Data:
A6: IL DIRIGENTE SCOLASTICO
A8: VISTO l’art. 53 – ultimo comma- della Legge 11.07.1980 n. 312, che così stabilisce testualmente: “Ai docenti di religione dopo quattro anni di insegnamento si applica una progressione economica di carriera con classi di stipendio corrispondenti all’80% di quelle attribuite ai docenti laureati di ruolo con l’obbligo di costituzione e accettazione di posto orario con trattamento di cattedra.”;
A9: VISTO il D.P.R. 2.6.1981, n. 271;
A10: VISTO il D.P.R. 25.6.1983, n. 345;
A11: VISTO l’art. 2 – co. 8 – del D.P.R. 10.4.1987, n. 209, che stabilisce che i docenti di religione di scuola secondaria, con effetto dal 01.01.1987, hanno diritto ad un trattamento economico corrispondente a quello dei docenti laureati della scuola secondaria superiore;
A12: VISTO il D.P.R. 21.3.1988, n. 399;
A13: VISTA la C.M. n. 36 del 28.01.1989;
A14: VISTO l’art. 66 – co. 7 – del C.C.N.L. sottoscritto il 4.8.95, che così testualmente stabilisce:
A15: “Per gli insegnanti di religione restano in vigore le norme di cui all’art. 53 della legge n. 312 del 1980, modificate e integrate dal D.P.R. 399 del 1988 , art. 3 – co 6 e 7”;
A16: VISTO il C.C.N.L. sottoscritto il 01.08.1996;
A17: VISTA la Circolare Ministeriale, applicativa del citato CCNL, n. 595 del 20.09.1996, che precisa che per i docenti di religione nelle scuole materne, elementari e secondarie, con almeno un quadriennio di insegnamento e con orario di cattedra o equiparato, l’inquadramento nelle fasce di anzianità, di cui al citato CCNL, si effettua in base alla complessiva anzianità di carriera al 31.12.1995: tanto quella utile ai fini giuridici ed economici che quella utile ai soli fini economici, trovandosi per quanto riguarda la progressione economica equiparati ai docenti di ruolo;
A18: VISTA la C.M. 466 del 01.12.1998, che chiarisce che, per gli inquadramenti dal 01.09.1996 in poi, si procede secondo le disposizioni già impartite dal D.L. 19 giugno 1970 n. 370, art. 3, co 1 e 2, con il riconoscimento per intero dei primi quattro anni e, per la parte eccedente, 2/3 ai fini giuridici ed economici e 1/3 ai soli fini economici e che, pertanto, al momento della ricostruzione carriera si sommeranno i 4 anni + i 2/3 dell’eccedente per individuare l’anzianità valida per l’ inserimento nei gradoni e quella, invece, utile ai soli fini economici, ai sensi del comma 3 dell’ art. 4 del D.P.R. 399/88, verrà accantonata e utilizzata solo al raggiungimento del 16° e del 18° anno a seconda del tipo di scuola;
A19: VISTO il C.C.N.L. sottoscritto il 26.05.1999;
A20: VISTA la Circolare Ministeriale 3 gennaio 2001, n. 2, che precisa che, qualora i docenti di scuola secondaria ritornino ad aver un posto con orario cattedra, si provvederà a riconoscere il periodo di servizio durante il quale non c'è stata progressione di carriera, valutandolo agli effetti della carriera nella misura di due terzi ai fini giuridici ed economici e di un terzo ai soli fini economici, aggiungendo i primi all’anzianità maturata al momento della perdita dell’orario di cattedra;
A21: VISTO il C.C.N.L. sottoscritto il 15.03.2001; VISTO il C.C.N.L. sottoscritto il 24.07.2003; VISTO il C.C.N.L. sottoscritto il 07.12.2005; VISTA la sequenza contrattuale del 14/02/2008; VISTO IL C.C.N.L. sottoscritto il 04/ agosto 2011
A22: VISTI i certificati di servizio, prestato dal__ docente ______________________________, nat_ a ____________________ il _____________ Cod. Fisc. ____________________ , dai quali risulta che _l_ docente ha maturato il diritto alla progressione di carriera per compiuto quadriennio, in qua-lità di incaricat_ per l’insegnamento della religione cattolica, il _____________, data in cui le è sta-to conferito il 5° incarico annuale con trattamento di cattedra presso il Circolo / Istituto _______________________;
A23: VERIFICATO che la predetta docente alla data del ____________ si trovava nelle condizioni pre-viste dall’art. 53, ultimo comma, della Legge 11.07.1980, n. 312, sopra richiamato; VISTA l’istanza documentata, con la quale _l_ docente chiede il riconoscimento dei servizi prestati dall’anno scolastico ________ all’anno scolastico _________ per complessivi anni ____;
A24: CONSIDERATO che sono stati riconosciuti i seguenti servizi resi negli anni scolastici: ________ (giorni _____), ________ (giorni ____), ________ (giorni _____), ________ (giorni ____), ________ (giorni ____), ________ (giorni ____) –

Sheet dec. da copiare e incollare
A1: Intestazione scuola
A2: via | O2: =CONCATENATE("Alla data del ",DAY(Foglio4!F2),"/",MONTH( Foglio4!F2),"/",YEAR(Foglio4!F2 ), " l'interessato viene inquadrato nella fascia iniziale 0 anni - D.P.R. 399/88 - con stipendio annuo lordo di euro:",ROUND(Foglio4!L2/1936.27,2)," e indennità di funzione annuo lordo di euro: ",ROUND(Foglio4!N2/1936.27,2)) -> 
A3: citta'
G4: =NOW() -> 2018-04-03T08:42:00.090
G5: Prot. N. | Q5: =ROUND(13.234,2) -> 13.23
J8: questo decreto e da copiare e incollare sul foglio decreto principale. Attraverso la macro
A11: Vista la documentazione presentata da: | E11: ='front utente'!E11 -> 0 | N11: 2010-08-31 | O11: l'interessato è inquadrato nella fascia 0/2 anni
A12: Qualifica: | C12: ='front utente'!K13 -> Docente scuola Media e laureato 1 grado | E12: Codice Fiscale: | G12: ='front utente'!L11 -> 0 | O12: l'interessato è inquadrato nella fascia 0/8 anni
A13: Decorrenza della ricostruzione | D13: ='front utente'!G13 -> 00:00:00 | E13: Decorrenza giuridica economica | G13: =D13 -> 00:00:00 | O13: =IF(#REF!>N11,O12,O11) -> 
A14: =IF(Foglio4!A2>0,'dec. da copiare e incollare'!O2,"") -> 
A15: =CONCATENATE(dipt.i.!L34," "," SI DECRETA:") -> 
D16: =Foglio4!B5 ->  | E16: =Foglio4!C5 -> 0
A17: =J27 -> per effetto del CCNL del 01/08/1996 - l'anzianità maturata al 01/01/96 viene arrotondata all'intero di anni:0
A18: =Foglio4!E5 ->  | C18: =IF(YEAR('front utente'!G13)<1996,Foglio4!F5,('front utente'!G13)) ->  | D18: spetta:
A19: =IF(CONF<>34943,Foglio4!I5,CONCATENATE(Foglio4!I5," Retribuzione comprensiva dell'incremento Tab A1 CCNL 4/8/1995 ")) -> 
A20: =IF(Foglio4!L5>0,Foglio4!K5,"") ->  | E20: =IF(Foglio4!L5>0,IF(CONF<>34943,Foglio4!L5,Foglio4!L5+'pre 1-1-1996'!S71)) -> 
A21: =IF(Foglio4!R5>0,Foglio4!Q5,"") ->  | E21: =IF(Foglio4!R5>0,Foglio4!R5,"") ->  | J21: effettuato il periodo di prova nell'anno scolastico
A22: =IF(Foglio4!X5>0,Foglio4!W5,"") ->  | E22: =IF(Foglio4!X5>0,Foglio4!X5,"") ->  | J22: e superato con esito favorevole il:
A23: =IF(Foglio4!AA5>0,Foglio4!Z5,"") ->  | E23: =IF(Foglio4!AA5>0,Foglio4!AA5,"") ->  | J23: =IF(OR(rigqual=6,rigqual=7,rigqual=8,rigqual=9,rigqual=12,rigqual=13),CONCATENATE(DAY(G13),"/",MONTH(G13),"/",YEAR(G13)+1),"") -> 0/1/1901 | K23: =G13 -> 00:00:00
A24: =IF(Foglio4!AD5>0,Foglio4!AC5,"") ->  | E24: =IF(Foglio4!AD5>0,Foglio4!AD5,"") -> 
D25: =IF(D16<>"","Totale ","") ->  | E25: =IF(D16<>"",SUM(E20:E24),"") ->  | J25: ='front utente'!L44 -> 0
B26: =IF(E25<>"","altri assegni previsti per legge","") ->  | J26: ='front utente'!J44 -> Arrotondamento anzianita al 01/01/1996: anni (ccnl scuola 01/08/96)
D27: =Foglio4!B6 ->  | E27: =Foglio4!C6 ->  | J27: =IF(J25<>"",CONCATENATE("per effetto del CCNL del 01/08/1996 - l'anzianità maturata al 01/01/96 viene arrotondata all'intero di anni:",J25),"") -> per effetto del CCNL del 01/08/1996 - l'anzianità maturata al 01/01/96 viene arrotondata all'intero di anni:0
A29: =Foglio4!E6 ->  | C29: =Foglio4!F6 ->  | D29: =Foglio4!H6 -> 
A30: =Foglio4!I6 -> 
A31: =IF(Foglio4!L6>0,Foglio4!K6,"") ->  | E31: =IF(Foglio4!L6>0,Foglio4!L6,"") -> 
A32: =IF(Foglio4!R6>0,Foglio4!Q6,"") ->  | E32: =IF(Foglio4!R6>0,Foglio4!R6,"") -> 
A33: =IF(Foglio4!X6>0,Foglio4!W6,"") ->  | E33: =IF(Foglio4!X6>0,Foglio4!X6,"") -> 
A34: =IF(Foglio4!AA6>0,Foglio4!Z6,"") ->  | E34: =IF(Foglio4!AA6>0,Foglio4!AA6,"") ->  | L34: =Foglio4!J6 -> 0 | M34: =Foglio4!K6 -> 
A35: =IF(Foglio4!AD6>0,Foglio4!AC6,"") ->  | E35: =IF(Foglio4!AD6>0,Foglio4!AD6,"") -> 
D36: =IF(D27<>"","Totale ","") ->  | E36: =IF(D27<>"",SUM(E31:E35),"") ->  | I36: =Foglio4!M6 ->  | K36: =Foglio4!N6 ->  | L36: =Foglio4!P6 -> 0
B37: =IF(E36<>"","altri assegni previsti per legge","") ->  | I37: =Foglio4!Q6 -> 
D38: =Foglio4!B7 ->  | E38: =Foglio4!C7 -> 
A40: =Foglio4!E7 ->  | C40: =Foglio4!F7 ->  | D40: =Foglio4!H7 -> 
A41: =Foglio4!I7 -> 
A42: =IF(Foglio4!L7>0,Foglio4!K7,"") ->  | E42: =IF(Foglio4!L7>0,Foglio4!L7,"") -> 
A43: =IF(Foglio4!R7>0,Foglio4!Q7,"") ->  | E43: =IF(Foglio4!R7>0,Foglio4!R7,"") -> 
A44: =IF(Foglio4!X7>0,Foglio4!W7,"") ->  | E44: =IF(Foglio4!X7>0,Foglio4!X7,"") -> 
A45: =IF(Foglio4!AA7>0,Foglio4!Z7,"") ->  | E45: =IF(Foglio4!AA7>0,Foglio4!AA7,"") -> 
A46: =IF(Foglio4!AD7>0,Foglio4!AC7,"") ->  | E46: =IF(Foglio4!AD7>0,Foglio4!AD7,"") -> 
D47: =IF(D38<>"","Totale ","") ->  | E47: =IF(D38<>"",SUM(E42:E46),"") -> 
B48: =IF(E47<>"","altri assegni previsti per legge","") -> 
D49: =Foglio4!B8 ->  | E49: =Foglio4!C8 -> 
A51: =Foglio4!E8 ->  | C51: =Foglio4!F8 ->  | D51: =Foglio4!H8 -> 
A52: =Foglio4!I8 -> 
A53: =IF(Foglio4!L8>0,Foglio4!K8,"") ->  | E53: =IF(Foglio4!L8>0,Foglio4!L8,"") -> 
A54: =IF(Foglio4!R8>0,Foglio4!Q8,"") ->  | E54: =IF(Foglio4!R8>0,Foglio4!R8,"") -> 
A55: =IF(Foglio4!X8>0,Foglio4!W8,"") ->  | E55: =IF(Foglio4!X8>0,Foglio4!X8,"") -> 
A56: =IF(Foglio4!AA8>0,Foglio4!Z8,"") ->  | E56: =IF(Foglio4!AA8>0,Foglio4!AA8,"") -> 
A57: =IF(Foglio4!AD8>0,Foglio4!AC8,"") ->  | E57: =IF(Foglio4!AD8>0,Foglio4!AD8,"") -> 
D58: =IF(D49<>"","Totale ","") ->  | E58: =IF(D49<>"",SUM(E53:E57),"") ->  | I58: =Foglio4!M8 ->  | K58: =Foglio4!N8 ->  | L58: =Foglio4!P8 -> 0
B59: =IF(E58<>"","altri assegni previsti per legge","") ->  | I59: =Foglio4!Q8 -> 
D60: =Foglio4!B9 ->  | E60: =Foglio4!C9 -> 
A62: =Foglio4!E9 ->  | C62: =Foglio4!F9 ->  | D62: =Foglio4!H9 -> 
A63: =Foglio4!I9 -> 
A64: =IF(Foglio4!L9>0,Foglio4!K9,"") ->  | E64: =IF(Foglio4!L9>0,Foglio4!L9,"") -> 
A65: =IF(Foglio4!R9>0,Foglio4!Q9,"") ->  | E65: =IF(Foglio4!R9>0,Foglio4!R9,"") -> 
A66: =IF(Foglio4!X9>0,Foglio4!W9,"") ->  | E66: =IF(Foglio4!X9>0,Foglio4!X9,"") -> 
A67: =IF(Foglio4!AA9>0,Foglio4!Z9,"") ->  | E67: =IF(Foglio4!AA9>0,Foglio4!AA9,"") -> 
A68: =IF(Foglio4!AD9>0,Foglio4!AC9,"") ->  | E68: =IF(Foglio4!AD9>0,Foglio4!AD9,"") -> 
D69: =IF(D60<>"","Totale ","") ->  | E69: =IF(D60<>"",SUM(E64:E68),"") -> 
B70: =IF(E69<>"","altri assegni previsti per legge","") -> 
D71: =Foglio4!B10 ->  | E71: =Foglio4!C10 -> 
A73: =Foglio4!E10 ->  | C73: =Foglio4!F10 ->  | D73: =Foglio4!H10 -> 
A74: =Foglio4!I10 -> 
A75: =IF(Foglio4!L10>0,Foglio4!K10,"") ->  | E75: =IF(Foglio4!L10>0,Foglio4!L10,"") -> 
A76: =IF(Foglio4!R10>0,Foglio4!Q10,"") ->  | E76: =IF(Foglio4!R10>0,Foglio4!R10,"") -> 
A77: =IF(Foglio4!X10>0,Foglio4!W10,"") ->  | E77: =IF(Foglio4!X10>0,Foglio4!X10,"") -> 
A78: =IF(Foglio4!AA10>0,Foglio4!Z10,"") ->  | E78: =IF(Foglio4!AA10>0,Foglio4!AA10,"") -> 
A79: =IF(Foglio4!AD10>0,Foglio4!AC10,"") ->  | E79: =IF(Foglio4!AD10>0,Foglio4!AD10,"") -> 
D80: =IF(D71<>"","Totale ","") ->  | E80: =IF(D71<>"",SUM(E75:E79),"") -> 
B81: =IF(E80<>"","altri assegni previsti per legge","") -> 
D82: =Foglio4!B11 ->  | E82: =Foglio4!C11 -> 
A84: =Foglio4!E11 ->  | C84: =Foglio4!F11 ->  | D84: =Foglio4!H11 -> 
A85: =Foglio4!I11 -> 
A86: =IF(Foglio4!L11>0,Foglio4!K11,"") ->  | E86: =IF(Foglio4!L11>0,Foglio4!L11,"") -> 
A87: =IF(Foglio4!R11>0,Foglio4!Q11,"") ->  | E87: =IF(Foglio4!R11>0,Foglio4!R11,"") -> 
A88: =IF(Foglio4!X11>0,Foglio4!W11,"") ->  | E88: =IF(Foglio4!X11>0,Foglio4!X11,"") -> 
A89: =IF(Foglio4!AA11>0,Foglio4!Z11,"") ->  | E89: =IF(Foglio4!AA11>0,Foglio4!AA11,"") -> 
A90: =IF(Foglio4!AD11>0,Foglio4!AC11,"") ->  | E90: =IF(Foglio4!AD11>0,Foglio4!AD11,"") -> 
D91: =IF(D82<>"","Totale ","") ->  | E91: =IF(D82<>"",SUM(E86:E90),"") -> 
B92: =IF(E91<>"","altri assegni previsti per legge","") -> 
D93: =Foglio4!B12 ->  | E93: =Foglio4!C12 -> 
A95: =Foglio4!E12 ->  | C95: =Foglio4!F12 ->  | D95: =Foglio4!H12 -> 
A96: =Foglio4!I12 -> 
A97: =IF(Foglio4!L12>0,Foglio4!K12,"") ->  | E97: =IF(Foglio4!L12>0,Foglio4!L12,"") -> 
A98: =IF(Foglio4!R12>0,Foglio4!Q12,"") ->  | E98: =IF(Foglio4!R12>0,Foglio4!R12,"") -> 
A99: =IF(Foglio4!X12>0,Foglio4!W12,"") ->  | E99: =IF(Foglio4!X12>0,Foglio4!X12,"") -> 
A100: =IF(Foglio4!AA12>0,Foglio4!Z12,"") ->  | E100: =IF(Foglio4!AA12>0,Foglio4!AA12,"") -> 
A101: =IF(Foglio4!AD12>0,Foglio4!AC12,"") ->  | E101: =IF(Foglio4!AD12>0,Foglio4!AD12,"") -> 
D102: =IF(D93<>"","Totale ","") ->  | E102: =IF(D93<>"",SUM(E97:E101),"") -> 
B103: =IF(E102<>"","altri assegni previsti per legge","") -> 
D104: =Foglio4!B13 ->  | E104: =Foglio4!C13 -> 
A106: =Foglio4!E13 ->  | C106: =Foglio4!F13 ->  | D106: =Foglio4!H13 -> 
A107: =Foglio4!I13 -> 
A108: =IF(Foglio4!L13>0,Foglio4!K13,"") ->  | E108: =IF(Foglio4!L13>0,Foglio4!L13,"") -> 
A109: =IF(Foglio4!R13>0,Foglio4!Q13,"") ->  | E109: =IF(Foglio4!R13>0,Foglio4!R13,"") -> 
A110: =IF(Foglio4!X13>0,Foglio4!W13,"") ->  | E110: =IF(Foglio4!X13>0,Foglio4!X13,"") -> 
A111: =IF(Foglio4!AA13>0,Foglio4!Z13,"") ->  | E111: =IF(Foglio4!AA13>0,Foglio4!AA13,"") -> 
A112: =IF(Foglio4!AD13>0,Foglio4!AC13,"") ->  | E112: =IF(Foglio4!AD13>0,Foglio4!AD13,"") -> 
D113: =IF(D104<>"","Totale ","") ->  | E113: =IF(D104<>"",SUM(E108:E112),"") -> 
B114: =IF(E113<>"","altri assegni previsti per legge","") -> 
D115: =Foglio4!B14 ->  | E115: =Foglio4!C14 -> 
A117: =Foglio4!E14 ->  | C117: =Foglio4!F14 ->  | D117: =Foglio4!H14 -> 
A118: =Foglio4!I14 -> 
A119: =IF(Foglio4!L14>0,Foglio4!K14,"") ->  | E119: =IF(Foglio4!L14>0,Foglio4!L14,"") -> 
A120: =IF(Foglio4!R14>0,Foglio4!Q14,"") ->  | E120: =IF(Foglio4!R14>0,Foglio4!R14,"") -> 
A121: =IF(Foglio4!X14>0,Foglio4!W14,"") ->  | E121: =IF(Foglio4!X14>0,Foglio4!X14,"") -> 
A122: =IF(Foglio4!AA14>0,Foglio4!Z14,"") ->  | E122: =IF(Foglio4!AA14>0,Foglio4!AA14,"") -> 
A123: =IF(Foglio4!AD14>0,Foglio4!AC14,"") ->  | E123: =IF(Foglio4!AD14>0,Foglio4!AD14,"") -> 
D124: =IF(D115<>"","Totale ","") ->  | E124: =IF(D115<>"",SUM(E119:E123),"") -> 
B125: =IF(E124<>"","altri assegni previsti per legge","") -> 
D126: =Foglio4!B15 ->  | E126: =Foglio4!C15 -> 
A128: =Foglio4!E15 ->  | C128: =Foglio4!F15 ->  | D128: =Foglio4!H15 -> 
A129: =Foglio4!I15 -> 
A130: =IF(Foglio4!L15>0,Foglio4!K15,"") ->  | E130: =IF(Foglio4!L15>0,Foglio4!L15,"") -> 
A131: =IF(Foglio4!R15>0,Foglio4!Q15,"") ->  | E131: =IF(Foglio4!R15>0,Foglio4!R15,"") -> 
A132: =IF(Foglio4!X15>0,Foglio4!W15,"") ->  | E132: =IF(Foglio4!X15>0,Foglio4!X15,"") -> 
A133: =IF(Foglio4!AA15>0,Foglio4!Z15,"") ->  | E133: =IF(Foglio4!AA15>0,Foglio4!AA15,"") -> 
A134: =IF(Foglio4!AD15>0,Foglio4!AC15,"") ->  | E134: =IF(Foglio4!AD15>0,Foglio4!AD15,"") -> 
D135: =IF(D126<>"","Totale ","") ->  | E135: =IF(D126<>"",SUM(E130:E134),"") -> 
B136: =IF(E135<>"","altri assegni previsti per legge","") -> 
D137: =Foglio4!B16 ->  | E137: =Foglio4!C16 -> 
A139: =Foglio4!E16 ->  | C139: =Foglio4!F16 ->  | D139: =Foglio4!H16 -> 
A140: =Foglio4!I16 -> 
A141: =IF(Foglio4!L16>0,Foglio4!K16,"") ->  | E141: =IF(Foglio4!L16>0,Foglio4!L16,"") -> 
A142: =IF(Foglio4!R16>0,Foglio4!Q16,"") ->  | E142: =IF(Foglio4!R16>0,Foglio4!R16,"") -> 
A143: =IF(Foglio4!X16>0,Foglio4!W16,"") ->  | E143: =IF(Foglio4!X16>0,Foglio4!X16,"") -> 
A144: =IF(Foglio4!AA16>0,Foglio4!Z16,"") ->  | E144: =IF(Foglio4!AA16>0,Foglio4!AA16,"") -> 
A145: =IF(Foglio4!AD16>0,Foglio4!AC16,"") ->  | E145: =IF(Foglio4!AD16>0,Foglio4!AD16,"") -> 
D146: =IF(D137<>"","Totale ","") ->  | E146: =IF(D137<>"",SUM(E141:E145),"") -> 
B147: =IF(E146<>"","altri assegni previsti per legge","") -> 
D148: =Foglio4!B17 ->  | E148: =Foglio4!C17 -> 
A150: =Foglio4!E17 ->  | C150: =Foglio4!F17 ->  | D150: =Foglio4!H17 -> 
A151: =Foglio4!I17 -> 
A152: =IF(Foglio4!L17>0,Foglio4!K17,"") ->  | E152: =IF(Foglio4!L17>0,Foglio4!L17,"") -> 
A153: =IF(Foglio4!R17>0,Foglio4!Q17,"") ->  | E153: =IF(Foglio4!R17>0,Foglio4!R17,"") -> 
A154: =IF(Foglio4!X17>0,Foglio4!W17,"") ->  | E154: =IF(Foglio4!X17>0,Foglio4!X17,"") -> 
A155: =IF(Foglio4!AA17>0,Foglio4!Z17,"") ->  | E155: =IF(Foglio4!AA17>0,Foglio4!AA17,"") -> 
A156: =IF(Foglio4!AD17>0,Foglio4!AC17,"") ->  | E156: =IF(Foglio4!AD17>0,Foglio4!AD17,"") -> 
D157: =IF(D148<>"","Totale ","") ->  | E157: =IF(D148<>"",SUM(E152:E156),"") -> 
B158: =IF(E157<>"","altri assegni previsti per legge","") -> 
D159: =Foglio4!B18 ->  | E159: =Foglio4!C18 -> 
A161: =Foglio4!E18 ->  | C161: =Foglio4!F18 ->  | D161: =Foglio4!H18 -> 
A162: =Foglio4!I18 -> 
A163: =IF(Foglio4!L18>0,Foglio4!K18,"") ->  | E163: =IF(Foglio4!L18>0,Foglio4!L18,"") -> 
A164: =IF(Foglio4!R18>0,Foglio4!Q18,"") ->  | E164: =IF(Foglio4!R18>0,Foglio4!R18,"") -> 
A165: =IF(Foglio4!X18>0,Foglio4!W18,"") ->  | E165: =IF(Foglio4!X18>0,Foglio4!X18,"") -> 
A166: =IF(Foglio4!AA18>0,Foglio4!Z18,"") ->  | E166: =IF(Foglio4!AA18>0,Foglio4!AA18,"") -> 
A167: =IF(Foglio4!AD18>0,Foglio4!AC18,"") ->  | E167: =IF(Foglio4!AD18>0,Foglio4!AD18,"") -> 
D168: =IF(D159<>"","Totale ","") ->  | E168: =IF(D159<>"",SUM(E163:E167),"") -> 
B169: =IF(E168<>"","altri assegni previsti per legge","") -> 
D170: =Foglio4!B19 ->  | E170: =Foglio4!C19 -> 
A172: =Foglio4!E19 ->  | C172: =Foglio4!F19 ->  | D172: =Foglio4!H19 -> 
A173: =Foglio4!I19 -> 
A174: =IF(Foglio4!L19>0,Foglio4!K19,"") ->  | E174: =IF(Foglio4!L19>0,Foglio4!L19,"") -> 
A175: =IF(Foglio4!R19>0,Foglio4!Q19,"") ->  | E175: =IF(Foglio4!R19>0,Foglio4!R19,"") -> 
A176: =IF(Foglio4!X19>0,Foglio4!W19,"") ->  | E176: =IF(Foglio4!X19>0,Foglio4!X19,"") -> 
A177: =IF(Foglio4!AA19>0,Foglio4!Z19,"") ->  | E177: =IF(Foglio4!AA19>0,Foglio4!AA19,"") -> 
A178: =IF(Foglio4!AD19>0,Foglio4!AC19,"") ->  | E178: =IF(Foglio4!AD19>0,Foglio4!AD19,"") -> 
D179: =IF(D170<>"","Totale ","") ->  | E179: =IF(D170<>"",SUM(E174:E178),"") -> 
B180: =IF(E179<>"","altri assegni previsti per legge","") -> 
D181: =Foglio4!B20 ->  | E181: =Foglio4!C20 -> 
A183: =Foglio4!E20 ->  | C183: =Foglio4!F20 ->  | D183: =Foglio4!H20 -> 
A184: =Foglio4!I20 -> 
A185: =IF(Foglio4!L20>0,Foglio4!K20,"") ->  | E185: =IF(Foglio4!L20>0,Foglio4!L20,"") -> 
A186: =IF(Foglio4!R20>0,Foglio4!Q20,"") ->  | E186: =IF(Foglio4!R20>0,Foglio4!R20,"") -> 
A187: =IF(Foglio4!X20>0,Foglio4!W20,"") ->  | E187: =IF(Foglio4!X20>0,Foglio4!X20,"") -> 
A188: =IF(Foglio4!AA20>0,Foglio4!Z20,"") ->  | E188: =IF(Foglio4!AA20>0,Foglio4!AA20,"") -> 
A189: =IF(Foglio4!AD20>0,Foglio4!AC20,"") ->  | E189: =IF(Foglio4!AD20>0,Foglio4!AD20,"") -> 
D190: =IF(D181<>"","Totale ","") ->  | E190: =IF(D181<>"",SUM(E185:E189),"") -> 
B191: =IF(E190<>"","altri assegni previsti per legge","") -> 
D192: =Foglio4!B21 ->  | E192: =Foglio4!C21 -> 
A194: =Foglio4!E21 ->  | C194: =Foglio4!F21 ->  | D194: =Foglio4!H21 -> 
A195: =Foglio4!I21 -> 
A196: =IF(Foglio4!L21>0,Foglio4!K21,"") ->  | E196: =IF(Foglio4!L21>0,Foglio4!L21,"") -> 
A197: =IF(Foglio4!R21>0,Foglio4!Q21,"") ->  | E197: =IF(Foglio4!R21>0,Foglio4!R21,"") -> 
A198: =IF(Foglio4!X21>0,Foglio4!W21,"") ->  | E198: =IF(Foglio4!X21>0,Foglio4!X21,"") -> 
A199: =IF(Foglio4!AA21>0,Foglio4!Z21,"") ->  | E199: =IF(Foglio4!AA21>0,Foglio4!AA21,"") -> 
A200: =IF(Foglio4!AD21>0,Foglio4!AC21,"") ->  | E200: =IF(Foglio4!AD21>0,Foglio4!AD21,"") -> 
D201: =IF(D192<>"","Totale ","") ->  | E201: =IF(D192<>"",SUM(E196:E200),"") -> 
B202: =IF(E201<>"","altri assegni previsti per legge","") -> 
D203: =Foglio4!B22 ->  | E203: =Foglio4!C22 -> 
A205: =Foglio4!E22 ->  | C205: =Foglio4!F22 ->  | D205: =Foglio4!H22 -> 
A206: =Foglio4!I22 -> 
A207: =IF(Foglio4!L22>0,Foglio4!K22,"") ->  | E207: =IF(Foglio4!L22>0,Foglio4!L22,"") -> 
A208: =IF(Foglio4!R22>0,Foglio4!Q22,"") ->  | E208: =IF(Foglio4!R22>0,Foglio4!R22,"") -> 
A209: =IF(Foglio4!X22>0,Foglio4!W22,"") ->  | E209: =IF(Foglio4!X22>0,Foglio4!X22,"") -> 
A210: =IF(Foglio4!AA22>0,Foglio4!Z22,"") ->  | E210: =IF(Foglio4!AA22>0,Foglio4!AA22,"") -> 
A211: =IF(Foglio4!AD22>0,Foglio4!AC22,"") ->  | E211: =IF(Foglio4!AD22>0,Foglio4!AD22,"") -> 
D212: =IF(D203<>"","Totale ","") ->  | E212: =IF(D203<>"",SUM(E207:E211),"") -> 
B213: =IF(E212<>"","altri assegni previsti per legge","") -> 
D214: =Foglio4!B23 ->  | E214: =Foglio4!C23 -> 
A216: =Foglio4!E23 ->  | C216: =Foglio4!F23 ->  | D216: =Foglio4!H23 -> 
A217: =Foglio4!I23 -> 
A218: =IF(Foglio4!L23>0,Foglio4!K23,"") ->  | E218: =IF(Foglio4!L23>0,Foglio4!L23,"") -> 
A219: =IF(Foglio4!R23>0,Foglio4!Q23,"") ->  | E219: =IF(Foglio4!R23>0,Foglio4!R23,"") -> 
A220: =IF(Foglio4!X23>0,Foglio4!W23,"") ->  | E220: =IF(Foglio4!X23>0,Foglio4!X23,"") -> 
A221: =IF(Foglio4!AA23>0,Foglio4!Z23,"") ->  | E221: =IF(Foglio4!AA23>0,Foglio4!AA23,"") -> 
A222: =IF(Foglio4!AD23>0,Foglio4!AC23,"") ->  | E222: =IF(Foglio4!AD23>0,Foglio4!AD23,"") -> 
... 131 more rows

Sheet Foglio8
E6: Inserire n° di fattura: | G6: /2010 | J6: numero di controllo | L6: 1
D8: Senza n° di Fattura, il software è in versione DEMO - In tale versione, i calcoli derivanti sono simulati e non corretti. Il numero và inserito esattamente come si trova sulla fattura. Una volta inserito il n° di fattura, e per evitare di reinserirlo successivamente, salvare il programma dal menù: FILE -> SALVA
G13: CLICCA QUI PER TORNARE LA FOGLIO PRINCIPALE

Sheet Foglio9
A9: Calcolo giorni preruolo
B13: =Foglio2!E21 -> 0 | F13: =Foglio2!L21 -> 0
B16: =qualifica -> Doc. laureato 1° Grado | F16: =decor -> -365
C25: =Foglio2!E49 -> 00:00:00 | D25: =Foglio2!F49 -> 00:00:00 | G25: =DAYS360(C25,D25) -> 0
C26: =Foglio2!E50 -> 00:00:00 | D26: =Foglio2!F50 -> 00:00:00 | G26: =DAYS360(C26,D26) -> 0
C27: =Foglio2!E51 -> 00:00:00 | D27: =Foglio2!F51 -> 00:00:00 | G27: 0
C28: =Foglio2!E52 -> 00:00:00 | D28: =Foglio2!F52 -> 00:00:00 | G28: 0
C29: =Foglio2!E53 -> 00:00:00 | D29: =Foglio2!F53 -> 00:00:00 | G29: 0
C30: =Foglio2!E54 -> 00:00:00 | D30: =Foglio2!F54 -> 00:00:00 | G30: 0
C31: =Foglio2!E55 -> 00:00:00 | D31: =Foglio2!F55 -> 00:00:00 | G31: 0
C32: =Foglio2!E56 -> 00:00:00 | D32: =Foglio2!F56 -> 00:00:00 | G32: 0
C33: =Foglio2!E57 -> 00:00:00 | D33: =Foglio2!F57 -> 00:00:00 | G33: 0
C34: =Foglio2!E58 -> 00:00:00 | D34: =Foglio2!F58 -> 00:00:00 | G34: 0
C35: =Foglio2!E59 -> 00:00:00 | D35: =Foglio2!F59 -> 00:00:00 | G35: 0
C36: =Foglio2!E60 -> 00:00:00 | D36: =Foglio2!F60 -> 00:00:00 | G36: 0
C37: =Foglio2!E61 -> 00:00:00 | D37: =Foglio2!F61 -> 00:00:00 | G37: 0
C38: =Foglio2!E62 -> 00:00:00 | D38: =Foglio2!F62 -> 00:00:00 | G38: 0
C39: =Foglio2!E63 -> 00:00:00 | D39: =Foglio2!F63 -> 00:00:00 | G39: 0
C40: =Foglio2!E64 -> 00:00:00 | D40: =Foglio2!F64 -> 00:00:00 | G40: 0
C41: =Foglio2!E65 -> 00:00:00 | D41: =Foglio2!F65 -> 00:00:00 | G41: 0
C42: =Foglio2!E66 -> 00:00:00 | D42: =Foglio2!F66 -> 00:00:00 | G42: 0
C43: =Foglio2!E67 -> 00:00:00 | D43: =Foglio2!F67 -> 00:00:00 | G43: 0
C44: =Foglio2!E68 -> 00:00:00 | D44: =Foglio2!F68 -> 00:00:00 | G44: 0
C45: =Foglio2!E69 -> 00:00:00 | D45: =Foglio2!F69 -> 00:00:00 | G45: 0
C46: =Foglio2!E70 -> 00:00:00 | D46: =Foglio2!F70 -> 00:00:00 | G46: 0
C47: =Foglio2!E71 -> 00:00:00 | D47: =Foglio2!F71 -> 00:00:00 | G47: 0
C48: =Foglio2!E72 -> 00:00:00 | D48: =Foglio2!F72 -> 00:00:00 | G48: 0
C49: =Foglio2!E73 -> 00:00:00 | D49: =Foglio2!F73 -> 00:00:00 | G49: 0
C50: =Foglio2!E74 -> 00:00:00 | D50: =Foglio2!F74 -> 00:00:00 | G50: 0
C51: =Foglio2!E75 -> 00:00:00 | D51: =Foglio2!F75 -> 00:00:00 | G51: 0
C52: =Foglio2!E76 -> 00:00:00 | D52: =Foglio2!F76 -> 00:00:00 | G52: 0
C53: =Foglio2!E77 -> 00:00:00 | D53: =Foglio2!F77 -> 00:00:00 | G53: 0
C59: 1980-09-01 | D59: =C60 -> 1981-09-01 | F59: =IF(_pre1>=C59,IF(_pre1<D59,_dif1,0),0) -> 0 | G59: =IF(_pre2>=C59,IF(_pre2<D59,_dif2,0),0) -> 0 | H59: =IF(_pre3>=C59,IF(_pre3<D59,_dif3,0),0) -> 0 | I59: =IF(_pre4>=C59,IF(_pre4<D59,_dif4,0),0) -> 0 | J59: =IF(_pre5>=C59,IF(_pre5<D59,_dif5,0),0) -> 0 | K59: =IF(_pre6>=C59,IF(_pre6<D59,_dif6,0),0) -> 0 | L59: =IF(_pre7>=C59,IF(_pre7<D59,_dif7,0),0) -> 0 | M59: =IF(_pre8>=C59,IF(_pre8<D59,_dif8,0),0) -> 0 | N59: =IF(_pre9>=C59,IF(_pre9<D59,_dif9,0),0) -> 0 | O59: =IF(_pre10>=C59,IF(_pre10<D59,_dif10,0),0) -> 0 | P59: =IF(_pre11>=C59,IF(_pre11<D59,_dif11,0),0) -> 0 | Q59: =IF(_pre12>=C59,IF(_pre12<D59,_dif12,0),0) -> 0 | R59: =IF(_pre13>=C59,IF(_pre13<D59,_dif13,0),0) -> 0 | S59: =IF(_pre14>=C59,IF(_pre14<D59,_dif14,0),0) -> 0 | T59: =IF(_pre15>=C59,IF(_pre15<D59,_dif15,0),0) -> 0 | U59: =IF(_pre16>=C59,IF(_pre16<D59,_dif16,0),0) -> 0 | V59: =IF(_pre17>=C59,IF(_pre17<D59,_dif17,0),0) -> 0 | W59: =IF(_pre18>=C59,IF(_pre18<D59,_dif18,0),0) -> 0 | X59: =IF(_pre19>=C59,IF(_pre19<D59,_dif19,0),0) -> 0 | Y59: =IF(_pre20>=C59,IF(_pre20<D59,_dif20,0),0) -> 0 | Z59: =IF(_pre21>=C59,IF(_pre21<D59,_dif21,0),0) -> 0 | AA59: =IF(_pre22>=C59,IF(_pre22<D59,_dif22,0),0) -> 0 | AB59: =IF(_pre23>=C59,IF(_pre23<D59,_dif23,0),0) -> 0 | AC59: =IF(_pre24>=C59,IF(_pre24<D59,_dif24,0),0) -> 0 | AD59: =IF(_pre25>=C59,IF(_pre25<D59,_dif25,0),0) -> 0 | AE59: =IF(_pre26>=C59,IF(_pre26<D59,_dif26,0),0) -> 0 | AF59: =IF(_pre27>=C59,IF(_pre27<D59,_dif27,0),0) -> 0 | AG59: =IF(_pre28>=C59,IF(_pre28<D59,_dif28,0),0) -> 0 | AH59: =IF(_pre29>=C59,IF(_pre29<D59,_dif29,0),0) -> 0
C60: 1981-09-01 | D60: =C61 -> 1982-09-01 | F60: 0 | G60: 0 | H60: 0 | I60: 0 | J60: 0 | K60: 0 | L60: 0 | M60: 0 | N60: 0 | O60: 0 | P60: 0 | Q60: 0 | R60: 0 | S60: 0 | T60: 0 | U60: 0 | V60: 0 | W60: 0 | X60: 0 | Y60: 0 | Z60: 0 | AA60: 0 | AB60: 0 | AC60: 0 | AD60: 0 | AE60: 0 | AF60: 0 | AG60: 0 | AH60: 0
C61: 1982-09-01 | D61: 1983-09-01 | F61: 0 | G61: 0 | H61: 0 | I61: 0 | J61: 0 | K61: 0 | L61: 0 | M61: 0 | N61: 0 | O61: 0 | P61: 0 | Q61: 0 | R61: 0 | S61: 0 | T61: 0 | U61: 0 | V61: 0 | W61: 0 | X61: 0 | Y61: 0 | Z61: 0 | AA61: 0 | AB61: 0 | AC61: 0 | AD61: 0 | AE61: 0 | AF61: 0 | AG61: 0 | AH61: 0
C62: 1983-09-01 | D62: 1984-09-01 | F62: 0 | G62: 0 | H62: 0 | I62: 0 | J62: 0 | K62: 0 | L62: 0 | M62: 0 | N62: 0 | O62: 0 | P62: 0 | Q62: 0 | R62: 0 | S62: 0 | T62: 0 | U62: 0 | V62: 0 | W62: 0 | X62: 0 | Y62: 0 | Z62: 0 | AA62: 0 | AB62: 0 | AC62: 0 | AD62: 0 | AE62: 0 | AF62: 0 | AG62: 0 | AH62: 0
C63: 1984-09-01 | D63: 1985-09-01 | F63: 0 | G63: 0 | H63: 0 | I63: 0 | J63: 0 | K63: 0 | L63: 0 | M63: 0 | N63: 0 | O63: 0 | P63: 0 | Q63: 0 | R63: 0 | S63: 0 | T63: 0 | U63: 0 | V63: 0 | W63: 0 | X63: 0 | Y63: 0 | Z63: 0 | AA63: 0 | AB63: 0 | AC63: 0 | AD63: 0 | AE63: 0 | AF63: 0 | AG63: 0 | AH63: 0
C64: 1985-09-01 | D64: 1986-09-01 | F64: 0 | G64: 0 | H64: 0 | I64: 0 | J64: 0 | K64: 0 | L64: 0 | M64: 0 | N64: 0 | O64: 0 | P64: 0 | Q64: 0 | R64: 0 | S64: 0 | T64: 0 | U64: 0 | V64: 0 | W64: 0 | X64: 0 | Y64: 0 | Z64: 0 | AA64: 0 | AB64: 0 | AC64: 0 | AD64: 0 | AE64: 0 | AF64: 0 | AG64: 0 | AH64: 0
C65: 1986-09-01 | D65: 1987-09-01 | F65: 0 | G65: 0 | H65: 0 | I65: 0 | J65: 0 | K65: 0 | L65: 0 | M65: 0 | N65: 0 | O65: 0 | P65: 0 | Q65: 0 | R65: 0 | S65: 0 | T65: 0 | U65: 0 | V65: 0 | W65: 0 | X65: 0 | Y65: 0 | Z65: 0 | AA65: 0 | AB65: 0 | AC65: 0 | AD65: 0 | AE65: 0 | AF65: 0 | AG65: 0 | AH65: 0
C66: 1987-09-01 | D66: 1988-09-01 | F66: 0 | G66: 0 | H66: 0 | I66: 0 | J66: 0 | K66: 0 | L66: 0 | M66: 0 | N66: 0 | O66: 0 | P66: 0 | Q66: 0 | R66: 0 | S66: 0 | T66: 0 | U66: 0 | V66: 0 | W66: 0 | X66: 0 | Y66: 0 | Z66: 0 | AA66: 0 | AB66: 0 | AC66: 0 | AD66: 0 | AE66: 0 | AF66: 0 | AG66: 0 | AH66: 0
C67: 1988-09-01 | D67: 1989-09-01 | F67: 0 | G67: 0 | H67: 0 | I67: 0 | J67: 0 | K67: 0 | L67: 0 | M67: 0 | N67: 0 | O67: 0 | P67: 0 | Q67: 0 | R67: 0 | S67: 0 | T67: 0 | U67: 0 | V67: 0 | W67: 0 | X67: 0 | Y67: 0 | Z67: 0 | AA67: 0 | AB67: 0 | AC67: 0 | AD67: 0 | AE67: 0 | AF67: 0 | AG67: 0 | AH67: 0
C68: 1989-09-01 | D68: 1990-09-01 | F68: 0 | G68: 0 | H68: 0 | I68: 0 | J68: 0 | K68: 0 | L68: 0 | M68: 0 | N68: 0 | O68: 0 | P68: 0 | Q68: 0 | R68: 0 | S68: 0 | T68: 0 | U68: 0 | V68: 0 | W68: 0 | X68: 0 | Y68: 0 | Z68: 0 | AA68: 0 | AB68: 0 | AC68: 0 | AD68: 0 | AE68: 0 | AF68: 0 | AG68: 0 | AH68: 0
C69: 1990-09-01 | D69: 1991-09-01 | F69: 0 | G69: 0 | H69: 0 | I69: 0 | J69: 0 | K69: 0 | L69: 0 | M69: 0 | N69: 0 | O69: 0 | P69: 0 | Q69: 0 | R69: 0 | S69: 0 | T69: 0 | U69: 0 | V69: 0 | W69: 0 | X69: 0 | Y69: 0 | Z69: 0 | AA69: 0 | AB69: 0 | AC69: 0 | AD69: 0 | AE69: 0 | AF69: 0 | AG69: 0 | AH69: 0
C70: 1991-09-01 | D70: 1992-09-01 | F70: 0 | G70: =IF(_pre2>=C70,IF(_pre2<D70,_dif2,0),0) -> 0 | H70: =IF(_pre3>=C70,IF(_pre3<D70,_dif3,0),0) -> 0 | I70: =IF(_pre4>=C70,IF(_pre4<D70,_dif4,0),0) -> 0 | J70: =IF(_pre5>=C70,IF(_pre5<D70,_dif5,0),0) -> 0 | K70: =IF(_pre6>=C70,IF(_pre6<D70,_dif6,0),0) -> 0 | L70: =IF(_pre7>=C70,IF(_pre7<D70,_dif7,0),0) -> 0 | M70: =IF(_pre8>=C70,IF(_pre8<D70,_dif8,0),0) -> 0 | N70: =IF(_pre9>=C70,IF(_pre9<D70,_dif9,0),0) -> 0 | O70: =IF(_pre10>=C70,IF(_pre10<D70,_dif10,0),0) -> 0 | P70: 0 | Q70: 0 | R70: 0 | S70: 0 | T70: 0 | U70: 0 | V70: 0 | W70: 0 | X70: 0 | Y70: 0 | Z70: 0 | AA70: 0 | AB70: 0 | AC70: 0 | AD70: 0 | AE70: 0 | AF70: 0 | AG70: 0 | AH70: 0
C71: 1992-09-01 | D71: 1993-09-01 | F71: 0 | G71: 0 | H71: 0 | I71: 0 | J71: 0 | K71: 0 | L71: 0 | M71: 0 | N71: 0 | O71: 0 | P71: 0 | Q71: 0 | R71: 0 | S71: 0 | T71: 0 | U71: 0 | V71: 0 | W71: 0 | X71: 0 | Y71: 0 | Z71: 0 | AA71: 0 | AB71: 0 | AC71: 0 | AD71: 0 | AE71: 0 | AF71: 0 | AG71: 0 | AH71: 0
C72: 1993-09-01 | D72: 1994-09-01 | F72: 0 | G72: 0 | H72: 0 | I72: 0 | J72: 0 | K72: 0 | L72: 0 | M72: 0 | N72: 0 | O72: 0 | P72: 0 | Q72: 0 | R72: 0 | S72: 0 | T72: 0 | U72: 0 | V72: 0 | W72: 0 | X72: 0 | Y72: 0 | Z72: 0 | AA72: 0 | AB72: 0 | AC72: 0 | AD72: 0 | AE72: 0 | AF72: 0 | AG72: 0 | AH72: 0
C73: 1994-09-01 | D73: 1995-09-01 | F73: 0 | G73: 0 | H73: 0 | I73: 0 | J73: 0 | K73: 0 | L73: 0 | M73: 0 | N73: 0 | O73: 0 | P73: 0 | Q73: 0 | R73: 0 | S73: 0 | T73: 0 | U73: 0 | V73: 0 | W73: 0 | X73: 0 | Y73: 0 | Z73: 0 | AA73: 0 | AB73: 0 | AC73: 0 | AD73: 0 | AE73: 0 | AF73: 0 | AG73: 0 | AH73: 0
C74: 1995-09-01 | D74: 1996-09-01 | F74: 0 | G74: 0 | H74: 0 | I74: 0 | J74: 0 | K74: 0 | L74: 0 | M74: 0 | N74: 0 | O74: 0 | P74: 0 | Q74: 0 | R74: 0 | S74: 0 | T74: 0 | U74: 0 | V74: 0 | W74: 0 | X74: 0 | Y74: 0 | Z74: 0 | AA74: 0 | AB74: 0 | AC74: 0 | AD74: 0 | AE74: 0 | AF74: 0 | AG74: 0 | AH74: 0
C75: 1996-09-01 | D75: 1997-09-01 | F75: 0 | G75: 0 | H75: 0 | I75: 0 | J75: 0 | K75: 0 | L75: 0 | M75: 0 | N75: 0 | O75: 0 | P75: 0 | Q75: 0 | R75: 0 | S75: 0 | T75: 0 | U75: 0 | V75: 0 | W75: 0 | X75: 0 | Y75: 0 | Z75: 0 | AA75: 0 | AB75: 0 | AC75: 0 | AD75: 0 | AE75: 0 | AF75: 0 | AG75: 0 | AH75: 0
C76: 1997-09-01 | D76: 1998-09-01 | F76: 0 | G76: 0 | H76: 0 | I76: 0 | J76: 0 | K76: 0 | L76: 0 | M76: 0 | N76: 0 | O76: 0 | P76: 0 | Q76: 0 | R76: 0 | S76: 0 | T76: 0 | U76: 0 | V76: 0 | W76: 0 | X76: 0 | Y76: 0 | Z76: 0 | AA76: 0 | AB76: 0 | AC76: 0 | AD76: 0 | AE76: 0 | AF76: 0 | AG76: 0 | AH76: 0
C77: 1998-09-01 | D77: 1999-09-01 | F77: 0 | G77: 0 | H77: 0 | I77: 0 | J77: 0 | K77: 0 | L77: 0 | M77: 0 | N77: 0 | O77: 0 | P77: 0 | Q77: 0 | R77: 0 | S77: 0 | T77: 0 | U77: 0 | V77: 0 | W77: 0 | X77: 0 | Y77: 0 | Z77: 0 | AA77: 0 | AB77: 0 | AC77: 0 | AD77: 0 | AE77: 0 | AF77: 0 | AG77: 0 | AH77: 0
C78: 1999-09-01 | D78: 2000-09-01 | F78: 0 | G78: 0 | H78: 0 | I78: 0 | J78: 0 | K78: 0 | L78: 0 | M78: 0 | N78: 0 | O78: 0 | P78: 0 | Q78: 0 | R78: 0 | S78: 0 | T78: 0 | U78: 0 | V78: 0 | W78: 0 | X78: 0 | Y78: 0 | Z78: 0 | AA78: 0 | AB78: 0 | AC78: 0 | AD78: 0 | AE78: 0 | AF78: 0 | AG78: 0 | AH78: 0
C79: 2000-09-01 | D79: 2001-09-01 | F79: 0 | G79: 0 | H79: 0 | I79: 0 | J79: 0 | K79: 0 | L79: 0 | M79: 0 | N79: 0 | O79: 0 | P79: 0 | Q79: 0 | R79: 0 | S79: 0 | T79: 0 | U79: 0 | V79: 0 | W79: 0 | X79: 0 | Y79: 0 | Z79: 0 | AA79: 0 | AB79: 0 | AC79: 0 | AD79: 0 | AE79: 0 | AF79: 0 | AG79: 0 | AH79: 0
C80: 2001-09-01 | D80: 2002-09-01 | F80: 0 | G80: 0 | H80: 0 | I80: 0 | J80: 0 | K80: 0 | L80: 0 | M80: 0 | N80: 0 | O80: 0 | P80: 0 | Q80: 0 | R80: 0 | S80: 0 | T80: 0 | U80: 0 | V80: 0 | W80: 0 | X80: 0 | Y80: 0 | Z80: 0 | AA80: 0 | AB80: 0 | AC80: 0 | AD80: 0 | AE80: 0 | AF80: 0 | AG80: 0 | AH80: 0
C81: 2002-09-01 | D81: 2003-09-01 | F81: 0 | G81: 0 | H81: 0 | I81: 0 | J81: 0 | K81: 0 | L81: 0 | M81: 0 | N81: 0 | O81: 0 | P81: 0 | Q81: 0 | R81: 0 | S81: 0 | T81: 0 | U81: 0 | V81: 0 | W81: 0 | X81: 0 | Y81: 0 | Z81: 0 | AA81: 0 | AB81: 0 | AC81: 0 | AD81: 0 | AE81: 0 | AF81: 0 | AG81: 0 | AH81: 0
C82: 2003-09-01 | D82: 2004-09-01 | F82: 0 | G82: 0 | H82: 0 | I82: 0 | J82: 0 | K82: 0 | L82: 0 | M82: 0 | N82: 0 | O82: 0 | P82: 0 | Q82: 0 | R82: 0 | S82: 0 | T82: 0 | U82: 0 | V82: 0 | W82: 0 | X82: 0 | Y82: 0 | Z82: 0 | AA82: 0 | AB82: 0 | AC82: 0 | AD82: 0 | AE82: 0 | AF82: 0 | AG82: 0 | AH82: 0
C83: 2004-09-01 | D83: 2005-09-01 | F83: 0 | G83: 0 | H83: 0 | I83: 0 | J83: 0 | K83: 0 | L83: 0 | M83: 0 | N83: 0 | O83: 0 | P83: 0 | Q83: 0 | R83: 0 | S83: 0 | T83: 0 | U83: 0 | V83: 0 | W83: 0 | X83: 0 | Y83: 0 | Z83: 0 | AA83: 0 | AB83: 0 | AC83: 0 | AD83: 0 | AE83: 0 | AF83: 0 | AG83: 0 | AH83: 0
C84: 2005-09-01 | D84: 2006-09-01 | F84: 0 | G84: 0 | H84: 0 | I84: 0 | J84: 0 | K84: 0 | L84: 0 | M84: 0 | N84: 0 | O84: 0 | P84: 0 | Q84: 0 | R84: 0 | S84: 0 | T84: 0 | U84: 0 | V84: 0 | W84: 0 | X84: 0 | Y84: 0 | Z84: 0 | AA84: 0 | AB84: 0 | AC84: 0 | AD84: 0 | AE84: 0 | AF84: 0 | AG84: 0 | AH84: 0
C85: 2006-09-01 | D85: 2007-09-01 | F85: 0 | G85: 0 | H85: 0 | I85: 0 | J85: 0 | K85: 0 | L85: 0 | M85: 0 | N85: 0 | O85: 0 | P85: 0 | Q85: 0 | R85: 0 | S85: 0 | T85: 0 | U85: 0 | V85: 0 | W85: 0 | X85: 0 | Y85: 0 | Z85: 0 | AA85: 0 | AB85: 0 | AC85: 0 | AD85: 0 | AE85: 0 | AF85: 0 | AG85: 0 | AH85: 0
C86: 2007-09-01 | D86: 2008-09-01 | F86: 0 | G86: 0 | H86: 0 | I86: 0 | J86: 0 | K86: 0 | L86: 0 | M86: 0 | N86: 0 | O86: 0 | P86: 0 | Q86: 0 | R86: 0 | S86: 0 | T86: 0 | U86: 0 | V86: 0 | W86: 0 | X86: 0 | Y86: 0 | Z86: 0 | AA86: 0 | AB86: 0 | AC86: 0 | AD86: 0 | AE86: 0 | AF86: 0 | AG86: 0 | AH86: 0
C87: 2008-09-01 | D87: 2009-09-01 | F87: 0 | G87: 0 | H87: 0 | I87: 0 | J87: 0 | K87: 0 | L87: 0 | M87: 0 | N87: 0 | O87: 0 | P87: 0 | Q87: 0 | R87: 0 | S87: 0 | T87: 0 | U87: 0 | V87: 0 | W87: 0 | X87: 0 | Y87: 0 | Z87: 0 | AA87: 0 | AB87: 0 | AC87: 0 | AD87: 0 | AE87: 0 | AF87: 0 | AG87: 0 | AH87: 0
C88: 2009-09-01 | D88: 2010-09-01 | F88: 0 | G88: 0 | H88: 0 | I88: 0 | J88: 0 | K88: 0 | L88: 0 | M88: 0 | N88: 0 | O88: 0 | P88: 0 | Q88: 0 | R88: 0 | S88: 0 | T88: 0 | U88: 0 | V88: 0 | W88: 0 | X88: 0 | Y88: 0 | Z88: 0 | AA88: 0 | AB88: 0 | AC88: 0 | AD88: 0 | AE88: 0 | AF88: 0 | AG88: 0 | AH88: 0
D93: Giorni
C94: =CONCATENATE(YEAR(C59),"/",YEAR(D59)) -> 1980/1981 | D94: =SUM(F59:AH59) -> 0 | E94: =C94 -> 1980/1981 | G94: 0 | H94: 1980/1981
C95: 1981/1982 | D95: 0 | E95: 1981/1982 | G95: 0 | H95: 1981/1982
C96: 1982/1983 | D96: 0 | E96: 1982/1983 | G96: 0 | H96: 1982/1983
C97: 1983/1984 | D97: 0 | E97: 1983/1984 | G97: 0 | H97: 1983/1984
C98: 1984/1985 | D98: 0 | E98: 1984/1985 | G98: 0 | H98: 1984/1985
C99: 1985/1986 | D99: 0 | E99: 1985/1986 | G99: 0 | H99: 1985/1986
C100: 1986/1987 | D100: 0 | E100: 1986/1987 | G100: 0 | H100: 1986/1987
C101: 1987/1988 | D101: 0 | E101: 1987/1988 | G101: 0 | H101: 1987/1988
C102: 1988/1989 | D102: 0 | E102: 1988/1989 | G102: 0 | H102: 1988/1989
C103: 1989/1990 | D103: 0 | E103: 1989/1990 | G103: 0 | H103: 1989/1990
C104: 1990/1991 | D104: 0 | E104: 1990/1991 | G104: 0 | H104: 1990/1991
C105: 1991/1992 | D105: 0 | E105: 1991/1992 | G105: 0 | H105: 1991/1992
C106: 1992/1993 | D106: 0 | E106: 1992/1993 | G106: 0 | H106: 1992/1993
C107: 1993/1994 | D107: 0 | E107: 1993/1994 | G107: 0 | H107: 1993/1994
C108: 1994/1995 | D108: 0 | E108: 1994/1995 | G108: 0 | H108: 1994/1995
C109: 1995/1996 | D109: 0 | E109: 1995/1996 | G109: 0 | H109: 1995/1996
C110: 1996/1997 | D110: 0 | E110: 1996/1997 | G110: 0 | H110: 1996/1997
C111: 1997/1998 | D111: 0 | E111: 1997/1998 | G111: 0 | H111: 1997/1998
C112: 1998/1999 | D112: 0 | E112: 1998/1999 | G112: 0 | H112: 1998/1999
C113: 1999/2000 | D113: 0 | E113: 1999/2000 | G113: 0 | H113: 1999/2000
C114: 2000/2001 | D114: 0 | E114: 2000/2001 | G114: 0 | H114: 2000/2001
C115: 2001/2002 | D115: 0 | E115: 2001/2002 | G115: 0 | H115: 2001/2002
C116: 2002/2003 | D116: 0 | E116: 2002/2003 | G116: 0 | H116: 2002/2003
C117: 2003/2004 | D117: 0 | E117: 2003/2004 | G117: 0 | H117: 2003/2004
C118: 2004/2005 | D118: 0 | E118: 2004/2005 | G118: 0 | H118: 2004/2005
C119: 2005/2006 | D119: 0 | E119: 2005/2006 | G119: 0 | H119: 2005/2006
C120: 2006/2007 | D120: 0 | E120: 2006/2007 | G120: 0 | H120: 2006/2007
C121: 2007/2008 | D121: 0 | E121: 2007/2008 | G121: 0 | H121: 2007/2008
C122: 2008/2009 | D122: 0 | E122: 2008/2009 | G122: 0 | H122: 2008/2009
C123: 2009/2010 | D123: 0 | E123: 2009/2010 | G123: 0 | H123: 2009/2010
C128: Anno scolastico | D128: Giorni di preruolo
C129: =IF(G94>0,H94,"") ->  | D129: =IF(G94>0,G94,"") ->  | F129: =IF(D129<180,IF(D129>0,"periodo non valido perche' inferiore a 180 gg.",""),"") -> 
C130: =IF(G95>0,H95,"") ->  | D130: =IF(G95>0,G95,"") ->  | F130: =IF(D130<180,IF(D130>0,"periodo non valido perche' inferiore a 180 gg.",""),"") -> 
C168: Anni pre ruolo riconosciuti: | F168: =SUM(G171:G197) -> 0 | H168: torna al foglio principale
C170: Anno Scolastico | D170: Giorni preruolo
G171: =IF(D171<>"",IF(D171>179,1,0),0) -> 0
G172: =IF(D172<>"",IF(D172>179,1,0),0) -> 0
G173: 0
G174: 0
G175: 0
G176: 0
G177: 0
G178: 0
G179: 0
G180: 0
G181: 0
G182: 0
G183: 0
G184: 0
G185: 0
G186: 0
G187: 0
G188: 0
G189: 0
G190: 0
G191: 0
G192: 0
G193: 0
G194: 0
G195: 0
G196: 0
G197: 0

Sheet dati
D1: e' docente che deve effettuare anno di prova? | H1: =IF(OR(rigqual=6,rigqual=7,rigqual=8,rigqual=9,rigqual=12,rigqual=13),1,IF(OR(rigqual=10,rigqual=11),2,0)) -> 1 | I1: 1= docente con periodo di prova 2=irc t.d. - 0=ata
D3: Dati utilizzati per l'elaborazione
C5: =Foglio2!E21 -> 0 | H5: =Foglio2!D25 -> Doc. laureato 1° Grado
C6: =IF(H1=2,"decorrenza giuridica ruolo:","") ->  | F6: =IF(H1=2,decor,"") ->  | H6: =IF(H1=2,"decorrenza economica ruolo:","") ->  | K6: =IF(H1=2,dececon,"") -> 
C7: =IF(H1=0,"decorrenza giuridica ruolo:","") ->  | F7: =IF(H1=0,decor,"") ->  | H7: =IF(H1=0,"decorrenza economica ruolo:","") ->  | K7: =IF(H1=0,Foglio2!I27,"") -> 
C8: =IF(H1=1,"decorrenza giuridica ruolo:","") -> decorrenza giuridica ruolo: | F8: =IF(H1=1,decor,"") -> -365 | H8: =IF(H1=1,"decorrenza economica ruolo:","") -> decorrenza economica ruolo: | K8: =IF(H1=1,Foglio2!I27,"") -> -365
C9: =IF(H1=1,"superamento anno di prova:","") -> superamento anno di prova: | F9: =IF(H1=1,K8+365,"") -> 00:00:00
H11: anni | I11: mesi | J11: giorni
C12: Anzianità riconosciuta giuridica ed economica | H12: =Foglio2!C103 ->  | I12: =Foglio2!D103 -> 0 | J12: =Foglio2!E103 -> 0
C13: Anzianità riconosciuta solo economica | H13: =Foglio2!C104 -> 0 | I13: =Foglio2!D104 -> 0 | J13: =Foglio2!E104 -> 0
C17: Passaggi di gradone intervenuti durante la carriera
B19: decorrenza economica ruolo | E19: =MAX(K6:M9) -> -365 | F19: con: | G19: =H12 ->  | H19: anni di anzianità | L19: Torna al foglio principale
B20: Decorrenza gradone da 3 a 8 anni: | E20: =IF(_sc2>0,_sc2,"--") ->  | G20: 3
B21: Decorrenza gradone da 9 a 14 anni: | E21: =IF(_sc3>0,_sc3,"--") ->  | G21: 9
B22: Decorrenza gradone da 15 a 20 anni: | E22: =IF(_sc4>0,_sc4,"--") ->  | G22: 15
B23: Decorrenza gradone da 21 a 27 anni: | E23: =IF(_sc5>0,_sc5,"--") ->  | G23: 21
B24: Decorrenza gradone da 28 a 35 anni: | E24: =IF(_sc6>0,_sc6," --") ->  | G24: 28
B25: Decorrenza gradone oltre i 35 anni: | E25: =IF(_sc7>0,_sc7,"--") ->  | G25: 35
C27: Decorrenza data | F27: Posizione Anni - ratei spettanti - passaggi | L27: Valore in euro | M27: R.p.D. / C.i.A. | N27: assegno ad personam ccnl 2011
D28: =IF(H1=1,K8,"") -> -365 | E28: =IF(H1=1,"Data di decorrenza dell' anno di prova - fascia di anzianità 0 - 2 anni","") -> Data di decorrenza dell' anno di prova - fascia di anzianità 0 - 2 anni | L28: =IF(H1=1,VLOOKUP(D28,D68:E86,2),"") ->  | M28: =IF(H1=1,HLOOKUP(D28,D97:N98,2),"") -> 
D29: ='tabella sintetica'!C71 -> 2000-01-01 | E29: =CONCATENATE('tabella sintetica'!D71,Foglio2!AA132) ->  | L29: ='tabella sintetica'!E71 ->  | M29: =IF(H1=0,HLOOKUP(D29,C104:G105,2),'tabella sintetica'!J71) -> 594.96 | N29: ='tabella sintetica'!G71 -> 0
D30: =IF(AND('tabella sintetica'!C72>0,'tabella sintetica'!C72<40909),'tabella sintetica'!C72,"") -> 2000-07-01 | E30: =IF(D30<>"",'tabella sintetica'!D72,"") -> fascia di anzianità da 0-2 anni C.C.N.L. del 26/05/1999 incluso incremento stipendiale dal 01/11/1998 - Annuo lordo | L30: =IF(D30<>"",'tabella sintetica'!E72,"") -> 10451.53827 | M30: =IF(H1=0,HLOOKUP(D30,C104:G105,2),'tabella sintetica'!J72) -> 594.96 | N30: ='tabella sintetica'!G72 -> 
D31: =IF(AND('tabella sintetica'!C73>0,'tabella sintetica'!C73<40909),'tabella sintetica'!C73,"") -> 2001-01-01 | E31: =IF(D31<>"",'tabella sintetica'!D73,"") -> fascia di anzianità da 0-2 anni C.C.N.L. del 26/05/1999 - incluso incremento stipendiale dal 01/06/1999 - Annuo lordo | L31: =IF(D31<>"",'tabella sintetica'!E73,"") -> 10786.20234 | M31: =IF(H1=0,HLOOKUP(D31,C104:G105,2),'tabella sintetica'!J73) -> 1338.656282 | N31: ='tabella sintetica'!G73 -> 
D32: =IF(AND('tabella sintetica'!C74>0,'tabella sintetica'!C74<40909),'tabella sintetica'!C74,"") -> 2002-01-01 | E32: =IF(D32<>"",'tabella sintetica'!D74,"") -> fascia di anzianità da 0-2 anni C.C.N.L. del 15/03/2001 - Annuo lordo | L32: =IF(D32<>"",'tabella sintetica'!E74,"") -> 11221.80234 | M32: =IF(L32="","",IF(H1=0,HLOOKUP(D32,C104:G105,2),'tabella sintetica'!J74)) -> 1578.656282 | N32: ='tabella sintetica'!G74 -> 
D33: =IF(AND('tabella sintetica'!C75>0,'tabella sintetica'!C75<40909),'tabella sintetica'!C75,"") -> 2003-01-01 | E33: =IF(D33<>"",'tabella sintetica'!D75,"") -> fascia di anzianità da 0-2 anni C.C.N.L. del 15/03/2001 - incluso incrementi stipendiali dal 01/01/2001 - Annuo lordo | L33: =IF(D33<>"",'tabella sintetica'!E75,"") -> 18128.79 | M33: =IF(L33="","",IF(H1=0,HLOOKUP(D33,C104:G105,2),'tabella sintetica'!J75)) -> 1710.6 | N33: ='tabella sintetica'!G75 -> 
D34: =IF(AND('tabella sintetica'!C76>0,'tabella sintetica'!C76<40909),'tabella sintetica'!C76,"") -> 2004-01-01 | E34: =IF(D34<>"",'tabella sintetica'!D76,"") -> fascia di anzianità da 0-2 anni C.C.N.L. del 24/07/2003 - Annuo lordo | L34: =IF(D34<>"",'tabella sintetica'!E76,"") -> 18566.91 | M34: =IF(L34="","",IF(H1=0,HLOOKUP(D34,C104:G105,2),'tabella sintetica'!J76)) -> 1857.84 | N34: ='tabella sintetica'!G76 -> 
D35: =IF(AND('tabella sintetica'!C77>0,'tabella sintetica'!C77<40909),'tabella sintetica'!C77,"") -> 2005-02-01 | E35: =IF(D35<>"",'tabella sintetica'!D77,"") -> fascia di anzianità da 0-2 anni C.C.N.L. del 24/07/2003 - incluso incrementi stipendiali dal 01/01/2003 - inclusa l' i.i.s. - Annuo lordo | L35: =IF(D35<>"",'tabella sintetica'!E77,"") -> 19082.5 | M35: =IF(L35="","",IF(H1=0,HLOOKUP(D35,C104:G105,2),'tabella sintetica'!J77)) -> 1857.84 | N35: ='tabella sintetica'!G77 -> 
D36: =IF(AND('tabella sintetica'!C78>0,'tabella sintetica'!C78<40909),'tabella sintetica'!C78,"") -> 2006-01-01 | E36: =IF(D36<>"",'tabella sintetica'!D78,"") -> fascia di anzianità da 0-2 anni C.C.N.L. del 07/12/2005 - incluso incremento stipendiale dal 01/01/2004 - inclusa l'i.i.s. - Annuo lordo | L36: =IF(D36<>"",'tabella sintetica'!E78,"") -> 19170.94 | M36: =IF(L36="","",IF(H1=0,HLOOKUP(D36,C104:G105,2),'tabella sintetica'!J78)) -> 1968 | N36: ='tabella sintetica'!G78 -> 
D37: =IF(AND('tabella sintetica'!C79>0,'tabella sintetica'!C79<40909),'tabella sintetica'!C79,"") -> 2007-01-01 | E37: =IF(D37<>"",'tabella sintetica'!D79,"") -> fascia di anzianità da 0-2 anni C.C.N.L. del 07/12/2005 - incluso incremento stipendiale dal 01/02/2005 - inclusa l'i.i.s. - Annuo lordo | L37: =IF(D37<>"",'tabella sintetica'!E79,"") -> 19535.74 | M37: =IF(L37="","",IF(H1=0,HLOOKUP(D37,C104:G105,2),'tabella sintetica'!J79)) -> 1968 | N37: ='tabella sintetica'!G79 -> 
D38: =IF(AND('tabella sintetica'!C80>0,'tabella sintetica'!C80<40909),'tabella sintetica'!C80,"") -> 2007-02-01 | E38: =IF(D38<>"",'tabella sintetica'!D80,"") -> fascia di anzianità da 0-2 anni C.C.N.L. del 29/11/2007 - inclusa l'i.i.s. - Annuo lordo | L38: =IF(D38<>"",'tabella sintetica'!E80,"") -> 20068.42 | M38: =IF(L38="","",IF(H1=0,HLOOKUP(D38,C104:G105,2),'tabella sintetica'!J80)) -> 1968 | N38: ='tabella sintetica'!G80 -> 
D39: =IF(AND('tabella sintetica'!C81>0,'tabella sintetica'!C81<40909),'tabella sintetica'!C81,"") -> 2008-01-01 | E39: =IF(D39<>"",'tabella sintetica'!D81,"") -> fascia di anzianità da 0-2 anni C.C.N.L. del 29/11/2007 - incluso incremento stipendiale dal 01/01/2007 - inclusa l'i.i.s. - Annuo lordo | L39: =IF(D39<>"",'tabella sintetica'!E81,"") -> 20197.18 | M39: =IF(L39="","",IF(H1=0,HLOOKUP(D39,C104:G105,2),'tabella sintetica'!J81)) -> 1968 | N39: ='tabella sintetica'!G81 -> 
D40: =IF(AND('tabella sintetica'!C82>0,'tabella sintetica'!C82<40909),'tabella sintetica'!C82,"") -> 2008-04-01 | E40: =IF(D40<>"",'tabella sintetica'!D82,"") -> fascia di anzianità da 0-2 anni Sequenza Contrattuale del 14/02/2008 - inclusa l'i.i.s. - Annuo lordo | L40: =IF(D40<>"",'tabella sintetica'!E82,"") -> 20300.14 | M40: =IF(L40="","",IF(H1=0,HLOOKUP(D40,C104:G105,2),'tabella sintetica'!J82)) -> 1968 | N40: ='tabella sintetica'!G82 -> 
D41: =IF(AND('tabella sintetica'!C83>0,'tabella sintetica'!C83<40909),'tabella sintetica'!C83,"") -> 2008-07-01 | E41: =IF(D41<>"",'tabella sintetica'!D83,"") -> fascia di anzianità da 0-2 anni Sequenza Contrattuale del 14/02/2008 - inclusa l'i.i.s. - Annuo lordo | L41: =IF(D41<>"",'tabella sintetica'!E83,"") -> 20368.9 | M41: =IF(L41="","",IF(H1=0,HLOOKUP(D41,C104:G105,2),'tabella sintetica'!J83)) -> 1968 | N41: ='tabella sintetica'!G83 -> 
D42: =IF(AND('tabella sintetica'!C84>0,'tabella sintetica'!C84<40909),'tabella sintetica'!C84,"") -> 2009-01-01 | E42: =IF(D42<>"",'tabella sintetica'!D84,"") -> fascia di anzianità da 0-2 anni Indennità di vacanza contrattuale - (Art. 33 Decreto Legge N. 185 del 29 novembre 2008) - Annuo lordo inclusa l'iis - | L42: =IF(D42<>"",'tabella sintetica'!E84,"") -> 20973.22 | M42: =IF(L42="","",IF(H1=0,HLOOKUP(D42,C104:G105,2),'tabella sintetica'!J84)) -> 1968 | N42: ='tabella sintetica'!G84 -> 
D43: =IF(AND('tabella sintetica'!C85>0,'tabella sintetica'!C85<40909),'tabella sintetica'!C85,"") -> 2010-04-01 | E43: =IF(D43<>"",'tabella sintetica'!D85,"") -> fascia di anzianità da 0-2 anni Indennità di vacanza contrattuale - (Art. 33 Decreto Legge N. 185 del 29 novembre 2008) - Annuo lordo inclusa l'iis - | L43: =IF(D43<>"",'tabella sintetica'!E85,"") -> 21067.54 | M43: =IF(L43="","",IF(H1=0,HLOOKUP(D43,C104:G105,2),'tabella sintetica'!J85)) -> 1968 | N43: ='tabella sintetica'!G85 -> 
D44: =IF(AND('tabella sintetica'!C86>0,'tabella sintetica'!C86<40909),'tabella sintetica'!C86,"") -> 2010-07-01 | E44: =IF(D44<>"",'tabella sintetica'!D86,"") -> fascia di anzianità da 0-2 anni C.C.N.L. 2007 - BIENNIO ECONOMICO 2008/2009 - Annuo lordo inclusa l'iis | L44: =IF(D44<>"",'tabella sintetica'!E86,"") -> 21130.54 | M44: =IF(L44="","",IF(H1=0,HLOOKUP(D44,C104:G105,2),'tabella sintetica'!J86)) -> 1968 | N44: ='tabella sintetica'!G86 -> 
D45: =IF(AND('tabella sintetica'!C87>0,'tabella sintetica'!C87<40909),'tabella sintetica'!C87,"") -> 2010-09-01 | E45: =IF(D45<>"",'tabella sintetica'!D87,"") -> Fascia di anzianità 0-8 anni - C.C.N.L. 04/08/2011 - Annuo lordo inclusa I.I.S. | L45: =IF(D45<>"",'tabella sintetica'!E87,"") -> 21130.54 | M45: =IF(L45="","",IF(H1=0,HLOOKUP(D45,C104:G105,2),'tabella sintetica'!J87)) -> 1968 | N45: ='tabella sintetica'!G87 -> 
D46: =IF(AND('tabella sintetica'!C88>0,'tabella sintetica'!C88<40909),'tabella sintetica'!C88,"") ->  | E46: =IF(D46<>"",'tabella sintetica'!D88,"") ->  | L46: =IF(D46<>"",'tabella sintetica'!E88,"") ->  | M46: =IF(L46="","",IF(H1=0,HLOOKUP(D46,C104:G105,2),'tabella sintetica'!J88)) ->  | N46: ='tabella sintetica'!G88 -> 
D47: =IF(AND('tabella sintetica'!C89>0,'tabella sintetica'!C89<40909),'tabella sintetica'!C89,"") ->  | E47: =IF(D47<>"",'tabella sintetica'!D89,"") ->  | L47: =IF(D47<>"",'tabella sintetica'!E89,"") ->  | M47: =IF(L47="","",IF(H1=0,HLOOKUP(D47,C104:G105,2),'tabella sintetica'!J89)) ->  | N47: ='tabella sintetica'!G89 -> 
D48: =IF(AND('tabella sintetica'!C90>0,'tabella sintetica'!C90<40909),'tabella sintetica'!C90,"") ->  | E48: =IF(D48<>"",'tabella sintetica'!D90,"") ->  | L48: =IF(D48<>"",'tabella sintetica'!E90,"") ->  | M48: =IF(L48="","",IF(H1=0,HLOOKUP(D48,C104:G105,2),'tabella sintetica'!J90)) ->  | N48: ='tabella sintetica'!G90 -> 
D49: =IF(AND('tabella sintetica'!C91>0,'tabella sintetica'!C91<40909),'tabella sintetica'!C91,"") ->  | E49: =IF(D49<>"",'tabella sintetica'!D91,"") ->  | L49: =IF(D49<>"",'tabella sintetica'!E91,"") ->  | M49: =IF(L49="","",IF(H1=0,HLOOKUP(D49,C104:G105,2),'tabella sintetica'!J91)) ->  | N49: ='tabella sintetica'!G91 -> 
D50: =IF(AND('tabella sintetica'!C92>0,'tabella sintetica'!C92<40909),'tabella sintetica'!C92,"") ->  | E50: =IF(D50<>"",'tabella sintetica'!D92,"") ->  | L50: =IF(D50<>"",'tabella sintetica'!E92,"") ->  | M50: =IF(L50="","",IF(H1=0,HLOOKUP(D50,C104:G105,2),'tabella sintetica'!J92)) ->  | N50: ='tabella sintetica'!G92 -> 
D51: =IF(AND('tabella sintetica'!C93>0,'tabella sintetica'!C93<40909),'tabella sintetica'!C93,"") ->  | E51: =IF(D51<>"",'tabella sintetica'!D93,"") ->  | L51: =IF(D51<>"",'tabella sintetica'!E93,"") ->  | M51: =IF(L51="","",IF(H1=0,HLOOKUP(D51,C104:G105,2),'tabella sintetica'!J93)) ->  | N51: ='tabella sintetica'!G93 -> 
D52: =IF(AND('tabella sintetica'!C94>0,'tabella sintetica'!C94<40909),'tabella sintetica'!C94,"") ->  | E52: =IF(D52<>"",'tabella sintetica'!D94,"") ->  | L52: =IF(D52<>"",'tabella sintetica'!E94,"") ->  | M52: =IF(L52="","",IF(H1=0,HLOOKUP(D52,C104:G105,2),'tabella sintetica'!J94)) ->  | N52: ='tabella sintetica'!G94 -> 
D53: =IF(AND('tabella sintetica'!C95>0,'tabella sintetica'!C95<40909),'tabella sintetica'!C95,"") ->  | E53: =IF(D53<>"",'tabella sintetica'!D95,"") ->  | L53: =IF(D53<>"",'tabella sintetica'!E95,"") ->  | M53: =IF(L53="","",IF(H1=0,HLOOKUP(D53,C104:G105,2),'tabella sintetica'!J95)) ->  | N53: ='tabella sintetica'!G95 -> 
D54: =IF(AND('tabella sintetica'!C96>0,'tabella sintetica'!C96<40909),'tabella sintetica'!C96,"") ->  | E54: =IF(D54<>"",'tabella sintetica'!D96,"") ->  | L54: =IF(D54<>"",'tabella sintetica'!E96,"") ->  | M54: =IF(L54="","",IF(H1=0,HLOOKUP(D54,C104:G105,2),'tabella sintetica'!J96)) ->  | N54: ='tabella sintetica'!G96 -> 
D55: =IF(AND('tabella sintetica'!C97>0,'tabella sintetica'!C97<40909),'tabella sintetica'!C97,"") ->  | E55: =IF(D55<>"",'tabella sintetica'!D97,"") ->  | L55: =IF(D55<>"",'tabella sintetica'!E97,"") ->  | M55: =IF(L55="","",IF(H1=0,HLOOKUP(D55,C104:G105,2),'tabella sintetica'!J97)) ->  | N55: ='tabella sintetica'!G97 -> 
D56: =IF(AND('tabella sintetica'!C98>0,'tabella sintetica'!C98<40909),'tabella sintetica'!C98,"") ->  | E56: =IF(D56<>"",'tabella sintetica'!D98,"") ->  | L56: =IF(D56<>"",'tabella sintetica'!E98,"") ->  | M56: =IF(L56="","",IF(H1=0,HLOOKUP(D56,C104:G105,2),'tabella sintetica'!J98)) ->  | N56: ='tabella sintetica'!G98 -> 
D57: =IF(AND('tabella sintetica'!C99>0,'tabella sintetica'!C99<40909),'tabella sintetica'!C99,"") ->  | E57: =IF(D57<>"",'tabella sintetica'!D99,"") ->  | L57: =IF(D57<>"",'tabella sintetica'!E99,"") ->  | M57: =IF(L57="","",IF(H1=0,HLOOKUP(D57,C104:G105,2),'tabella sintetica'!J99)) ->  | N57: ='tabella sintetica'!G99 -> 
D58: =IF(AND('tabella sintetica'!C100>0,'tabella sintetica'!C100<40909),'tabella sintetica'!C100,"") ->  | E58: =IF(D58<>"",'tabella sintetica'!D100,"") ->  | L58: =IF(D58<>"",'tabella sintetica'!E100,"") ->  | M58: =IF(L58="","",IF(H1=0,HLOOKUP(D58,C104:G105,2),'tabella sintetica'!J100)) ->  | N58: ='tabella sintetica'!G100 -> 
D59: =IF(AND('tabella sintetica'!C101>0,'tabella sintetica'!C101<40909),'tabella sintetica'!C101,"") ->  | E59: =IF(D59<>"",'tabella sintetica'!D101,"") ->  | L59: =IF(D59<>"",'tabella sintetica'!E101,"") ->  | M59: =IF(L59="","",IF(H1=0,HLOOKUP(D59,C104:G105,2),'tabella sintetica'!J101)) ->  | N59: ='tabella sintetica'!G101 -> 
D60: =IF(AND('tabella sintetica'!C102>0,'tabella sintetica'!C102<40909),'tabella sintetica'!C102,"") ->  | E60: =IF(D60<>"",'tabella sintetica'!D102,"") ->  | L60: =IF(D60<>"",'tabella sintetica'!E102,"") ->  | M60: =IF(L60="","",IF(H1=0,HLOOKUP(D60,C104:G105,2),'tabella sintetica'!J102)) ->  | N60: ='tabella sintetica'!G102 -> 0
C65: Tabella Stipendiale relativa al profilo di: | H65: =G7 -> 0
E66: 0 | F66: 3 | G66: 9 | H66: 15 | I66: 21 | J66: 28 | K66: 35
D67: Data | E67: =Foglio1!B1203 -> fascia di anzianità da 0-2 anni | F67: =Foglio1!C1203 -> fascia di anzianità da 3-8 anni | G67: =Foglio1!D1203 -> fascia di anzianità da 9-14 anni | H67: =Foglio1!E1203 -> fascia di anzianità da 15-20 anni | I67: =Foglio1!F1203 -> fascia di anzianità da 21-27 anni | J67: =Foglio1!G1203 -> fascia di anzianità da 28-34 anni | K67: =Foglio1!H1203 -> fascia di anzianità da 35 anni in poi
D68: =Foglio1!A1204 -> 1996-01-01 | E68: =Foglio1!B1204 -> 8741.033017 | F68: =Foglio1!C1204 -> 9161.428933 | G68: =Foglio1!D1204 -> 10525.3916 | H68: =Foglio1!E1204 -> 12100.06869 | I68: =Foglio1!F1204 -> 13634.97859 | J68: =Foglio1!G1204 -> 15136.83526 | K68: =Foglio1!H1204 -> 16259.0961
D69: =Foglio1!A1205 -> 1998-11-01 | E69: =Foglio1!B1205 -> 10011.51699 | F69: =Foglio1!C1205 -> 10462.90032 | G69: =Foglio1!D1205 -> 11944.61516 | H69: =Foglio1!E1205 -> 13649.43939 | I69: =Foglio1!F1205 -> 15314.49643 | J69: =Foglio1!G1205 -> 16946.50023 | K69: =Foglio1!H1205 -> 18155.52583
D70: =Foglio1!A1206 -> 1999-06-01 | E70: =Foglio1!B1206 -> 10253.21882 | F70: =Foglio1!C1206 -> 10710.79963 | G70: =Foglio1!D1206 -> 12217.3044 | H70: =Foglio1!E1206 -> 13946.91856 | I70: =Foglio1!F1206 -> 15636.76553 | J70: =Foglio1!G1206 -> 17293.55927 | K70: =Foglio1!H1206 -> 18521.17732
D71: =Foglio1!A1207 -> 2000-07-01 | E71: =Foglio1!B1207 -> 10451.53827 | F71: =Foglio1!C1207 -> 10915.31656 | G71: =Foglio1!D1207 -> 12440.41379 | H71: =Foglio1!E1207 -> 14194.81787 | I71: =Foglio1!F1207 -> 15903.25729 | J71: =Foglio1!G1207 -> 17578.64347 | K71: =Foglio1!H1207 -> 18818.65649
D72: =Foglio1!A1208 -> 2001-01-01 | E72: =Foglio1!B1208 -> 10786.20234 | F72: =Foglio1!C1208 -> 11262.3756 | G72: =Foglio1!D1208 -> 12818.46024 | H72: =Foglio1!E1208 -> 14610.04922 | I72: =Foglio1!F1208 -> 16349.47605 | J72: =Foglio1!G1208 -> 18055.84965 | K72: =Foglio1!H1208 -> 19320.65259
D73: =Foglio1!A1209 -> 2002-01-01 | E73: =Foglio1!B1209 -> 11221.80234 | F73: =Foglio1!C1209 -> 11709.9756 | G73: =Foglio1!D1209 -> 13305.42024 | H73: =Foglio1!E1209 -> 15142.24922 | I73: =Foglio1!F1209 -> 16925.59605 | J73: =Foglio1!G1209 -> 18675.04965 | K73: =Foglio1!H1209 -> 19971.77259
D74: =Foglio1!A1210 -> 2003-01-01 | E74: =Foglio1!B1210 -> 18128.79 | F74: =Foglio1!C1210 -> 18629.33 | G74: =Foglio1!D1210 -> 20265.09 | H74: =Foglio1!E1210 -> 22148.36 | I74: =Foglio1!F1210 -> 23976.83 | J74: =Foglio1!G1210 -> 25770.56 | K74: =Foglio1!H1210 -> 27100.16
D75: =Foglio1!A1211 -> 2004-01-01 | E75: =Foglio1!B1211 -> 18566.91 | F75: =Foglio1!C1211 -> 19079.57 | G75: =Foglio1!D1211 -> 20754.93 | H75: =Foglio1!E1211 -> 22683.68 | I75: =Foglio1!F1211 -> 24556.31 | J75: =Foglio1!G1211 -> 26393.48 | K75: =Foglio1!H1211 -> 27755.12
D76: =Foglio1!A1212 -> 2005-02-01 | E76: =Foglio1!B1212 -> 19082.5 | F76: =Foglio1!C1212 -> 19609.37 | G76: =Foglio1!D1212 -> 21331.19 | H76: =Foglio1!E1212 -> 23313.53 | I76: =Foglio1!F1212 -> 25238.19 | J76: =Foglio1!G1212 -> 27126.29 | K76: =Foglio1!H1212 -> 28525.83
D77: =Foglio1!A1213 -> 2006-01-01 | E77: =Foglio1!B1213 -> 19170.94 | F77: =Foglio1!C1213 -> 19700.21 | G77: =Foglio1!D1213 -> 21429.95 | H77: =Foglio1!E1213 -> 23421.53 | I77: =Foglio1!F1213 -> 25355.07 | J77: =Foglio1!G1213 -> 27251.93 | K77: =Foglio1!H1213 -> 28657.95
D78: =Foglio1!A1214 -> 2007-01-01 | E78: =Foglio1!B1214 -> 19535.74 | F78: =Foglio1!C1214 -> 20075.21 | G78: =Foglio1!D1214 -> 21837.83 | H78: =Foglio1!E1214 -> 23867.33 | I78: =Foglio1!F1214 -> 25837.71 | J78: =Foglio1!G1214 -> 27770.69 | K78: =Foglio1!H1214 -> 29203.47
D79: =Foglio1!A1215 -> 2007-02-01 | E79: =Foglio1!B1215 -> 20068.42 | F79: =Foglio1!C1215 -> 20622.41 | G79: =Foglio1!D1215 -> 22433.27 | H79: =Foglio1!E1215 -> 24517.97 | I79: =Foglio1!F1215 -> 26542.11 | J79: =Foglio1!G1215 -> 28527.77 | K79: =Foglio1!H1215 -> 29999.55
D80: =Foglio1!A1216 -> 2008-01-01 | E80: =Foglio1!B1216 -> 20197.18 | F80: =Foglio1!C1216 -> 20754.77 | G80: =Foglio1!D1216 -> 22577.27 | H80: =Foglio1!E1216 -> 24675.29 | I80: =Foglio1!F1216 -> 26712.51 | J80: =Foglio1!G1216 -> 28710.89 | K80: =Foglio1!H1216 -> 30192.03
D81: =Foglio1!A1217 -> 2008-04-01 | E81: =Foglio1!B1217 -> 20300.14 | F81: =Foglio1!C1217 -> 20857.73 | G81: =Foglio1!D1217 -> 22680.23 | H81: =Foglio1!E1217 -> 24778.25 | I81: =Foglio1!F1217 -> 26815.47 | J81: =Foglio1!G1217 -> 28813.85 | K81: =Foglio1!H1217 -> 30294.99
D82: =Foglio1!A1218 -> 2008-07-01 | E82: =Foglio1!B1218 -> 20368.9 | F82: =Foglio1!C1218 -> 20926.49 | G82: =Foglio1!D1218 -> 22748.99 | H82: =Foglio1!E1218 -> 24847.01 | I82: =Foglio1!F1218 -> 26884.23 | J82: =Foglio1!G1218 -> 28882.61 | K82: =Foglio1!H1218 -> 30363.75
D83: =Foglio1!A1219 -> 2009-01-01 | E83: =Foglio1!B1219 -> 20973.22 | F83: =Foglio1!C1219 -> 21552.17 | G83: =Foglio1!D1219 -> 23444.75 | H83: =Foglio1!E1219 -> 25623.29 | I83: =Foglio1!F1219 -> 27738.87 | J83: =Foglio1!G1219 -> 29814.05 | K83: =Foglio1!H1219 -> 31352.07
D84: =Foglio1!A1220 -> 2010-04-01 | E84: =Foglio1!B1220 -> 21067.54 | F84: =Foglio1!C1220 -> 21646.49 | G84: =Foglio1!D1220 -> 23539.07 | H84: =Foglio1!E1220 -> 25717.61 | I84: =Foglio1!F1220 -> 27833.19 | J84: =Foglio1!G1220 -> 29908.37 | K84: =Foglio1!H1220 -> 31446.39
D85: =Foglio1!A1221 -> 2010-07-01 | E85: =Foglio1!B1221 -> 21130.54 | F85: =Foglio1!C1221 -> 21709.49 | G85: =Foglio1!D1221 -> 23602.07 | H85: =Foglio1!E1221 -> 25780.61 | I85: =Foglio1!F1221 -> 27896.19 | J85: =Foglio1!G1221 -> 29971.37 | K85: =Foglio1!H1221 -> 31509.39
D86: =Foglio1!A1224 -> 2010-09-01 | E86: =Foglio1!B1224 -> 21130.54 | F86: =Foglio1!B1224 -> 21130.54 | G86: =Foglio1!C1224 -> 23602.07 | H86: =Foglio1!D1224 -> 25780.61 | I86: =Foglio1!E1224 -> 27896.19 | J86: =Foglio1!F1224 -> 29971.37 | K86: =Foglio1!G1224 -> 31509.39
G90: Torna al foglio principale
E96: R.p.D. | F96: Valore annuo
C97: anzianita | D97: 00:00:00 | E97: 1999-07-01 | F97: 2000-01-01 | G97: 2001-01-01 | H97: 2002-01-01 | I97: 2003-01-01 | J97: 2004-01-01 | K97: 2005-01-01 | L97: 2006-01-01 | M97: 2007-01-01 | N97: 2008-01-01
C98: 0-14 | D98: 0 | E98: 594.96 | F98: 594.96 | G98: 1338.656282 | H98: 1578.656282 | I98: 1710.6 | J98: 1857.84 | K98: 1857.84 | L98: 1968 | M98: 1968 | N98: 1968
C99: 15-27 | D99: 0 | E99: 594.96 | F99: 594.96 | G99: 1667.12287 | H99: 1955.12287 | I99: 2111.16 | J99: 2287.8 | K99: 2287.8 | L99: 2424 | M99: 2424 | N99: 2424
C100: 28 in poi | D100: 0 | E100: 594.96 | F100: 594.96 | G100: 1865.44232 | H100: 2333.44232 | I100: 2585.4 | J100: 2870.04 | K100: 2870.04 | L100: 3090 | M100: 3090 | N100: 3090
E103: C.I.A. | F103: PROFILO A/AS | G103: VALORE ANNUO
C104: 1990-01-01 | D104: 1999-07-01 | E104: 2002-01-01 | F104: 2003-01-01 | G104: 2006-01-01
C105: 0 | D105: 471 | E105: 495 | F105: 579 | G105: 702

Sheet Foglio10
E114: torna

Sheet verimacro
B2: RICORDARSI DI ABILITARE IL CONTENUTO ATTIVO DI EXCEL / O DI ATTIVARE LE MACRO, CLICCANDO SU: ABILITA MODIFICA / ABILITA CONTENUTO / OPZIONI - PRESENTE NELL'AVVISO DI SOPRA.
B6: Programma per il calcolo delle ricostruzioni di carriera a seguito sentenza del tribunale
E22: ver.2018
G25: LICENZA N. 240/2018 - IL SOFTWARE DEVE ESSERE UTILIZZATO SOLO NELL'AMBITO DELL'ENTE / PRIVATO CHE DETIENE LA LICENZA - E' VIETATO IL PRESTITO, LA COPIA E LA CONCESSIONE A TERZI. L'UTILIZZO NON CONSENTITO E' PENALMENTE PERSEGUIBILE
G33: ISTRUZIONI: accertarsi di aver abilitato il contenuto attivo di excel e poi cliccare su: VAI AL PROGRAMMA. Se il link non funziona è perché il contenuto attivo di excel non è stato abilitato. Per abilitare il contenuto attivo di excel è sufficiente cliccare sull'avviso di protezione che appare in alto in questa finestra (sotto la barra dei comandi excel). Scegliere "ABILITA CONTENUTO" oppure clicca su opzioni per attivare le macro - così come riportato nell'immagine sottostante

Sheet front utente
G1: =N1*12+O1*1000 -> 18048 | H1: =N2*12+O2*1000 -> 19036 | I1: =IF(G1>H1,"scaduto","") ->  | J1: =IF(I1="scaduto","ATTENZIONE - CALCOLI NON CORRETTI - IL SOFTWARE E' DA AGGIORNARE","") ->  | N1: =MONTH((NOW())) -> 4 | O1: =YEAR((NOW()))-2000 -> 18 | AS1: tutti | AT1: superiori | AU1: comprensivi
N2: 3 | O2: 19 | AS2: Docente scuola materna elementare
AU3: Docente scuola materna elementare
AS4: Docente scuola Media e laureato 1 grado
AU5: Docente scuola Media e laureato 1 grado
AS6: Docente scuola Superiore e laureato 2 grado | AT6: Docente scuola Superiore e laureato 2 grado
AS7: Docente Diplomato | AT7: Docente Diplomato
R8: si | AS8: Assistente Amministrativo | AT8: Assistente Amministrativo
B9: Programma per il calcolo delle Ricostruzioni di Carriera in applicazione alle sentenze del Tribunale - Ver 2018 ****** VERSIONE DIMOSTRATIVA - ELABORAZIONI NON CORRETTE ************* | R9: no | AS9: Dsga | AT9: Dsga | AU9: Assistente Amministrativo
C10: VEDI ISTRUZIONi ED ESEMPIO | AS10: Collaboratore scolastico | AT10: Collaboratore scolastico | AU10: Dsga
C11: Nominativo | J11: Codice Fiscale | AS11: Collaboratore scolastico istruttore | AT11: Collaboratore scolastico istruttore | AU11: Collaboratore scolastico
AU12: Collaboratore scolastico istruttore
C13: Data di decorrenza della ricostruzione (gg/mm/aaaa) di solito corrisponde al primo giorno di supplenza | I13: Qualifica | K13: Docente scuola Media e laureato 1 grado | R13: Docente scuola materna elementare | V13: Doc. materna elem. | X13: Coll.Sc.
C15: Blocco anno 2013? (attualmente è in vigore il blocco -si consiglia inserire SI) | I15: si | K15: Modalità di calcolo della progressione di carriera | R15: Docente scuola Media e laureato 1 grado | V15: Doc. laureato 1° Grado | X15: C.S. Istr.
K16: 1) Calcola la progressione di carriera considerando soli i giorni effettivamente lavorati
C17: Eventuale ulteriore anzianità riconosciuta alla data di decorrenza della ricostruzione (di solito non vi è ulteriore anzianità - lasciare 0 (zero) ) | R17: Docente scuola Superiore e laureato 2 grado | V17: Doc. laureato 2° Grado | X17: Ass.A.T.
G18: ANNI: | H18: 0 | I18: MESI: | K18: GIORNI: | R18: Docente Diplomato | V18: Doc.Dipl. | X18: Coord. A/T
R19: Assistente Amministrativo | V19: Ass.A.T.
R20: Dsga | V20: Coord. A/T | X20: Doc. materna elem.
R21: Collaboratore scolastico | V21: Coll.Sc. | X21: Doc.Dipl.
K22: Scegliere quale progressione applicare: opzione 1, 2 oppure 3. ( di solito si sceglie o l'opzione 1 o la 3) Opzione 1 - la più applicata - si applica per il calcolo dei periodi effettivamente lavorati Opzione 2 si applica quando all'interessato si deve conteggiare l'anno per intero anche se parzialmente lavorato (tale opzione non viene mai applicata anche se risulta la più vantaggiosa). Opzione 3 si applica se sono da considerare validi solo gli A.S. superiori o pari a 180 gg. e dal 01/02 fino al termine delle lezioni | R22: Collaboratore scolastico istruttore | V22: C.S. Istr. | X22: Doc. laureato 1° Grado | AD22: 1) Calcola la progressione di carriera considerando soli i giorni effettivamente lavorati
X23: Doc. laureato 2° Grado | AD23: 2) Calcola la progressione di carriera considerando agli anni effettivamente trascorsi anche se non lavorati
B24: Inserire i Periodi di servizio di solito si inseriscono i periodi di servizio riconosciuti dalla sentenza o tutti i periodi a tempo determinato | X24: Doc. Religione Media e Sup. incaricato annuale | AD24: 3) Calcola la progressione di carriera considerando solo gli anni scolastici superiori a 180 gg. e calcolandoli come intero anno
B25: inserire i periodi di servizi che devono essere oggetto della ricostruzione I singoli periodi devono appartenere ad un anno scolastico per volta | E25: Orario di Lavoro (per es. 24 su 24 - compilazione facoltativa) | R25: =VLOOKUP(K13,R13:V23,5,0) -> Doc. laureato 1° Grado | X25: Doc. Religione Materna Elementare incaricato annuale
C26: dal: (gg/mm/aaaa) | D26: al: (gg/mm/aaaa) | E26: ore | F26: su | G26: ore | H26: =IF(LEFT(K16,1)="3","anni scolastici validi","") ->  | I26: tot. gg singolo periodo | J26: totale giornate effettivamente lavorate (senza eventuali giorni in comune) | N26: =IF(C27<>G13,"ATTENZIONE: LA DATA DI DECORRENZA DELLA RICOSTRUZIONE DOVREBBE COINCIDERE CON IL PRIMO GIORNO DI SUPPLENZA - CONTROLLARE","") ->  | X26: Docente Religione Media e sup. di ruolo
B27: 1 | F27: =IF(OR(I27>366,I27<0 ),"ERRORE","") ->  | H27: =IF(LEFT($K$16,1)="3",principale!AT9,"") ->  | I27: =IF(D27>0,D27-C27+1,0) -> 0 | J27: =calcoloperiodi1!C40 -> 1 | X27: Docente Religione Materna elementare di ruolo
B28: 2 | F28: =IF(OR(I28>366,I28<0 ),"ERRORE","") ->  | H28: =IF(LEFT($K$16,1)="3",principale!AT10,"") ->  | I28: 0 | M28: Se il bottone Elabora Decreto non dovesse funzionare,
B29: 3 | H29: =IF(LEFT($K$16,1)="3",principale!AT11,"") ->  | I29: =IF(D29>0,D29-C29+1,0) -> 0 | M29: bisognerà abilitare il contenuto attivo di excel o
B30: 4 | H30: =IF(LEFT($K$16,1)="3",principale!AT12,"") ->  | I30: =IF(D30>0,D30-C30+1,0) -> 0 | J30: Pari a: | M30: attivare le macro.
B31: 5 | H31: =IF(LEFT($K$16,1)="3",principale!AT13,"") ->  | I31: =IF(D31>0,D31-C31+1,0) -> 0 | J31: ANNI: | K31: =N39 -> 0
B32: 6 | H32: =IF(LEFT($K$16,1)="3",principale!AT14,"") ->  | I32: =IF(D32>0,D32-C32+1,0) -> 0 | J32: MESI: | K32: =N43 -> 0
B33: 7 | H33: =IF(LEFT($K$16,1)="3",principale!AT15,"") ->  | I33: 0 | J33: GIORNI: | K33: =N45 -> 1
B34: 8 | H34: =IF(LEFT($K$16,1)="3",principale!AT16,"") ->  | I34: 0
B35: 9 | H35: =IF(LEFT($K$16,1)="3",principale!AT17,"") ->  | I35: 0
B36: 10 | H36: =IF(LEFT($K$16,1)="3",principale!AT18,"") ->  | I36: 0 | N36: =J27/365 -> 0.002739726027
B37: 11 | H37: =IF(LEFT($K$16,1)="3",principale!AT19,"") ->  | I37: 0 | J37: Progressione di carriera: | N37: Pari ad anni:
B38: 12 | H38: =IF(LEFT($K$16,1)="3",principale!AT20,"") ->  | I38: 0 | J38: 0 anni | K38: =IF(C27>100000,"",C27) -> 00:00:00
B39: 13 | H39: =IF(LEFT($K$16,1)="3",principale!AT21,"") ->  | I39: 0 | J39: 3 anni | K39: =IF( AND(Foglio2!P108<100000, Foglio2!P108<calcoloperiodi1!$F$272,Foglio2!P108>1000 ),Foglio2!P108,"") ->  | N39: =INT(N36) -> 0 | O39: anni
B40: 14 | H40: =IF(LEFT($K$16,1)="3",principale!AT22,"") ->  | I40: 0 | J40: 9 anni | K40: =IF( AND(Foglio2!P109<100000, Foglio2!P109<calcoloperiodi1!$F$272,Foglio2!P109>1000 ),Foglio2!P109,"") ->  | N40: =365*N39 -> 0
B41: 15 | H41: =IF(LEFT($K$16,1)="3",principale!AT23,"") ->  | I41: 0 | J41: 15 anni | K41: =IF( AND(Foglio2!P110<100000, Foglio2!P110<calcoloperiodi1!$F$272,Foglio2!P110>1000 ),Foglio2!P110,"") ->  | N41: =J27-N40 -> 1
B42: 16 | H42: =IF(LEFT($K$16,1)="3",principale!AT24,"") ->  | I42: 0 | J42: 21 anni | K42: =IF( AND(Foglio2!P111<100000, Foglio2!P111<calcoloperiodi1!$F$272,Foglio2!P111>1000 ),Foglio2!P111,"") ->  | N42: =N41/30 -> 0.03333333333
B43: 17 | H43: =IF(LEFT($K$16,1)="3",principale!AT25,"") ->  | I43: 0 | J43: 28 anni | K43: =IF( AND(Foglio2!P112<100000, Foglio2!P112<calcoloperiodi1!$F$272,Foglio2!P112>1000 ),Foglio2!P112,"") ->  | N43: =INT(N42) -> 0 | O43: mesi
B44: 18 | H44: =IF(LEFT($K$16,1)="3",principale!AT26,"") ->  | I44: 0 | J44: =IF( calcoloperiodi1!AH11="NO","", "Arrotondamento anzianita al 01/01/1996: anni (ccnl scuola 01/08/96)") -> Arrotondamento anzianita al 01/01/1996: anni (ccnl scuola 01/08/96) | L44: =IF(calcoloperiodi1!AH11="NO","",calcoloperiodi1!AH11) -> 0 | N44: =J27-(N40+N43*30) -> 1
B45: 19 | H45: =IF(LEFT($K$16,1)="3",principale!AT27,"") ->  | I45: 0 | N45: =INT(N44) -> 1 | O45: giorni
B46: 20 | H46: =IF(LEFT($K$16,1)="3",principale!AT28,"") ->  | I46: 0 | K46: Editoriale Pagano
B47: 21 | H47: =IF(LEFT($K$16,1)="3",principale!AT29,"") ->  | I47: 0 | K47: Via Consalvo - 99 h
B48: 22 | H48: =IF(LEFT($K$16,1)="3",principale!AT30,"") ->  | I48: 0 | K48: 80100 NAPOLI
B49: 23 | H49: =IF(LEFT($K$16,1)="3",principale!AT31,"") ->  | I49: 0 | K49: tel 081 5930413
B50: 24 | H50: =IF(LEFT($K$16,1)="3",principale!AT32,"") ->  | I50: 0 | K50: e.mail: agenziapagano@gmail.com
B51: 25 | H51: =IF(LEFT($K$16,1)="3",principale!AT33,"") ->  | I51: 0 | K51: www.dsga.it
B52: 26 | H52: =IF(LEFT($K$16,1)="3",principale!AT34,"") ->  | I52: 0
B53: 27 | H53: =IF(LEFT($K$16,1)="3",principale!AT35,"") ->  | I53: 0
B54: 28 | H54: =IF(LEFT($K$16,1)="3",principale!AT36,"") ->  | I54: 0
B55: 29 | H55: =IF(LEFT($K$16,1)="3",principale!AT37,"") ->  | I55: 0
B56: 30 | H56: =IF(LEFT($K$16,1)="3",principale!AT38,"") ->  | I56: 0
B57: 31 | H57: =IF(LEFT($K$16,1)="3",principale!AT39,"") ->  | I57: 0
B58: 32 | H58: =IF(LEFT($K$16,1)="3",principale!AT40,"") ->  | I58: 0
B59: 33 | H59: =IF(LEFT($K$16,1)="3",principale!AT41,"") ->  | I59: 0 | K59: VEDI ESEMPIO
B60: 34 | H60: =IF(LEFT($K$16,1)="3",principale!AT42,"") ->  | I60: 0
B61: 35 | H61: =IF(LEFT($K$16,1)="3",principale!AT43,"") ->  | I61: 0 | J61: ISTRUZIONI
B62: 36 | H62: =IF(LEFT($K$16,1)="3",principale!AT44,"") ->  | I62: 0
B63: 37 | H63: =IF(LEFT($K$16,1)="3",principale!AT45,"") ->  | I63: 0
B64: 38 | H64: =IF(LEFT($K$16,1)="3",principale!AT46,"") ->  | I64: 0
B65: 39 | H65: =IF(LEFT($K$16,1)="3",principale!AT47,"") ->  | I65: 0 | J65: ISTRUZIONI: Il software calcola le ricostruzioni di carriera in ottemperanza alle sentenze del Tribunale. Il programma riconosce la progressione di carriera dell’interessato a partire dal 1° giorno di lavoro come dipendente della scuola, anche se assunto con contratto a tempo determinato fermo ad anni zero. La progressione di carriera e quindi gli anni di servizio, devono essere calcolati in base all’effettivo periodo di lavoro svolto nell'anno scolastico e sommando i singoli periodi di servizio (opzione 1). Le opzioni 2 e 3 si utilizzano solo se nella sentenza viene espressamente richiesto tale modalità di calcolo. INSERIMENTO DATI Una volta inserito nelle caselle bianche il nominativo ed il codice fiscale dell’interessato, bisognerà inserire la decorrenza della ricostruzione che di solito corrisponde al primo giorno di servizio avuto nella scuola. Inserire la qualifica scegliendola dall’elenco a discesa presente nel programma.
B66: 40 | H66: =IF(LEFT($K$16,1)="3",principale!AT48,"") ->  | I66: 0
B67: =B66+1 -> 41 | H67: =IF(LEFT($K$16,1)="3",principale!AT49,"") ->  | I67: 0
B68: =B67+1 -> 42 | H68: =IF(LEFT($K$16,1)="3",principale!AT50,"") ->  | I68: 0
B69: 43 | H69: =IF(LEFT($K$16,1)="3",principale!AT51,"") ->  | I69: 0
B70: 44 | H70: =IF(LEFT($K$16,1)="3",principale!AT52,"") ->  | I70: 0
B71: 45 | H71: =IF(LEFT($K$16,1)="3",principale!AT53,"") ->  | I71: 0
B72: 46 | H72: =IF(LEFT($K$16,1)="3",principale!AT54,"") ->  | I72: 0
B73: 47 | H73: =IF(LEFT($K$16,1)="3",principale!AT55,"") ->  | I73: 0
B74: 48 | H74: =IF(LEFT($K$16,1)="3",principale!AT56,"") ->  | I74: 0
B75: 49 | H75: =IF(LEFT($K$16,1)="3",principale!AT57,"") ->  | I75: 0
B76: 50 | H76: =IF(LEFT($K$16,1)="3",principale!AT58,"") ->  | I76: 0
B77: 51 | H77: =IF(LEFT($K$16,1)="3",principale!AT59,"") ->  | I77: 0
B78: 52 | H78: =IF(LEFT($K$16,1)="3",principale!AT60,"") ->  | I78: 0
B79: 53 | H79: =IF(LEFT($K$16,1)="3",principale!AT61,"") ->  | I79: 0
B80: 54 | H80: =IF(LEFT($K$16,1)="3",principale!AT62,"") ->  | I80: 0
B81: 55 | H81: =IF(LEFT($K$16,1)="3",principale!AT63,"") ->  | I81: 0
B82: 56 | H82: =IF(LEFT($K$16,1)="3",principale!AT64,"") ->  | I82: 0
B83: 57 | H83: =IF(LEFT($K$16,1)="3",principale!AT65,"") ->  | I83: 0 | J83: MODALITA DI CALCOLO DELLA PROGRESSIONE DI CARRIERA: Sono previste tre opzioni sulla modalità di progressioni della carriera per questa tipologia di personale, che essendo con contratto a tempo determinato, è rimasto a zero anni. L'opzione 1, prende in considerazione i giorni effettivamente lavorati adeguando l'anzianità e la progressione in base a tali giorni. Per esempio se l'interessato ha lavorato in un arco di 5 anni, ma per ogni singolo anno ha svolto solo 30 giorni di lavoro effettivo, con l'opzione 1 avremo che al termine dei 5 anni, un anzianità di soli 5 mesi. Invero con l'opzione 2, al termine dei 5 anni avremmo invece un anzianità di 5 anni. Con l'opzione 3 avremmo zero anni di anzianità riconosciuta, perchè ogni anno scolastico è inferiore ai 180 giorni. Per decidere per quale opzione propendere, bisogna leggere il PQM della sentenza dove di solito è riportato l'indicazione per il calcolo della progressione. Nel 90% dei casi comunque l'opzione da adottare è la n.1
B84: 58 | H84: =IF(LEFT($K$16,1)="3",principale!AT66,"") ->  | I84: 0
B85: 59 | H85: =IF(LEFT($K$16,1)="3",principale!AT67,"") ->  | I85: 0
B86: 60 | H86: =IF(LEFT($K$16,1)="3",principale!AT68,"") ->  | I86: 0
B87: 61 | H87: =IF(LEFT($K$16,1)="3",principale!AT69,"") ->  | I87: 0
B88: 62 | H88: =IF(LEFT($K$16,1)="3",principale!AT70,"") ->  | I88: 0
B89: 63 | H89: =IF(LEFT($K$16,1)="3",principale!AT71,"") ->  | I89: 0
B90: 64 | H90: =IF(LEFT($K$16,1)="3",principale!AT72,"") ->  | I90: 0
B91: 65 | H91: =IF(LEFT($K$16,1)="3",principale!AT73,"") ->  | I91: =IF(D91>0,D91-C91+1,0) -> 0
B92: 66 | F92: =IF(OR(I92>366,I92<0 ),"ERRORE","") ->  | H92: =IF(LEFT($K$16,1)="3",principale!AT74,"") ->  | I92: 0
B93: 67 | H93: =IF(LEFT($K$16,1)="3",principale!AT75,"") ->  | I93: 0
B94: 68 | H94: =IF(LEFT($K$16,1)="3",principale!AT76,"") ->  | I94: 0
B95: 69 | H95: =IF(LEFT($K$16,1)="3",principale!AT77,"") ->  | I95: 0
B96: 70 | H96: =IF(LEFT($K$16,1)="3",principale!AT78,"") ->  | I96: 0
B97: 71 | H97: =IF(LEFT($K$16,1)="3",principale!AT79,"") ->  | I97: 0
B98: 72 | H98: =IF(LEFT($K$16,1)="3",principale!AT80,"") ->  | I98: 0
B99: 73 | H99: =IF(LEFT($K$16,1)="3",principale!AT81,"") ->  | I99: 0
B100: 74 | H100: =IF(LEFT($K$16,1)="3",principale!AT82,"") ->  | I100: 0 | J100: INSERIMENTO PERIODI DI SERVIZIO A TEMPO DETERMINATO In ultimo inserire i periodi di servizio oggetto del riconoscimento. Di solito i periodi da inserire sono quelli ottentuti con incarico annuale / a tempo determinato. I periodi vanno inseriti in ordine cronologico dal più vecchio al più recente. Se la sentenza non prevede diversamente, i periodi di lavoro non sono soggetti a prescrizione, quindi vanno inseriti anche periodi molto vecchi - (la prescrizione richiamate dalle sentenze è riferita al calcolo delle somme spettanti che parte da una certa data ) - L'ultimo periodo inserito potrà essere quello ottenuto prima dell'immissione in ruolo. ESEMPIO: Dipendente cha ha iniziato a lavorare nella scuola come supplente dal 01/09/2000 - E' entrato di ruolo il 01/09/2010 - Ha fatto ricorso nel 2011 ed ha ottenuto il riconoscimento da parte del tribunale, di tutti i servizi a tempo determinato che dovranno essere pertanto equiparati come se fossero a tempo indeterminato.
B101: 75 | H101: =IF(LEFT($K$16,1)="3",principale!AT83,"") ->  | I101: 0
B102: 76 | H102: =IF(LEFT($K$16,1)="3",principale!AT84,"") ->  | I102: 0
B103: 77 | H103: =IF(LEFT($K$16,1)="3",principale!AT85,"") ->  | I103: 0
B104: 78 | H104: =IF(LEFT($K$16,1)="3",principale!AT86,"") ->  | I104: 0
B105: 79 | H105: =IF(LEFT($K$16,1)="3",principale!AT87,"") ->  | I105: 0
B106: 80 | H106: =IF(LEFT($K$16,1)="3",principale!AT88,"") ->  | I106: 0
B107: 81 | H107: =IF(LEFT($K$16,1)="3",principale!AT89,"") ->  | I107: 0
B108: 82 | H108: =IF(LEFT($K$16,1)="3",principale!AT90,"") ->  | I108: 0
B109: 83 | H109: =IF(LEFT($K$16,1)="3",principale!AT91,"") ->  | I109: 0
B110: 84 | H110: =IF(LEFT($K$16,1)="3",principale!AT92,"") ->  | I110: 0
B111: 85 | H111: =IF(LEFT($K$16,1)="3",principale!AT93,"") ->  | I111: 0
B112: 86 | H112: =IF(LEFT($K$16,1)="3",principale!AT94,"") ->  | I112: 0
B113: 87 | H113: =IF(LEFT($K$16,1)="3",principale!AT95,"") ->  | I113: 0
B114: 88 | H114: =IF(LEFT($K$16,1)="3",principale!AT96,"") ->  | I114: 0
B115: 89 | H115: =IF(LEFT($K$16,1)="3",principale!AT97,"") ->  | I115: 0
B116: 90 | H116: =IF(LEFT($K$16,1)="3",principale!AT98,"") ->  | I116: 0
B117: 91 | H117: =IF(LEFT($K$16,1)="3",principale!AT99,"") ->  | I117: 0
B118: 92 | H118: =IF(LEFT($K$16,1)="3",principale!AT100,"") ->  | I118: 0
B119: 93 | H119: =IF(LEFT($K$16,1)="3",principale!AT101,"") ->  | I119: 0
B120: 94 | H120: =IF(LEFT($K$16,1)="3",principale!AT102,"") ->  | I120: 0 | J120: PROCEDIMENTO: Nell'esempio di cui sopra, si inserisce come decorrenza della ricostruzione la data: 01/09/2000. Nella tabella riservata ai servizi, si inseriscono i servizi effettivamente svolti a far data dal 01/09/2000 fino alla data di immissione in ruolo OPPURE fino alla data del ricorso se tale ricorso è stato presentato PRIMA dell'immissione in ruolo. In effetti all'atto del ricorso, l'interessato porterà in giudizio i servizi effettuati fino a tale data. E quindi la successiva sentenza farà riferimento a quei servizi e ovviamente non potrà prendere in considerazione servizi svolti dopo. In pratica se l'interessato presenta il suo ricorso nel 2010, porterà in giudizio i servizi fino al 2010. Anche se dopo il 2010 l'interessato ha fatto innumerevoli supplenze, queste NON potranno essere riconosciute nella sentenza che ci sarà dopo qualche anno. E' comunque sempre indispensabile leggere le sentenze in quanto ci possono essere deroghe a quanto detto sopra, magari perchè il giudice ha accertato ulteriori servizi durante l'iter processuale. PRESCRIZIONE Di solito le differenze stipendiali spettanti all'interessato sono soggette a prescrizione quinquennale. Cioè sono riconosciute le somme spettanti a partire dal quinto anno precedente alla notifica del ricorso. In tal caso (quindi è necessario che la sentenza riporti espressamente che le somme sono soggette a prescrizione) si dovrà riportare nelle premesse del decreto la data di decorrenza degli arretrati spettanti. Lo sviluppo del calcolo della ricostruzione e degli importi presenti, invece non dovrà essere modificato, in quanto sarà la ragioneria ad effettuare gli opportuni calcoli.
B121: 95 | H121: =IF(LEFT($K$16,1)="3",principale!AT103,"") ->  | I121: 0
B122: 96 | H122: =IF(LEFT($K$16,1)="3",principale!AT104,"") ->  | I122: 0
B123: 97 | H123: =IF(LEFT($K$16,1)="3",principale!AT105,"") ->  | I123: 0
B124: 98 | H124: =IF(LEFT($K$16,1)="3",principale!AT106,"") ->  | I124: 0
B125: 99 | H125: =IF(LEFT($K$16,1)="3",principale!AT107,"") ->  | I125: 0
B126: 100 | H126: =IF(LEFT($K$16,1)="3",principale!AT108,"") ->  | I126: 0
B127: =B126+1 -> 101 | H127: =IF(LEFT($K$16,1)="3",principale!AT109,"") ->  | I127: 0
B128: 102 | H128: =IF(LEFT($K$16,1)="3",principale!AT110,"") ->  | I128: 0
B129: 103 | H129: =IF(LEFT($K$16,1)="3",principale!AT111,"") ->  | I129: 0
B130: 104 | H130: =IF(LEFT($K$16,1)="3",principale!AT112,"") ->  | I130: 0
B131: 105 | H131: =IF(LEFT($K$16,1)="3",principale!AT113,"") ->  | I131: 0
B132: 106 | H132: =IF(LEFT($K$16,1)="3",principale!AT114,"") ->  | I132: 0
B133: 107 | H133: =IF(LEFT($K$16,1)="3",principale!AT115,"") ->  | I133: 0
B134: 108 | H134: =IF(LEFT($K$16,1)="3",principale!AT116,"") ->  | I134: 0
B135: 109 | H135: =IF(LEFT($K$16,1)="3",principale!AT117,"") ->  | I135: 0
B136: 110 | H136: =IF(LEFT($K$16,1)="3",principale!AT118,"") ->  | I136: 0
B137: 111 | H137: =IF(LEFT($K$16,1)="3",principale!AT119,"") ->  | I137: 0
B138: 112 | H138: =IF(LEFT($K$16,1)="3",principale!AT120,"") ->  | I138: 0
B139: 113 | H139: =IF(LEFT($K$16,1)="3",principale!AT121,"") ->  | I139: 0
B140: 114 | H140: =IF(LEFT($K$16,1)="3",principale!AT122,"") ->  | I140: 0
B141: 115 | H141: =IF(LEFT($K$16,1)="3",principale!AT123,"") ->  | I141: 0
B142: 116 | H142: =IF(LEFT($K$16,1)="3",principale!AT124,"") ->  | I142: 0
B143: 117 | H143: =IF(LEFT($K$16,1)="3",principale!AT125,"") ->  | I143: 0
B144: 118 | H144: =IF(LEFT($K$16,1)="3",principale!AT126,"") ->  | I144: 0
B145: 119 | H145: =IF(LEFT($K$16,1)="3",principale!AT127,"") ->  | I145: 0 | J145: ELABORA DECRETO Cliccando su Elabora Decreto, il programma visualizzerà il decreto da inviare alla ragioneria. Il decreto potrà essere stampato direttamente utilizzando il comando stampa di excel, oppure potrà essere selezionato col mouse e facendo copia e incolla, potrà essere incollato su foglio word per una migliore gestione della stampa. La prima parte del decreto, quella riguardante i richiami alla normativa, dovrà essere eventualmente completata con i dati della persona, precisazioni sulla sentenza, richiamo alla prescrizione quinquennale con precisazione della data di decorrenza, etc. La seconda parte del decreto, quella riguardante i calcoli, dovrebbe essere lasciata così come è - o modificata secondo specifiche esigenze (al limite si può modificare l’aspetto e la formattazione del testo) .
B146: 120 | H146: =IF(LEFT($K$16,1)="3",principale!AT128,"") ->  | I146: 0
B147: 121 | H147: =IF(LEFT($K$16,1)="3",principale!AT129,"") ->  | I147: 0
B148: 122 | H148: =IF(LEFT($K$16,1)="3",principale!AT130,"") ->  | I148: 0
B149: 123 | H149: =IF(LEFT($K$16,1)="3",principale!AT131,"") ->  | I149: 0
B150: 124 | H150: =IF(LEFT($K$16,1)="3",principale!AT132,"") ->  | I150: 0
B151: 125 | H151: =IF(LEFT($K$16,1)="3",principale!AT133,"") ->  | I151: 0
B152: 126 | H152: =IF(LEFT($K$16,1)="3",principale!AT134,"") ->  | I152: 0
B153: 127 | H153: =IF(LEFT($K$16,1)="3",principale!AT135,"") ->  | I153: 0
B154: 128 | H154: =IF(LEFT($K$16,1)="3",principale!AT136,"") ->  | I154: 0
B155: 129 | H155: =IF(LEFT($K$16,1)="3",principale!AT137,"") ->  | I155: =IF(D155>0,D155-C155+1,0) -> 0
B156: 130 | F156: =IF(OR(I156>366,I156<0 ),"ERRORE","") ->  | H156: =IF(LEFT($K$16,1)="3",principale!AT138,"") ->  | I156: 0
B157: 131 | H157: =IF(LEFT($K$16,1)="3",principale!AT139,"") ->  | I157: 0
B158: 132 | H158: =IF(LEFT($K$16,1)="3",principale!AT140,"") ->  | I158: 0
B159: 133 | H159: =IF(LEFT($K$16,1)="3",principale!AT141,"") ->  | I159: 0
B160: 134 | H160: =IF(LEFT($K$16,1)="3",principale!AT142,"") ->  | I160: 0
B161: 135 | H161: =IF(LEFT($K$16,1)="3",principale!AT143,"") ->  | I161: 0
B162: 136 | H162: =IF(LEFT($K$16,1)="3",principale!AT144,"") ->  | I162: 0
B163: 137 | H163: =IF(LEFT($K$16,1)="3",principale!AT145,"") ->  | I163: 0
B164: 138 | H164: =IF(LEFT($K$16,1)="3",principale!AT146,"") ->  | I164: 0
B165: 139 | H165: =IF(LEFT($K$16,1)="3",principale!AT147,"") ->  | I165: 0
B166: 140 | H166: =IF(LEFT($K$16,1)="3",principale!AT148,"") ->  | I166: 0
B167: 141 | H167: =IF(LEFT($K$16,1)="3",principale!AT149,"") ->  | I167: 0
B168: 142 | H168: =IF(LEFT($K$16,1)="3",principale!AT150,"") ->  | I168: 0
B169: 143 | H169: =IF(LEFT($K$16,1)="3",principale!AT151,"") ->  | I169: 0
B170: 144 | H170: =IF(LEFT($K$16,1)="3",principale!AT152,"") ->  | I170: 0
B171: 145 | H171: =IF(LEFT($K$16,1)="3",principale!AT153,"") ->  | I171: 0
B172: 146 | H172: =IF(LEFT($K$16,1)="3",principale!AT154,"") ->  | I172: 0
B173: 147 | H173: =IF(LEFT($K$16,1)="3",principale!AT155,"") ->  | I173: 0
B174: 148 | H174: =IF(LEFT($K$16,1)="3",principale!AT156,"") ->  | I174: 0
B175: 149 | H175: =IF(LEFT($K$16,1)="3",principale!AT157,"") ->  | I175: 0
B176: 150 | H176: =IF(LEFT($K$16,1)="3",principale!AT158,"") ->  | I176: 0
B177: 151 | H177: =IF(LEFT($K$16,1)="3",principale!AT159,"") ->  | I177: 0
B178: 152 | H178: =IF(LEFT($K$16,1)="3",principale!AT160,"") ->  | I178: 0
B179: 153 | H179: =IF(LEFT($K$16,1)="3",principale!AT161,"") ->  | I179: 0
B180: 154 | H180: =IF(LEFT($K$16,1)="3",principale!AT162,"") ->  | I180: 0
B181: 155 | H181: =IF(LEFT($K$16,1)="3",principale!AT163,"") ->  | I181: 0
B182: 156 | H182: =IF(LEFT($K$16,1)="3",principale!AT164,"") ->  | I182: 0
B183: 157 | H183: =IF(LEFT($K$16,1)="3",principale!AT165,"") ->  | I183: 0
B184: 158 | H184: =IF(LEFT($K$16,1)="3",principale!AT166,"") ->  | I184: 0
B185: 159 | H185: =IF(LEFT($K$16,1)="3",principale!AT167,"") ->  | I185: 0
B186: 160 | H186: =IF(LEFT($K$16,1)="3",principale!AT168,"") ->  | I186: 0
B187: 161 | H187: =IF(LEFT($K$16,1)="3",principale!AT169,"") ->  | I187: 0
B188: 162 | H188: =IF(LEFT($K$16,1)="3",principale!AT170,"") ->  | I188: 0
B189: 163 | H189: =IF(LEFT($K$16,1)="3",principale!AT171,"") ->  | I189: 0
B190: 164 | H190: =IF(LEFT($K$16,1)="3",principale!AT172,"") ->  | I190: 0
B191: =B190+1 -> 165 | H191: =IF(LEFT($K$16,1)="3",principale!AT173,"") ->  | I191: 0
B192: 166 | H192: =IF(LEFT($K$16,1)="3",principale!AT174,"") ->  | I192: 0
B193: 167 | H193: =IF(LEFT($K$16,1)="3",principale!AT175,"") ->  | I193: 0
B194: 168 | H194: =IF(LEFT($K$16,1)="3",principale!AT176,"") ->  | I194: 0
B195: 169 | H195: =IF(LEFT($K$16,1)="3",principale!AT177,"") ->  | I195: 0
B196: 170 | H196: =IF(LEFT($K$16,1)="3",principale!AT178,"") ->  | I196: 0
B197: 171 | H197: =IF(LEFT($K$16,1)="3",principale!AT179,"") ->  | I197: 0
B198: 172 | H198: =IF(LEFT($K$16,1)="3",principale!AT180,"") ->  | I198: 0
B199: 173 | H199: =IF(LEFT($K$16,1)="3",principale!AT181,"") ->  | I199: 0
B200: 174 | H200: =IF(LEFT($K$16,1)="3",principale!AT182,"") ->  | I200: 0
B201: 175 | H201: =IF(LEFT($K$16,1)="3",principale!AT183,"") ->  | I201: 0
... 36 more rows

Sheet calcoladifferenzespettanti
F1: TABELLA PROGRESSIONE | K1: 0 | L1: ='front utente'!K38 -> 00:00:00
K2: 3 | L2: ='front utente'!K39 -> 
K3: 9 | L3: ='front utente'!K40 -> 
K4: 15 | L4: ='front utente'!K41 -> 
K5: 21 | L5: ='front utente'!K42 -> 
K6: 28 | L6: ='front utente'!K43 -> 
K7: 35 | O7: TIENE CONTO SE ALL'INTERNO DEL PERIODO, SIA PRESENTE UN PASSAGGIO AD UNA FASCIA SUCCESSIVA E NE CALCOLA LA DIFFERENZA RETRIBUTIVA
Q8: differenza da aggiungere in caso che il periodo (dal al) includa un apssaggio ad una fascia successiva
B10: TABELLA STIPENDIALE RIFERITA AL CCNL | I10: PERIODI EFFETTIVAMENTE LAVORATI
B11: =differenzespettanti!E13 -> decorrenza data | C11: =differenzespettanti!F13 -> inquadramento contrattuale | D11: =differenzespettanti!G13 -> Stipendio annuo lordo spettante a seguito ricostruzione | E11: =differenzespettanti!I13 -> Stipendio annuo lordo percepito nella fascia di zero anni | F11: differenza tra ricostruzione e supplenza | J11: dal | K11: al | L11: n.gg. | M11: orario | N11: STIPENDIO TABELLARE ANNUO LORDO | O11: DIFFERENZA stipendio tabellare annuo riferito all ultimo giorno del periodo | P11: decorrenza della stipendio tabellare lordo riferito all'ultimo giorno del periodo | S11: STIPENDIO TABELLARE ANNUO LORDO DA SUPPLENTE | T11: RANGE DOVE IL RANGE E DIVERSO BISOGNA DIVIDERE I PERIODI
B12: ='front utente'!G13 -> 00:00:00 | C12: =differenzespettanti!F14 ->  | D12: =differenzespettanti!G14 ->  | E12: =differenzespettanti!I14 ->  | F12: =0 -> 0 | I12: 1 | J12: ='front utente'!C27 -> 00:00:00 | K12: ='front utente'!D27 -> 00:00:00 | L12: ='front utente'!I27 -> 0 | M12: ='front utente'!E27/'front utente'!G27 ->  | N12: =IF(L12=0,0,VLOOKUP(J12,$B$12:$E$42,3,1)+Q12*R12*U12) -> 0 | O12: =IF(L12>0,VLOOKUP(K12,$B$12:$F$42,5,1),0) -> 0 | P12: =IF(O12>0,VLOOKUP(K12,$L$1:$L$7,1,1),0) -> 00:00:00 | Q12: =IF(P12>0,(O12/365)*(K12-P12),0) -> 0 | R12: =IF(P12>J12,1,0) -> 0 | S12: =IF(L12>0,VLOOKUP(J12,$B$12:$E$42,4,1),0) -> 0 | T12: =IF(L12>0,VLOOKUP(K12,$B$12:$E$42,3,1),0) -> 0 | U12: =365/L12 -> 
B13: =differenzespettanti!E15 ->  | C13: =differenzespettanti!F15 ->  | D13: =IF(differenzespettanti!G15>D12,differenzespettanti!G15,D12) ->  | E13: =differenzespettanti!I15 ->  | F13: =IF(D13<>"",D13-D12,"") ->  | I13: =I12+1 -> 2 | J13: ='front utente'!C28 -> 00:00:00 | K13: ='front utente'!D28 -> 00:00:00 | L13: ='front utente'!I28 -> 0 | M13: ='front utente'!E28/'front utente'!G28 ->  | N13: =IF(L13=0,0,VLOOKUP(J13,$B$12:$E$42,3,1)+Q13*R13*U13) -> 0 | O13: =IF(L13>0,VLOOKUP(K13,$B$12:$F$42,5,1),0) -> 0 | P13: =IF(O13>0,VLOOKUP(K13,$L$1:$L$7,1,1),0) -> 00:00:00 | Q13: =IF(P13>0,(O13/365)*(K13-P13),0) -> 0 | R13: =IF(P13>J13,1,0) -> 0 | S13: 0 | T13: 0 | U13: =365/L13 -> 
B14: =differenzespettanti!E16 ->  | C14: =differenzespettanti!F16 ->  | D14: =IF(differenzespettanti!G16>D13,differenzespettanti!G16,D13) ->  | E14: =differenzespettanti!I16 ->  | F14: =IF(D14<>"",D14-D13,"") ->  | I14: 3 | J14: ='front utente'!C29 -> 00:00:00 | K14: ='front utente'!D29 -> 00:00:00 | L14: ='front utente'!I29 -> 0 | M14: ='front utente'!E29/'front utente'!G29 ->  | N14: 0 | O14: 0 | P14: =IF(O14>0,VLOOKUP(K14,$L$1:$L$7,1,1),0) -> 00:00:00 | Q14: =IF(P14>0,(O14/365)*(K14-P14),0) -> 0 | R14: =IF(P14>J14,1,0) -> 0 | S14: 0 | T14: 0
B15: =differenzespettanti!E17 ->  | C15: =differenzespettanti!F17 ->  | D15: =IF(differenzespettanti!G17>D14,differenzespettanti!G17,D14) ->  | E15: =differenzespettanti!I17 ->  | I15: 4 | J15: ='front utente'!C30 -> 00:00:00 | K15: ='front utente'!D30 -> 00:00:00 | L15: ='front utente'!I30 -> 0 | M15: ='front utente'!E30/'front utente'!G30 ->  | N15: 0 | O15: 0 | P15: =IF(O15>0,VLOOKUP(K15,$L$1:$L$7,1,1),0) -> 00:00:00 | Q15: =IF(P15>0,(O15/365)*(K15-P15),0) -> 0 | R15: =IF(P15>J15,1,0) -> 0 | S15: 0 | T15: 0
B16: =differenzespettanti!E18 ->  | C16: =differenzespettanti!F18 ->  | D16: =IF(differenzespettanti!G18>D15,differenzespettanti!G18,D15) ->  | E16: =differenzespettanti!I18 ->  | I16: 5 | J16: ='front utente'!C31 -> 00:00:00 | K16: ='front utente'!D31 -> 00:00:00 | L16: ='front utente'!I31 -> 0 | M16: ='front utente'!E31/'front utente'!G31 ->  | N16: 0 | O16: 0 | P16: =IF(O16>0,VLOOKUP(K16,$L$1:$L$7,1,1),0) -> 00:00:00 | Q16: =IF(P16>0,(O16/365)*(K16-P16),0) -> 0 | R16: =IF(P16>J16,1,0) -> 0 | S16: 0 | T16: 0
B17: =differenzespettanti!E19 ->  | C17: =differenzespettanti!F19 ->  | D17: =IF(differenzespettanti!G19>D16,differenzespettanti!G19,D16) ->  | E17: =differenzespettanti!I19 ->  | I17: 6 | J17: ='front utente'!C32 -> 00:00:00 | K17: ='front utente'!D32 -> 00:00:00 | L17: ='front utente'!I32 -> 0 | M17: ='front utente'!E32/'front utente'!G32 ->  | N17: 0 | O17: 0 | P17: =IF(O17>0,VLOOKUP(K17,$L$1:$L$7,1,1),0) -> 00:00:00 | Q17: =IF(P17>0,(O17/365)*(K17-P17),0) -> 0 | R17: 0 | S17: 0 | T17: 0
B18: =differenzespettanti!E20 ->  | C18: =differenzespettanti!F20 ->  | D18: =IF(differenzespettanti!G20>D17,differenzespettanti!G20,D17) ->  | E18: =differenzespettanti!I20 ->  | I18: 7 | J18: ='front utente'!C33 -> 00:00:00 | K18: ='front utente'!D33 -> 00:00:00 | L18: ='front utente'!I33 -> 0 | M18: ='front utente'!E33/'front utente'!G33 ->  | N18: 0 | O18: 0 | P18: 00:00:00 | Q18: 0 | R18: 0 | S18: 0 | T18: 0
B19: =differenzespettanti!E21 ->  | C19: =differenzespettanti!F21 ->  | D19: =IF(differenzespettanti!G21>D18,differenzespettanti!G21,D18) ->  | E19: =differenzespettanti!I21 ->  | I19: 8 | J19: ='front utente'!C34 -> 00:00:00 | K19: ='front utente'!D34 -> 00:00:00 | L19: ='front utente'!I34 -> 0 | M19: ='front utente'!E34/'front utente'!G34 ->  | N19: 0 | O19: 0 | P19: 00:00:00 | Q19: 0 | R19: 0 | S19: 0 | T19: 0
B20: =differenzespettanti!E22 ->  | C20: =differenzespettanti!F22 ->  | D20: =IF(differenzespettanti!G22>D19,differenzespettanti!G22,D19) ->  | E20: =differenzespettanti!I22 ->  | I20: 9 | J20: ='front utente'!C35 -> 00:00:00 | K20: ='front utente'!D35 -> 00:00:00 | L20: ='front utente'!I35 -> 0 | M20: ='front utente'!E35/'front utente'!G35 ->  | N20: 0 | O20: 0 | P20: 00:00:00 | Q20: 0 | R20: 0 | S20: 0 | T20: 0
B21: =differenzespettanti!E23 ->  | C21: =differenzespettanti!F23 ->  | D21: =IF(differenzespettanti!G23>D20,differenzespettanti!G23,D20) ->  | E21: =differenzespettanti!I23 ->  | I21: 10 | J21: ='front utente'!C36 -> 00:00:00 | K21: ='front utente'!D36 -> 00:00:00 | L21: ='front utente'!I36 -> 0 | M21: ='front utente'!E36/'front utente'!G36 ->  | N21: 0 | O21: 0 | P21: 00:00:00 | Q21: 0 | R21: 0 | S21: 0 | T21: 0
B22: =differenzespettanti!E24 ->  | C22: =differenzespettanti!F24 ->  | D22: =IF(differenzespettanti!G24>D21,differenzespettanti!G24,D21) ->  | E22: =differenzespettanti!I24 ->  | I22: 11 | J22: ='front utente'!C37 -> 00:00:00 | K22: ='front utente'!D37 -> 00:00:00 | L22: ='front utente'!I37 -> 0 | M22: ='front utente'!E37/'front utente'!G37 ->  | N22: 0 | O22: 0 | P22: 00:00:00 | Q22: 0 | R22: 0 | S22: 0 | T22: 0
B23: =differenzespettanti!E25 ->  | C23: =differenzespettanti!F25 ->  | D23: =IF(differenzespettanti!G25>D22,differenzespettanti!G25,D22) ->  | E23: =differenzespettanti!I25 ->  | I23: 12 | J23: ='front utente'!C38 -> 00:00:00 | K23: ='front utente'!D38 -> 00:00:00 | L23: ='front utente'!I38 -> 0 | M23: ='front utente'!E38/'front utente'!G38 ->  | N23: 0 | O23: 0 | P23: 00:00:00 | Q23: 0 | R23: 0 | S23: 0 | T23: 0
B24: =differenzespettanti!E26 ->  | C24: =differenzespettanti!F26 ->  | D24: =IF(differenzespettanti!G26>D23,differenzespettanti!G26,D23) ->  | E24: =differenzespettanti!I26 ->  | I24: 13 | J24: ='front utente'!C39 -> 00:00:00 | K24: ='front utente'!D39 -> 00:00:00 | L24: ='front utente'!I39 -> 0 | M24: ='front utente'!E39/'front utente'!G39 ->  | N24: 0 | O24: 0 | P24: 00:00:00 | Q24: 0 | R24: 0 | S24: 0 | T24: 0
B25: =differenzespettanti!E27 ->  | C25: =differenzespettanti!F27 ->  | D25: =IF(differenzespettanti!G27>D24,differenzespettanti!G27,D24) ->  | E25: =differenzespettanti!I27 ->  | I25: 14 | J25: ='front utente'!C40 -> 00:00:00 | K25: ='front utente'!D40 -> 00:00:00 | L25: ='front utente'!I40 -> 0 | M25: ='front utente'!E40/'front utente'!G40 ->  | N25: 0 | O25: 0 | P25: 00:00:00 | Q25: 0 | R25: 0 | S25: 0 | T25: 0
B26: =differenzespettanti!E28 ->  | C26: =differenzespettanti!F28 ->  | D26: =IF(differenzespettanti!G28>D25,differenzespettanti!G28,D25) ->  | E26: =differenzespettanti!I28 ->  | I26: 15 | J26: ='front utente'!C41 -> 00:00:00 | K26: ='front utente'!D41 -> 00:00:00 | L26: ='front utente'!I41 -> 0 | M26: ='front utente'!E41/'front utente'!G41 ->  | N26: 0 | O26: 0 | P26: 00:00:00 | Q26: 0 | R26: 0 | S26: 0 | T26: 0
B27: =differenzespettanti!E29 ->  | C27: =differenzespettanti!F29 ->  | D27: =IF(differenzespettanti!G29>D26,differenzespettanti!G29,D26) ->  | E27: =differenzespettanti!I29 ->  | I27: 16 | J27: ='front utente'!C42 -> 00:00:00 | K27: ='front utente'!D42 -> 00:00:00 | L27: ='front utente'!I42 -> 0 | M27: ='front utente'!E42/'front utente'!G42 ->  | N27: 0 | O27: 0 | P27: 00:00:00 | Q27: 0 | R27: 0 | S27: 0 | T27: 0
B28: =differenzespettanti!E30 ->  | C28: =differenzespettanti!F30 ->  | D28: =IF(differenzespettanti!G30>D27,differenzespettanti!G30,D27) ->  | E28: =differenzespettanti!I30 ->  | I28: 17 | J28: ='front utente'!C43 -> 00:00:00 | K28: ='front utente'!D43 -> 00:00:00 | L28: ='front utente'!I43 -> 0 | M28: ='front utente'!E43/'front utente'!G43 ->  | N28: 0 | O28: 0 | P28: 00:00:00 | Q28: 0 | R28: 0 | S28: 0 | T28: 0
B29: =differenzespettanti!E31 ->  | C29: =differenzespettanti!F31 ->  | D29: =IF(differenzespettanti!G31>D28,differenzespettanti!G31,D28) ->  | E29: =differenzespettanti!I31 ->  | I29: 18 | J29: ='front utente'!C44 -> 00:00:00 | K29: ='front utente'!D44 -> 00:00:00 | L29: ='front utente'!I44 -> 0 | M29: ='front utente'!E44/'front utente'!G44 ->  | N29: =IF(L29=0,0,VLOOKUP(J29,$B$12:$E$42,3,1)+Q29*R29*U29) -> 0 | O29: 0 | P29: 00:00:00 | Q29: 0 | R29: 0 | S29: 0 | T29: 0
B30: =differenzespettanti!E32 ->  | C30: =differenzespettanti!F32 ->  | D30: =IF(differenzespettanti!G32>D29,differenzespettanti!G32,D29) ->  | E30: =differenzespettanti!I32 ->  | I30: 19 | J30: ='front utente'!C45 -> 00:00:00 | K30: ='front utente'!D45 -> 00:00:00 | L30: ='front utente'!I45 -> 0 | M30: ='front utente'!E45/'front utente'!G45 ->  | N30: =IF(L30=0,0,VLOOKUP(J30,$B$12:$E$42,3,1)+Q30*R30*U30) -> 0 | O30: 0 | P30: 00:00:00 | Q30: 0 | R30: 0 | S30: 0 | T30: 0
B31: =differenzespettanti!E33 ->  | C31: =differenzespettanti!F33 ->  | D31: =IF(differenzespettanti!G33>D30,differenzespettanti!G33,D30) ->  | E31: =differenzespettanti!I33 ->  | F31: =IF(D31<>"",D31-E31,"") ->  | I31: 20 | J31: ='front utente'!C46 -> 00:00:00 | K31: ='front utente'!D46 -> 00:00:00 | L31: ='front utente'!I46 -> 0 | M31: ='front utente'!E46/'front utente'!G46 ->  | N31: 0 | O31: 0 | P31: 00:00:00 | Q31: 0 | R31: 0 | S31: 0 | T31: 0
B32: =differenzespettanti!E34 ->  | C32: =differenzespettanti!F34 ->  | D32: =IF(differenzespettanti!G34>D31,differenzespettanti!G34,D31) ->  | E32: =differenzespettanti!I34 ->  | I32: 21 | J32: ='front utente'!C47 -> 00:00:00 | K32: ='front utente'!D47 -> 00:00:00 | L32: ='front utente'!I47 -> 0 | M32: ='front utente'!E47/'front utente'!G47 ->  | N32: 0 | O32: 0 | P32: 00:00:00 | Q32: 0 | R32: 0 | S32: 0 | T32: 0
B33: =differenzespettanti!E35 ->  | C33: =differenzespettanti!F35 ->  | D33: =IF(differenzespettanti!G35>D32,differenzespettanti!G35,D32) ->  | E33: =differenzespettanti!I35 ->  | I33: 22 | J33: ='front utente'!C48 -> 00:00:00 | K33: ='front utente'!D48 -> 00:00:00 | L33: ='front utente'!I48 -> 0 | M33: ='front utente'!E48/'front utente'!G48 ->  | N33: 0 | O33: 0 | P33: 00:00:00 | Q33: 0 | R33: 0 | S33: 0 | T33: 0
B34: =differenzespettanti!E36 ->  | C34: =differenzespettanti!F36 ->  | D34: =IF(differenzespettanti!G36>D33,differenzespettanti!G36,D33) ->  | E34: =differenzespettanti!I36 ->  | I34: 23 | J34: ='front utente'!C49 -> 00:00:00 | K34: ='front utente'!D49 -> 00:00:00 | L34: ='front utente'!I49 -> 0 | M34: ='front utente'!E49/'front utente'!G49 ->  | N34: 0 | O34: 0 | P34: 00:00:00 | Q34: 0 | R34: 0 | S34: 0 | T34: 0
B35: =differenzespettanti!E37 ->  | C35: =differenzespettanti!F37 ->  | D35: =IF(differenzespettanti!G37>D34,differenzespettanti!G37,D34) ->  | E35: =differenzespettanti!I37 ->  | I35: 24 | J35: ='front utente'!C50 -> 00:00:00 | K35: ='front utente'!D50 -> 00:00:00 | L35: ='front utente'!I50 -> 0 | M35: ='front utente'!E50/'front utente'!G50 ->  | N35: 0 | O35: 0 | P35: 00:00:00 | Q35: 0 | R35: 0 | S35: 0 | T35: 0
B36: =differenzespettanti!E38 ->  | C36: =differenzespettanti!F38 ->  | D36: =IF(differenzespettanti!G38>D35,differenzespettanti!G38,D35) ->  | E36: =differenzespettanti!I38 ->  | I36: 25 | J36: ='front utente'!C51 -> 00:00:00 | K36: ='front utente'!D51 -> 00:00:00 | L36: ='front utente'!I51 -> 0 | M36: ='front utente'!E51/'front utente'!G51 ->  | N36: 0 | O36: 0 | P36: 00:00:00 | Q36: 0 | R36: 0 | S36: 0 | T36: 0
B37: =differenzespettanti!E39 ->  | C37: =differenzespettanti!F39 ->  | D37: =IF(differenzespettanti!G39>D36,differenzespettanti!G39,D36) ->  | E37: =differenzespettanti!I39 ->  | I37: 26 | J37: ='front utente'!C52 -> 00:00:00 | K37: ='front utente'!D52 -> 00:00:00 | L37: ='front utente'!I52 -> 0 | M37: ='front utente'!E52/'front utente'!G52 ->  | N37: 0 | O37: 0 | P37: 00:00:00 | Q37: 0 | R37: 0 | S37: 0 | T37: 0
B38: =differenzespettanti!E40 ->  | C38: =differenzespettanti!F40 ->  | D38: =IF(differenzespettanti!G40>D37,differenzespettanti!G40,D37) ->  | E38: =differenzespettanti!I40 ->  | I38: 27 | J38: ='front utente'!C53 -> 00:00:00 | K38: ='front utente'!D53 -> 00:00:00 | L38: ='front utente'!I53 -> 0 | M38: ='front utente'!E53/'front utente'!G53 ->  | N38: 0 | O38: 0 | P38: 00:00:00 | Q38: 0 | R38: 0 | S38: 0 | T38: 0
B39: =differenzespettanti!E41 ->  | C39: =differenzespettanti!F41 ->  | D39: =IF(differenzespettanti!G41>D38,differenzespettanti!G41,D38) ->  | E39: =differenzespettanti!I41 ->  | I39: 28 | J39: ='front utente'!C54 -> 00:00:00 | K39: ='front utente'!D54 -> 00:00:00 | L39: ='front utente'!I54 -> 0 | M39: ='front utente'!E54/'front utente'!G54 ->  | N39: 0 | O39: 0 | P39: 00:00:00 | Q39: 0 | R39: 0 | S39: 0 | T39: 0
B40: =differenzespettanti!E42 ->  | C40: =differenzespettanti!F42 ->  | D40: =IF(differenzespettanti!G42>D39,differenzespettanti!G42,D39) ->  | E40: =differenzespettanti!I42 ->  | I40: 29 | J40: ='front utente'!C55 -> 00:00:00 | K40: ='front utente'!D55 -> 00:00:00 | L40: ='front utente'!I55 -> 0 | M40: ='front utente'!E55/'front utente'!G55 ->  | N40: 0 | O40: 0 | P40: 00:00:00 | Q40: 0 | R40: 0 | S40: 0 | T40: 0
B41: =differenzespettanti!E43 ->  | C41: =differenzespettanti!F43 ->  | D41: =IF(differenzespettanti!G43>D40,differenzespettanti!G43,D40) ->  | E41: =differenzespettanti!I43 ->  | I41: 30 | J41: ='front utente'!C56 -> 00:00:00 | K41: ='front utente'!D56 -> 00:00:00 | L41: ='front utente'!I56 -> 0 | M41: ='front utente'!E56/'front utente'!G56 ->  | N41: 0 | O41: 0 | P41: 00:00:00 | Q41: 0 | R41: 0 | S41: 0 | T41: 0
B42: =differenzespettanti!E44 ->  | C42: =differenzespettanti!F44 ->  | D42: =IF(differenzespettanti!G44>D41,differenzespettanti!G44,D41) ->  | E42: =differenzespettanti!I44 ->  | I42: 31 | J42: ='front utente'!C57 -> 00:00:00 | K42: ='front utente'!D57 -> 00:00:00 | L42: ='front utente'!I57 -> 0 | M42: ='front utente'!E57/'front utente'!G57 ->  | N42: 0 | O42: 0 | P42: 00:00:00 | Q42: 0 | R42: 0 | S42: 0 | T42: 0
D43: =IF(differenzespettanti!G45>D42,differenzespettanti!G45,D42) ->  | I43: 32 | J43: ='front utente'!C58 -> 00:00:00 | K43: ='front utente'!D58 -> 00:00:00 | L43: ='front utente'!I58 -> 0 | M43: ='front utente'!E58/'front utente'!G58 ->  | N43: 0 | O43: 0 | P43: 00:00:00 | Q43: 0 | R43: 0 | S43: 0 | T43: 0
D44: =IF(differenzespettanti!G46>D43,differenzespettanti!G46,D43) ->  | I44: 33 | J44: ='front utente'!C59 -> 00:00:00 | K44: ='front utente'!D59 -> 00:00:00 | L44: ='front utente'!I59 -> 0 | M44: ='front utente'!E59/'front utente'!G59 ->  | N44: 0 | O44: 0 | P44: 00:00:00 | Q44: 0 | R44: 0 | S44: =IF(L44>0,VLOOKUP(J44,$B$12:$E$42,4,1),0) -> 0 | T44: =IF(L44>0,VLOOKUP(K44,$B$12:$E$42,3,1),0) -> 0
D45: =IF(differenzespettanti!G47>D44,differenzespettanti!G47,D44) ->  | I45: =I44+1 -> 34 | J45: ='front utente'!C60 -> 00:00:00 | K45: ='front utente'!D60 -> 00:00:00 | L45: ='front utente'!I60 -> 0 | M45: ='front utente'!E60/'front utente'!G60 ->  | N45: 0 | O45: 0 | P45: 00:00:00 | Q45: 0 | R45: 0 | S45: 0 | T45: 0
D46: =IF(differenzespettanti!G48>D45,differenzespettanti!G48,D45) ->  | I46: 35 | J46: ='front utente'!C61 -> 00:00:00 | K46: ='front utente'!D61 -> 00:00:00 | L46: ='front utente'!I61 -> 0 | M46: ='front utente'!E61/'front utente'!G61 ->  | N46: 0 | O46: 0 | P46: 00:00:00 | Q46: 0 | R46: 0 | S46: 0 | T46: 0
I47: 36 | J47: ='front utente'!C62 -> 00:00:00 | K47: ='front utente'!D62 -> 00:00:00 | L47: ='front utente'!I62 -> 0 | M47: ='front utente'!E62/'front utente'!G62 ->  | N47: 0 | O47: 0 | P47: 00:00:00 | Q47: 0 | R47: 0 | S47: 0 | T47: 0
I48: 37 | J48: ='front utente'!C63 -> 00:00:00 | K48: ='front utente'!D63 -> 00:00:00 | L48: ='front utente'!I63 -> 0 | M48: ='front utente'!E63/'front utente'!G63 ->  | N48: 0 | O48: 0 | P48: 00:00:00 | Q48: 0 | R48: 0 | S48: 0 | T48: 0
I49: 38 | J49: ='front utente'!C64 -> 00:00:00 | K49: ='front utente'!D64 -> 00:00:00 | L49: ='front utente'!I64 -> 0 | M49: ='front utente'!E64/'front utente'!G64 ->  | N49: 0 | O49: 0 | P49: 00:00:00 | Q49: 0 | R49: 0 | S49: 0 | T49: 0
I50: 39 | J50: ='front utente'!C65 -> 00:00:00 | K50: ='front utente'!D65 -> 00:00:00 | L50: ='front utente'!I65 -> 0 | M50: ='front utente'!E65/'front utente'!G65 ->  | N50: 0 | O50: 0 | P50: 00:00:00 | Q50: 0 | R50: 0 | S50: 0 | T50: 0
I51: 40 | J51: ='front utente'!C66 -> 00:00:00 | K51: ='front utente'!D66 -> 00:00:00 | L51: ='front utente'!I66 -> 0 | M51: ='front utente'!E66/'front utente'!G66 ->  | N51: 0 | O51: 0 | P51: 00:00:00 | Q51: 0 | R51: 0 | S51: 0 | T51: 0
I52: 41 | J52: ='front utente'!C67 -> 00:00:00 | K52: ='front utente'!D67 -> 00:00:00 | L52: ='front utente'!I67 -> 0 | M52: ='front utente'!E67/'front utente'!G67 ->  | N52: 0 | O52: 0 | P52: 00:00:00 | Q52: 0 | R52: 0 | S52: 0 | T52: 0
I53: 42 | J53: ='front utente'!C68 -> 00:00:00 | K53: ='front utente'!D68 -> 00:00:00 | L53: ='front utente'!I68 -> 0 | M53: ='front utente'!E68/'front utente'!G68 ->  | N53: 0 | O53: 0 | P53: 00:00:00 | Q53: 0 | R53: 0 | S53: 0 | T53: 0
I54: 43 | J54: ='front utente'!C69 -> 00:00:00 | K54: ='front utente'!D69 -> 00:00:00 | L54: ='front utente'!I69 -> 0 | M54: ='front utente'!E69/'front utente'!G69 ->  | N54: 0 | O54: 0 | P54: 00:00:00 | Q54: 0 | R54: 0 | S54: 0 | T54: 0
I55: 44 | J55: ='front utente'!C70 -> 00:00:00 | K55: ='front utente'!D70 -> 00:00:00 | L55: ='front utente'!I70 -> 0 | M55: ='front utente'!E70/'front utente'!G70 ->  | N55: 0 | O55: 0 | P55: 00:00:00 | Q55: 0 | R55: 0 | S55: 0 | T55: 0
I56: 45 | J56: ='front utente'!C71 -> 00:00:00 | K56: ='front utente'!D71 -> 00:00:00 | L56: ='front utente'!I71 -> 0 | M56: ='front utente'!E71/'front utente'!G71 ->  | N56: 0 | O56: 0 | P56: 00:00:00 | Q56: 0 | R56: 0 | S56: 0 | T56: 0
I57: 46 | J57: ='front utente'!C72 -> 00:00:00 | K57: ='front utente'!D72 -> 00:00:00 | L57: ='front utente'!I72 -> 0 | M57: ='front utente'!E72/'front utente'!G72 ->  | N57: 0 | O57: 0 | P57: 00:00:00 | Q57: 0 | R57: 0 | S57: 0 | T57: 0
I58: 47 | J58: ='front utente'!C73 -> 00:00:00 | K58: ='front utente'!D73 -> 00:00:00 | L58: ='front utente'!I73 -> 0 | M58: ='front utente'!E73/'front utente'!G73 ->  | N58: 0 | O58: 0 | P58: 00:00:00 | Q58: 0 | R58: 0 | S58: 0 | T58: 0
I59: 48 | J59: ='front utente'!C74 -> 00:00:00 | K59: ='front utente'!D74 -> 00:00:00 | L59: ='front utente'!I74 -> 0 | M59: ='front utente'!E74/'front utente'!G74 ->  | N59: 0 | O59: 0 | P59: 00:00:00 | Q59: 0 | R59: 0 | S59: 0 | T59: 0
I60: 49 | J60: ='front utente'!C75 -> 00:00:00 | K60: ='front utente'!D75 -> 00:00:00 | L60: ='front utente'!I75 -> 0 | M60: ='front utente'!E75/'front utente'!G75 ->  | N60: 0 | O60: 0 | P60: 00:00:00 | Q60: 0 | R60: 0 | S60: 0 | T60: 0
I61: 50 | J61: ='front utente'!C76 -> 00:00:00 | K61: ='front utente'!D76 -> 00:00:00 | L61: ='front utente'!I76 -> 0 | M61: ='front utente'!E76/'front utente'!G76 ->  | N61: 0 | O61: 0 | P61: 00:00:00 | Q61: 0 | R61: 0 | S61: 0 | T61: 0
I62: 51 | J62: ='front utente'!C77 -> 00:00:00 | K62: ='front utente'!D77 -> 00:00:00 | L62: ='front utente'!I77 -> 0 | M62: ='front utente'!E77/'front utente'!G77 ->  | N62: 0 | O62: 0 | P62: 00:00:00 | Q62: 0 | R62: 0 | S62: 0 | T62: 0
I63: 52 | J63: ='front utente'!C78 -> 00:00:00 | K63: ='front utente'!D78 -> 00:00:00 | L63: ='front utente'!I78 -> 0 | M63: ='front utente'!E78/'front utente'!G78 ->  | N63: 0 | O63: 0 | P63: 00:00:00 | Q63: 0 | R63: 0 | S63: 0 | T63: 0
I64: 53 | J64: ='front utente'!C79 -> 00:00:00 | K64: ='front utente'!D79 -> 00:00:00 | L64: ='front utente'!I79 -> 0 | M64: ='front utente'!E79/'front utente'!G79 ->  | N64: 0 | O64: 0 | P64: 00:00:00 | Q64: 0 | R64: 0 | S64: 0 | T64: 0
I65: 54 | J65: ='front utente'!C80 -> 00:00:00 | K65: ='front utente'!D80 -> 00:00:00 | L65: ='front utente'!I80 -> 0 | M65: ='front utente'!E80/'front utente'!G80 ->  | N65: 0 | O65: 0 | P65: 00:00:00 | Q65: 0 | R65: 0 | S65: 0 | T65: 0
I66: 55 | J66: ='front utente'!C81 -> 00:00:00 | K66: ='front utente'!D81 -> 00:00:00 | L66: ='front utente'!I81 -> 0 | M66: ='front utente'!E81/'front utente'!G81 ->  | N66: 0 | O66: 0 | P66: 00:00:00 | Q66: 0 | R66: 0 | S66: 0 | T66: 0
I67: 56 | J67: ='front utente'!C82 -> 00:00:00 | K67: ='front utente'!D82 -> 00:00:00 | L67: ='front utente'!I82 -> 0 | M67: ='front utente'!E82/'front utente'!G82 ->  | N67: 0 | O67: 0 | P67: 00:00:00 | Q67: 0 | R67: 0 | S67: 0 | T67: 0
I68: 57 | J68: ='front utente'!C83 -> 00:00:00 | K68: ='front utente'!D83 -> 00:00:00 | L68: ='front utente'!I83 -> 0 | M68: ='front utente'!E83/'front utente'!G83 ->  | N68: 0 | O68: 0 | P68: 00:00:00 | Q68: 0 | R68: 0 | S68: 0 | T68: 0
I69: 58 | J69: ='front utente'!C84 -> 00:00:00 | K69: ='front utente'!D84 -> 00:00:00 | L69: ='front utente'!I84 -> 0 | M69: ='front utente'!E84/'front utente'!G84 ->  | N69: 0 | O69: 0 | P69: 00:00:00 | Q69: 0 | R69: 0 | S69: 0 | T69: 0
I70: 59 | J70: ='front utente'!C85 -> 00:00:00 | K70: ='front utente'!D85 -> 00:00:00 | L70: ='front utente'!I85 -> 0 | M70: ='front utente'!E85/'front utente'!G85 ->  | N70: 0 | O70: 0 | P70: 00:00:00 | Q70: 0 | R70: 0 | S70: 0 | T70: 0
I71: 60 | J71: ='front utente'!C86 -> 00:00:00 | K71: ='front utente'!D86 -> 00:00:00 | L71: ='front utente'!I86 -> 0 | M71: ='front utente'!E86/'front utente'!G86 ->  | N71: 0 | O71: 0 | P71: 00:00:00 | Q71: 0 | R71: 0 | S71: 0 | T71: 0
I72: 61 | J72: ='front utente'!C87 -> 00:00:00 | K72: ='front utente'!D87 -> 00:00:00 | L72: ='front utente'!I87 -> 0 | M72: ='front utente'!E87/'front utente'!G87 ->  | N72: 0 | O72: 0 | P72: 00:00:00 | Q72: 0 | R72: 0 | S72: 0 | T72: 0
I73: 62 | J73: ='front utente'!C88 -> 00:00:00 | K73: ='front utente'!D88 -> 00:00:00 | L73: ='front utente'!I88 -> 0 | M73: ='front utente'!E88/'front utente'!G88 ->  | N73: 0 | O73: 0 | P73: 00:00:00 | Q73: 0 | R73: 0 | S73: 0 | T73: 0
I74: 63 | J74: ='front utente'!C89 -> 00:00:00 | K74: ='front utente'!D89 -> 00:00:00 | L74: ='front utente'!I89 -> 0 | M74: ='front utente'!E89/'front utente'!G89 ->  | N74: 0 | O74: 0 | P74: 00:00:00 | Q74: 0 | R74: 0 | S74: 0 | T74: 0
I75: 64 | J75: ='front utente'!C90 -> 00:00:00 | K75: ='front utente'!D90 -> 00:00:00 | L75: ='front utente'!I90 -> 0 | M75: ='front utente'!E90/'front utente'!G90 ->  | N75: 0 | O75: 0 | P75: 00:00:00 | Q75: 0 | R75: 0 | S75: 0 | T75: 0
I76: 65 | J76: ='front utente'!C91 -> 00:00:00 | K76: ='front utente'!D91 -> 00:00:00 | L76: ='front utente'!I91 -> 0 | M76: ='front utente'!E91/'front utente'!G91 ->  | N76: 0 | O76: 0 | P76: 00:00:00 | Q76: 0 | R76: 0 | S76: =IF(L76>0,VLOOKUP(J76,$B$12:$E$42,4,1),0) -> 0 | T76: =IF(L76>0,VLOOKUP(K76,$B$12:$E$42,3,1),0) -> 0
I77: =I76+1 -> 66 | J77: ='front utente'!C92 -> 00:00:00 | K77: ='front utente'!D92 -> 00:00:00 | L77: ='front utente'!I92 -> 0 | M77: ='front utente'!E92/'front utente'!G92 ->  | N77: 0 | O77: =IF(L77>0,VLOOKUP(K77,$B$12:$F$42,5,1),0) -> 0 | P77: 00:00:00 | Q77: 0 | R77: 0 | S77: 0 | T77: 0 | U77: =365/L77 -> 
I78: 67 | J78: ='front utente'!C93 -> 00:00:00 | K78: ='front utente'!D93 -> 00:00:00 | L78: ='front utente'!I93 -> 0 | M78: ='front utente'!E93/'front utente'!G93 ->  | N78: 0 | O78: 0 | P78: 00:00:00 | Q78: 0 | R78: 0 | S78: 0 | T78: 0
I79: 68 | J79: ='front utente'!C94 -> 00:00:00 | K79: ='front utente'!D94 -> 00:00:00 | L79: ='front utente'!I94 -> 0 | M79: ='front utente'!E94/'front utente'!G94 ->  | N79: 0 | O79: 0 | P79: 00:00:00 | Q79: 0 | R79: 0 | S79: 0 | T79: 0
I80: 69 | J80: ='front utente'!C95 -> 00:00:00 | K80: ='front utente'!D95 -> 00:00:00 | L80: ='front utente'!I95 -> 0 | M80: ='front utente'!E95/'front utente'!G95 ->  | N80: 0 | O80: 0 | P80: 00:00:00 | Q80: 0 | R80: =IF(P80>J80,1,0) -> 0 | S80: 0 | T80: 0
I81: 70 | J81: ='front utente'!C96 -> 00:00:00 | K81: ='front utente'!D96 -> 00:00:00 | L81: ='front utente'!I96 -> 0 | M81: ='front utente'!E96/'front utente'!G96 ->  | N81: 0 | O81: 0 | P81: =IF(O81>0,VLOOKUP(K81,$L$1:$L$7,1,1),0) -> 00:00:00 | Q81: =IF(P81>0,(O81/365)*(K81-P81),0) -> 0 | R81: 0 | S81: 0 | T81: 0
I82: 71 | J82: ='front utente'!C97 -> 00:00:00 | K82: ='front utente'!D97 -> 00:00:00 | L82: ='front utente'!I97 -> 0 | M82: ='front utente'!E97/'front utente'!G97 ->  | N82: 0 | O82: 0 | P82: 00:00:00 | Q82: 0 | R82: 0 | S82: 0 | T82: 0
I83: 72 | J83: ='front utente'!C98 -> 00:00:00 | K83: ='front utente'!D98 -> 00:00:00 | L83: ='front utente'!I98 -> 0 | M83: ='front utente'!E98/'front utente'!G98 ->  | N83: 0 | O83: 0 | P83: 00:00:00 | Q83: 0 | R83: 0 | S83: 0 | T83: 0
I84: 73 | J84: ='front utente'!C99 -> 00:00:00 | K84: ='front utente'!D99 -> 00:00:00 | L84: ='front utente'!I99 -> 0 | M84: ='front utente'!E99/'front utente'!G99 ->  | N84: 0 | O84: 0 | P84: 00:00:00 | Q84: 0 | R84: 0 | S84: 0 | T84: 0
I85: 74 | J85: ='front utente'!C100 -> 00:00:00 | K85: ='front utente'!D100 -> 00:00:00 | L85: ='front utente'!I100 -> 0 | M85: ='front utente'!E100/'front utente'!G100 ->  | N85: 0 | O85: 0 | P85: 00:00:00 | Q85: 0 | R85: 0 | S85: 0 | T85: 0
I86: 75 | J86: ='front utente'!C101 -> 00:00:00 | K86: ='front utente'!D101 -> 00:00:00 | L86: ='front utente'!I101 -> 0 | M86: ='front utente'!E101/'front utente'!G101 ->  | N86: 0 | O86: 0 | P86: 00:00:00 | Q86: 0 | R86: 0 | S86: 0 | T86: 0
I87: 76 | J87: ='front utente'!C102 -> 00:00:00 | K87: ='front utente'!D102 -> 00:00:00 | L87: ='front utente'!I102 -> 0 | M87: ='front utente'!E102/'front utente'!G102 ->  | N87: 0 | O87: 0 | P87: 00:00:00 | Q87: 0 | R87: 0 | S87: 0 | T87: 0
I88: 77 | J88: ='front utente'!C103 -> 00:00:00 | K88: ='front utente'!D103 -> 00:00:00 | L88: ='front utente'!I103 -> 0 | M88: ='front utente'!E103/'front utente'!G103 ->  | N88: 0 | O88: 0 | P88: 00:00:00 | Q88: 0 | R88: 0 | S88: 0 | T88: 0
I89: 78 | J89: ='front utente'!C104 -> 00:00:00 | K89: ='front utente'!D104 -> 00:00:00 | L89: ='front utente'!I104 -> 0 | M89: ='front utente'!E104/'front utente'!G104 ->  | N89: 0 | O89: 0 | P89: 00:00:00 | Q89: 0 | R89: 0 | S89: 0 | T89: 0
I90: 79 | J90: ='front utente'!C105 -> 00:00:00 | K90: ='front utente'!D105 -> 00:00:00 | L90: ='front utente'!I105 -> 0 | M90: ='front utente'!E105/'front utente'!G105 ->  | N90: 0 | O90: 0 | P90: 00:00:00 | Q90: 0 | R90: 0 | S90: 0 | T90: 0
I91: 80 | J91: ='front utente'!C106 -> 00:00:00 | K91: ='front utente'!D106 -> 00:00:00 | L91: ='front utente'!I106 -> 0 | M91: ='front utente'!E106/'front utente'!G106 ->  | N91: 0 | O91: 0 | P91: 00:00:00 | Q91: 0 | R91: 0 | S91: 0 | T91: 0
I92: 81 | J92: ='front utente'!C107 -> 00:00:00 | K92: ='front utente'!D107 -> 00:00:00 | L92: ='front utente'!I107 -> 0 | M92: ='front utente'!E107/'front utente'!G107 ->  | N92: 0 | O92: 0 | P92: 00:00:00 | Q92: 0 | R92: 0 | S92: 0 | T92: 0
I93: 82 | J93: ='front utente'!C108 -> 00:00:00 | K93: ='front utente'!D108 -> 00:00:00 | L93: ='front utente'!I108 -> 0 | M93: ='front utente'!E108/'front utente'!G108 ->  | N93: 0 | O93: 0 | P93: 00:00:00 | Q93: 0 | R93: 0 | S93: 0 | T93: 0
I94: 83 | J94: ='front utente'!C109 -> 00:00:00 | K94: ='front utente'!D109 -> 00:00:00 | L94: ='front utente'!I109 -> 0 | M94: ='front utente'!E109/'front utente'!G109 ->  | N94: =IF(L94=0,0,VLOOKUP(J94,$B$12:$E$42,3,1)+Q94*R94*U94) -> 0 | O94: 0 | P94: 00:00:00 | Q94: 0 | R94: 0 | S94: 0 | T94: 0
I95: 84 | J95: ='front utente'!C110 -> 00:00:00 | K95: ='front utente'!D110 -> 00:00:00 | L95: ='front utente'!I110 -> 0 | M95: ='front utente'!E110/'front utente'!G110 ->  | N95: 0 | O95: 0 | P95: 00:00:00 | Q95: 0 | R95: 0 | S95: 0 | T95: 0
I96: 85 | J96: ='front utente'!C111 -> 00:00:00 | K96: ='front utente'!D111 -> 00:00:00 | L96: ='front utente'!I111 -> 0 | M96: ='front utente'!E111/'front utente'!G111 ->  | N96: 0 | O96: 0 | P96: 00:00:00 | Q96: 0 | R96: 0 | S96: 0 | T96: 0
I97: 86 | J97: ='front utente'!C112 -> 00:00:00 | K97: ='front utente'!D112 -> 00:00:00 | L97: ='front utente'!I112 -> 0 | M97: ='front utente'!E112/'front utente'!G112 ->  | N97: 0 | O97: 0 | P97: 00:00:00 | Q97: 0 | R97: 0 | S97: 0 | T97: 0
I98: 87 | J98: ='front utente'!C113 -> 00:00:00 | K98: ='front utente'!D113 -> 00:00:00 | L98: ='front utente'!I113 -> 0 | M98: ='front utente'!E113/'front utente'!G113 ->  | N98: 0 | O98: 0 | P98: 00:00:00 | Q98: 0 | R98: 0 | S98: 0 | T98: 0
I99: 88 | J99: ='front utente'!C114 -> 00:00:00 | K99: ='front utente'!D114 -> 00:00:00 | L99: ='front utente'!I114 -> 0 | M99: ='front utente'!E114/'front utente'!G114 ->  | N99: 0 | O99: 0 | P99: 00:00:00 | Q99: 0 | R99: 0 | S99: 0 | T99: 0
I100: 89 | J100: ='front utente'!C115 -> 00:00:00 | K100: ='front utente'!D115 -> 00:00:00 | L100: ='front utente'!I115 -> 0 | M100: ='front utente'!E115/'front utente'!G115 ->  | N100: 0 | O100: 0 | P100: 00:00:00 | Q100: 0 | R100: 0 | S100: 0 | T100: 0
I101: 90 | J101: ='front utente'!C116 -> 00:00:00 | K101: ='front utente'!D116 -> 00:00:00 | L101: ='front utente'!I116 -> 0 | M101: ='front utente'!E116/'front utente'!G116 ->  | N101: 0 | O101: 0 | P101: 00:00:00 | Q101: 0 | R101: 0 | S101: 0 | T101: 0
I102: 91 | J102: ='front utente'!C117 -> 00:00:00 | K102: ='front utente'!D117 -> 00:00:00 | L102: ='front utente'!I117 -> 0 | M102: ='front utente'!E117/'front utente'!G117 ->  | N102: 0 | O102: 0 | P102: 00:00:00 | Q102: 0 | R102: 0 | S102: 0 | T102: 0
I103: 92 | J103: ='front utente'!C118 -> 00:00:00 | K103: ='front utente'!D118 -> 00:00:00 | L103: ='front utente'!I118 -> 0 | M103: ='front utente'!E118/'front utente'!G118 ->  | N103: 0 | O103: 0 | P103: 00:00:00 | Q103: 0 | R103: 0 | S103: 0 | T103: 0
I104: 93 | J104: ='front utente'!C119 -> 00:00:00 | K104: ='front utente'!D119 -> 00:00:00 | L104: ='front utente'!I119 -> 0 | M104: ='front utente'!E119/'front utente'!G119 ->  | N104: 0 | O104: 0 | P104: 00:00:00 | Q104: 0 | R104: 0 | S104: 0 | T104: 0
I105: 94 | J105: ='front utente'!C120 -> 00:00:00 | K105: ='front utente'!D120 -> 00:00:00 | L105: ='front utente'!I120 -> 0 | M105: ='front utente'!E120/'front utente'!G120 ->  | N105: 0 | O105: 0 | P105: 00:00:00 | Q105: 0 | R105: 0 | S105: 0 | T105: 0
I106: 95 | J106: ='front utente'!C121 -> 00:00:00 | K106: ='front utente'!D121 -> 00:00:00 | L106: ='front utente'!I121 -> 0 | M106: ='front utente'!E121/'front utente'!G121 ->  | N106: 0 | O106: 0 | P106: 00:00:00 | Q106: 0 | R106: 0 | S106: 0 | T106: 0
I107: 96 | J107: ='front utente'!C122 -> 00:00:00 | K107: ='front utente'!D122 -> 00:00:00 | L107: ='front utente'!I122 -> 0 | M107: ='front utente'!E122/'front utente'!G122 ->  | N107: 0 | O107: 0 | P107: 00:00:00 | Q107: 0 | R107: 0 | S107: 0 | T107: 0
I108: 97 | J108: ='front utente'!C123 -> 00:00:00 | K108: ='front utente'!D123 -> 00:00:00 | L108: ='front utente'!I123 -> 0 | M108: ='front utente'!E123/'front utente'!G123 ->  | N108: 0 | O108: 0 | P108: 00:00:00 | Q108: 0 | R108: 0 | S108: =IF(L108>0,VLOOKUP(J108,$B$12:$E$42,4,1),0) -> 0 | T108: =IF(L108>0,VLOOKUP(K108,$B$12:$E$42,3,1),0) -> 0
I109: =I108+1 -> 98 | J109: ='front utente'!C124 -> 00:00:00 | K109: ='front utente'!D124 -> 00:00:00 | L109: ='front utente'!I124 -> 0 | M109: ='front utente'!E124/'front utente'!G124 ->  | N109: 0 | O109: 0 | P109: 00:00:00 | Q109: 0 | R109: 0 | S109: =IF(L109>0,VLOOKUP(J109,$B$12:$E$42,4,1),0) -> 0 | T109: =IF(L109>0,VLOOKUP(K109,$B$12:$E$42,3,1),0) -> 0
I110: =I109+1 -> 99 | J110: ='front utente'!C125 -> 00:00:00 | K110: ='front utente'!D125 -> 00:00:00 | L110: ='front utente'!I125 -> 0 | M110: ='front utente'!E125/'front utente'!G125 ->  | N110: 0 | O110: 0 | P110: 00:00:00 | Q110: 0 | R110: 0 | S110: =IF(L110>0,VLOOKUP(J110,$B$12:$E$42,4,1),0) -> 0 | T110: =IF(L110>0,VLOOKUP(K110,$B$12:$E$42,3,1),0) -> 0
I111: =I110+1 -> 100 | J111: ='front utente'!C126 -> 00:00:00 | K111: ='front utente'!D126 -> 00:00:00 | L111: ='front utente'!I126 -> 0 | M111: ='front utente'!E126/'front utente'!G126 ->  | N111: 0 | S111: =IF(L111>0,VLOOKUP(J111,$B$12:$E$42,4,1),0) -> 0 | T111: =IF(L111>0,VLOOKUP(K111,$B$12:$E$42,3,1),0) -> 0
I112: =I111+1 -> 101 | J112: ='front utente'!C127 -> 00:00:00 | K112: ='front utente'!D127 -> 00:00:00 | L112: ='front utente'!I127 -> 0 | M112: ='front utente'!E127/'front utente'!G127 ->  | N112: 0 | S112: =IF(L112>0,VLOOKUP(J112,$B$12:$E$42,4,1),0) -> 0 | T112: =IF(L112>0,VLOOKUP(K112,$B$12:$E$42,3,1),0) -> 0
I113: 102 | J113: ='front utente'!C128 -> 00:00:00 | K113: ='front utente'!D128 -> 00:00:00 | L113: ='front utente'!I128 -> 0 | M113: ='front utente'!E128/'front utente'!G128 ->  | N113: 0 | S113: 0 | T113: 0
I114: 103 | J114: ='front utente'!C129 -> 00:00:00 | K114: ='front utente'!D129 -> 00:00:00 | L114: ='front utente'!I129 -> 0 | M114: ='front utente'!E129/'front utente'!G129 ->  | N114: 0 | S114: 0 | T114: 0
I115: 104 | J115: ='front utente'!C130 -> 00:00:00 | K115: ='front utente'!D130 -> 00:00:00 | L115: ='front utente'!I130 -> 0 | M115: ='front utente'!E130/'front utente'!G130 ->  | N115: 0 | S115: 0 | T115: 0
I116: 105 | J116: ='front utente'!C131 -> 00:00:00 | K116: ='front utente'!D131 -> 00:00:00 | L116: ='front utente'!I131 -> 0 | M116: ='front utente'!E131/'front utente'!G131 ->  | N116: 0 | S116: 0 | T116: 0
I117: 106 | J117: ='front utente'!C132 -> 00:00:00 | K117: ='front utente'!D132 -> 00:00:00 | L117: ='front utente'!I132 -> 0 | M117: ='front utente'!E132/'front utente'!G132 ->  | N117: 0 | S117: 0 | T117: 0
I118: 107 | J118: ='front utente'!C133 -> 00:00:00 | K118: ='front utente'!D133 -> 00:00:00 | L118: ='front utente'!I133 -> 0 | M118: ='front utente'!E133/'front utente'!G133 ->  | N118: 0 | S118: 0 | T118: 0
I119: 108 | J119: ='front utente'!C134 -> 00:00:00 | K119: ='front utente'!D134 -> 00:00:00 | L119: ='front utente'!I134 -> 0 | M119: ='front utente'!E134/'front utente'!G134 ->  | N119: 0 | S119: 0 | T119: 0
I120: 109 | J120: ='front utente'!C135 -> 00:00:00 | K120: ='front utente'!D135 -> 00:00:00 | L120: ='front utente'!I135 -> 0 | M120: ='front utente'!E135/'front utente'!G135 ->  | N120: 0 | S120: 0 | T120: 0
I121: 110 | J121: ='front utente'!C136 -> 00:00:00 | K121: ='front utente'!D136 -> 00:00:00 | L121: ='front utente'!I136 -> 0 | M121: ='front utente'!E136/'front utente'!G136 ->  | N121: 0 | S121: 0 | T121: 0
I122: 111 | J122: ='front utente'!C137 -> 00:00:00 | K122: ='front utente'!D137 -> 00:00:00 | L122: ='front utente'!I137 -> 0 | M122: ='front utente'!E137/'front utente'!G137 ->  | N122: 0 | S122: 0 | T122: 0
I123: 112 | J123: ='front utente'!C138 -> 00:00:00 | K123: ='front utente'!D138 -> 00:00:00 | L123: ='front utente'!I138 -> 0 | M123: ='front utente'!E138/'front utente'!G138 ->  | N123: 0 | S123: 0 | T123: 0
I124: 113 | J124: ='front utente'!C139 -> 00:00:00 | K124: ='front utente'!D139 -> 00:00:00 | L124: ='front utente'!I139 -> 0 | M124: ='front utente'!E139/'front utente'!G139 ->  | N124: 0 | S124: 0 | T124: 0
I125: 114 | J125: ='front utente'!C140 -> 00:00:00 | K125: ='front utente'!D140 -> 00:00:00 | L125: ='front utente'!I140 -> 0 | M125: ='front utente'!E140/'front utente'!G140 ->  | N125: 0 | S125: 0 | T125: 0
I126: 115 | J126: ='front utente'!C141 -> 00:00:00 | K126: ='front utente'!D141 -> 00:00:00 | L126: ='front utente'!I141 -> 0 | M126: ='front utente'!E141/'front utente'!G141 ->  | N126: 0 | S126: 0 | T126: 0
I127: 116 | J127: ='front utente'!C142 -> 00:00:00 | K127: ='front utente'!D142 -> 00:00:00 | L127: ='front utente'!I142 -> 0 | M127: ='front utente'!E142/'front utente'!G142 ->  | N127: 0 | S127: 0 | T127: 0
I128: 117 | J128: ='front utente'!C143 -> 00:00:00 | K128: ='front utente'!D143 -> 00:00:00 | L128: ='front utente'!I143 -> 0 | M128: ='front utente'!E143/'front utente'!G143 ->  | N128: 0 | S128: 0 | T128: 0
I129: 118 | J129: ='front utente'!C144 -> 00:00:00 | K129: ='front utente'!D144 -> 00:00:00 | L129: ='front utente'!I144 -> 0 | M129: ='front utente'!E144/'front utente'!G144 ->  | N129: 0 | S129: 0 | T129: 0
I130: 119 | J130: ='front utente'!C145 -> 00:00:00 | K130: ='front utente'!D145 -> 00:00:00 | L130: ='front utente'!I145 -> 0 | M130: ='front utente'!E145/'front utente'!G145 ->  | N130: 0 | S130: 0 | T130: 0
I131: 120 | J131: ='front utente'!C146 -> 00:00:00 | K131: ='front utente'!D146 -> 00:00:00 | L131: ='front utente'!I146 -> 0 | M131: ='front utente'!E146/'front utente'!G146 ->  | N131: 0 | S131: 0 | T131: 0
I132: 121 | J132: ='front utente'!C147 -> 00:00:00 | K132: ='front utente'!D147 -> 00:00:00 | L132: ='front utente'!I147 -> 0 | M132: ='front utente'!E147/'front utente'!G147 ->  | N132: 0 | S132: 0 | T132: 0
I133: 122 | J133: ='front utente'!C148 -> 00:00:00 | K133: ='front utente'!D148 -> 00:00:00 | L133: ='front utente'!I148 -> 0 | M133: ='front utente'!E148/'front utente'!G148 ->  | N133: 0 | S133: 0 | T133: 0
I134: 123 | J134: ='front utente'!C149 -> 00:00:00 | K134: ='front utente'!D149 -> 00:00:00 | L134: ='front utente'!I149 -> 0 | M134: ='front utente'!E149/'front utente'!G149 ->  | N134: 0 | S134: 0 | T134: 0
I135: 124 | J135: ='front utente'!C150 -> 00:00:00 | K135: ='front utente'!D150 -> 00:00:00 | L135: ='front utente'!I150 -> 0 | M135: ='front utente'!E150/'front utente'!G150 ->  | N135: 0 | S135: 0 | T135: 0
I136: 125 | J136: ='front utente'!C151 -> 00:00:00 | K136: ='front utente'!D151 -> 00:00:00 | L136: ='front utente'!I151 -> 0 | M136: ='front utente'!E151/'front utente'!G151 ->  | N136: 0 | S136: 0 | T136: 0
I137: 126 | J137: ='front utente'!C152 -> 00:00:00 | K137: ='front utente'!D152 -> 00:00:00 | L137: ='front utente'!I152 -> 0 | M137: ='front utente'!E152/'front utente'!G152 ->  | N137: 0 | S137: 0 | T137: 0
I138: 127 | J138: ='front utente'!C153 -> 00:00:00 | K138: ='front utente'!D153 -> 00:00:00 | L138: ='front utente'!I153 -> 0 | M138: ='front utente'!E153/'front utente'!G153 ->  | N138: 0 | S138: 0 | T138: 0
I139: 128 | J139: ='front utente'!C154 -> 00:00:00 | K139: ='front utente'!D154 -> 00:00:00 | L139: ='front utente'!I154 -> 0 | M139: ='front utente'!E154/'front utente'!G154 ->  | N139: 0 | S139: 0 | T139: 0
I140: 129 | J140: ='front utente'!C155 -> 00:00:00 | K140: ='front utente'!D155 -> 00:00:00 | L140: ='front utente'!I155 -> 0 | M140: ='front utente'!E155/'front utente'!G155 ->  | N140: 0 | S140: 0 | T140: 0
I141: 130 | J141: ='front utente'!C156 -> 00:00:00 | K141: ='front utente'!D156 -> 00:00:00 | L141: ='front utente'!I156 -> 0 | M141: ='front utente'!E156/'front utente'!G156 ->  | N141: 0 | S141: 0 | T141: 0 | U141: =365/L141 -> 
I142: 131 | J142: ='front utente'!C157 -> 00:00:00 | K142: ='front utente'!D157 -> 00:00:00 | L142: ='front utente'!I157 -> 0 | M142: ='front utente'!E157/'front utente'!G157 ->  | N142: 0 | S142: 0 | T142: 0
I143: 132 | J143: ='front utente'!C158 -> 00:00:00 | K143: ='front utente'!D158 -> 00:00:00 | L143: ='front utente'!I158 -> 0 | M143: ='front utente'!E158/'front utente'!G158 ->  | N143: 0 | S143: 0 | T143: 0
I144: 133 | J144: ='front utente'!C159 -> 00:00:00 | K144: ='front utente'!D159 -> 00:00:00 | L144: ='front utente'!I159 -> 0 | M144: ='front utente'!E159/'front utente'!G159 ->  | N144: 0 | S144: 0 | T144: 0
I145: 134 | J145: ='front utente'!C160 -> 00:00:00 | K145: ='front utente'!D160 -> 00:00:00 | L145: ='front utente'!I160 -> 0 | M145: ='front utente'!E160/'front utente'!G160 ->  | N145: 0 | S145: 0 | T145: 0
I146: 135 | J146: ='front utente'!C161 -> 00:00:00 | K146: ='front utente'!D161 -> 00:00:00 | L146: ='front utente'!I161 -> 0 | M146: ='front utente'!E161/'front utente'!G161 ->  | N146: 0 | S146: 0 | T146: 0
I147: 136 | J147: ='front utente'!C162 -> 00:00:00 | K147: ='front utente'!D162 -> 00:00:00 | L147: ='front utente'!I162 -> 0 | M147: ='front utente'!E162/'front utente'!G162 ->  | N147: 0 | S147: 0 | T147: 0
I148: 137 | J148: ='front utente'!C163 -> 00:00:00 | K148: ='front utente'!D163 -> 00:00:00 | L148: ='front utente'!I163 -> 0 | M148: ='front utente'!E163/'front utente'!G163 ->  | N148: 0 | S148: 0 | T148: 0
I149: 138 | J149: ='front utente'!C164 -> 00:00:00 | K149: ='front utente'!D164 -> 00:00:00 | L149: ='front utente'!I164 -> 0 | M149: ='front utente'!E164/'front utente'!G164 ->  | N149: 0 | S149: 0 | T149: 0
I150: 139 | J150: ='front utente'!C165 -> 00:00:00 | K150: ='front utente'!D165 -> 00:00:00 | L150: ='front utente'!I165 -> 0 | M150: ='front utente'!E165/'front utente'!G165 ->  | N150: 0 | S150: 0 | T150: 0
I151: 140 | J151: ='front utente'!C166 -> 00:00:00 | K151: ='front utente'!D166 -> 00:00:00 | L151: ='front utente'!I166 -> 0 | M151: ='front utente'!E166/'front utente'!G166 ->  | N151: 0 | S151: 0 | T151: 0
I152: 141 | J152: ='front utente'!C167 -> 00:00:00 | K152: ='front utente'!D167 -> 00:00:00 | L152: ='front utente'!I167 -> 0 | M152: ='front utente'!E167/'front utente'!G167 ->  | N152: 0 | S152: 0 | T152: 0
I153: 142 | J153: ='front utente'!C168 -> 00:00:00 | K153: ='front utente'!D168 -> 00:00:00 | L153: ='front utente'!I168 -> 0 | M153: ='front utente'!E168/'front utente'!G168 ->  | N153: 0 | S153: 0 | T153: 0
I154: 143 | J154: ='front utente'!C169 -> 00:00:00 | K154: ='front utente'!D169 -> 00:00:00 | L154: ='front utente'!I169 -> 0 | M154: ='front utente'!E169/'front utente'!G169 ->  | N154: 0 | S154: 0 | T154: 0
I155: 144 | J155: ='front utente'!C170 -> 00:00:00 | K155: ='front utente'!D170 -> 00:00:00 | L155: ='front utente'!I170 -> 0 | M155: ='front utente'!E170/'front utente'!G170 ->  | N155: 0 | S155: 0 | T155: 0
I156: 145 | J156: ='front utente'!C171 -> 00:00:00 | K156: ='front utente'!D171 -> 00:00:00 | L156: ='front utente'!I171 -> 0 | M156: ='front utente'!E171/'front utente'!G171 ->  | N156: 0 | S156: 0 | T156: 0
I157: 146 | J157: ='front utente'!C172 -> 00:00:00 | K157: ='front utente'!D172 -> 00:00:00 | L157: ='front utente'!I172 -> 0 | M157: ='front utente'!E172/'front utente'!G172 ->  | N157: 0 | S157: 0 | T157: 0
I158: 147 | J158: ='front utente'!C173 -> 00:00:00 | K158: ='front utente'!D173 -> 00:00:00 | L158: ='front utente'!I173 -> 0 | M158: ='front utente'!E173/'front utente'!G173 ->  | N158: =IF(L158=0,0,VLOOKUP(J158,$B$12:$E$42,3,1)+Q158*R158*U158) -> 0 | S158: 0 | T158: 0
I159: 148 | J159: ='front utente'!C174 -> 00:00:00 | K159: ='front utente'!D174 -> 00:00:00 | L159: ='front utente'!I174 -> 0 | M159: ='front utente'!E174/'front utente'!G174 ->  | N159: 0 | S159: 0 | T159: 0
I160: 149 | J160: ='front utente'!C175 -> 00:00:00 | K160: ='front utente'!D175 -> 00:00:00 | L160: ='front utente'!I175 -> 0 | M160: ='front utente'!E175/'front utente'!G175 ->  | N160: 0 | S160: 0 | T160: 0
I161: 150 | J161: ='front utente'!C176 -> 00:00:00 | K161: ='front utente'!D176 -> 00:00:00 | L161: ='front utente'!I176 -> 0 | M161: ='front utente'!E176/'front utente'!G176 ->  | N161: 0 | S161: 0 | T161: 0
I162: 151 | J162: ='front utente'!C177 -> 00:00:00 | K162: ='front utente'!D177 -> 00:00:00 | L162: ='front utente'!I177 -> 0 | M162: ='front utente'!E177/'front utente'!G177 ->  | N162: 0 | S162: 0 | T162: 0
I163: 152 | J163: ='front utente'!C178 -> 00:00:00 | K163: ='front utente'!D178 -> 00:00:00 | L163: ='front utente'!I178 -> 0 | M163: ='front utente'!E178/'front utente'!G178 ->  | N163: 0 | S163: 0 | T163: 0
I164: 153 | J164: ='front utente'!C179 -> 00:00:00 | K164: ='front utente'!D179 -> 00:00:00 | L164: ='front utente'!I179 -> 0 | M164: ='front utente'!E179/'front utente'!G179 ->  | N164: 0 | S164: 0 | T164: 0
I165: 154 | J165: ='front utente'!C180 -> 00:00:00 | K165: ='front utente'!D180 -> 00:00:00 | L165: ='front utente'!I180 -> 0 | M165: ='front utente'!E180/'front utente'!G180 ->  | N165: 0 | S165: 0 | T165: 0
I166: 155 | J166: ='front utente'!C181 -> 00:00:00 | K166: ='front utente'!D181 -> 00:00:00 | L166: ='front utente'!I181 -> 0 | M166: ='front utente'!E181/'front utente'!G181 ->  | N166: 0 | S166: 0 | T166: 0
I167: 156 | J167: ='front utente'!C182 -> 00:00:00 | K167: ='front utente'!D182 -> 00:00:00 | L167: ='front utente'!I182 -> 0 | M167: ='front utente'!E182/'front utente'!G182 ->  | N167: 0 | S167: 0 | T167: 0
I168: 157 | J168: ='front utente'!C183 -> 00:00:00 | K168: ='front utente'!D183 -> 00:00:00 | L168: ='front utente'!I183 -> 0 | M168: ='front utente'!E183/'front utente'!G183 ->  | N168: 0 | S168: 0 | T168: 0
I169: 158 | J169: ='front utente'!C184 -> 00:00:00 | K169: ='front utente'!D184 -> 00:00:00 | L169: ='front utente'!I184 -> 0 | M169: ='front utente'!E184/'front utente'!G184 ->  | N169: 0 | S169: 0 | T169: 0
I170: 159 | J170: ='front utente'!C185 -> 00:00:00 | K170: ='front utente'!D185 -> 00:00:00 | L170: ='front utente'!I185 -> 0 | M170: ='front utente'!E185/'front utente'!G185 ->  | N170: 0 | S170: 0 | T170: 0
I171: 160 | J171: ='front utente'!C186 -> 00:00:00 | K171: ='front utente'!D186 -> 00:00:00 | L171: ='front utente'!I186 -> 0 | M171: ='front utente'!E186/'front utente'!G186 ->  | N171: 0 | S171: 0 | T171: 0
I172: 161 | J172: ='front utente'!C187 -> 00:00:00 | K172: ='front utente'!D187 -> 00:00:00 | L172: ='front utente'!I187 -> 0 | M172: ='front utente'!E187/'front utente'!G187 ->  | N172: 0 | S172: 0 | T172: 0
I173: 162 | J173: ='front utente'!C188 -> 00:00:00 | K173: ='front utente'!D188 -> 00:00:00 | L173: ='front utente'!I188 -> 0 | M173: ='front utente'!E188/'front utente'!G188 ->  | N173: 0 | S173: 0 | T173: 0
I174: 163 | J174: ='front utente'!C189 -> 00:00:00 | K174: ='front utente'!D189 -> 00:00:00 | L174: ='front utente'!I189 -> 0 | M174: ='front utente'!E189/'front utente'!G189 ->  | N174: 0 | S174: 0 | T174: 0
I175: 164 | J175: ='front utente'!C190 -> 00:00:00 | K175: ='front utente'!D190 -> 00:00:00 | L175: ='front utente'!I190 -> 0 | M175: ='front utente'!E190/'front utente'!G190 ->  | N175: 0 | S175: 0 | T175: 0
I176: =I175+1 -> 165 | J176: ='front utente'!C191 -> 00:00:00 | K176: ='front utente'!D191 -> 00:00:00 | L176: ='front utente'!I191 -> 0 | M176: ='front utente'!E191/'front utente'!G191 ->  | N176: 0 | S176: =IF(L176>0,VLOOKUP(J176,$B$12:$E$42,4,1),0) -> 0 | T176: =IF(L176>0,VLOOKUP(K176,$B$12:$E$42,3,1),0) -> 0
I177: 166 | J177: ='front utente'!C192 -> 00:00:00 | K177: ='front utente'!D192 -> 00:00:00 | L177: ='front utente'!I192 -> 0 | M177: ='front utente'!E192/'front utente'!G192 ->  | N177: 0 | S177: 0 | T177: 0
I178: 167 | J178: ='front utente'!C193 -> 00:00:00 | K178: ='front utente'!D193 -> 00:00:00 | L178: ='front utente'!I193 -> 0 | M178: ='front utente'!E193/'front utente'!G193 ->  | N178: 0 | S178: 0 | T178: 0
I179: 168 | J179: ='front utente'!C194 -> 00:00:00 | K179: ='front utente'!D194 -> 00:00:00 | L179: ='front utente'!I194 -> 0 | M179: ='front utente'!E194/'front utente'!G194 ->  | N179: 0 | S179: 0 | T179: 0
I180: 169 | J180: ='front utente'!C195 -> 00:00:00 | K180: ='front utente'!D195 -> 00:00:00 | L180: ='front utente'!I195 -> 0 | M180: ='front utente'!E195/'front utente'!G195 ->  | N180: 0 | S180: 0 | T180: 0
I181: 170 | J181: ='front utente'!C196 -> 00:00:00 | K181: ='front utente'!D196 -> 00:00:00 | L181: ='front utente'!I196 -> 0 | M181: ='front utente'!E196/'front utente'!G196 ->  | N181: 0 | S181: 0 | T181: 0
I182: 171 | J182: ='front utente'!C197 -> 00:00:00 | K182: ='front utente'!D197 -> 00:00:00 | L182: ='front utente'!I197 -> 0 | M182: ='front utente'!E197/'front utente'!G197 ->  | N182: 0 | S182: 0 | T182: 0
I183: 172 | J183: ='front utente'!C198 -> 00:00:00 | K183: ='front utente'!D198 -> 00:00:00 | L183: ='front utente'!I198 -> 0 | M183: ='front utente'!E198/'front utente'!G198 ->  | N183: 0 | S183: 0 | T183: 0
I184: 173 | J184: ='front utente'!C199 -> 00:00:00 | K184: ='front utente'!D199 -> 00:00:00 | L184: ='front utente'!I199 -> 0 | M184: ='front utente'!E199/'front utente'!G199 ->  | N184: 0 | S184: 0 | T184: 0
I185: 174 | J185: ='front utente'!C200 -> 00:00:00 | K185: ='front utente'!D200 -> 00:00:00 | L185: ='front utente'!I200 -> 0 | M185: ='front utente'!E200/'front utente'!G200 ->  | N185: 0 | S185: 0 | T185: 0
I186: 175 | J186: ='front utente'!C201 -> 00:00:00 | K186: ='front utente'!D201 -> 00:00:00 | L186: ='front utente'!I201 -> 0 | M186: ='front utente'!E201/'front utente'!G201 ->  | N186: 0 | S186: 0 | T186: 0
I187: 176 | J187: ='front utente'!C202 -> 00:00:00 | K187: ='front utente'!D202 -> 00:00:00 | L187: ='front utente'!I202 -> 0 | M187: ='front utente'!E202/'front utente'!G202 ->  | N187: 0 | S187: 0 | T187: 0
I188: 177 | J188: ='front utente'!C203 -> 00:00:00 | K188: ='front utente'!D203 -> 00:00:00 | L188: ='front utente'!I203 -> 0 | M188: ='front utente'!E203/'front utente'!G203 ->  | N188: 0 | S188: 0 | T188: 0
I189: 178 | J189: ='front utente'!C204 -> 00:00:00 | K189: ='front utente'!D204 -> 00:00:00 | L189: ='front utente'!I204 -> 0 | M189: ='front utente'!E204/'front utente'!G204 ->  | N189: 0 | S189: 0 | T189: 0
I190: 179 | J190: ='front utente'!C205 -> 00:00:00 | K190: ='front utente'!D205 -> 00:00:00 | L190: ='front utente'!I205 -> 0 | M190: ='front utente'!E205/'front utente'!G205 ->  | N190: 0 | S190: 0 | T190: 0
I191: 180 | J191: ='front utente'!C206 -> 00:00:00 | K191: ='front utente'!D206 -> 00:00:00 | L191: ='front utente'!I206 -> 0 | M191: ='front utente'!E206/'front utente'!G206 ->  | N191: 0 | S191: 0 | T191: 0
I192: 181 | J192: ='front utente'!C207 -> 00:00:00 | K192: ='front utente'!D207 -> 00:00:00 | L192: ='front utente'!I207 -> 0 | M192: ='front utente'!E207/'front utente'!G207 ->  | N192: 0 | S192: 0 | T192: 0
I193: 182 | J193: ='front utente'!C208 -> 00:00:00 | K193: ='front utente'!D208 -> 00:00:00 | L193: ='front utente'!I208 -> 0 | M193: ='front utente'!E208/'front utente'!G208 ->  | N193: 0 | S193: 0 | T193: 0
I194: 183 | J194: ='front utente'!C209 -> 00:00:00 | K194: ='front utente'!D209 -> 00:00:00 | L194: ='front utente'!I209 -> 0 | M194: ='front utente'!E209/'front utente'!G209 ->  | N194: 0 | S194: 0 | T194: 0
D197: La tabella sottostante può essere stampata ed allegata al decreto. E' possibile anche fare il copia e incolla della tabella sottostante, per riportarla su un foglio Word
G200: Calcolo DIfferenze spettanti
D202: Nominativo: | E202: ='front utente'!E11 -> 0 | K202: cod. fisc: | L202: ='front utente'!L11 -> 0
D203: qualifica: | E203: ='front utente'!K13 -> Docente scuola Media e laureato 1 grado
D205: PERIODI DI LAVORO SVOLTI OGGETTO DEL RICORSO:
D207: DAL | E207: AL | G207: N. GIORNI (A) | H207: ORE (B) | I207: SU | J207: ORE (C) | K207: STIPENDIO TABELLARE ANNUO LORDO PREVISTO A SEGUITO RICONOSCIMENTO (D) | L207: STIPENDIO TABELLARE ANNUO LORDO SUPPLENTE (E) | M207: Calcolo differenza spettante nel singolo periodo = (D-E)/365 x A x (B/C)
C208: 1 | D208: =IF(L12>0,J12:J12,"") ->  | E208: =IF(L12>0,K12:K12,"") ->  | G208: =IF(L12>0,L12:L12,"") ->  | H208: =IF(AND( L12>0,'front utente'!E27>0),'front utente'!E27,"") ->  | I208: =IF(J208<>"",H208/J208,1) -> 1 | J208: =IF(AND( N12>0,'front utente'!G27>0),'front utente'!G27,"") ->  | K208: =IF(L12>0,N12,"") ->  | L208: =IF( L12>0,IF( YEAR(D208)<1997,K208,IF( L12>0,S12,"")),"") ->  | M208: =IF(G208<>"",(K208-L208)/365*G208*(I208),0) -> 0
... 175 more rows

Sheet principale
C2: 2014-01-01 | D2: 2012-12-31
D7: inserire periodi
B8: data all interno periodo precedente | D8: dal | E8: al | F8: giorni in comune | G8: tot gg | I8: ARROTONDAMENTO IN CASO DI 1 1 96 | J8: 3-8anni | L8: 9-14anni | N8: 15-20anni | P8: 21-27anni | R8: 28-34anni | T8: oltre35 | X8: VALIDITA ANCHE SE DAL 1 FEB AL 30 GIU | Z8: ANNO SCOLASTICO | AC8: GIORNI DA CONSIDERARE (DEPURATI DEI GIORNI IN COMUNE) | AE8: ANNO SCOLASTICO | AF8: GIORNI EFFETTUATI | AG8: anno valido -si/no | AK8: progressione di carriera considerando validi solo gli anni superiori a 180 gg. | AT8: anni scolastici validi per l opzione 3
C9: 1 | D9: =IF(AND(YEAR('front utente'!C27)=2013,'front utente'!$I$15="si"),"01/01/2014",'front utente'!C27) -> 00:00:00 | E9: =IF(AND(YEAR('front utente'!D27)=2013,'front utente'!$I$15="si"),"31/12/2012",'front utente'!D27) -> 00:00:00 | G9: =IF(D9>E9,0, calcoloperiodi1!H11) -> 1 | H9: =G9 -> 1 | I9: =IF(calcoloperiodi1!AH11="NO",0, calcoloperiodi1!AH11*365) -> 0 | J9: =IF( AND(H9>1095,D9>0),E9,100000) -> 2173-10-14 | K9: =H9 -> 1 | L9: =IF( AND(H9>3285,D9>0),E9,100000) -> 2173-10-14 | M9: =K9 -> 1 | N9: =IF( AND(H9>5475,D9>0),E9,100000) -> 2173-10-14 | O9: =M9 -> 1 | P9: =IF( AND(H9>7665,D9>0),E9,100000) -> 2173-10-14 | Q9: =O9 -> 1 | R9: =IF( AND(H9>10220,D9>0),E9,100000) -> 2173-10-14 | S9: =Q9 -> 1 | T9: =IF( AND(H9>12775,D9>0),E9,100000) -> 2173-10-14 | U9: =S9 -> 1 | X9: =IF(AND(YEAR(D9)=YEAR(E9),E9-D9>147, MONTH(D9)<3,MONTH(E9)>5,DAY(E9)>29 ),1,0) -> 0 | Y9: =IF(MONTH(D9)<9,YEAR(D9)-1,YEAR(D9)) -> 1899 | Z9: =IF(Y9>1900,Y9,"") ->  | AA9: =IF(Y9>1900,Z9+1,"") ->  | AB9: =CONCATENATE(Z9,"/",AA9) -> / | AC9: =G9-F9 -> 1 | AD9: =AC9 -> 1 | AE9: =IF(AB9<>AB10,AB9,"") ->  | AF9: =IF(AE9<>"",AD9,"") ->  | AG9: =IF(AE9<>"",IF( OR( AF9>179, X9=1 ),1,0),0) -> 0 | AH9: =AG9 -> 0 | AI9: =AH9*AG9 -> 0 | AJ9: =AE9 ->  | AK9: =VLOOKUP(4,AI9:AJ193,2,0) -> 0 | AL9: 3 anni | AM9: =IF(AK9>0,LEFT(AK9,4),0) -> 0 | AN9: =DATE(AM9,9,1) -> 1900-09-01 | AT9: =IF(AG9=1,AE9,"") -> 
B10: =IF(AND(D10<=E9,E10<=E9,D10>0),"si","") ->  | C10: 2 | D10: =IF(AND(YEAR('front utente'!C28)=2013,'front utente'!$I$15="si"),$C$2,'front utente'!C28) -> 00:00:00 | E10: =IF(AND(YEAR('front utente'!D28)=2013,'front utente'!$I$15="si"),$D$2,'front utente'!D28) -> 00:00:00 | G10: =IF(D10>E10,0, calcoloperiodi1!H12) -> 0 | H10: =H9+G10 -> 1 | I10: =IF(calcoloperiodi1!AH11="NO",0, calcoloperiodi1!AC11) -> 0 | J10: =IF( AND(H10>1095-$I$11,D10>0,B10<>"si",YEAR(E10)>1995 ),E10-$I$11,100000) -> 2173-10-14 | K10: =H10 -> 1 | L10: =IF( AND(H10>3285-$I$11,D10>0,B10<>"si",YEAR(E10)>1995),E10-$I$11,100000) -> 2173-10-14 | M10: =K10 -> 1 | N10: =IF( AND(H10>5475-$I$11,D10>0,B10<>"si",YEAR(E10)>1995),E10-$I$11,100000) -> 2173-10-14 | O10: =M10 -> 1 | P10: =IF( AND(H10>7665-$I$11,D10>0,B10<>"si",YEAR(E10)>1995),E10-$I$11,100000) -> 2173-10-14 | Q10: =O10 -> 1 | R10: =IF( AND(H10>10220-$I$11,D10>0,B10<>"si"),E10-$I$11,100000) -> 2173-10-14 | S10: =Q10 -> 1 | T10: =IF( AND(H10>12775-$I$11,D10>0,B10<>"si"),E10-$I$11,100000) -> 2173-10-14 | U10: =S10 -> 1 | X10: 0 | Y10: =IF(MONTH(D10)<9,YEAR(D10)-1,YEAR(D10)) -> 1899 | Z10: =IF(Y10>1900,Y10,"") ->  | AA10: =IF(Y10>1900,Z10+1,"") ->  | AB10: =CONCATENATE(Z10,"/",AA10) -> / | AC10: =G10-F10 -> 0 | AD10: =IF(AB10=AB9,AC10+AD9,AC10) -> 1 | AE10: =IF(AB10<>AB11,AB10,"") ->  | AF10: =IF(AE10<>"",AD10,"") ->  | AG10: =IF(AE10<>"",IF( OR( AF10>179, X10=1 ),1,0),0) -> 0 | AH10: =AH9+AG10 -> 0 | AI10: =AH10*AG10 -> 0 | AJ10: =AE10 ->  | AK10: =VLOOKUP(10,AI9:AJ193,2,0) -> 0 | AL10: 9 anni | AM10: =IF(AK10>0,LEFT(AK10,4),0) -> 0 | AN10: 1900-09-01 | AT10: =IF(AG10=1,AE10,"") -> 
B11: =IF(AND(D11<=E10,E11<=E10,D11>0),"si","") ->  | C11: 3 | D11: =IF(AND(YEAR('front utente'!C29)=2013,'front utente'!$I$15="si"),$C$2,'front utente'!C29) -> 00:00:00 | E11: =IF(AND(YEAR('front utente'!D29)=2013,'front utente'!$I$15="si"),$D$2,'front utente'!D29) -> 00:00:00 | G11: =IF(D11>E11,0, calcoloperiodi1!H13) -> 0 | H11: =H10+G11 -> 1 | I11: =IF(calcoloperiodi1!AH11="NO",0, I9-I10) -> 0 | J11: =IF( AND(H11>1095-$I$11,D11>0,B11<>"si",YEAR(E11)>1995 ),E11-$I$11,100000) -> 2173-10-14 | K11: =H11 -> 1 | L11: =IF( AND(H11>3285-$I$11,D11>0,B11<>"si",YEAR(E11)>1995),E11-$I$11,100000) -> 2173-10-14 | M11: =K11 -> 1 | N11: =IF( AND(H11>5475-$I$11,D11>0,B11<>"si",YEAR(E11)>1995),E11-$I$11,100000) -> 2173-10-14 | O11: =M11 -> 1 | P11: =IF( AND(H11>7665-$I$11,D11>0,B11<>"si",YEAR(E11)>1995),E11-$I$11,100000) -> 2173-10-14 | Q11: =O11 -> 1 | R11: =IF( AND(H11>10220-$I$11,D11>0,B11<>"si"),E11-$I$11,100000) -> 2173-10-14 | S11: =Q11 -> 1 | T11: =IF( AND(H11>12775-$I$11,D11>0,B11<>"si"),E11-$I$11,100000) -> 2173-10-14 | U11: 1 | X11: 0 | Y11: 1899 | AB11: / | AC11: 0 | AD11: =IF(AB11=AB10,AC11+AD10,AC11) -> 1 | AG11: =IF(AE11<>"",IF( OR( AF11>179, X11=1 ),1,0),0) -> 0 | AH11: =AH10+AG11 -> 0 | AI11: =AH11*AG11 -> 0 | AK11: =VLOOKUP(16,AI9:AJ193,2,0) -> 0 | AL11: 15 anni | AM11: =IF(AK11>0,LEFT(AK11,4),5000) -> 5000 | AN11: 5000-09-01
C12: 4 | D12: =IF(AND(YEAR('front utente'!C30)=2013,'front utente'!$I$15="si"),$C$2,'front utente'!C30) -> 00:00:00 | E12: =IF(AND(YEAR('front utente'!D30)=2013,'front utente'!$I$15="si"),$D$2,'front utente'!D30) -> 00:00:00 | G12: =IF(D12>E12,0, calcoloperiodi1!H14) -> 0 | H12: 1 | J12: 2173-10-14 | K12: 1 | L12: 2173-10-14 | M12: 1 | N12: 2173-10-14 | O12: 1 | P12: 2173-10-14 | Q12: 1 | R12: 2173-10-14 | S12: 1 | T12: 2173-10-14 | U12: 1 | X12: 0 | Y12: 1899 | AB12: / | AC12: 0 | AD12: 1 | AG12: =IF(AE12<>"",IF( OR( AF12>179, X12=1 ),1,0),0) -> 0 | AH12: 0 | AI12: 0 | AK12: =VLOOKUP(22,AI9:AJ193,2,0) -> 0 | AL12: 21 anni | AM12: =IF(AK12>0,LEFT(AK12,4),5000) -> 5000 | AN12: 5000-09-01
C13: 5 | D13: =IF(AND(YEAR('front utente'!C31)=2013,'front utente'!$I$15="si"),$C$2,'front utente'!C31) -> 00:00:00 | E13: =IF(AND(YEAR('front utente'!D31)=2013,'front utente'!$I$15="si"),$D$2,'front utente'!D31) -> 00:00:00 | G13: =IF(D13>E13,0, calcoloperiodi1!H15) -> 0 | H13: 1 | J13: 2173-10-14 | K13: 1 | L13: 2173-10-14 | M13: 1 | N13: 2173-10-14 | O13: 1 | P13: 2173-10-14 | Q13: 1 | R13: 2173-10-14 | S13: 1 | T13: 2173-10-14 | U13: 1 | X13: 0 | Y13: 1899 | AB13: / | AC13: 0 | AD13: 1 | AG13: =IF(AE13<>"",IF( OR( AF13>179, X13=1 ),1,0),0) -> 0 | AH13: 0 | AI13: 0 | AK13: =VLOOKUP(29,AI9:AJ193,2,0) -> 0 | AL13: 28 anni | AM13: =IF(AK13>0,LEFT(AK13,4),5000) -> 5000 | AN13: 5000-09-01
C14: 6 | D14: =IF(AND(YEAR('front utente'!C32)=2013,'front utente'!$I$15="si"),$C$2,'front utente'!C32) -> 00:00:00 | E14: =IF(AND(YEAR('front utente'!D32)=2013,'front utente'!$I$15="si"),$D$2,'front utente'!D32) -> 00:00:00 | G14: =IF(D14>E14,0, calcoloperiodi1!H16) -> 0 | H14: 1 | J14: 2173-10-14 | K14: 1 | L14: 2173-10-14 | M14: 1 | N14: 2173-10-14 | O14: 1 | P14: 2173-10-14 | Q14: 1 | R14: 2173-10-14 | S14: 1 | T14: 2173-10-14 | U14: 1 | X14: 0 | Y14: 1899 | AB14: / | AC14: 0 | AD14: 1 | AG14: =IF(AE14<>"",IF( OR( AF14>179, X14=1 ),1,0),0) -> 0 | AH14: 0 | AI14: 0 | AK14: =VLOOKUP(36,AI9:AJ193,2,0) -> 0 | AL14: 35 anni | AM14: =IF(AK14>0,LEFT(AK14,4),5000) -> 5000 | AN14: 5000-09-01
C15: 7 | D15: =IF(AND(YEAR('front utente'!C33)=2013,'front utente'!$I$15="si"),$C$2,'front utente'!C33) -> 00:00:00 | E15: =IF(AND(YEAR('front utente'!D33)=2013,'front utente'!$I$15="si"),$D$2,'front utente'!D33) -> 00:00:00 | G15: =IF(D15>E15,0, calcoloperiodi1!H17) -> 0 | H15: 1 | J15: 2173-10-14 | K15: 1 | L15: 2173-10-14 | M15: 1 | N15: 2173-10-14 | O15: 1 | P15: 2173-10-14 | Q15: 1 | R15: 2173-10-14 | S15: 1 | T15: 2173-10-14 | U15: 1 | X15: 0 | Y15: 1899 | AB15: / | AC15: 0 | AD15: 1 | AG15: 0 | AH15: 0 | AI15: 0
C16: 8 | D16: =IF(AND(YEAR('front utente'!C34)=2013,'front utente'!$I$15="si"),$C$2,'front utente'!C34) -> 00:00:00 | E16: =IF(AND(YEAR('front utente'!D34)=2013,'front utente'!$I$15="si"),$D$2,'front utente'!D34) -> 00:00:00 | G16: =IF(D16>E16,0, calcoloperiodi1!H18) -> 0 | H16: 1 | J16: 2173-10-14 | K16: 1 | L16: 2173-10-14 | M16: 1 | N16: 2173-10-14 | O16: 1 | P16: 2173-10-14 | Q16: 1 | R16: 2173-10-14 | S16: 1 | T16: 2173-10-14 | U16: 1 | X16: 0 | Y16: 1899 | AB16: / | AC16: 0 | AD16: 1 | AG16: 0 | AH16: 0 | AI16: 0
C17: 9 | D17: =IF(AND(YEAR('front utente'!C35)=2013,'front utente'!$I$15="si"),$C$2,'front utente'!C35) -> 00:00:00 | E17: =IF(AND(YEAR('front utente'!D35)=2013,'front utente'!$I$15="si"),$D$2,'front utente'!D35) -> 00:00:00 | G17: =IF(D17>E17,0, calcoloperiodi1!H19) -> 0 | H17: 1 | J17: 2173-10-14 | K17: 1 | L17: 2173-10-14 | M17: 1 | N17: 2173-10-14 | O17: 1 | P17: 2173-10-14 | Q17: 1 | R17: 2173-10-14 | S17: 1 | T17: 2173-10-14 | U17: 1 | X17: 0 | Y17: 1899 | AB17: / | AC17: 0 | AD17: 1 | AG17: 0 | AH17: 0 | AI17: 0
C18: 10 | D18: =IF(AND(YEAR('front utente'!C36)=2013,'front utente'!$I$15="si"),$C$2,'front utente'!C36) -> 00:00:00 | E18: =IF(AND(YEAR('front utente'!D36)=2013,'front utente'!$I$15="si"),$D$2,'front utente'!D36) -> 00:00:00 | G18: =IF(D18>E18,0, calcoloperiodi1!H20) -> 0 | H18: 1 | J18: 2173-10-14 | K18: 1 | L18: 2173-10-14 | M18: 1 | N18: 2173-10-14 | O18: 1 | P18: 2173-10-14 | Q18: 1 | R18: 2173-10-14 | S18: 1 | T18: 2173-10-14 | U18: 1 | X18: 0 | Y18: 1899 | AB18: / | AC18: 0 | AD18: 1 | AG18: 0 | AH18: 0 | AI18: 0
C19: 11 | D19: =IF(AND(YEAR('front utente'!C37)=2013,'front utente'!$I$15="si"),$C$2,'front utente'!C37) -> 00:00:00 | E19: =IF(AND(YEAR('front utente'!D37)=2013,'front utente'!$I$15="si"),$D$2,'front utente'!D37) -> 00:00:00 | G19: =IF(D19>E19,0, calcoloperiodi1!H21) -> 0 | H19: 1 | J19: 2173-10-14 | K19: 1 | L19: 2173-10-14 | M19: 1 | N19: 2173-10-14 | O19: 1 | P19: 2173-10-14 | Q19: 1 | R19: 2173-10-14 | S19: 1 | T19: 2173-10-14 | U19: 1 | X19: =IF(AND(YEAR(D19)=YEAR(E19),E19-D19>147, MONTH(D19)<3,MONTH(E19)>5,DAY(E19)>29 ),1,0) -> 0 | Y19: 1899 | AB19: / | AC19: 0 | AD19: 1 | AG19: 0 | AH19: 0 | AI19: 0
C20: 12 | D20: =IF(AND(YEAR('front utente'!C38)=2013,'front utente'!$I$15="si"),$C$2,'front utente'!C38) -> 00:00:00 | E20: =IF(AND(YEAR('front utente'!D38)=2013,'front utente'!$I$15="si"),$D$2,'front utente'!D38) -> 00:00:00 | G20: =IF(D20>E20,0, calcoloperiodi1!H22) -> 0 | H20: 1 | J20: 2173-10-14 | K20: 1 | L20: 2173-10-14 | M20: 1 | N20: 2173-10-14 | O20: 1 | P20: 2173-10-14 | Q20: 1 | R20: 2173-10-14 | S20: 1 | T20: 2173-10-14 | U20: 1 | X20: 0 | Y20: 1899 | AB20: / | AC20: 0 | AD20: 1 | AG20: 0 | AH20: 0 | AI20: 0
C21: 13 | D21: =IF(AND(YEAR('front utente'!C39)=2013,'front utente'!$I$15="si"),$C$2,'front utente'!C39) -> 00:00:00 | E21: =IF(AND(YEAR('front utente'!D39)=2013,'front utente'!$I$15="si"),$D$2,'front utente'!D39) -> 00:00:00 | G21: =IF(D21>E21,0, calcoloperiodi1!H23) -> 0 | H21: 1 | J21: 2173-10-14 | K21: 1 | L21: 2173-10-14 | M21: 1 | N21: 2173-10-14 | O21: 1 | P21: 2173-10-14 | Q21: 1 | R21: 2173-10-14 | S21: 1 | T21: 2173-10-14 | U21: 1 | X21: 0 | Y21: 1899 | AB21: / | AC21: 0 | AD21: 1 | AG21: 0 | AH21: 0 | AI21: 0
C22: 14 | D22: =IF(AND(YEAR('front utente'!C40)=2013,'front utente'!$I$15="si"),$C$2,'front utente'!C40) -> 00:00:00 | E22: =IF(AND(YEAR('front utente'!D40)=2013,'front utente'!$I$15="si"),$D$2,'front utente'!D40) -> 00:00:00 | G22: =IF(D22>E22,0, calcoloperiodi1!H24) -> 0 | H22: 1 | J22: 2173-10-14 | K22: 1 | L22: 2173-10-14 | M22: 1 | N22: 2173-10-14 | O22: 1 | P22: 2173-10-14 | Q22: 1 | R22: 2173-10-14 | S22: 1 | T22: 2173-10-14 | U22: 1 | X22: 0 | Y22: 1899 | AB22: / | AC22: 0 | AD22: 1 | AG22: 0 | AH22: 0 | AI22: 0
C23: 15 | D23: =IF(AND(YEAR('front utente'!C41)=2013,'front utente'!$I$15="si"),$C$2,'front utente'!C41) -> 00:00:00 | E23: =IF(AND(YEAR('front utente'!D41)=2013,'front utente'!$I$15="si"),$D$2,'front utente'!D41) -> 00:00:00 | G23: =IF(D23>E23,0, calcoloperiodi1!H25) -> 0 | H23: 1 | J23: 2173-10-14 | K23: 1 | L23: 2173-10-14 | M23: 1 | N23: 2173-10-14 | O23: 1 | P23: 2173-10-14 | Q23: 1 | R23: 2173-10-14 | S23: 1 | T23: 2173-10-14 | U23: 1 | X23: 0 | Y23: 1899 | AB23: / | AC23: 0 | AD23: 1 | AG23: 0 | AH23: 0 | AI23: 0
C24: 16 | D24: =IF(AND(YEAR('front utente'!C42)=2013,'front utente'!$I$15="si"),$C$2,'front utente'!C42) -> 00:00:00 | E24: =IF(AND(YEAR('front utente'!D42)=2013,'front utente'!$I$15="si"),$D$2,'front utente'!D42) -> 00:00:00 | G24: =IF(D24>E24,0, calcoloperiodi1!H26) -> 0 | H24: 1 | J24: 2173-10-14 | K24: 1 | L24: 2173-10-14 | M24: 1 | N24: 2173-10-14 | O24: 1 | P24: 2173-10-14 | Q24: 1 | R24: 2173-10-14 | S24: 1 | T24: 2173-10-14 | U24: 1 | X24: 0 | Y24: 1899 | AB24: / | AC24: 0 | AD24: 1 | AG24: 0 | AH24: 0 | AI24: 0
C25: 17 | D25: =IF(AND(YEAR('front utente'!C43)=2013,'front utente'!$I$15="si"),$C$2,'front utente'!C43) -> 00:00:00 | E25: =IF(AND(YEAR('front utente'!D43)=2013,'front utente'!$I$15="si"),$D$2,'front utente'!D43) -> 00:00:00 | G25: =IF(D25>E25,0, calcoloperiodi1!H27) -> 0 | H25: 1 | J25: 2173-10-14 | K25: 1 | L25: 2173-10-14 | M25: 1 | N25: 2173-10-14 | O25: 1 | P25: 2173-10-14 | Q25: 1 | R25: 2173-10-14 | S25: 1 | T25: 2173-10-14 | U25: 1 | X25: 0 | Y25: 1899 | AB25: / | AC25: 0 | AD25: 1 | AG25: 0 | AH25: 0 | AI25: 0
C26: 18 | D26: =IF(AND(YEAR('front utente'!C44)=2013,'front utente'!$I$15="si"),$C$2,'front utente'!C44) -> 00:00:00 | E26: =IF(AND(YEAR('front utente'!D44)=2013,'front utente'!$I$15="si"),$D$2,'front utente'!D44) -> 00:00:00 | G26: =IF(D26>E26,0, calcoloperiodi1!H28) -> 0 | H26: 1 | J26: 2173-10-14 | K26: 1 | L26: 2173-10-14 | M26: 1 | N26: 2173-10-14 | O26: 1 | P26: 2173-10-14 | Q26: 1 | R26: 2173-10-14 | S26: 1 | T26: 2173-10-14 | U26: 1 | X26: 0 | Y26: 1899 | AB26: / | AC26: 0 | AD26: 1 | AG26: 0 | AH26: 0 | AI26: 0
C27: 19 | D27: =IF(AND(YEAR('front utente'!C45)=2013,'front utente'!$I$15="si"),$C$2,'front utente'!C45) -> 00:00:00 | E27: =IF(AND(YEAR('front utente'!D45)=2013,'front utente'!$I$15="si"),$D$2,'front utente'!D45) -> 00:00:00 | G27: =IF(D27>E27,0, calcoloperiodi1!H29) -> 0 | H27: 1 | J27: 2173-10-14 | K27: 1 | L27: 2173-10-14 | M27: 1 | N27: 2173-10-14 | O27: 1 | P27: 2173-10-14 | Q27: 1 | R27: 2173-10-14 | S27: 1 | T27: 2173-10-14 | U27: 1 | X27: 0 | Y27: =IF(MONTH(D27)<9,YEAR(D27)-1,YEAR(D27)) -> 1899 | AA27: =IF(Y27>1900,Z27+1,"") ->  | AB27: =CONCATENATE(Z27,"/",AA27) -> / | AC27: =G27-F27 -> 0 | AD27: =IF(AB27=AB26,AC27+AD26,AC27) -> 1 | AE27: =IF(AB27<>AB28,AB27,"") ->  | AF27: =IF(AE27<>"",AD27,"") ->  | AG27: 0 | AH27: 0 | AI27: 0
C28: 20 | D28: =IF(AND(YEAR('front utente'!C46)=2013,'front utente'!$I$15="si"),$C$2,'front utente'!C46) -> 00:00:00 | E28: =IF(AND(YEAR('front utente'!D46)=2013,'front utente'!$I$15="si"),$D$2,'front utente'!D46) -> 00:00:00 | G28: =IF(D28>E28,0, calcoloperiodi1!H30) -> 0 | H28: 1 | J28: 2173-10-14 | K28: 1 | L28: 2173-10-14 | M28: 1 | N28: 2173-10-14 | O28: 1 | P28: 2173-10-14 | Q28: 1 | R28: 2173-10-14 | S28: 1 | T28: 2173-10-14 | U28: 1 | X28: 0 | Y28: =IF(MONTH(D28)<9,YEAR(D28)-1,YEAR(D28)) -> 1899 | AA28: =IF(Y28>1900,Z28+1,"") ->  | AB28: =CONCATENATE(Z28,"/",AA28) -> / | AC28: =G28-F28 -> 0 | AD28: =IF(AB28=AB27,AC28+AD27,AC28) -> 1 | AE28: =IF(AB28<>AB29,AB28,"") ->  | AF28: =IF(AE28<>"",AD28,"") ->  | AG28: 0 | AH28: 0 | AI28: 0
C29: 21 | D29: =IF(AND(YEAR('front utente'!C47)=2013,'front utente'!$I$15="si"),$C$2,'front utente'!C47) -> 00:00:00 | E29: =IF(AND(YEAR('front utente'!D47)=2013,'front utente'!$I$15="si"),$D$2,'front utente'!D47) -> 00:00:00 | G29: =IF(D29>E29,0, calcoloperiodi1!H31) -> 0 | H29: 1 | J29: 2173-10-14 | K29: 1 | L29: 2173-10-14 | M29: 1 | N29: 2173-10-14 | O29: 1 | P29: 2173-10-14 | Q29: 1 | R29: 2173-10-14 | S29: 1 | T29: 2173-10-14 | U29: 1 | X29: 0 | Y29: =IF(MONTH(D29)<9,YEAR(D29)-1,YEAR(D29)) -> 1899 | AA29: =IF(Y29>1900,Z29+1,"") ->  | AB29: =CONCATENATE(Z29,"/",AA29) -> / | AC29: =G29-F29 -> 0 | AD29: =IF(AB29=AB28,AC29+AD28,AC29) -> 1 | AE29: =IF(AB29<>AB30,AB29,"") ->  | AF29: =IF(AE29<>"",AD29,"") ->  | AG29: 0 | AH29: 0 | AI29: 0
C30: 22 | D30: =IF(AND(YEAR('front utente'!C48)=2013,'front utente'!$I$15="si"),$C$2,'front utente'!C48) -> 00:00:00 | E30: =IF(AND(YEAR('front utente'!D48)=2013,'front utente'!$I$15="si"),$D$2,'front utente'!D48) -> 00:00:00 | G30: =IF(D30>E30,0, calcoloperiodi1!H32) -> 0 | H30: 1 | J30: 2173-10-14 | K30: 1 | L30: 2173-10-14 | M30: 1 | N30: 2173-10-14 | O30: 1 | P30: 2173-10-14 | Q30: 1 | R30: 2173-10-14 | S30: 1 | T30: 2173-10-14 | U30: 1 | X30: 0 | Y30: =IF(MONTH(D30)<9,YEAR(D30)-1,YEAR(D30)) -> 1899 | AA30: =IF(Y30>1900,Z30+1,"") ->  | AB30: =CONCATENATE(Z30,"/",AA30) -> / | AC30: =G30-F30 -> 0 | AD30: =IF(AB30=AB29,AC30+AD29,AC30) -> 1 | AE30: =IF(AB30<>AB31,AB30,"") ->  | AF30: =IF(AE30<>"",AD30,"") ->  | AG30: 0 | AH30: =AH29+AG30 -> 0 | AI30: =AH30*AG30 -> 0 | AJ30: =AE30 -> 
C31: 23 | D31: =IF(AND(YEAR('front utente'!C49)=2013,'front utente'!$I$15="si"),$C$2,'front utente'!C49) -> 00:00:00 | E31: =IF(AND(YEAR('front utente'!D49)=2013,'front utente'!$I$15="si"),$D$2,'front utente'!D49) -> 00:00:00 | G31: =IF(D31>E31,0, calcoloperiodi1!H33) -> 0 | H31: 1 | J31: 2173-10-14 | K31: 1 | L31: 2173-10-14 | M31: 1 | N31: 2173-10-14 | O31: 1 | P31: 2173-10-14 | Q31: 1 | R31: 2173-10-14 | S31: 1 | T31: 2173-10-14 | U31: 1 | X31: 0 | Y31: 1899 | AB31: / | AC31: 0 | AD31: 1 | AG31: 0 | AH31: 0 | AI31: 0
C32: 24 | D32: =IF(AND(YEAR('front utente'!C50)=2013,'front utente'!$I$15="si"),$C$2,'front utente'!C50) -> 00:00:00 | E32: =IF(AND(YEAR('front utente'!D50)=2013,'front utente'!$I$15="si"),$D$2,'front utente'!D50) -> 00:00:00 | G32: =IF(D32>E32,0, calcoloperiodi1!H34) -> 0 | H32: 1 | J32: 2173-10-14 | K32: 1 | L32: 2173-10-14 | M32: 1 | N32: 2173-10-14 | O32: 1 | P32: 2173-10-14 | Q32: 1 | R32: 2173-10-14 | S32: 1 | T32: 2173-10-14 | U32: 1 | X32: 0 | Y32: 1899 | AB32: / | AC32: 0 | AD32: 1 | AG32: 0 | AH32: 0 | AI32: 0
C33: 25 | D33: =IF(AND(YEAR('front utente'!C51)=2013,'front utente'!$I$15="si"),$C$2,'front utente'!C51) -> 00:00:00 | E33: =IF(AND(YEAR('front utente'!D51)=2013,'front utente'!$I$15="si"),$D$2,'front utente'!D51) -> 00:00:00 | G33: =IF(D33>E33,0, calcoloperiodi1!H35) -> 0 | H33: 1 | J33: 2173-10-14 | K33: 1 | L33: 2173-10-14 | M33: 1 | N33: 2173-10-14 | O33: 1 | P33: 2173-10-14 | Q33: 1 | R33: 2173-10-14 | S33: 1 | T33: 2173-10-14 | U33: 1 | X33: 0 | Y33: 1899 | AB33: / | AC33: 0 | AD33: 1 | AG33: 0 | AH33: 0 | AI33: 0
C34: 26 | D34: =IF(AND(YEAR('front utente'!C52)=2013,'front utente'!$I$15="si"),$C$2,'front utente'!C52) -> 00:00:00 | E34: =IF(AND(YEAR('front utente'!D52)=2013,'front utente'!$I$15="si"),$D$2,'front utente'!D52) -> 00:00:00 | G34: =IF(D34>E34,0, calcoloperiodi1!H36) -> 0 | H34: 1 | J34: 2173-10-14 | K34: 1 | L34: 2173-10-14 | M34: 1 | N34: 2173-10-14 | O34: 1 | P34: 2173-10-14 | Q34: 1 | R34: 2173-10-14 | S34: 1 | T34: 2173-10-14 | U34: 1 | X34: 0 | Y34: 1899 | AB34: / | AC34: 0 | AD34: 1 | AG34: 0 | AH34: 0 | AI34: 0
C35: 27 | D35: =IF(AND(YEAR('front utente'!C53)=2013,'front utente'!$I$15="si"),$C$2,'front utente'!C53) -> 00:00:00 | E35: =IF(AND(YEAR('front utente'!D53)=2013,'front utente'!$I$15="si"),$D$2,'front utente'!D53) -> 00:00:00 | G35: =IF(D35>E35,0, calcoloperiodi1!H37) -> 0 | H35: 1 | J35: 2173-10-14 | K35: 1 | L35: 2173-10-14 | M35: 1 | N35: 2173-10-14 | O35: 1 | P35: 2173-10-14 | Q35: 1 | R35: 2173-10-14 | S35: 1 | T35: 2173-10-14 | U35: 1 | X35: 0 | Y35: 1899 | AB35: / | AC35: 0 | AD35: 1 | AG35: 0 | AH35: 0 | AI35: 0
C36: 28 | D36: =IF(AND(YEAR('front utente'!C54)=2013,'front utente'!$I$15="si"),$C$2,'front utente'!C54) -> 00:00:00 | E36: =IF(AND(YEAR('front utente'!D54)=2013,'front utente'!$I$15="si"),$D$2,'front utente'!D54) -> 00:00:00 | G36: =IF(D36>E36,0, calcoloperiodi1!H38) -> 0 | H36: 1 | J36: 2173-10-14 | K36: 1 | L36: 2173-10-14 | M36: 1 | N36: 2173-10-14 | O36: 1 | P36: 2173-10-14 | Q36: 1 | R36: 2173-10-14 | S36: 1 | T36: 2173-10-14 | U36: 1 | X36: 0 | Y36: 1899 | AB36: / | AC36: 0 | AD36: 1 | AG36: 0 | AH36: 0 | AI36: 0
C37: 29 | D37: =IF(AND(YEAR('front utente'!C55)=2013,'front utente'!$I$15="si"),$C$2,'front utente'!C55) -> 00:00:00 | E37: =IF(AND(YEAR('front utente'!D55)=2013,'front utente'!$I$15="si"),$D$2,'front utente'!D55) -> 00:00:00 | G37: =IF(D37>E37,0, calcoloperiodi1!H39) -> 0 | H37: 1 | J37: 2173-10-14 | K37: 1 | L37: 2173-10-14 | M37: 1 | N37: 2173-10-14 | O37: 1 | P37: 2173-10-14 | Q37: 1 | R37: 2173-10-14 | S37: 1 | T37: 2173-10-14 | U37: 1 | X37: 0 | Y37: 1899 | AB37: / | AC37: 0 | AD37: 1 | AG37: 0 | AH37: 0 | AI37: 0
C38: 30 | D38: =IF(AND(YEAR('front utente'!C56)=2013,'front utente'!$I$15="si"),$C$2,'front utente'!C56) -> 00:00:00 | E38: =IF(AND(YEAR('front utente'!D56)=2013,'front utente'!$I$15="si"),$D$2,'front utente'!D56) -> 00:00:00 | G38: =IF(D38>E38,0, calcoloperiodi1!H40) -> 0 | H38: 1 | J38: 2173-10-14 | K38: 1 | L38: 2173-10-14 | M38: 1 | N38: 2173-10-14 | O38: 1 | P38: 2173-10-14 | Q38: 1 | R38: 2173-10-14 | S38: 1 | T38: 2173-10-14 | U38: 1 | X38: 0 | Y38: 1899 | AB38: / | AC38: 0 | AD38: 1 | AG38: 0 | AH38: 0 | AI38: 0
C39: 31 | D39: =IF(AND(YEAR('front utente'!C57)=2013,'front utente'!$I$15="si"),$C$2,'front utente'!C57) -> 00:00:00 | E39: =IF(AND(YEAR('front utente'!D57)=2013,'front utente'!$I$15="si"),$D$2,'front utente'!D57) -> 00:00:00 | G39: =IF(D39>E39,0, calcoloperiodi1!H41) -> 0 | H39: 1 | J39: 2173-10-14 | K39: 1 | L39: 2173-10-14 | M39: 1 | N39: 2173-10-14 | O39: 1 | P39: 2173-10-14 | Q39: 1 | R39: 2173-10-14 | S39: 1 | T39: 2173-10-14 | U39: 1 | X39: 0 | Y39: 1899 | AB39: / | AC39: 0 | AD39: 1 | AG39: 0 | AH39: 0 | AI39: 0
C40: 32 | D40: =IF(AND(YEAR('front utente'!C58)=2013,'front utente'!$I$15="si"),$C$2,'front utente'!C58) -> 00:00:00 | E40: =IF(AND(YEAR('front utente'!D58)=2013,'front utente'!$I$15="si"),$D$2,'front utente'!D58) -> 00:00:00 | G40: =IF(D40>E40,0, calcoloperiodi1!H42) -> 0 | H40: 1 | J40: 2173-10-14 | K40: 1 | L40: 2173-10-14 | M40: 1 | N40: 2173-10-14 | O40: 1 | P40: 2173-10-14 | Q40: 1 | R40: 2173-10-14 | S40: 1 | T40: 2173-10-14 | U40: 1 | X40: 0 | Y40: 1899 | AB40: / | AC40: 0 | AD40: 1 | AG40: 0 | AH40: 0 | AI40: 0
C41: 33 | D41: =IF(AND(YEAR('front utente'!C59)=2013,'front utente'!$I$15="si"),$C$2,'front utente'!C59) -> 00:00:00 | E41: =IF(AND(YEAR('front utente'!D59)=2013,'front utente'!$I$15="si"),$D$2,'front utente'!D59) -> 00:00:00 | G41: =IF(D41>E41,0, calcoloperiodi1!H43) -> 0 | H41: 1 | J41: 2173-10-14 | K41: 1 | L41: 2173-10-14 | M41: 1 | N41: 2173-10-14 | O41: 1 | P41: 2173-10-14 | Q41: 1 | R41: 2173-10-14 | S41: 1 | T41: 2173-10-14 | U41: 1 | X41: 0 | Y41: 1899 | AB41: / | AC41: 0 | AD41: 1 | AG41: 0 | AH41: 0 | AI41: 0
C42: 34 | D42: =IF(AND(YEAR('front utente'!C60)=2013,'front utente'!$I$15="si"),$C$2,'front utente'!C60) -> 00:00:00 | E42: =IF(AND(YEAR('front utente'!D60)=2013,'front utente'!$I$15="si"),$D$2,'front utente'!D60) -> 00:00:00 | G42: =IF(D42>E42,0, calcoloperiodi1!H44) -> 0 | H42: 1 | J42: 2173-10-14 | K42: 1 | L42: 2173-10-14 | M42: 1 | N42: 2173-10-14 | O42: 1 | P42: 2173-10-14 | Q42: 1 | R42: 2173-10-14 | S42: 1 | T42: 2173-10-14 | U42: 1 | X42: 0 | Y42: 1899 | AB42: / | AC42: 0 | AD42: 1 | AG42: 0 | AH42: 0 | AI42: 0
C43: 35 | D43: =IF(AND(YEAR('front utente'!C61)=2013,'front utente'!$I$15="si"),$C$2,'front utente'!C61) -> 00:00:00 | E43: =IF(AND(YEAR('front utente'!D61)=2013,'front utente'!$I$15="si"),$D$2,'front utente'!D61) -> 00:00:00 | G43: =IF(D43>E43,0, calcoloperiodi1!H45) -> 0 | H43: 1 | J43: 2173-10-14 | K43: 1 | L43: 2173-10-14 | M43: 1 | N43: 2173-10-14 | O43: 1 | P43: 2173-10-14 | Q43: 1 | R43: 2173-10-14 | S43: 1 | T43: 2173-10-14 | U43: 1 | X43: 0 | Y43: 1899 | AB43: / | AC43: 0 | AD43: 1 | AG43: 0 | AH43: 0 | AI43: 0
C44: 36 | D44: =IF(AND(YEAR('front utente'!C62)=2013,'front utente'!$I$15="si"),$C$2,'front utente'!C62) -> 00:00:00 | E44: =IF(AND(YEAR('front utente'!D62)=2013,'front utente'!$I$15="si"),$D$2,'front utente'!D62) -> 00:00:00 | G44: =IF(D44>E44,0, calcoloperiodi1!H46) -> 0 | H44: 1 | J44: 2173-10-14 | K44: 1 | L44: 2173-10-14 | M44: 1 | N44: 2173-10-14 | O44: 1 | P44: 2173-10-14 | Q44: 1 | R44: 2173-10-14 | S44: 1 | T44: 2173-10-14 | U44: 1 | X44: 0 | Y44: 1899 | AB44: / | AC44: 0 | AD44: 1 | AG44: 0 | AH44: 0 | AI44: 0
C45: 37 | D45: =IF(AND(YEAR('front utente'!C63)=2013,'front utente'!$I$15="si"),$C$2,'front utente'!C63) -> 00:00:00 | E45: =IF(AND(YEAR('front utente'!D63)=2013,'front utente'!$I$15="si"),$D$2,'front utente'!D63) -> 00:00:00 | G45: =IF(D45>E45,0, calcoloperiodi1!H47) -> 0 | H45: 1 | J45: 2173-10-14 | K45: 1 | L45: 2173-10-14 | M45: 1 | N45: 2173-10-14 | O45: 1 | P45: 2173-10-14 | Q45: 1 | R45: 2173-10-14 | S45: 1 | T45: 2173-10-14 | U45: 1 | X45: 0 | Y45: 1899 | AB45: / | AC45: 0 | AD45: 1 | AG45: 0 | AH45: 0 | AI45: 0
C46: 38 | D46: =IF(AND(YEAR('front utente'!C64)=2013,'front utente'!$I$15="si"),$C$2,'front utente'!C64) -> 00:00:00 | E46: =IF(AND(YEAR('front utente'!D64)=2013,'front utente'!$I$15="si"),$D$2,'front utente'!D64) -> 00:00:00 | G46: =IF(D46>E46,0, calcoloperiodi1!H48) -> 0 | H46: 1 | J46: 2173-10-14 | K46: 1 | L46: 2173-10-14 | M46: 1 | N46: 2173-10-14 | O46: 1 | P46: 2173-10-14 | Q46: 1 | R46: 2173-10-14 | S46: 1 | T46: 2173-10-14 | U46: 1 | X46: 0 | Y46: 1899 | AB46: / | AC46: 0 | AD46: 1 | AG46: 0 | AH46: 0 | AI46: 0
C47: 39 | D47: =IF(AND(YEAR('front utente'!C65)=2013,'front utente'!$I$15="si"),$C$2,'front utente'!C65) -> 00:00:00 | E47: =IF(AND(YEAR('front utente'!D65)=2013,'front utente'!$I$15="si"),$D$2,'front utente'!D65) -> 00:00:00 | G47: =IF(D47>E47,0, calcoloperiodi1!H49) -> 0 | H47: 1 | J47: 2173-10-14 | K47: 1 | L47: 2173-10-14 | M47: 1 | N47: 2173-10-14 | O47: 1 | P47: 2173-10-14 | Q47: 1 | R47: 2173-10-14 | S47: 1 | T47: 2173-10-14 | U47: 1 | X47: 0 | Y47: 1899 | AB47: / | AC47: 0 | AD47: 1 | AG47: 0 | AH47: 0 | AI47: 0
C48: 40 | D48: =IF(AND(YEAR('front utente'!C66)=2013,'front utente'!$I$15="si"),$C$2,'front utente'!C66) -> 00:00:00 | E48: =IF(AND(YEAR('front utente'!D66)=2013,'front utente'!$I$15="si"),$D$2,'front utente'!D66) -> 00:00:00 | G48: =IF(D48>E48,0, calcoloperiodi1!H50) -> 0 | H48: 1 | J48: 2173-10-14 | K48: 1 | L48: 2173-10-14 | M48: 1 | N48: 2173-10-14 | O48: 1 | P48: 2173-10-14 | Q48: 1 | R48: 2173-10-14 | S48: 1 | T48: 2173-10-14 | U48: 1 | X48: 0 | Y48: 1899 | AB48: / | AC48: 0 | AD48: 1 | AG48: 0 | AH48: 0 | AI48: 0
C49: =C48+1 -> 41 | D49: =IF(AND(YEAR('front utente'!C67)=2013,'front utente'!$I$15="si"),$C$2,'front utente'!C67) -> 00:00:00 | E49: =IF(AND(YEAR('front utente'!D67)=2013,'front utente'!$I$15="si"),$D$2,'front utente'!D67) -> 00:00:00 | G49: =IF(D49>E49,0, calcoloperiodi1!H51) -> 0 | H49: 1 | J49: 2173-10-14 | K49: 1 | L49: 2173-10-14 | M49: 1 | N49: 2173-10-14 | O49: 1 | P49: 2173-10-14 | Q49: 1 | R49: 2173-10-14 | S49: 1 | T49: 2173-10-14 | U49: =S49 -> 1 | X49: 0 | Y49: 1899 | AB49: / | AC49: 0 | AD49: 1 | AG49: 0 | AH49: 0 | AI49: 0
C50: =C49+1 -> 42 | D50: =IF(AND(YEAR('front utente'!C68)=2013,'front utente'!$I$15="si"),$C$2,'front utente'!C68) -> 00:00:00 | E50: =IF(AND(YEAR('front utente'!D68)=2013,'front utente'!$I$15="si"),$D$2,'front utente'!D68) -> 00:00:00 | G50: =IF(D50>E50,0, calcoloperiodi1!H52) -> 0 | H50: 1 | J50: 2173-10-14 | K50: 1 | L50: 2173-10-14 | M50: 1 | N50: 2173-10-14 | O50: 1 | P50: 2173-10-14 | Q50: 1 | R50: 2173-10-14 | S50: 1 | T50: 2173-10-14 | U50: =S50 -> 1 | X50: 0 | Y50: 1899 | AB50: / | AC50: 0 | AD50: 1 | AG50: 0 | AH50: 0 | AI50: 0
C51: 43 | D51: =IF(AND(YEAR('front utente'!C69)=2013,'front utente'!$I$15="si"),$C$2,'front utente'!C69) -> 00:00:00 | E51: =IF(AND(YEAR('front utente'!D69)=2013,'front utente'!$I$15="si"),$D$2,'front utente'!D69) -> 00:00:00 | G51: =IF(D51>E51,0, calcoloperiodi1!H53) -> 0 | H51: 1 | J51: 2173-10-14 | K51: 1 | L51: 2173-10-14 | M51: 1 | N51: 2173-10-14 | O51: 1 | P51: 2173-10-14 | Q51: 1 | R51: 2173-10-14 | S51: 1 | T51: 2173-10-14 | U51: 1 | X51: 0 | Y51: =IF(MONTH(D51)<9,YEAR(D51)-1,YEAR(D51)) -> 1899 | AA51: =IF(Y51>1900,Z51+1,"") ->  | AB51: =CONCATENATE(Z51,"/",AA51) -> / | AC51: =G51-F51 -> 0 | AD51: =IF(AB51=AB50,AC51+AD50,AC51) -> 1 | AE51: =IF(AB51<>AB52,AB51,"") ->  | AF51: =IF(AE51<>"",AD51,"") ->  | AG51: 0 | AH51: =AH50+AG51 -> 0 | AI51: =AH51*AG51 -> 0 | AJ51: =AE51 -> 
C52: 44 | D52: =IF(AND(YEAR('front utente'!C70)=2013,'front utente'!$I$15="si"),$C$2,'front utente'!C70) -> 00:00:00 | E52: =IF(AND(YEAR('front utente'!D70)=2013,'front utente'!$I$15="si"),$D$2,'front utente'!D70) -> 00:00:00 | G52: =IF(D52>E52,0, calcoloperiodi1!H54) -> 0 | H52: 1 | J52: 2173-10-14 | K52: 1 | L52: 2173-10-14 | M52: 1 | N52: 2173-10-14 | O52: 1 | P52: 2173-10-14 | Q52: 1 | R52: 2173-10-14 | S52: 1 | T52: 2173-10-14 | U52: 1 | X52: 0 | Y52: 1899 | AB52: / | AC52: 0 | AD52: 1 | AG52: 0 | AH52: 0 | AI52: 0
C53: 45 | D53: =IF(AND(YEAR('front utente'!C71)=2013,'front utente'!$I$15="si"),$C$2,'front utente'!C71) -> 00:00:00 | E53: =IF(AND(YEAR('front utente'!D71)=2013,'front utente'!$I$15="si"),$D$2,'front utente'!D71) -> 00:00:00 | G53: =IF(D53>E53,0, calcoloperiodi1!H55) -> 0 | H53: 1 | J53: 2173-10-14 | K53: 1 | L53: 2173-10-14 | M53: 1 | N53: 2173-10-14 | O53: 1 | P53: 2173-10-14 | Q53: 1 | R53: 2173-10-14 | S53: 1 | T53: 2173-10-14 | U53: 1 | X53: 0 | Y53: 1899 | AB53: / | AC53: 0 | AD53: 1 | AG53: 0 | AH53: 0 | AI53: 0
C54: 46 | D54: =IF(AND(YEAR('front utente'!C72)=2013,'front utente'!$I$15="si"),$C$2,'front utente'!C72) -> 00:00:00 | E54: =IF(AND(YEAR('front utente'!D72)=2013,'front utente'!$I$15="si"),$D$2,'front utente'!D72) -> 00:00:00 | G54: =IF(D54>E54,0, calcoloperiodi1!H56) -> 0 | H54: 1 | J54: 2173-10-14 | K54: 1 | L54: 2173-10-14 | M54: 1 | N54: 2173-10-14 | O54: 1 | P54: 2173-10-14 | Q54: 1 | R54: 2173-10-14 | S54: 1 | T54: 2173-10-14 | U54: 1 | X54: 0 | Y54: 1899 | AB54: / | AC54: 0 | AD54: 1 | AG54: 0 | AH54: 0 | AI54: 0
C55: 47 | D55: =IF(AND(YEAR('front utente'!C73)=2013,'front utente'!$I$15="si"),$C$2,'front utente'!C73) -> 00:00:00 | E55: =IF(AND(YEAR('front utente'!D73)=2013,'front utente'!$I$15="si"),$D$2,'front utente'!D73) -> 00:00:00 | G55: =IF(D55>E55,0, calcoloperiodi1!H57) -> 0 | H55: 1 | J55: 2173-10-14 | K55: 1 | L55: 2173-10-14 | M55: 1 | N55: 2173-10-14 | O55: 1 | P55: 2173-10-14 | Q55: 1 | R55: 2173-10-14 | S55: 1 | T55: 2173-10-14 | U55: 1 | X55: 0 | Y55: 1899 | AB55: / | AC55: 0 | AD55: 1 | AG55: 0 | AH55: 0 | AI55: 0
C56: 48 | D56: =IF(AND(YEAR('front utente'!C74)=2013,'front utente'!$I$15="si"),$C$2,'front utente'!C74) -> 00:00:00 | E56: =IF(AND(YEAR('front utente'!D74)=2013,'front utente'!$I$15="si"),$D$2,'front utente'!D74) -> 00:00:00 | G56: =IF(D56>E56,0, calcoloperiodi1!H58) -> 0 | H56: 1 | J56: 2173-10-14 | K56: 1 | L56: 2173-10-14 | M56: 1 | N56: 2173-10-14 | O56: 1 | P56: 2173-10-14 | Q56: 1 | R56: 2173-10-14 | S56: 1 | T56: 2173-10-14 | U56: 1 | X56: 0 | Y56: 1899 | AB56: / | AC56: 0 | AD56: 1 | AG56: 0 | AH56: 0 | AI56: 0
C57: 49 | D57: =IF(AND(YEAR('front utente'!C75)=2013,'front utente'!$I$15="si"),$C$2,'front utente'!C75) -> 00:00:00 | E57: =IF(AND(YEAR('front utente'!D75)=2013,'front utente'!$I$15="si"),$D$2,'front utente'!D75) -> 00:00:00 | G57: =IF(D57>E57,0, calcoloperiodi1!H59) -> 0 | H57: 1 | J57: 2173-10-14 | K57: 1 | L57: 2173-10-14 | M57: 1 | N57: 2173-10-14 | O57: 1 | P57: 2173-10-14 | Q57: 1 | R57: 2173-10-14 | S57: 1 | T57: 2173-10-14 | U57: 1 | X57: 0 | Y57: 1899 | AB57: / | AC57: 0 | AD57: 1 | AG57: 0 | AH57: 0 | AI57: 0
C58: 50 | D58: =IF(AND(YEAR('front utente'!C76)=2013,'front utente'!$I$15="si"),$C$2,'front utente'!C76) -> 00:00:00 | E58: =IF(AND(YEAR('front utente'!D76)=2013,'front utente'!$I$15="si"),$D$2,'front utente'!D76) -> 00:00:00 | G58: =IF(D58>E58,0, calcoloperiodi1!H60) -> 0 | H58: 1 | J58: 2173-10-14 | K58: 1 | L58: 2173-10-14 | M58: 1 | N58: 2173-10-14 | O58: 1 | P58: 2173-10-14 | Q58: 1 | R58: 2173-10-14 | S58: 1 | T58: 2173-10-14 | U58: 1 | X58: 0 | Y58: 1899 | AB58: / | AC58: 0 | AD58: 1 | AG58: 0 | AH58: 0 | AI58: 0
C59: 51 | D59: =IF(AND(YEAR('front utente'!C77)=2013,'front utente'!$I$15="si"),$C$2,'front utente'!C77) -> 00:00:00 | E59: =IF(AND(YEAR('front utente'!D77)=2013,'front utente'!$I$15="si"),$D$2,'front utente'!D77) -> 00:00:00 | G59: =IF(D59>E59,0, calcoloperiodi1!H61) -> 0 | H59: 1 | J59: 2173-10-14 | K59: 1 | L59: 2173-10-14 | M59: 1 | N59: 2173-10-14 | O59: 1 | P59: 2173-10-14 | Q59: 1 | R59: 2173-10-14 | S59: 1 | T59: 2173-10-14 | U59: 1 | X59: 0 | Y59: 1899 | AB59: / | AC59: 0 | AD59: 1 | AG59: 0 | AH59: 0 | AI59: 0
C60: 52 | D60: =IF(AND(YEAR('front utente'!C78)=2013,'front utente'!$I$15="si"),$C$2,'front utente'!C78) -> 00:00:00 | E60: =IF(AND(YEAR('front utente'!D78)=2013,'front utente'!$I$15="si"),$D$2,'front utente'!D78) -> 00:00:00 | G60: =IF(D60>E60,0, calcoloperiodi1!H62) -> 0 | H60: 1 | J60: 2173-10-14 | K60: 1 | L60: 2173-10-14 | M60: 1 | N60: 2173-10-14 | O60: 1 | P60: 2173-10-14 | Q60: 1 | R60: 2173-10-14 | S60: 1 | T60: 2173-10-14 | U60: 1 | X60: 0 | Y60: 1899 | AB60: / | AC60: 0 | AD60: 1 | AG60: 0 | AH60: 0 | AI60: 0
C61: 53 | D61: =IF(AND(YEAR('front utente'!C79)=2013,'front utente'!$I$15="si"),$C$2,'front utente'!C79) -> 00:00:00 | E61: =IF(AND(YEAR('front utente'!D79)=2013,'front utente'!$I$15="si"),$D$2,'front utente'!D79) -> 00:00:00 | G61: =IF(D61>E61,0, calcoloperiodi1!H63) -> 0 | H61: 1 | J61: 2173-10-14 | K61: 1 | L61: 2173-10-14 | M61: 1 | N61: 2173-10-14 | O61: 1 | P61: 2173-10-14 | Q61: 1 | R61: 2173-10-14 | S61: 1 | T61: 2173-10-14 | U61: 1 | X61: 0 | Y61: 1899 | AB61: / | AC61: 0 | AD61: 1 | AG61: 0 | AH61: 0 | AI61: 0
C62: 54 | D62: =IF(AND(YEAR('front utente'!C80)=2013,'front utente'!$I$15="si"),$C$2,'front utente'!C80) -> 00:00:00 | E62: =IF(AND(YEAR('front utente'!D80)=2013,'front utente'!$I$15="si"),$D$2,'front utente'!D80) -> 00:00:00 | G62: =IF(D62>E62,0, calcoloperiodi1!H64) -> 0 | H62: 1 | J62: 2173-10-14 | K62: 1 | L62: 2173-10-14 | M62: 1 | N62: 2173-10-14 | O62: 1 | P62: 2173-10-14 | Q62: 1 | R62: 2173-10-14 | S62: 1 | T62: 2173-10-14 | U62: 1 | X62: 0 | Y62: 1899 | AB62: / | AC62: 0 | AD62: 1 | AG62: 0 | AH62: 0 | AI62: 0
C63: 55 | D63: =IF(AND(YEAR('front utente'!C81)=2013,'front utente'!$I$15="si"),$C$2,'front utente'!C81) -> 00:00:00 | E63: =IF(AND(YEAR('front utente'!D81)=2013,'front utente'!$I$15="si"),$D$2,'front utente'!D81) -> 00:00:00 | G63: =IF(D63>E63,0, calcoloperiodi1!H65) -> 0 | H63: 1 | J63: 2173-10-14 | K63: 1 | L63: 2173-10-14 | M63: 1 | N63: 2173-10-14 | O63: 1 | P63: 2173-10-14 | Q63: 1 | R63: 2173-10-14 | S63: 1 | T63: 2173-10-14 | U63: 1 | X63: 0 | Y63: 1899 | AB63: / | AC63: 0 | AD63: 1 | AG63: 0 | AH63: 0 | AI63: 0
C64: 56 | D64: =IF(AND(YEAR('front utente'!C82)=2013,'front utente'!$I$15="si"),$C$2,'front utente'!C82) -> 00:00:00 | E64: =IF(AND(YEAR('front utente'!D82)=2013,'front utente'!$I$15="si"),$D$2,'front utente'!D82) -> 00:00:00 | G64: =IF(D64>E64,0, calcoloperiodi1!H66) -> 0 | H64: 1 | J64: 2173-10-14 | K64: 1 | L64: 2173-10-14 | M64: 1 | N64: 2173-10-14 | O64: 1 | P64: 2173-10-14 | Q64: 1 | R64: 2173-10-14 | S64: 1 | T64: 2173-10-14 | U64: 1 | X64: 0 | Y64: 1899 | AB64: / | AC64: 0 | AD64: 1 | AG64: 0 | AH64: 0 | AI64: 0
C65: 57 | D65: =IF(AND(YEAR('front utente'!C83)=2013,'front utente'!$I$15="si"),$C$2,'front utente'!C83) -> 00:00:00 | E65: =IF(AND(YEAR('front utente'!D83)=2013,'front utente'!$I$15="si"),$D$2,'front utente'!D83) -> 00:00:00 | G65: =IF(D65>E65,0, calcoloperiodi1!H67) -> 0 | H65: 1 | J65: 2173-10-14 | K65: 1 | L65: 2173-10-14 | M65: 1 | N65: 2173-10-14 | O65: 1 | P65: 2173-10-14 | Q65: 1 | R65: 2173-10-14 | S65: 1 | T65: 2173-10-14 | U65: 1 | X65: 0 | Y65: 1899 | AB65: / | AC65: 0 | AD65: 1 | AG65: 0 | AH65: 0 | AI65: 0
C66: 58 | D66: =IF(AND(YEAR('front utente'!C84)=2013,'front utente'!$I$15="si"),$C$2,'front utente'!C84) -> 00:00:00 | E66: =IF(AND(YEAR('front utente'!D84)=2013,'front utente'!$I$15="si"),$D$2,'front utente'!D84) -> 00:00:00 | G66: =IF(D66>E66,0, calcoloperiodi1!H68) -> 0 | H66: 1 | J66: 2173-10-14 | K66: 1 | L66: 2173-10-14 | M66: 1 | N66: 2173-10-14 | O66: 1 | P66: 2173-10-14 | Q66: 1 | R66: 2173-10-14 | S66: 1 | T66: 2173-10-14 | U66: 1 | X66: 0 | Y66: 1899 | AB66: / | AC66: 0 | AD66: 1 | AG66: 0 | AH66: 0 | AI66: 0
C67: 59 | D67: =IF(AND(YEAR('front utente'!C85)=2013,'front utente'!$I$15="si"),$C$2,'front utente'!C85) -> 00:00:00 | E67: =IF(AND(YEAR('front utente'!D85)=2013,'front utente'!$I$15="si"),$D$2,'front utente'!D85) -> 00:00:00 | G67: =IF(D67>E67,0, calcoloperiodi1!H69) -> 0 | H67: 1 | J67: 2173-10-14 | K67: 1 | L67: 2173-10-14 | M67: 1 | N67: 2173-10-14 | O67: 1 | P67: 2173-10-14 | Q67: 1 | R67: 2173-10-14 | S67: 1 | T67: 2173-10-14 | U67: 1 | X67: 0 | Y67: 1899 | AB67: / | AC67: 0 | AD67: 1 | AG67: 0 | AH67: 0 | AI67: 0
C68: 60 | D68: =IF(AND(YEAR('front utente'!C86)=2013,'front utente'!$I$15="si"),$C$2,'front utente'!C86) -> 00:00:00 | E68: =IF(AND(YEAR('front utente'!D86)=2013,'front utente'!$I$15="si"),$D$2,'front utente'!D86) -> 00:00:00 | G68: =IF(D68>E68,0, calcoloperiodi1!H70) -> 0 | H68: 1 | J68: 2173-10-14 | K68: 1 | L68: 2173-10-14 | M68: 1 | N68: 2173-10-14 | O68: 1 | P68: 2173-10-14 | Q68: 1 | R68: 2173-10-14 | S68: 1 | T68: 2173-10-14 | U68: 1 | X68: 0 | Y68: 1899 | AB68: / | AC68: 0 | AD68: 1 | AG68: 0 | AH68: 0 | AI68: 0
C69: 61 | D69: =IF(AND(YEAR('front utente'!C87)=2013,'front utente'!$I$15="si"),$C$2,'front utente'!C87) -> 00:00:00 | E69: =IF(AND(YEAR('front utente'!D87)=2013,'front utente'!$I$15="si"),$D$2,'front utente'!D87) -> 00:00:00 | G69: =IF(D69>E69,0, calcoloperiodi1!H71) -> 0 | H69: 1 | J69: 2173-10-14 | K69: 1 | L69: 2173-10-14 | M69: 1 | N69: 2173-10-14 | O69: 1 | P69: 2173-10-14 | Q69: 1 | R69: 2173-10-14 | S69: 1 | T69: 2173-10-14 | U69: 1 | X69: 0 | Y69: 1899 | AB69: / | AC69: 0 | AD69: 1 | AG69: 0 | AH69: 0 | AI69: 0
C70: 62 | D70: =IF(AND(YEAR('front utente'!C88)=2013,'front utente'!$I$15="si"),$C$2,'front utente'!C88) -> 00:00:00 | E70: =IF(AND(YEAR('front utente'!D88)=2013,'front utente'!$I$15="si"),$D$2,'front utente'!D88) -> 00:00:00 | G70: =IF(D70>E70,0, calcoloperiodi1!H72) -> 0 | H70: 1 | J70: 2173-10-14 | K70: 1 | L70: 2173-10-14 | M70: 1 | N70: 2173-10-14 | O70: 1 | P70: 2173-10-14 | Q70: 1 | R70: 2173-10-14 | S70: 1 | T70: 2173-10-14 | U70: 1 | X70: 0 | Y70: 1899 | AB70: / | AC70: 0 | AD70: 1 | AG70: 0 | AH70: 0 | AI70: 0
C71: 63 | D71: =IF(AND(YEAR('front utente'!C89)=2013,'front utente'!$I$15="si"),$C$2,'front utente'!C89) -> 00:00:00 | E71: =IF(AND(YEAR('front utente'!D89)=2013,'front utente'!$I$15="si"),$D$2,'front utente'!D89) -> 00:00:00 | G71: =IF(D71>E71,0, calcoloperiodi1!H73) -> 0 | H71: 1 | J71: 2173-10-14 | K71: 1 | L71: 2173-10-14 | M71: 1 | N71: 2173-10-14 | O71: 1 | P71: 2173-10-14 | Q71: 1 | R71: 2173-10-14 | S71: 1 | T71: 2173-10-14 | U71: 1 | X71: 0 | Y71: 1899 | AB71: / | AC71: 0 | AD71: 1 | AG71: 0 | AH71: 0 | AI71: 0
C72: 64 | D72: =IF(AND(YEAR('front utente'!C90)=2013,'front utente'!$I$15="si"),$C$2,'front utente'!C90) -> 00:00:00 | E72: =IF(AND(YEAR('front utente'!D90)=2013,'front utente'!$I$15="si"),$D$2,'front utente'!D90) -> 00:00:00 | G72: =IF(D72>E72,0, calcoloperiodi1!H74) -> 0 | H72: 1 | J72: 2173-10-14 | K72: 1 | L72: 2173-10-14 | M72: 1 | N72: 2173-10-14 | O72: 1 | P72: 2173-10-14 | Q72: 1 | R72: 2173-10-14 | S72: 1 | T72: 2173-10-14 | U72: 1 | X72: 0 | Y72: 1899 | AB72: / | AC72: 0 | AD72: 1 | AG72: 0 | AH72: 0 | AI72: 0
C73: 65 | D73: =IF(AND(YEAR('front utente'!C91)=2013,'front utente'!$I$15="si"),$C$2,'front utente'!C91) -> 00:00:00 | E73: =IF(AND(YEAR('front utente'!D91)=2013,'front utente'!$I$15="si"),$D$2,'front utente'!D91) -> 00:00:00 | G73: =IF(D73>E73,0, calcoloperiodi1!H75) -> 0 | H73: 1 | J73: 2173-10-14 | K73: 1 | L73: 2173-10-14 | M73: 1 | N73: 2173-10-14 | O73: 1 | P73: 2173-10-14 | Q73: 1 | R73: 2173-10-14 | S73: 1 | T73: 2173-10-14 | U73: 1 | X73: 0 | Y73: 1899 | AB73: / | AC73: 0 | AD73: 1 | AG73: 0 | AH73: 0 | AI73: 0
C74: 66 | D74: =IF(AND(YEAR('front utente'!C92)=2013,'front utente'!$I$15="si"),$C$2,'front utente'!C92) -> 00:00:00 | E74: =IF(AND(YEAR('front utente'!D92)=2013,'front utente'!$I$15="si"),$D$2,'front utente'!D92) -> 00:00:00 | G74: =IF(D74>E74,0, calcoloperiodi1!H76) -> 0 | H74: 1 | J74: 2173-10-14 | K74: 1 | L74: 2173-10-14 | M74: 1 | N74: 2173-10-14 | O74: 1 | P74: 2173-10-14 | Q74: 1 | R74: 2173-10-14 | S74: 1 | T74: 2173-10-14 | U74: 1 | X74: 0 | Y74: 1899 | Z74: =IF(Y74>1900,Y74,"") ->  | AB74: / | AC74: 0 | AD74: 1 | AG74: 0 | AH74: 0 | AI74: 0 | AT74: =IF(AG74=1,AE74,"") -> 
C75: 67 | D75: =IF(AND(YEAR('front utente'!C93)=2013,'front utente'!$I$15="si"),$C$2,'front utente'!C93) -> 00:00:00 | E75: =IF(AND(YEAR('front utente'!D93)=2013,'front utente'!$I$15="si"),$D$2,'front utente'!D93) -> 00:00:00 | G75: =IF(D75>E75,0, calcoloperiodi1!H77) -> 0 | H75: =H74+G75 -> 1 | J75: =IF( AND(H75>1095-$I$11,D75>0,B75<>"si",YEAR(E75)>1995 ),E75-$I$11,100000) -> 2173-10-14 | K75: =H75 -> 1 | L75: =IF( AND(H75>3285-$I$11,D75>0,B75<>"si",YEAR(E75)>1995),E75-$I$11,100000) -> 2173-10-14 | M75: =K75 -> 1 | N75: =IF( AND(H75>5475-$I$11,D75>0,B75<>"si",YEAR(E75)>1995),E75-$I$11,100000) -> 2173-10-14 | O75: =M75 -> 1 | P75: =IF( AND(H75>7665-$I$11,D75>0,B75<>"si",YEAR(E75)>1995),E75-$I$11,100000) -> 2173-10-14 | Q75: =O75 -> 1 | R75: =IF( AND(H75>10220-$I$11,D75>0,B75<>"si"),E75-$I$11,100000) -> 2173-10-14 | S75: =Q75 -> 1 | T75: =IF( AND(H75>12775-$I$11,D75>0,B75<>"si"),E75-$I$11,100000) -> 2173-10-14 | U75: 1 | X75: 0 | Y75: 1899 | AB75: / | AC75: 0 | AD75: 1 | AG75: 0 | AH75: 0 | AI75: 0
C76: 68 | D76: =IF(AND(YEAR('front utente'!C94)=2013,'front utente'!$I$15="si"),$C$2,'front utente'!C94) -> 00:00:00 | E76: =IF(AND(YEAR('front utente'!D94)=2013,'front utente'!$I$15="si"),$D$2,'front utente'!D94) -> 00:00:00 | G76: =IF(D76>E76,0, calcoloperiodi1!H78) -> 0 | H76: 1 | J76: 2173-10-14 | K76: 1 | L76: 2173-10-14 | M76: 1 | N76: 2173-10-14 | O76: 1 | P76: 2173-10-14 | Q76: 1 | R76: 2173-10-14 | S76: 1 | T76: 2173-10-14 | U76: 1 | X76: 0 | Y76: 1899 | AB76: / | AC76: 0 | AD76: 1 | AG76: 0 | AH76: 0 | AI76: 0
C77: 69 | D77: =IF(AND(YEAR('front utente'!C95)=2013,'front utente'!$I$15="si"),$C$2,'front utente'!C95) -> 00:00:00 | E77: =IF(AND(YEAR('front utente'!D95)=2013,'front utente'!$I$15="si"),$D$2,'front utente'!D95) -> 00:00:00 | G77: =IF(D77>E77,0, calcoloperiodi1!H79) -> 0 | H77: 1 | J77: 2173-10-14 | K77: 1 | L77: 2173-10-14 | M77: 1 | N77: 2173-10-14 | O77: 1 | P77: 2173-10-14 | Q77: 1 | R77: 2173-10-14 | S77: 1 | T77: 2173-10-14 | U77: 1 | X77: 0 | Y77: 1899 | AB77: / | AC77: 0 | AD77: 1 | AG77: 0 | AH77: 0 | AI77: 0
C78: 70 | D78: =IF(AND(YEAR('front utente'!C96)=2013,'front utente'!$I$15="si"),$C$2,'front utente'!C96) -> 00:00:00 | E78: =IF(AND(YEAR('front utente'!D96)=2013,'front utente'!$I$15="si"),$D$2,'front utente'!D96) -> 00:00:00 | G78: =IF(D78>E78,0, calcoloperiodi1!H80) -> 0 | H78: 1 | J78: 2173-10-14 | K78: 1 | L78: 2173-10-14 | M78: 1 | N78: 2173-10-14 | O78: 1 | P78: 2173-10-14 | Q78: 1 | R78: 2173-10-14 | S78: 1 | T78: 2173-10-14 | U78: 1 | X78: 0 | Y78: 1899 | AB78: / | AC78: 0 | AD78: 1 | AG78: =IF(AE78<>"",IF( OR( AF78>179, X78=1 ),1,0),0) -> 0 | AH78: 0 | AI78: 0
C79: 71 | D79: =IF(AND(YEAR('front utente'!C97)=2013,'front utente'!$I$15="si"),$C$2,'front utente'!C97) -> 00:00:00 | E79: =IF(AND(YEAR('front utente'!D97)=2013,'front utente'!$I$15="si"),$D$2,'front utente'!D97) -> 00:00:00 | G79: =IF(D79>E79,0, calcoloperiodi1!H81) -> 0 | H79: 1 | J79: 2173-10-14 | K79: 1 | L79: 2173-10-14 | M79: 1 | N79: 2173-10-14 | O79: 1 | P79: 2173-10-14 | Q79: 1 | R79: 2173-10-14 | S79: 1 | T79: 2173-10-14 | U79: 1 | X79: 0 | Y79: 1899 | AB79: / | AC79: 0 | AD79: 1 | AG79: 0 | AH79: 0 | AI79: 0
C80: 72 | D80: =IF(AND(YEAR('front utente'!C98)=2013,'front utente'!$I$15="si"),$C$2,'front utente'!C98) -> 00:00:00 | E80: =IF(AND(YEAR('front utente'!D98)=2013,'front utente'!$I$15="si"),$D$2,'front utente'!D98) -> 00:00:00 | G80: =IF(D80>E80,0, calcoloperiodi1!H82) -> 0 | H80: 1 | J80: 2173-10-14 | K80: 1 | L80: 2173-10-14 | M80: 1 | N80: 2173-10-14 | O80: 1 | P80: 2173-10-14 | Q80: 1 | R80: 2173-10-14 | S80: 1 | T80: 2173-10-14 | U80: 1 | X80: 0 | Y80: 1899 | AB80: / | AC80: 0 | AD80: 1 | AG80: 0 | AH80: 0 | AI80: 0
C81: 73 | D81: =IF(AND(YEAR('front utente'!C99)=2013,'front utente'!$I$15="si"),$C$2,'front utente'!C99) -> 00:00:00 | E81: =IF(AND(YEAR('front utente'!D99)=2013,'front utente'!$I$15="si"),$D$2,'front utente'!D99) -> 00:00:00 | G81: =IF(D81>E81,0, calcoloperiodi1!H83) -> 0 | H81: 1 | J81: 2173-10-14 | K81: 1 | L81: 2173-10-14 | M81: 1 | N81: 2173-10-14 | O81: 1 | P81: 2173-10-14 | Q81: 1 | R81: 2173-10-14 | S81: 1 | T81: 2173-10-14 | U81: 1 | X81: 0 | Y81: 1899 | AB81: / | AC81: 0 | AD81: 1 | AG81: 0 | AH81: 0 | AI81: 0
C82: 74 | D82: =IF(AND(YEAR('front utente'!C100)=2013,'front utente'!$I$15="si"),$C$2,'front utente'!C100) -> 00:00:00 | E82: =IF(AND(YEAR('front utente'!D100)=2013,'front utente'!$I$15="si"),$D$2,'front utente'!D100) -> 00:00:00 | G82: =IF(D82>E82,0, calcoloperiodi1!H84) -> 0 | H82: 1 | J82: 2173-10-14 | K82: 1 | L82: 2173-10-14 | M82: 1 | N82: 2173-10-14 | O82: 1 | P82: 2173-10-14 | Q82: 1 | R82: 2173-10-14 | S82: 1 | T82: 2173-10-14 | U82: 1 | X82: 0 | Y82: 1899 | AB82: / | AC82: 0 | AD82: 1 | AG82: 0 | AH82: 0 | AI82: 0
C83: 75 | D83: =IF(AND(YEAR('front utente'!C101)=2013,'front utente'!$I$15="si"),$C$2,'front utente'!C101) -> 00:00:00 | E83: =IF(AND(YEAR('front utente'!D101)=2013,'front utente'!$I$15="si"),$D$2,'front utente'!D101) -> 00:00:00 | G83: =IF(D83>E83,0, calcoloperiodi1!H85) -> 0 | H83: 1 | J83: 2173-10-14 | K83: 1 | L83: 2173-10-14 | M83: 1 | N83: 2173-10-14 | O83: 1 | P83: 2173-10-14 | Q83: 1 | R83: 2173-10-14 | S83: 1 | T83: 2173-10-14 | U83: 1 | X83: =IF(AND(YEAR(D83)=YEAR(E83),E83-D83>147, MONTH(D83)<3,MONTH(E83)>5,DAY(E83)>29 ),1,0) -> 0 | Y83: 1899 | AB83: / | AC83: 0 | AD83: 1 | AG83: 0 | AH83: 0 | AI83: 0
C84: 76 | D84: =IF(AND(YEAR('front utente'!C102)=2013,'front utente'!$I$15="si"),$C$2,'front utente'!C102) -> 00:00:00 | E84: =IF(AND(YEAR('front utente'!D102)=2013,'front utente'!$I$15="si"),$D$2,'front utente'!D102) -> 00:00:00 | G84: =IF(D84>E84,0, calcoloperiodi1!H86) -> 0 | H84: 1 | J84: 2173-10-14 | K84: 1 | L84: 2173-10-14 | M84: 1 | N84: 2173-10-14 | O84: 1 | P84: 2173-10-14 | Q84: 1 | R84: 2173-10-14 | S84: 1 | T84: 2173-10-14 | U84: 1 | X84: 0 | Y84: 1899 | AB84: / | AC84: 0 | AD84: 1 | AG84: 0 | AH84: 0 | AI84: 0
C85: 77 | D85: =IF(AND(YEAR('front utente'!C103)=2013,'front utente'!$I$15="si"),$C$2,'front utente'!C103) -> 00:00:00 | E85: =IF(AND(YEAR('front utente'!D103)=2013,'front utente'!$I$15="si"),$D$2,'front utente'!D103) -> 00:00:00 | G85: =IF(D85>E85,0, calcoloperiodi1!H87) -> 0 | H85: 1 | J85: 2173-10-14 | K85: 1 | L85: 2173-10-14 | M85: 1 | N85: 2173-10-14 | O85: 1 | P85: 2173-10-14 | Q85: 1 | R85: 2173-10-14 | S85: 1 | T85: 2173-10-14 | U85: 1 | X85: 0 | Y85: 1899 | AB85: / | AC85: 0 | AD85: 1 | AG85: 0 | AH85: 0 | AI85: 0
C86: 78 | D86: =IF(AND(YEAR('front utente'!C104)=2013,'front utente'!$I$15="si"),$C$2,'front utente'!C104) -> 00:00:00 | E86: =IF(AND(YEAR('front utente'!D104)=2013,'front utente'!$I$15="si"),$D$2,'front utente'!D104) -> 00:00:00 | G86: =IF(D86>E86,0, calcoloperiodi1!H88) -> 0 | H86: 1 | J86: 2173-10-14 | K86: 1 | L86: 2173-10-14 | M86: 1 | N86: 2173-10-14 | O86: 1 | P86: 2173-10-14 | Q86: 1 | R86: 2173-10-14 | S86: 1 | T86: 2173-10-14 | U86: 1 | X86: 0 | Y86: 1899 | AB86: / | AC86: 0 | AD86: 1 | AG86: 0 | AH86: 0 | AI86: 0
A87: \ | C87: =C86+1 -> 79 | D87: =IF(AND(YEAR('front utente'!C105)=2013,'front utente'!$I$15="si"),$C$2,'front utente'!C105) -> 00:00:00 | E87: =IF(AND(YEAR('front utente'!D105)=2013,'front utente'!$I$15="si"),$D$2,'front utente'!D105) -> 00:00:00 | G87: =IF(D87>E87,0, calcoloperiodi1!H89) -> 0 | H87: 1 | J87: 2173-10-14 | K87: 1 | L87: 2173-10-14 | M87: 1 | N87: 2173-10-14 | O87: 1 | P87: 2173-10-14 | Q87: 1 | R87: 2173-10-14 | S87: 1 | T87: 2173-10-14 | U87: =S87 -> 1 | X87: 0 | Y87: 1899 | AB87: / | AC87: 0 | AD87: 1 | AG87: 0 | AH87: 0 | AI87: 0
C88: 80 | D88: =IF(AND(YEAR('front utente'!C106)=2013,'front utente'!$I$15="si"),$C$2,'front utente'!C106) -> 00:00:00 | E88: =IF(AND(YEAR('front utente'!D106)=2013,'front utente'!$I$15="si"),$D$2,'front utente'!D106) -> 00:00:00 | G88: =IF(D88>E88,0, calcoloperiodi1!H90) -> 0 | H88: 1 | J88: 2173-10-14 | K88: 1 | L88: 2173-10-14 | M88: 1 | N88: 2173-10-14 | O88: 1 | P88: 2173-10-14 | Q88: 1 | R88: 2173-10-14 | S88: 1 | T88: 2173-10-14 | U88: 1 | X88: 0 | Y88: 1899 | AB88: / | AC88: 0 | AD88: 1 | AG88: 0 | AH88: 0 | AI88: 0
C89: 81 | D89: =IF(AND(YEAR('front utente'!C107)=2013,'front utente'!$I$15="si"),$C$2,'front utente'!C107) -> 00:00:00 | E89: =IF(AND(YEAR('front utente'!D107)=2013,'front utente'!$I$15="si"),$D$2,'front utente'!D107) -> 00:00:00 | G89: =IF(D89>E89,0, calcoloperiodi1!H91) -> 0 | H89: 1 | J89: 2173-10-14 | K89: 1 | L89: 2173-10-14 | M89: 1 | N89: 2173-10-14 | O89: 1 | P89: 2173-10-14 | Q89: 1 | R89: 2173-10-14 | S89: 1 | T89: 2173-10-14 | U89: 1 | X89: 0 | Y89: 1899 | AB89: / | AC89: 0 | AD89: 1 | AG89: 0 | AH89: 0 | AI89: 0
C90: 82 | D90: =IF(AND(YEAR('front utente'!C108)=2013,'front utente'!$I$15="si"),$C$2,'front utente'!C108) -> 00:00:00 | E90: =IF(AND(YEAR('front utente'!D108)=2013,'front utente'!$I$15="si"),$D$2,'front utente'!D108) -> 00:00:00 | G90: =IF(D90>E90,0, calcoloperiodi1!H92) -> 0 | H90: 1 | J90: 2173-10-14 | K90: 1 | L90: 2173-10-14 | M90: 1 | N90: 2173-10-14 | O90: 1 | P90: 2173-10-14 | Q90: 1 | R90: 2173-10-14 | S90: 1 | T90: 2173-10-14 | U90: 1 | X90: 0 | Y90: 1899 | AB90: / | AC90: 0 | AD90: 1 | AG90: 0 | AH90: 0 | AI90: 0
C91: 83 | D91: =IF(AND(YEAR('front utente'!C109)=2013,'front utente'!$I$15="si"),$C$2,'front utente'!C109) -> 00:00:00 | E91: =IF(AND(YEAR('front utente'!D109)=2013,'front utente'!$I$15="si"),$D$2,'front utente'!D109) -> 00:00:00 | G91: =IF(D91>E91,0, calcoloperiodi1!H93) -> 0 | H91: 1 | J91: 2173-10-14 | K91: 1 | L91: 2173-10-14 | M91: 1 | N91: 2173-10-14 | O91: 1 | P91: 2173-10-14 | Q91: 1 | R91: 2173-10-14 | S91: 1 | T91: 2173-10-14 | U91: 1 | X91: 0 | Y91: 1899 | AB91: / | AC91: 0 | AD91: 1 | AG91: 0 | AH91: 0 | AI91: 0
C92: 84 | D92: =IF(AND(YEAR('front utente'!C110)=2013,'front utente'!$I$15="si"),$C$2,'front utente'!C110) -> 00:00:00 | E92: =IF(AND(YEAR('front utente'!D110)=2013,'front utente'!$I$15="si"),$D$2,'front utente'!D110) -> 00:00:00 | G92: =IF(D92>E92,0, calcoloperiodi1!H94) -> 0 | H92: 1 | J92: 2173-10-14 | K92: 1 | L92: 2173-10-14 | M92: 1 | N92: 2173-10-14 | O92: 1 | P92: 2173-10-14 | Q92: 1 | R92: 2173-10-14 | S92: 1 | T92: 2173-10-14 | U92: 1 | X92: 0 | Y92: 1899 | AB92: / | AC92: 0 | AD92: 1 | AG92: 0 | AH92: 0 | AI92: 0
C93: 85 | D93: =IF(AND(YEAR('front utente'!C111)=2013,'front utente'!$I$15="si"),$C$2,'front utente'!C111) -> 00:00:00 | E93: =IF(AND(YEAR('front utente'!D111)=2013,'front utente'!$I$15="si"),$D$2,'front utente'!D111) -> 00:00:00 | G93: =IF(D93>E93,0, calcoloperiodi1!H95) -> 0 | H93: 1 | J93: 2173-10-14 | K93: 1 | L93: 2173-10-14 | M93: 1 | N93: 2173-10-14 | O93: 1 | P93: 2173-10-14 | Q93: 1 | R93: 2173-10-14 | S93: 1 | T93: 2173-10-14 | U93: 1 | X93: 0 | Y93: 1899 | AB93: / | AC93: 0 | AD93: 1 | AG93: 0 | AH93: 0 | AI93: 0
C94: 86 | D94: =IF(AND(YEAR('front utente'!C112)=2013,'front utente'!$I$15="si"),$C$2,'front utente'!C112) -> 00:00:00 | E94: =IF(AND(YEAR('front utente'!D112)=2013,'front utente'!$I$15="si"),$D$2,'front utente'!D112) -> 00:00:00 | G94: =IF(D94>E94,0, calcoloperiodi1!H96) -> 0 | H94: 1 | J94: 2173-10-14 | K94: 1 | L94: 2173-10-14 | M94: 1 | N94: 2173-10-14 | O94: 1 | P94: 2173-10-14 | Q94: 1 | R94: 2173-10-14 | S94: 1 | T94: 2173-10-14 | U94: 1 | X94: 0 | Y94: 1899 | AB94: / | AC94: 0 | AD94: 1 | AG94: 0 | AH94: 0 | AI94: 0
C95: 87 | D95: =IF(AND(YEAR('front utente'!C113)=2013,'front utente'!$I$15="si"),$C$2,'front utente'!C113) -> 00:00:00 | E95: =IF(AND(YEAR('front utente'!D113)=2013,'front utente'!$I$15="si"),$D$2,'front utente'!D113) -> 00:00:00 | G95: =IF(D95>E95,0, calcoloperiodi1!H97) -> 0 | H95: 1 | J95: 2173-10-14 | K95: 1 | L95: 2173-10-14 | M95: 1 | N95: 2173-10-14 | O95: 1 | P95: 2173-10-14 | Q95: 1 | R95: 2173-10-14 | S95: 1 | T95: 2173-10-14 | U95: 1 | X95: 0 | Y95: 1899 | AB95: / | AC95: 0 | AD95: 1 | AG95: 0 | AH95: 0 | AI95: 0
C96: 88 | D96: =IF(AND(YEAR('front utente'!C114)=2013,'front utente'!$I$15="si"),$C$2,'front utente'!C114) -> 00:00:00 | E96: =IF(AND(YEAR('front utente'!D114)=2013,'front utente'!$I$15="si"),$D$2,'front utente'!D114) -> 00:00:00 | G96: =IF(D96>E96,0, calcoloperiodi1!H98) -> 0 | H96: 1 | J96: 2173-10-14 | K96: 1 | L96: 2173-10-14 | M96: 1 | N96: 2173-10-14 | O96: 1 | P96: 2173-10-14 | Q96: 1 | R96: 2173-10-14 | S96: 1 | T96: 2173-10-14 | U96: 1 | X96: 0 | Y96: 1899 | AB96: / | AC96: 0 | AD96: 1 | AG96: 0 | AH96: 0 | AI96: 0
C97: 89 | D97: =IF(AND(YEAR('front utente'!C115)=2013,'front utente'!$I$15="si"),$C$2,'front utente'!C115) -> 00:00:00 | E97: =IF(AND(YEAR('front utente'!D115)=2013,'front utente'!$I$15="si"),$D$2,'front utente'!D115) -> 00:00:00 | G97: =IF(D97>E97,0, calcoloperiodi1!H99) -> 0 | H97: 1 | J97: 2173-10-14 | K97: 1 | L97: 2173-10-14 | M97: 1 | N97: 2173-10-14 | O97: 1 | P97: 2173-10-14 | Q97: 1 | R97: 2173-10-14 | S97: 1 | T97: 2173-10-14 | U97: 1 | X97: 0 | Y97: 1899 | AB97: / | AC97: 0 | AD97: 1 | AG97: 0 | AH97: 0 | AI97: 0
C98: 90 | D98: =IF(AND(YEAR('front utente'!C116)=2013,'front utente'!$I$15="si"),$C$2,'front utente'!C116) -> 00:00:00 | E98: =IF(AND(YEAR('front utente'!D116)=2013,'front utente'!$I$15="si"),$D$2,'front utente'!D116) -> 00:00:00 | G98: =IF(D98>E98,0, calcoloperiodi1!H100) -> 0 | H98: 1 | J98: 2173-10-14 | K98: 1 | L98: 2173-10-14 | M98: 1 | N98: 2173-10-14 | O98: 1 | P98: 2173-10-14 | Q98: 1 | R98: 2173-10-14 | S98: 1 | T98: 2173-10-14 | U98: 1 | X98: 0 | Y98: 1899 | AB98: / | AC98: 0 | AD98: 1 | AG98: 0 | AH98: 0 | AI98: 0
C99: 91 | D99: =IF(AND(YEAR('front utente'!C117)=2013,'front utente'!$I$15="si"),$C$2,'front utente'!C117) -> 00:00:00 | E99: =IF(AND(YEAR('front utente'!D117)=2013,'front utente'!$I$15="si"),$D$2,'front utente'!D117) -> 00:00:00 | G99: =IF(D99>E99,0, calcoloperiodi1!H101) -> 0 | H99: 1 | J99: 2173-10-14 | K99: 1 | L99: 2173-10-14 | M99: 1 | N99: 2173-10-14 | O99: 1 | P99: 2173-10-14 | Q99: 1 | R99: 2173-10-14 | S99: 1 | T99: 2173-10-14 | U99: 1 | X99: 0 | Y99: 1899 | AB99: / | AC99: 0 | AD99: 1 | AG99: 0 | AH99: 0 | AI99: 0
C100: 92 | D100: =IF(AND(YEAR('front utente'!C118)=2013,'front utente'!$I$15="si"),$C$2,'front utente'!C118) -> 00:00:00 | E100: =IF(AND(YEAR('front utente'!D118)=2013,'front utente'!$I$15="si"),$D$2,'front utente'!D118) -> 00:00:00 | G100: =IF(D100>E100,0, calcoloperiodi1!H102) -> 0 | H100: 1 | J100: 2173-10-14 | K100: 1 | L100: 2173-10-14 | M100: 1 | N100: 2173-10-14 | O100: 1 | P100: 2173-10-14 | Q100: 1 | R100: 2173-10-14 | S100: 1 | T100: 2173-10-14 | U100: 1 | X100: 0 | Y100: 1899 | AB100: / | AC100: 0 | AD100: 1 | AG100: 0 | AH100: 0 | AI100: 0
C101: 93 | D101: =IF(AND(YEAR('front utente'!C119)=2013,'front utente'!$I$15="si"),$C$2,'front utente'!C119) -> 00:00:00 | E101: =IF(AND(YEAR('front utente'!D119)=2013,'front utente'!$I$15="si"),$D$2,'front utente'!D119) -> 00:00:00 | G101: =IF(D101>E101,0, calcoloperiodi1!H103) -> 0 | H101: 1 | J101: 2173-10-14 | K101: 1 | L101: 2173-10-14 | M101: 1 | N101: 2173-10-14 | O101: 1 | P101: 2173-10-14 | Q101: 1 | R101: 2173-10-14 | S101: 1 | T101: 2173-10-14 | U101: 1 | X101: 0 | Y101: 1899 | AB101: / | AC101: 0 | AD101: 1 | AG101: 0 | AH101: 0 | AI101: 0
C102: 94 | D102: =IF(AND(YEAR('front utente'!C120)=2013,'front utente'!$I$15="si"),$C$2,'front utente'!C120) -> 00:00:00 | E102: =IF(AND(YEAR('front utente'!D120)=2013,'front utente'!$I$15="si"),$D$2,'front utente'!D120) -> 00:00:00 | G102: =IF(D102>E102,0, calcoloperiodi1!H104) -> 0 | H102: 1 | J102: 2173-10-14 | K102: 1 | L102: 2173-10-14 | M102: 1 | N102: 2173-10-14 | O102: 1 | P102: 2173-10-14 | Q102: 1 | R102: 2173-10-14 | S102: 1 | T102: 2173-10-14 | U102: 1 | X102: 0 | Y102: 1899 | AB102: / | AC102: 0 | AD102: 1 | AG102: 0 | AH102: 0 | AI102: 0
C103: 95 | D103: =IF(AND(YEAR('front utente'!C121)=2013,'front utente'!$I$15="si"),$C$2,'front utente'!C121) -> 00:00:00 | E103: =IF(AND(YEAR('front utente'!D121)=2013,'front utente'!$I$15="si"),$D$2,'front utente'!D121) -> 00:00:00 | G103: =IF(D103>E103,0, calcoloperiodi1!H105) -> 0 | H103: 1 | J103: 2173-10-14 | K103: 1 | L103: 2173-10-14 | M103: 1 | N103: 2173-10-14 | O103: 1 | P103: 2173-10-14 | Q103: 1 | R103: 2173-10-14 | S103: 1 | T103: 2173-10-14 | U103: 1 | X103: 0 | Y103: 1899 | AB103: / | AC103: 0 | AD103: 1 | AG103: 0 | AH103: 0 | AI103: 0
C104: 96 | D104: =IF(AND(YEAR('front utente'!C122)=2013,'front utente'!$I$15="si"),$C$2,'front utente'!C122) -> 00:00:00 | E104: =IF(AND(YEAR('front utente'!D122)=2013,'front utente'!$I$15="si"),$D$2,'front utente'!D122) -> 00:00:00 | G104: =IF(D104>E104,0, calcoloperiodi1!H106) -> 0 | H104: 1 | J104: 2173-10-14 | K104: 1 | L104: 2173-10-14 | M104: 1 | N104: 2173-10-14 | O104: 1 | P104: 2173-10-14 | Q104: 1 | R104: 2173-10-14 | S104: 1 | T104: 2173-10-14 | U104: 1 | X104: 0 | Y104: 1899 | AB104: / | AC104: 0 | AD104: 1 | AG104: 0 | AH104: 0 | AI104: 0
C105: =C104+1 -> 97 | D105: =IF(AND(YEAR('front utente'!C123)=2013,'front utente'!$I$15="si"),$C$2,'front utente'!C123) -> 00:00:00 | E105: =IF(AND(YEAR('front utente'!D123)=2013,'front utente'!$I$15="si"),$D$2,'front utente'!D123) -> 00:00:00 | G105: =IF(D105>E105,0, calcoloperiodi1!H107) -> 0 | H105: 1 | J105: 2173-10-14 | K105: 1 | L105: 2173-10-14 | M105: 1 | N105: 2173-10-14 | O105: 1 | P105: 2173-10-14 | Q105: 1 | R105: 2173-10-14 | S105: 1 | T105: 2173-10-14 | U105: =S105 -> 1 | X105: 0 | Y105: 1899 | AB105: / | AC105: 0 | AD105: 1 | AG105: 0 | AH105: 0 | AI105: 0
C106: =C105+1 -> 98 | D106: =IF(AND(YEAR('front utente'!C124)=2013,'front utente'!$I$15="si"),$C$2,'front utente'!C124) -> 00:00:00 | E106: =IF(AND(YEAR('front utente'!D124)=2013,'front utente'!$I$15="si"),$D$2,'front utente'!D124) -> 00:00:00 | G106: =IF(D106>E106,0, calcoloperiodi1!H108) -> 0 | H106: 1 | J106: 2173-10-14 | K106: 1 | L106: 2173-10-14 | M106: 1 | N106: 2173-10-14 | O106: 1 | P106: 2173-10-14 | Q106: 1 | R106: 2173-10-14 | S106: 1 | T106: 2173-10-14 | U106: =S106 -> 1 | X106: 0 | Y106: 1899 | AB106: / | AC106: 0 | AD106: 1 | AG106: 0 | AH106: 0 | AI106: 0
C107: =C106+1 -> 99 | D107: =IF(AND(YEAR('front utente'!C125)=2013,'front utente'!$I$15="si"),$C$2,'front utente'!C125) -> 00:00:00 | E107: =IF(AND(YEAR('front utente'!D125)=2013,'front utente'!$I$15="si"),$D$2,'front utente'!D125) -> 00:00:00 | G107: =IF(D107>E107,0, calcoloperiodi1!H109) -> 0 | H107: 1 | J107: 2173-10-14 | K107: 1 | L107: 2173-10-14 | M107: 1 | N107: 2173-10-14 | O107: 1 | P107: 2173-10-14 | Q107: 1 | R107: 2173-10-14 | S107: 1 | T107: 2173-10-14 | U107: =S107 -> 1 | X107: 0 | Y107: 1899 | AB107: / | AC107: 0 | AD107: 1 | AG107: 0 | AH107: 0 | AI107: 0
C108: =C107+1 -> 100 | D108: =IF(AND(YEAR('front utente'!C126)=2013,'front utente'!$I$15="si"),$C$2,'front utente'!C126) -> 00:00:00 | E108: =IF(AND(YEAR('front utente'!D126)=2013,'front utente'!$I$15="si"),$D$2,'front utente'!D126) -> 00:00:00 | G108: =IF(D108>E108,0, calcoloperiodi1!H110) -> 0 | H108: 1 | J108: 2173-10-14 | K108: 1 | L108: 2173-10-14 | M108: 1 | N108: 2173-10-14 | O108: 1 | P108: 2173-10-14 | Q108: 1 | R108: 2173-10-14 | S108: 1 | T108: 2173-10-14 | U108: =S108 -> 1 | X108: 0 | Y108: =IF(MONTH(D108)<9,YEAR(D108)-1,YEAR(D108)) -> 1899 | AA108: =IF(Y108>1900,Z108+1,"") ->  | AB108: =CONCATENATE(Z108,"/",AA108) -> / | AC108: =G108-F108 -> 0 | AD108: =IF(AB108=AB107,AC108+AD107,AC108) -> 1 | AE108: =IF(AB108<>AB188,AB108,"") ->  | AF108: =IF(AE108<>"",AD108,"") ->  | AG108: 0 | AH108: =AH107+AG108 -> 0 | AI108: =AH108*AG108 -> 0 | AJ108: =AE108 -> 
C109: =C108+1 -> 101 | D109: =IF(AND(YEAR('front utente'!C127)=2013,'front utente'!$I$15="si"),$C$2,'front utente'!C127) -> 00:00:00 | E109: =IF(AND(YEAR('front utente'!D127)=2013,'front utente'!$I$15="si"),$D$2,'front utente'!D127) -> 00:00:00 | G109: =IF(D109>E109,0, calcoloperiodi1!H111) -> 0 | H109: 1 | J109: 2173-10-14 | K109: 1 | L109: 2173-10-14 | M109: 1 | N109: 2173-10-14 | O109: 1 | P109: 2173-10-14 | Q109: 1 | R109: 2173-10-14 | S109: 1 | T109: 2173-10-14 | U109: =S109 -> 1 | X109: 0 | Y109: =IF(MONTH(D109)<9,YEAR(D109)-1,YEAR(D109)) -> 1899 | AA109: =IF(Y109>1900,Z109+1,"") ->  | AB109: =CONCATENATE(Z109,"/",AA109) -> / | AC109: =G109-F109 -> 0 | AD109: =IF(AB109=AB108,AC109+AD108,AC109) -> 1 | AE109: =IF(AB109<>AB189,AB109,"") ->  | AF109: =IF(AE109<>"",AD109,"") ->  | AG109: 0 | AH109: =AH108+AG109 -> 0 | AI109: =AH109*AG109 -> 0 | AJ109: =AE109 -> 
C110: 102 | D110: =IF(AND(YEAR('front utente'!C128)=2013,'front utente'!$I$15="si"),$C$2,'front utente'!C128) -> 00:00:00 | E110: =IF(AND(YEAR('front utente'!D128)=2013,'front utente'!$I$15="si"),$D$2,'front utente'!D128) -> 00:00:00 | G110: =IF(D110>E110,0, calcoloperiodi1!H112) -> 0 | H110: 1 | J110: 2173-10-14 | K110: 1 | L110: 2173-10-14 | M110: 1 | N110: 2173-10-14 | O110: 1 | P110: 2173-10-14 | Q110: 1 | R110: 2173-10-14 | S110: 1 | T110: 2173-10-14 | U110: 1 | X110: 0 | Y110: 1899 | AB110: / | AC110: 0 | AD110: 1 | AG110: 0 | AH110: 0 | AI110: 0
C111: 103 | D111: =IF(AND(YEAR('front utente'!C129)=2013,'front utente'!$I$15="si"),$C$2,'front utente'!C129) -> 00:00:00 | E111: =IF(AND(YEAR('front utente'!D129)=2013,'front utente'!$I$15="si"),$D$2,'front utente'!D129) -> 00:00:00 | G111: =IF(D111>E111,0, calcoloperiodi1!H113) -> 0 | H111: 1 | J111: 2173-10-14 | K111: 1 | L111: 2173-10-14 | M111: 1 | N111: 2173-10-14 | O111: 1 | P111: 2173-10-14 | Q111: 1 | R111: 2173-10-14 | S111: 1 | T111: 2173-10-14 | U111: 1 | X111: 0 | Y111: 1899 | AB111: / | AC111: 0 | AD111: 1 | AG111: 0 | AH111: 0 | AI111: 0
C112: 104 | D112: =IF(AND(YEAR('front utente'!C130)=2013,'front utente'!$I$15="si"),$C$2,'front utente'!C130) -> 00:00:00 | E112: =IF(AND(YEAR('front utente'!D130)=2013,'front utente'!$I$15="si"),$D$2,'front utente'!D130) -> 00:00:00 | G112: =IF(D112>E112,0, calcoloperiodi1!H114) -> 0 | H112: 1 | J112: 2173-10-14 | K112: 1 | L112: 2173-10-14 | M112: 1 | N112: 2173-10-14 | O112: 1 | P112: 2173-10-14 | Q112: 1 | R112: 2173-10-14 | S112: 1 | T112: 2173-10-14 | U112: 1 | X112: 0 | Y112: 1899 | AB112: / | AC112: 0 | AD112: 1 | AG112: 0 | AH112: 0 | AI112: 0
C113: 105 | D113: =IF(AND(YEAR('front utente'!C131)=2013,'front utente'!$I$15="si"),$C$2,'front utente'!C131) -> 00:00:00 | E113: =IF(AND(YEAR('front utente'!D131)=2013,'front utente'!$I$15="si"),$D$2,'front utente'!D131) -> 00:00:00 | G113: =IF(D113>E113,0, calcoloperiodi1!H115) -> 0 | H113: 1 | J113: 2173-10-14 | K113: 1 | L113: 2173-10-14 | M113: 1 | N113: 2173-10-14 | O113: 1 | P113: 2173-10-14 | Q113: 1 | R113: 2173-10-14 | S113: 1 | T113: 2173-10-14 | U113: 1 | X113: 0 | Y113: 1899 | AB113: / | AC113: 0 | AD113: 1 | AG113: 0 | AH113: 0 | AI113: 0
C114: 106 | D114: =IF(AND(YEAR('front utente'!C132)=2013,'front utente'!$I$15="si"),$C$2,'front utente'!C132) -> 00:00:00 | E114: =IF(AND(YEAR('front utente'!D132)=2013,'front utente'!$I$15="si"),$D$2,'front utente'!D132) -> 00:00:00 | G114: =IF(D114>E114,0, calcoloperiodi1!H116) -> 0 | H114: 1 | J114: 2173-10-14 | K114: 1 | L114: 2173-10-14 | M114: 1 | N114: 2173-10-14 | O114: 1 | P114: 2173-10-14 | Q114: 1 | R114: 2173-10-14 | S114: 1 | T114: 2173-10-14 | U114: 1 | X114: 0 | Y114: 1899 | AB114: / | AC114: 0 | AD114: 1 | AE114: / | AF114: 1 | AG114: 0 | AH114: 0 | AI114: 0 | AJ114: /
C115: 107 | D115: =IF(AND(YEAR('front utente'!C133)=2013,'front utente'!$I$15="si"),$C$2,'front utente'!C133) -> 00:00:00 | E115: =IF(AND(YEAR('front utente'!D133)=2013,'front utente'!$I$15="si"),$D$2,'front utente'!D133) -> 00:00:00 | G115: =IF(D115>E115,0, calcoloperiodi1!H117) -> 0 | H115: 1 | J115: 2173-10-14 | K115: 1 | L115: 2173-10-14 | M115: 1 | N115: 2173-10-14 | O115: 1 | P115: 2173-10-14 | Q115: 1 | R115: 2173-10-14 | S115: 1 | T115: 2173-10-14 | U115: 1 | X115: 0 | Y115: 1899 | AB115: / | AC115: 0 | AD115: 1 | AE115: / | AF115: 1 | AG115: 0 | AH115: 0 | AI115: 0 | AJ115: /
C116: 108 | D116: =IF(AND(YEAR('front utente'!C134)=2013,'front utente'!$I$15="si"),$C$2,'front utente'!C134) -> 00:00:00 | E116: =IF(AND(YEAR('front utente'!D134)=2013,'front utente'!$I$15="si"),$D$2,'front utente'!D134) -> 00:00:00 | G116: =IF(D116>E116,0, calcoloperiodi1!H118) -> 0 | H116: 1 | J116: 2173-10-14 | K116: 1 | L116: 2173-10-14 | M116: 1 | N116: 2173-10-14 | O116: 1 | P116: 2173-10-14 | Q116: 1 | R116: 2173-10-14 | S116: 1 | T116: 2173-10-14 | U116: 1 | X116: 0 | Y116: 1899 | AB116: / | AC116: 0 | AD116: 1 | AE116: / | AF116: 1 | AG116: 0 | AH116: 0 | AI116: 0 | AJ116: /
C117: 109 | D117: =IF(AND(YEAR('front utente'!C135)=2013,'front utente'!$I$15="si"),$C$2,'front utente'!C135) -> 00:00:00 | E117: =IF(AND(YEAR('front utente'!D135)=2013,'front utente'!$I$15="si"),$D$2,'front utente'!D135) -> 00:00:00 | G117: =IF(D117>E117,0, calcoloperiodi1!H119) -> 0 | H117: 1 | J117: 2173-10-14 | K117: 1 | L117: 2173-10-14 | M117: 1 | N117: 2173-10-14 | O117: 1 | P117: 2173-10-14 | Q117: 1 | R117: 2173-10-14 | S117: 1 | T117: 2173-10-14 | U117: 1 | X117: 0 | Y117: 1899 | AB117: / | AC117: 0 | AD117: 1 | AE117: / | AF117: 1 | AG117: 0 | AH117: 0 | AI117: 0 | AJ117: /
C118: 110 | D118: =IF(AND(YEAR('front utente'!C136)=2013,'front utente'!$I$15="si"),$C$2,'front utente'!C136) -> 00:00:00 | E118: =IF(AND(YEAR('front utente'!D136)=2013,'front utente'!$I$15="si"),$D$2,'front utente'!D136) -> 00:00:00 | G118: =IF(D118>E118,0, calcoloperiodi1!H120) -> 0 | H118: 1 | J118: 2173-10-14 | K118: 1 | L118: 2173-10-14 | M118: 1 | N118: 2173-10-14 | O118: 1 | P118: 2173-10-14 | Q118: 1 | R118: 2173-10-14 | S118: 1 | T118: 2173-10-14 | U118: 1 | X118: 0 | Y118: 1899 | AB118: / | AC118: 0 | AD118: 1 | AE118: / | AF118: 1 | AG118: 0 | AH118: 0 | AI118: 0 | AJ118: /
C119: 111 | D119: =IF(AND(YEAR('front utente'!C137)=2013,'front utente'!$I$15="si"),$C$2,'front utente'!C137) -> 00:00:00 | E119: =IF(AND(YEAR('front utente'!D137)=2013,'front utente'!$I$15="si"),$D$2,'front utente'!D137) -> 00:00:00 | G119: =IF(D119>E119,0, calcoloperiodi1!H121) -> 0 | H119: 1 | J119: 2173-10-14 | K119: 1 | L119: 2173-10-14 | M119: 1 | N119: 2173-10-14 | O119: 1 | P119: 2173-10-14 | Q119: 1 | R119: 2173-10-14 | S119: 1 | T119: 2173-10-14 | U119: 1 | X119: 0 | Y119: 1899 | AB119: / | AC119: 0 | AD119: 1 | AE119: / | AF119: 1 | AG119: 0 | AH119: 0 | AI119: 0 | AJ119: /
C120: 112 | D120: =IF(AND(YEAR('front utente'!C138)=2013,'front utente'!$I$15="si"),$C$2,'front utente'!C138) -> 00:00:00 | E120: =IF(AND(YEAR('front utente'!D138)=2013,'front utente'!$I$15="si"),$D$2,'front utente'!D138) -> 00:00:00 | G120: =IF(D120>E120,0, calcoloperiodi1!H122) -> 0 | H120: 1 | J120: 2173-10-14 | K120: 1 | L120: 2173-10-14 | M120: 1 | N120: 2173-10-14 | O120: 1 | P120: 2173-10-14 | Q120: 1 | R120: 2173-10-14 | S120: 1 | T120: 2173-10-14 | U120: 1 | X120: 0 | Y120: 1899 | AB120: / | AC120: 0 | AD120: 1 | AE120: / | AF120: 1 | AG120: 0 | AH120: 0 | AI120: 0 | AJ120: /
C121: 113 | D121: =IF(AND(YEAR('front utente'!C139)=2013,'front utente'!$I$15="si"),$C$2,'front utente'!C139) -> 00:00:00 | E121: =IF(AND(YEAR('front utente'!D139)=2013,'front utente'!$I$15="si"),$D$2,'front utente'!D139) -> 00:00:00 | G121: =IF(D121>E121,0, calcoloperiodi1!H123) -> 0 | H121: 1 | J121: 2173-10-14 | K121: 1 | L121: 2173-10-14 | M121: 1 | N121: 2173-10-14 | O121: 1 | P121: 2173-10-14 | Q121: 1 | R121: 2173-10-14 | S121: 1 | T121: 2173-10-14 | U121: 1 | X121: 0 | Y121: 1899 | AB121: / | AC121: 0 | AD121: 1 | AE121: / | AF121: 1 | AG121: 0 | AH121: 0 | AI121: 0 | AJ121: /
C122: 114 | D122: =IF(AND(YEAR('front utente'!C140)=2013,'front utente'!$I$15="si"),$C$2,'front utente'!C140) -> 00:00:00 | E122: =IF(AND(YEAR('front utente'!D140)=2013,'front utente'!$I$15="si"),$D$2,'front utente'!D140) -> 00:00:00 | G122: =IF(D122>E122,0, calcoloperiodi1!H124) -> 0 | H122: 1 | J122: 2173-10-14 | K122: 1 | L122: 2173-10-14 | M122: 1 | N122: 2173-10-14 | O122: 1 | P122: 2173-10-14 | Q122: 1 | R122: 2173-10-14 | S122: 1 | T122: 2173-10-14 | U122: 1 | X122: 0 | Y122: 1899 | AB122: / | AC122: 0 | AD122: 1 | AE122: / | AF122: 1 | AG122: 0 | AH122: 0 | AI122: 0 | AJ122: /
C123: 115 | D123: =IF(AND(YEAR('front utente'!C141)=2013,'front utente'!$I$15="si"),$C$2,'front utente'!C141) -> 00:00:00 | E123: =IF(AND(YEAR('front utente'!D141)=2013,'front utente'!$I$15="si"),$D$2,'front utente'!D141) -> 00:00:00 | G123: =IF(D123>E123,0, calcoloperiodi1!H125) -> 0 | H123: 1 | J123: 2173-10-14 | K123: 1 | L123: 2173-10-14 | M123: 1 | N123: 2173-10-14 | O123: 1 | P123: 2173-10-14 | Q123: 1 | R123: 2173-10-14 | S123: 1 | T123: 2173-10-14 | U123: 1 | X123: 0 | Y123: 1899 | AB123: / | AC123: 0 | AD123: 1 | AE123: / | AF123: 1 | AG123: 0 | AH123: 0 | AI123: 0 | AJ123: /
C124: 116 | D124: =IF(AND(YEAR('front utente'!C142)=2013,'front utente'!$I$15="si"),$C$2,'front utente'!C142) -> 00:00:00 | E124: =IF(AND(YEAR('front utente'!D142)=2013,'front utente'!$I$15="si"),$D$2,'front utente'!D142) -> 00:00:00 | G124: =IF(D124>E124,0, calcoloperiodi1!H126) -> 0 | H124: 1 | J124: 2173-10-14 | K124: 1 | L124: 2173-10-14 | M124: 1 | N124: 2173-10-14 | O124: 1 | P124: 2173-10-14 | Q124: 1 | R124: 2173-10-14 | S124: 1 | T124: 2173-10-14 | U124: 1 | X124: 0 | Y124: 1899 | AB124: / | AC124: 0 | AD124: 1 | AE124: / | AF124: 1 | AG124: 0 | AH124: 0 | AI124: 0 | AJ124: /
C125: 117 | D125: =IF(AND(YEAR('front utente'!C143)=2013,'front utente'!$I$15="si"),$C$2,'front utente'!C143) -> 00:00:00 | E125: =IF(AND(YEAR('front utente'!D143)=2013,'front utente'!$I$15="si"),$D$2,'front utente'!D143) -> 00:00:00 | G125: =IF(D125>E125,0, calcoloperiodi1!H127) -> 0 | H125: 1 | J125: 2173-10-14 | K125: 1 | L125: 2173-10-14 | M125: 1 | N125: 2173-10-14 | O125: 1 | P125: 2173-10-14 | Q125: 1 | R125: 2173-10-14 | S125: 1 | T125: 2173-10-14 | U125: 1 | X125: 0 | Y125: 1899 | AB125: / | AC125: 0 | AD125: 1 | AE125: / | AF125: 1 | AG125: 0 | AH125: 0 | AI125: 0 | AJ125: /
C126: 118 | D126: =IF(AND(YEAR('front utente'!C144)=2013,'front utente'!$I$15="si"),$C$2,'front utente'!C144) -> 00:00:00 | E126: =IF(AND(YEAR('front utente'!D144)=2013,'front utente'!$I$15="si"),$D$2,'front utente'!D144) -> 00:00:00 | G126: =IF(D126>E126,0, calcoloperiodi1!H128) -> 0 | H126: 1 | J126: 2173-10-14 | K126: 1 | L126: 2173-10-14 | M126: 1 | N126: 2173-10-14 | O126: 1 | P126: 2173-10-14 | Q126: 1 | R126: 2173-10-14 | S126: 1 | T126: 2173-10-14 | U126: 1 | X126: 0 | Y126: 1899 | AB126: / | AC126: 0 | AD126: 1 | AE126: / | AF126: 1 | AG126: 0 | AH126: 0 | AI126: 0 | AJ126: /
C127: 119 | D127: =IF(AND(YEAR('front utente'!C145)=2013,'front utente'!$I$15="si"),$C$2,'front utente'!C145) -> 00:00:00 | E127: =IF(AND(YEAR('front utente'!D145)=2013,'front utente'!$I$15="si"),$D$2,'front utente'!D145) -> 00:00:00 | G127: =IF(D127>E127,0, calcoloperiodi1!H129) -> 0 | H127: 1 | J127: 2173-10-14 | K127: 1 | L127: 2173-10-14 | M127: 1 | N127: 2173-10-14 | O127: 1 | P127: 2173-10-14 | Q127: 1 | R127: 2173-10-14 | S127: 1 | T127: 2173-10-14 | U127: 1 | X127: 0 | Y127: 1899 | AB127: / | AC127: 0 | AD127: 1 | AE127: / | AF127: 1 | AG127: 0 | AH127: 0 | AI127: 0 | AJ127: /
C128: 120 | D128: =IF(AND(YEAR('front utente'!C146)=2013,'front utente'!$I$15="si"),$C$2,'front utente'!C146) -> 00:00:00 | E128: =IF(AND(YEAR('front utente'!D146)=2013,'front utente'!$I$15="si"),$D$2,'front utente'!D146) -> 00:00:00 | G128: =IF(D128>E128,0, calcoloperiodi1!H130) -> 0 | H128: 1 | J128: 2173-10-14 | K128: 1 | L128: 2173-10-14 | M128: 1 | N128: 2173-10-14 | O128: 1 | P128: 2173-10-14 | Q128: 1 | R128: 2173-10-14 | S128: 1 | T128: 2173-10-14 | U128: 1 | X128: 0 | Y128: 1899 | AB128: / | AC128: 0 | AD128: 1 | AE128: / | AF128: 1 | AG128: 0 | AH128: 0 | AI128: 0 | AJ128: /
C129: 121 | D129: =IF(AND(YEAR('front utente'!C147)=2013,'front utente'!$I$15="si"),$C$2,'front utente'!C147) -> 00:00:00 | E129: =IF(AND(YEAR('front utente'!D147)=2013,'front utente'!$I$15="si"),$D$2,'front utente'!D147) -> 00:00:00 | G129: =IF(D129>E129,0, calcoloperiodi1!H131) -> 0 | H129: 1 | J129: 2173-10-14 | K129: 1 | L129: 2173-10-14 | M129: 1 | N129: 2173-10-14 | O129: 1 | P129: 2173-10-14 | Q129: 1 | R129: 2173-10-14 | S129: 1 | T129: 2173-10-14 | U129: 1 | X129: 0 | Y129: 1899 | AB129: / | AC129: 0 | AD129: 1 | AE129: / | AF129: 1 | AG129: 0 | AH129: 0 | AI129: 0 | AJ129: /
C130: 122 | D130: =IF(AND(YEAR('front utente'!C148)=2013,'front utente'!$I$15="si"),$C$2,'front utente'!C148) -> 00:00:00 | E130: =IF(AND(YEAR('front utente'!D148)=2013,'front utente'!$I$15="si"),$D$2,'front utente'!D148) -> 00:00:00 | G130: =IF(D130>E130,0, calcoloperiodi1!H132) -> 0 | H130: 1 | J130: 2173-10-14 | K130: 1 | L130: 2173-10-14 | M130: 1 | N130: 2173-10-14 | O130: 1 | P130: 2173-10-14 | Q130: 1 | R130: 2173-10-14 | S130: 1 | T130: 2173-10-14 | U130: 1 | X130: 0 | Y130: 1899 | AB130: / | AC130: 0 | AD130: 1 | AE130: / | AF130: 1 | AG130: 0 | AH130: 0 | AI130: 0 | AJ130: /
C131: 123 | D131: =IF(AND(YEAR('front utente'!C149)=2013,'front utente'!$I$15="si"),$C$2,'front utente'!C149) -> 00:00:00 | E131: =IF(AND(YEAR('front utente'!D149)=2013,'front utente'!$I$15="si"),$D$2,'front utente'!D149) -> 00:00:00 | G131: =IF(D131>E131,0, calcoloperiodi1!H133) -> 0 | H131: 1 | J131: 2173-10-14 | K131: 1 | L131: 2173-10-14 | M131: 1 | N131: 2173-10-14 | O131: 1 | P131: 2173-10-14 | Q131: 1 | R131: 2173-10-14 | S131: 1 | T131: 2173-10-14 | U131: 1 | X131: 0 | Y131: 1899 | AB131: / | AC131: 0 | AD131: 1 | AE131: / | AF131: 1 | AG131: 0 | AH131: 0 | AI131: 0 | AJ131: /
C132: 124 | D132: =IF(AND(YEAR('front utente'!C150)=2013,'front utente'!$I$15="si"),$C$2,'front utente'!C150) -> 00:00:00 | E132: =IF(AND(YEAR('front utente'!D150)=2013,'front utente'!$I$15="si"),$D$2,'front utente'!D150) -> 00:00:00 | G132: =IF(D132>E132,0, calcoloperiodi1!H134) -> 0 | H132: 1 | J132: 2173-10-14 | K132: 1 | L132: 2173-10-14 | M132: 1 | N132: 2173-10-14 | O132: 1 | P132: 2173-10-14 | Q132: 1 | R132: 2173-10-14 | S132: 1 | T132: 2173-10-14 | U132: 1 | X132: 0 | Y132: 1899 | AB132: / | AC132: 0 | AD132: 1 | AE132: / | AF132: 1 | AG132: 0 | AH132: 0 | AI132: 0 | AJ132: /
C133: 125 | D133: =IF(AND(YEAR('front utente'!C151)=2013,'front utente'!$I$15="si"),$C$2,'front utente'!C151) -> 00:00:00 | E133: =IF(AND(YEAR('front utente'!D151)=2013,'front utente'!$I$15="si"),$D$2,'front utente'!D151) -> 00:00:00 | G133: =IF(D133>E133,0, calcoloperiodi1!H135) -> 0 | H133: 1 | J133: 2173-10-14 | K133: 1 | L133: 2173-10-14 | M133: 1 | N133: 2173-10-14 | O133: 1 | P133: 2173-10-14 | Q133: 1 | R133: 2173-10-14 | S133: 1 | T133: 2173-10-14 | U133: 1 | X133: 0 | Y133: 1899 | AB133: / | AC133: 0 | AD133: 1 | AE133: / | AF133: 1 | AG133: 0 | AH133: 0 | AI133: 0 | AJ133: /
C134: 126 | D134: =IF(AND(YEAR('front utente'!C152)=2013,'front utente'!$I$15="si"),$C$2,'front utente'!C152) -> 00:00:00 | E134: =IF(AND(YEAR('front utente'!D152)=2013,'front utente'!$I$15="si"),$D$2,'front utente'!D152) -> 00:00:00 | G134: =IF(D134>E134,0, calcoloperiodi1!H136) -> 0 | H134: 1 | J134: 2173-10-14 | K134: 1 | L134: 2173-10-14 | M134: 1 | N134: 2173-10-14 | O134: 1 | P134: 2173-10-14 | Q134: 1 | R134: 2173-10-14 | S134: 1 | T134: 2173-10-14 | U134: 1 | X134: 0 | Y134: 1899 | AB134: / | AC134: 0 | AD134: 1 | AE134: / | AF134: 1 | AG134: 0 | AH134: 0 | AI134: 0 | AJ134: /
C135: 127 | D135: =IF(AND(YEAR('front utente'!C153)=2013,'front utente'!$I$15="si"),$C$2,'front utente'!C153) -> 00:00:00 | E135: =IF(AND(YEAR('front utente'!D153)=2013,'front utente'!$I$15="si"),$D$2,'front utente'!D153) -> 00:00:00 | G135: =IF(D135>E135,0, calcoloperiodi1!H137) -> 0 | H135: 1 | J135: 2173-10-14 | K135: 1 | L135: 2173-10-14 | M135: 1 | N135: 2173-10-14 | O135: 1 | P135: 2173-10-14 | Q135: 1 | R135: 2173-10-14 | S135: 1 | T135: 2173-10-14 | U135: 1 | X135: 0 | Y135: 1899 | AB135: / | AC135: 0 | AD135: 1 | AE135: / | AF135: 1 | AG135: 0 | AH135: 0 | AI135: 0 | AJ135: /
C136: 128 | D136: =IF(AND(YEAR('front utente'!C154)=2013,'front utente'!$I$15="si"),$C$2,'front utente'!C154) -> 00:00:00 | E136: =IF(AND(YEAR('front utente'!D154)=2013,'front utente'!$I$15="si"),$D$2,'front utente'!D154) -> 00:00:00 | G136: =IF(D136>E136,0, calcoloperiodi1!H138) -> 0 | H136: 1 | J136: 2173-10-14 | K136: 1 | L136: 2173-10-14 | M136: 1 | N136: 2173-10-14 | O136: 1 | P136: 2173-10-14 | Q136: 1 | R136: 2173-10-14 | S136: 1 | T136: 2173-10-14 | U136: 1 | X136: 0 | Y136: 1899 | AB136: / | AC136: 0 | AD136: 1 | AE136: / | AF136: 1 | AG136: 0 | AH136: 0 | AI136: 0 | AJ136: /
C137: 129 | D137: =IF(AND(YEAR('front utente'!C155)=2013,'front utente'!$I$15="si"),$C$2,'front utente'!C155) -> 00:00:00 | E137: =IF(AND(YEAR('front utente'!D155)=2013,'front utente'!$I$15="si"),$D$2,'front utente'!D155) -> 00:00:00 | G137: =IF(D137>E137,0, calcoloperiodi1!H139) -> 0 | H137: 1 | J137: 2173-10-14 | K137: 1 | L137: 2173-10-14 | M137: 1 | N137: 2173-10-14 | O137: 1 | P137: 2173-10-14 | Q137: 1 | R137: 2173-10-14 | S137: 1 | T137: 2173-10-14 | U137: 1 | X137: 0 | Y137: 1899 | AB137: / | AC137: 0 | AD137: 1 | AE137: / | AF137: 1 | AG137: 0 | AH137: 0 | AI137: 0 | AJ137: /
C138: 130 | D138: =IF(AND(YEAR('front utente'!C156)=2013,'front utente'!$I$15="si"),$C$2,'front utente'!C156) -> 00:00:00 | E138: =IF(AND(YEAR('front utente'!D156)=2013,'front utente'!$I$15="si"),$D$2,'front utente'!D156) -> 00:00:00 | G138: =IF(D138>E138,0, calcoloperiodi1!H140) -> 0 | H138: 1 | J138: 2173-10-14 | K138: 1 | L138: 2173-10-14 | M138: 1 | N138: 2173-10-14 | O138: 1 | P138: 2173-10-14 | Q138: 1 | R138: 2173-10-14 | S138: 1 | T138: 2173-10-14 | U138: 1 | X138: 0 | Y138: 1899 | AB138: / | AC138: 0 | AD138: 1 | AE138: / | AF138: 1 | AG138: 0 | AH138: 0 | AI138: 0 | AJ138: / | AT138: =IF(AG138=1,AE138,"") -> 
C139: 131 | D139: =IF(AND(YEAR('front utente'!C157)=2013,'front utente'!$I$15="si"),$C$2,'front utente'!C157) -> 00:00:00 | E139: =IF(AND(YEAR('front utente'!D157)=2013,'front utente'!$I$15="si"),$D$2,'front utente'!D157) -> 00:00:00 | G139: =IF(D139>E139,0, calcoloperiodi1!H141) -> 0 | H139: =H138+G139 -> 1 | J139: =IF( AND(H139>1095-$I$11,D139>0,B139<>"si",YEAR(E139)>1995 ),E139-$I$11,100000) -> 2173-10-14 | K139: =H139 -> 1 | L139: =IF( AND(H139>3285-$I$11,D139>0,B139<>"si",YEAR(E139)>1995),E139-$I$11,100000) -> 2173-10-14 | M139: =K139 -> 1 | N139: =IF( AND(H139>5475-$I$11,D139>0,B139<>"si",YEAR(E139)>1995),E139-$I$11,100000) -> 2173-10-14 | O139: =M139 -> 1 | P139: =IF( AND(H139>7665-$I$11,D139>0,B139<>"si",YEAR(E139)>1995),E139-$I$11,100000) -> 2173-10-14 | Q139: =O139 -> 1 | R139: =IF( AND(H139>10220-$I$11,D139>0,B139<>"si"),E139-$I$11,100000) -> 2173-10-14 | S139: =Q139 -> 1 | T139: =IF( AND(H139>12775-$I$11,D139>0,B139<>"si"),E139-$I$11,100000) -> 2173-10-14 | U139: 1 | X139: 0 | Y139: 1899 | AB139: / | AC139: 0 | AD139: 1 | AE139: / | AF139: 1 | AG139: 0 | AH139: 0 | AI139: 0 | AJ139: /
C140: 132 | D140: =IF(AND(YEAR('front utente'!C158)=2013,'front utente'!$I$15="si"),$C$2,'front utente'!C158) -> 00:00:00 | E140: =IF(AND(YEAR('front utente'!D158)=2013,'front utente'!$I$15="si"),$D$2,'front utente'!D158) -> 00:00:00 | G140: =IF(D140>E140,0, calcoloperiodi1!H142) -> 0 | H140: 1 | J140: 2173-10-14 | K140: 1 | L140: 2173-10-14 | M140: 1 | N140: 2173-10-14 | O140: 1 | P140: 2173-10-14 | Q140: 1 | R140: 2173-10-14 | S140: 1 | T140: 2173-10-14 | U140: 1 | X140: 0 | Y140: 1899 | AB140: / | AC140: 0 | AD140: 1 | AE140: / | AF140: 1 | AG140: 0 | AH140: 0 | AI140: 0 | AJ140: /
C141: 133 | D141: =IF(AND(YEAR('front utente'!C159)=2013,'front utente'!$I$15="si"),$C$2,'front utente'!C159) -> 00:00:00 | E141: =IF(AND(YEAR('front utente'!D159)=2013,'front utente'!$I$15="si"),$D$2,'front utente'!D159) -> 00:00:00 | G141: =IF(D141>E141,0, calcoloperiodi1!H143) -> 0 | H141: 1 | J141: 2173-10-14 | K141: 1 | L141: 2173-10-14 | M141: 1 | N141: 2173-10-14 | O141: 1 | P141: 2173-10-14 | Q141: 1 | R141: 2173-10-14 | S141: 1 | T141: 2173-10-14 | U141: 1 | X141: 0 | Y141: 1899 | AB141: / | AC141: 0 | AD141: 1 | AE141: / | AF141: 1 | AG141: 0 | AH141: 0 | AI141: 0 | AJ141: /
C142: 134 | D142: =IF(AND(YEAR('front utente'!C160)=2013,'front utente'!$I$15="si"),$C$2,'front utente'!C160) -> 00:00:00 | E142: =IF(AND(YEAR('front utente'!D160)=2013,'front utente'!$I$15="si"),$D$2,'front utente'!D160) -> 00:00:00 | G142: =IF(D142>E142,0, calcoloperiodi1!H144) -> 0 | H142: 1 | J142: 2173-10-14 | K142: 1 | L142: 2173-10-14 | M142: 1 | N142: 2173-10-14 | O142: 1 | P142: 2173-10-14 | Q142: 1 | R142: 2173-10-14 | S142: 1 | T142: 2173-10-14 | U142: 1 | X142: 0 | Y142: 1899 | AB142: / | AC142: 0 | AD142: 1 | AE142: / | AF142: 1 | AG142: =IF(AE142<>"",IF( OR( AF142>179, X142=1 ),1,0),0) -> 0 | AH142: 0 | AI142: 0 | AJ142: /
C143: 135 | D143: =IF(AND(YEAR('front utente'!C161)=2013,'front utente'!$I$15="si"),$C$2,'front utente'!C161) -> 00:00:00 | E143: =IF(AND(YEAR('front utente'!D161)=2013,'front utente'!$I$15="si"),$D$2,'front utente'!D161) -> 00:00:00 | G143: =IF(D143>E143,0, calcoloperiodi1!H145) -> 0 | H143: 1 | J143: 2173-10-14 | K143: 1 | L143: 2173-10-14 | M143: 1 | N143: 2173-10-14 | O143: 1 | P143: 2173-10-14 | Q143: 1 | R143: 2173-10-14 | S143: 1 | T143: 2173-10-14 | U143: 1 | X143: 0 | Y143: 1899 | AB143: / | AC143: 0 | AD143: 1 | AE143: / | AF143: 1 | AG143: 0 | AH143: 0 | AI143: 0 | AJ143: /
C144: 136 | D144: =IF(AND(YEAR('front utente'!C162)=2013,'front utente'!$I$15="si"),$C$2,'front utente'!C162) -> 00:00:00 | E144: =IF(AND(YEAR('front utente'!D162)=2013,'front utente'!$I$15="si"),$D$2,'front utente'!D162) -> 00:00:00 | G144: =IF(D144>E144,0, calcoloperiodi1!H146) -> 0 | H144: 1 | J144: 2173-10-14 | K144: 1 | L144: 2173-10-14 | M144: 1 | N144: 2173-10-14 | O144: 1 | P144: 2173-10-14 | Q144: 1 | R144: 2173-10-14 | S144: 1 | T144: 2173-10-14 | U144: 1 | X144: 0 | Y144: 1899 | AB144: / | AC144: 0 | AD144: 1 | AE144: / | AF144: 1 | AG144: 0 | AH144: 0 | AI144: 0 | AJ144: /
C145: 137 | D145: =IF(AND(YEAR('front utente'!C163)=2013,'front utente'!$I$15="si"),$C$2,'front utente'!C163) -> 00:00:00 | E145: =IF(AND(YEAR('front utente'!D163)=2013,'front utente'!$I$15="si"),$D$2,'front utente'!D163) -> 00:00:00 | G145: =IF(D145>E145,0, calcoloperiodi1!H147) -> 0 | H145: 1 | J145: 2173-10-14 | K145: 1 | L145: 2173-10-14 | M145: 1 | N145: 2173-10-14 | O145: 1 | P145: 2173-10-14 | Q145: 1 | R145: 2173-10-14 | S145: 1 | T145: 2173-10-14 | U145: 1 | X145: 0 | Y145: 1899 | AB145: / | AC145: 0 | AD145: 1 | AE145: / | AF145: 1 | AG145: 0 | AH145: 0 | AI145: 0 | AJ145: /
C146: 138 | D146: =IF(AND(YEAR('front utente'!C164)=2013,'front utente'!$I$15="si"),$C$2,'front utente'!C164) -> 00:00:00 | E146: =IF(AND(YEAR('front utente'!D164)=2013,'front utente'!$I$15="si"),$D$2,'front utente'!D164) -> 00:00:00 | G146: =IF(D146>E146,0, calcoloperiodi1!H148) -> 0 | H146: 1 | J146: 2173-10-14 | K146: 1 | L146: 2173-10-14 | M146: 1 | N146: 2173-10-14 | O146: 1 | P146: 2173-10-14 | Q146: 1 | R146: 2173-10-14 | S146: 1 | T146: 2173-10-14 | U146: 1 | X146: 0 | Y146: 1899 | AB146: / | AC146: 0 | AD146: 1 | AE146: / | AF146: 1 | AG146: 0 | AH146: 0 | AI146: 0 | AJ146: /
C147: 139 | D147: =IF(AND(YEAR('front utente'!C165)=2013,'front utente'!$I$15="si"),$C$2,'front utente'!C165) -> 00:00:00 | E147: =IF(AND(YEAR('front utente'!D165)=2013,'front utente'!$I$15="si"),$D$2,'front utente'!D165) -> 00:00:00 | G147: =IF(D147>E147,0, calcoloperiodi1!H149) -> 0 | H147: 1 | J147: 2173-10-14 | K147: 1 | L147: 2173-10-14 | M147: 1 | N147: 2173-10-14 | O147: 1 | P147: 2173-10-14 | Q147: 1 | R147: 2173-10-14 | S147: 1 | T147: 2173-10-14 | U147: 1 | X147: =IF(AND(YEAR(D147)=YEAR(E147),E147-D147>147, MONTH(D147)<3,MONTH(E147)>5,DAY(E147)>29 ),1,0) -> 0 | Y147: 1899 | AB147: / | AC147: 0 | AD147: 1 | AE147: / | AF147: 1 | AG147: 0 | AH147: 0 | AI147: 0 | AJ147: /
C148: 140 | D148: =IF(AND(YEAR('front utente'!C166)=2013,'front utente'!$I$15="si"),$C$2,'front utente'!C166) -> 00:00:00 | E148: =IF(AND(YEAR('front utente'!D166)=2013,'front utente'!$I$15="si"),$D$2,'front utente'!D166) -> 00:00:00 | G148: =IF(D148>E148,0, calcoloperiodi1!H150) -> 0 | H148: 1 | J148: 2173-10-14 | K148: 1 | L148: 2173-10-14 | M148: 1 | N148: 2173-10-14 | O148: 1 | P148: 2173-10-14 | Q148: 1 | R148: 2173-10-14 | S148: 1 | T148: 2173-10-14 | U148: 1 | X148: 0 | Y148: 1899 | AB148: / | AC148: 0 | AD148: 1 | AE148: / | AF148: 1 | AG148: 0 | AH148: 0 | AI148: 0 | AJ148: /
C149: 141 | D149: =IF(AND(YEAR('front utente'!C167)=2013,'front utente'!$I$15="si"),$C$2,'front utente'!C167) -> 00:00:00 | E149: =IF(AND(YEAR('front utente'!D167)=2013,'front utente'!$I$15="si"),$D$2,'front utente'!D167) -> 00:00:00 | G149: =IF(D149>E149,0, calcoloperiodi1!H151) -> 0 | H149: 1 | J149: 2173-10-14 | K149: 1 | L149: 2173-10-14 | M149: 1 | N149: 2173-10-14 | O149: 1 | P149: 2173-10-14 | Q149: 1 | R149: 2173-10-14 | S149: 1 | T149: 2173-10-14 | U149: 1 | X149: 0 | Y149: 1899 | AB149: / | AC149: 0 | AD149: 1 | AE149: / | AF149: 1 | AG149: 0 | AH149: 0 | AI149: 0 | AJ149: /
C150: 142 | D150: =IF(AND(YEAR('front utente'!C168)=2013,'front utente'!$I$15="si"),$C$2,'front utente'!C168) -> 00:00:00 | E150: =IF(AND(YEAR('front utente'!D168)=2013,'front utente'!$I$15="si"),$D$2,'front utente'!D168) -> 00:00:00 | G150: =IF(D150>E150,0, calcoloperiodi1!H152) -> 0 | H150: 1 | J150: 2173-10-14 | K150: 1 | L150: 2173-10-14 | M150: 1 | N150: 2173-10-14 | O150: 1 | P150: 2173-10-14 | Q150: 1 | R150: 2173-10-14 | S150: 1 | T150: 2173-10-14 | U150: 1 | X150: 0 | Y150: 1899 | AB150: / | AC150: 0 | AD150: 1 | AE150: / | AF150: 1 | AG150: 0 | AH150: 0 | AI150: 0 | AJ150: /
C151: 143 | D151: =IF(AND(YEAR('front utente'!C169)=2013,'front utente'!$I$15="si"),$C$2,'front utente'!C169) -> 00:00:00 | E151: =IF(AND(YEAR('front utente'!D169)=2013,'front utente'!$I$15="si"),$D$2,'front utente'!D169) -> 00:00:00 | G151: =IF(D151>E151,0, calcoloperiodi1!H153) -> 0 | H151: 1 | J151: 2173-10-14 | K151: 1 | L151: 2173-10-14 | M151: 1 | N151: 2173-10-14 | O151: 1 | P151: 2173-10-14 | Q151: 1 | R151: 2173-10-14 | S151: 1 | T151: 2173-10-14 | U151: 1 | X151: 0 | Y151: 1899 | AB151: / | AC151: 0 | AD151: 1 | AE151: / | AF151: 1 | AG151: 0 | AH151: 0 | AI151: 0 | AJ151: /
C152: 144 | D152: =IF(AND(YEAR('front utente'!C170)=2013,'front utente'!$I$15="si"),$C$2,'front utente'!C170) -> 00:00:00 | E152: =IF(AND(YEAR('front utente'!D170)=2013,'front utente'!$I$15="si"),$D$2,'front utente'!D170) -> 00:00:00 | G152: =IF(D152>E152,0, calcoloperiodi1!H154) -> 0 | H152: 1 | J152: 2173-10-14 | K152: 1 | L152: 2173-10-14 | M152: 1 | N152: 2173-10-14 | O152: 1 | P152: 2173-10-14 | Q152: 1 | R152: 2173-10-14 | S152: 1 | T152: 2173-10-14 | U152: 1 | X152: 0 | Y152: 1899 | AB152: / | AC152: 0 | AD152: 1 | AE152: / | AF152: 1 | AG152: 0 | AH152: 0 | AI152: 0 | AJ152: /
C153: 145 | D153: =IF(AND(YEAR('front utente'!C171)=2013,'front utente'!$I$15="si"),$C$2,'front utente'!C171) -> 00:00:00 | E153: =IF(AND(YEAR('front utente'!D171)=2013,'front utente'!$I$15="si"),$D$2,'front utente'!D171) -> 00:00:00 | G153: =IF(D153>E153,0, calcoloperiodi1!H155) -> 0 | H153: 1 | J153: 2173-10-14 | K153: 1 | L153: 2173-10-14 | M153: 1 | N153: 2173-10-14 | O153: 1 | P153: 2173-10-14 | Q153: 1 | R153: 2173-10-14 | S153: 1 | T153: 2173-10-14 | U153: 1 | X153: 0 | Y153: 1899 | AB153: / | AC153: 0 | AD153: 1 | AE153: / | AF153: 1 | AG153: 0 | AH153: 0 | AI153: 0 | AJ153: /
C154: 146 | D154: =IF(AND(YEAR('front utente'!C172)=2013,'front utente'!$I$15="si"),$C$2,'front utente'!C172) -> 00:00:00 | E154: =IF(AND(YEAR('front utente'!D172)=2013,'front utente'!$I$15="si"),$D$2,'front utente'!D172) -> 00:00:00 | G154: =IF(D154>E154,0, calcoloperiodi1!H156) -> 0 | H154: 1 | J154: 2173-10-14 | K154: 1 | L154: 2173-10-14 | M154: 1 | N154: 2173-10-14 | O154: 1 | P154: 2173-10-14 | Q154: 1 | R154: 2173-10-14 | S154: 1 | T154: 2173-10-14 | U154: 1 | X154: 0 | Y154: 1899 | AB154: / | AC154: 0 | AD154: 1 | AE154: / | AF154: 1 | AG154: 0 | AH154: 0 | AI154: 0 | AJ154: /
C155: 147 | D155: =IF(AND(YEAR('front utente'!C173)=2013,'front utente'!$I$15="si"),$C$2,'front utente'!C173) -> 00:00:00 | E155: =IF(AND(YEAR('front utente'!D173)=2013,'front utente'!$I$15="si"),$D$2,'front utente'!D173) -> 00:00:00 | G155: =IF(D155>E155,0, calcoloperiodi1!H157) -> 0 | H155: 1 | J155: 2173-10-14 | K155: 1 | L155: 2173-10-14 | M155: 1 | N155: 2173-10-14 | O155: 1 | P155: 2173-10-14 | Q155: 1 | R155: 2173-10-14 | S155: 1 | T155: 2173-10-14 | U155: 1 | X155: 0 | Y155: 1899 | AB155: / | AC155: 0 | AD155: 1 | AE155: / | AF155: 1 | AG155: 0 | AH155: 0 | AI155: 0 | AJ155: /
C156: 148 | D156: =IF(AND(YEAR('front utente'!C174)=2013,'front utente'!$I$15="si"),$C$2,'front utente'!C174) -> 00:00:00 | E156: =IF(AND(YEAR('front utente'!D174)=2013,'front utente'!$I$15="si"),$D$2,'front utente'!D174) -> 00:00:00 | G156: =IF(D156>E156,0, calcoloperiodi1!H158) -> 0 | H156: 1 | J156: 2173-10-14 | K156: 1 | L156: 2173-10-14 | M156: 1 | N156: 2173-10-14 | O156: 1 | P156: 2173-10-14 | Q156: 1 | R156: 2173-10-14 | S156: 1 | T156: 2173-10-14 | U156: 1 | X156: 0 | Y156: 1899 | AB156: / | AC156: 0 | AD156: 1 | AE156: / | AF156: 1 | AG156: 0 | AH156: 0 | AI156: 0 | AJ156: /
C157: 149 | D157: =IF(AND(YEAR('front utente'!C175)=2013,'front utente'!$I$15="si"),$C$2,'front utente'!C175) -> 00:00:00 | E157: =IF(AND(YEAR('front utente'!D175)=2013,'front utente'!$I$15="si"),$D$2,'front utente'!D175) -> 00:00:00 | G157: =IF(D157>E157,0, calcoloperiodi1!H159) -> 0 | H157: 1 | J157: 2173-10-14 | K157: 1 | L157: 2173-10-14 | M157: 1 | N157: 2173-10-14 | O157: 1 | P157: 2173-10-14 | Q157: 1 | R157: 2173-10-14 | S157: 1 | T157: 2173-10-14 | U157: 1 | X157: 0 | Y157: 1899 | AB157: / | AC157: 0 | AD157: 1 | AE157: / | AF157: 1 | AG157: 0 | AH157: 0 | AI157: 0 | AJ157: /
C158: 150 | D158: =IF(AND(YEAR('front utente'!C176)=2013,'front utente'!$I$15="si"),$C$2,'front utente'!C176) -> 00:00:00 | E158: =IF(AND(YEAR('front utente'!D176)=2013,'front utente'!$I$15="si"),$D$2,'front utente'!D176) -> 00:00:00 | G158: =IF(D158>E158,0, calcoloperiodi1!H160) -> 0 | H158: 1 | J158: 2173-10-14 | K158: 1 | L158: 2173-10-14 | M158: 1 | N158: 2173-10-14 | O158: 1 | P158: 2173-10-14 | Q158: 1 | R158: 2173-10-14 | S158: 1 | T158: 2173-10-14 | U158: 1 | X158: 0 | Y158: 1899 | AB158: / | AC158: 0 | AD158: 1 | AE158: / | AF158: 1 | AG158: 0 | AH158: 0 | AI158: 0 | AJ158: /
C159: 151 | D159: =IF(AND(YEAR('front utente'!C177)=2013,'front utente'!$I$15="si"),$C$2,'front utente'!C177) -> 00:00:00 | E159: =IF(AND(YEAR('front utente'!D177)=2013,'front utente'!$I$15="si"),$D$2,'front utente'!D177) -> 00:00:00 | G159: =IF(D159>E159,0, calcoloperiodi1!H161) -> 0 | H159: 1 | J159: 2173-10-14 | K159: 1 | L159: 2173-10-14 | M159: 1 | N159: 2173-10-14 | O159: 1 | P159: 2173-10-14 | Q159: 1 | R159: 2173-10-14 | S159: 1 | T159: 2173-10-14 | U159: 1 | X159: 0 | Y159: 1899 | AB159: / | AC159: 0 | AD159: 1 | AE159: / | AF159: 1 | AG159: 0 | AH159: 0 | AI159: 0 | AJ159: /
C160: 152 | D160: =IF(AND(YEAR('front utente'!C178)=2013,'front utente'!$I$15="si"),$C$2,'front utente'!C178) -> 00:00:00 | E160: =IF(AND(YEAR('front utente'!D178)=2013,'front utente'!$I$15="si"),$D$2,'front utente'!D178) -> 00:00:00 | G160: =IF(D160>E160,0, calcoloperiodi1!H162) -> 0 | H160: 1 | J160: 2173-10-14 | K160: 1 | L160: 2173-10-14 | M160: 1 | N160: 2173-10-14 | O160: 1 | P160: 2173-10-14 | Q160: 1 | R160: 2173-10-14 | S160: 1 | T160: 2173-10-14 | U160: 1 | X160: 0 | Y160: 1899 | AB160: / | AC160: 0 | AD160: 1 | AE160: / | AF160: 1 | AG160: 0 | AH160: 0 | AI160: 0 | AJ160: /
C161: 153 | D161: =IF(AND(YEAR('front utente'!C179)=2013,'front utente'!$I$15="si"),$C$2,'front utente'!C179) -> 00:00:00 | E161: =IF(AND(YEAR('front utente'!D179)=2013,'front utente'!$I$15="si"),$D$2,'front utente'!D179) -> 00:00:00 | G161: =IF(D161>E161,0, calcoloperiodi1!H163) -> 0 | H161: 1 | J161: 2173-10-14 | K161: 1 | L161: 2173-10-14 | M161: 1 | N161: 2173-10-14 | O161: 1 | P161: 2173-10-14 | Q161: 1 | R161: 2173-10-14 | S161: 1 | T161: 2173-10-14 | U161: 1 | X161: 0 | Y161: 1899 | AB161: / | AC161: 0 | AD161: 1 | AE161: / | AF161: 1 | AG161: 0 | AH161: 0 | AI161: 0 | AJ161: /
C162: 154 | D162: =IF(AND(YEAR('front utente'!C180)=2013,'front utente'!$I$15="si"),$C$2,'front utente'!C180) -> 00:00:00 | E162: =IF(AND(YEAR('front utente'!D180)=2013,'front utente'!$I$15="si"),$D$2,'front utente'!D180) -> 00:00:00 | G162: =IF(D162>E162,0, calcoloperiodi1!H164) -> 0 | H162: 1 | J162: 2173-10-14 | K162: 1 | L162: 2173-10-14 | M162: 1 | N162: 2173-10-14 | O162: 1 | P162: 2173-10-14 | Q162: 1 | R162: 2173-10-14 | S162: 1 | T162: 2173-10-14 | U162: 1 | X162: 0 | Y162: 1899 | AB162: / | AC162: 0 | AD162: 1 | AE162: / | AF162: 1 | AG162: 0 | AH162: 0 | AI162: 0 | AJ162: /
C163: 155 | D163: =IF(AND(YEAR('front utente'!C181)=2013,'front utente'!$I$15="si"),$C$2,'front utente'!C181) -> 00:00:00 | E163: =IF(AND(YEAR('front utente'!D181)=2013,'front utente'!$I$15="si"),$D$2,'front utente'!D181) -> 00:00:00 | G163: =IF(D163>E163,0, calcoloperiodi1!H165) -> 0 | H163: 1 | J163: 2173-10-14 | K163: 1 | L163: 2173-10-14 | M163: 1 | N163: 2173-10-14 | O163: 1 | P163: 2173-10-14 | Q163: 1 | R163: 2173-10-14 | S163: 1 | T163: 2173-10-14 | U163: 1 | X163: 0 | Y163: 1899 | AB163: / | AC163: 0 | AD163: 1 | AE163: / | AF163: 1 | AG163: 0 | AH163: 0 | AI163: 0 | AJ163: /
C164: 156 | D164: =IF(AND(YEAR('front utente'!C182)=2013,'front utente'!$I$15="si"),$C$2,'front utente'!C182) -> 00:00:00 | E164: =IF(AND(YEAR('front utente'!D182)=2013,'front utente'!$I$15="si"),$D$2,'front utente'!D182) -> 00:00:00 | G164: =IF(D164>E164,0, calcoloperiodi1!H166) -> 0 | H164: 1 | J164: 2173-10-14 | K164: 1 | L164: 2173-10-14 | M164: 1 | N164: 2173-10-14 | O164: 1 | P164: 2173-10-14 | Q164: 1 | R164: 2173-10-14 | S164: 1 | T164: 2173-10-14 | U164: 1 | X164: 0 | Y164: 1899 | AB164: / | AC164: 0 | AD164: 1 | AE164: / | AF164: 1 | AG164: 0 | AH164: 0 | AI164: 0 | AJ164: /
C165: 157 | D165: =IF(AND(YEAR('front utente'!C183)=2013,'front utente'!$I$15="si"),$C$2,'front utente'!C183) -> 00:00:00 | E165: =IF(AND(YEAR('front utente'!D183)=2013,'front utente'!$I$15="si"),$D$2,'front utente'!D183) -> 00:00:00 | G165: =IF(D165>E165,0, calcoloperiodi1!H167) -> 0 | H165: 1 | J165: 2173-10-14 | K165: 1 | L165: 2173-10-14 | M165: 1 | N165: 2173-10-14 | O165: 1 | P165: 2173-10-14 | Q165: 1 | R165: 2173-10-14 | S165: 1 | T165: 2173-10-14 | U165: 1 | X165: 0 | Y165: 1899 | AB165: / | AC165: 0 | AD165: 1 | AE165: / | AF165: 1 | AG165: 0 | AH165: 0 | AI165: 0 | AJ165: /
C166: 158 | D166: =IF(AND(YEAR('front utente'!C184)=2013,'front utente'!$I$15="si"),$C$2,'front utente'!C184) -> 00:00:00 | E166: =IF(AND(YEAR('front utente'!D184)=2013,'front utente'!$I$15="si"),$D$2,'front utente'!D184) -> 00:00:00 | G166: =IF(D166>E166,0, calcoloperiodi1!H168) -> 0 | H166: 1 | J166: 2173-10-14 | K166: 1 | L166: 2173-10-14 | M166: 1 | N166: 2173-10-14 | O166: 1 | P166: 2173-10-14 | Q166: 1 | R166: 2173-10-14 | S166: 1 | T166: 2173-10-14 | U166: 1 | X166: 0 | Y166: 1899 | AB166: / | AC166: 0 | AD166: 1 | AE166: / | AF166: 1 | AG166: 0 | AH166: 0 | AI166: 0 | AJ166: /
C167: 159 | D167: =IF(AND(YEAR('front utente'!C185)=2013,'front utente'!$I$15="si"),$C$2,'front utente'!C185) -> 00:00:00 | E167: =IF(AND(YEAR('front utente'!D185)=2013,'front utente'!$I$15="si"),$D$2,'front utente'!D185) -> 00:00:00 | G167: =IF(D167>E167,0, calcoloperiodi1!H169) -> 0 | H167: 1 | J167: 2173-10-14 | K167: 1 | L167: 2173-10-14 | M167: 1 | N167: 2173-10-14 | O167: 1 | P167: 2173-10-14 | Q167: 1 | R167: 2173-10-14 | S167: 1 | T167: 2173-10-14 | U167: 1 | X167: 0 | Y167: 1899 | AB167: / | AC167: 0 | AD167: 1 | AE167: / | AF167: 1 | AG167: 0 | AH167: 0 | AI167: 0 | AJ167: /
C168: 160 | D168: =IF(AND(YEAR('front utente'!C186)=2013,'front utente'!$I$15="si"),$C$2,'front utente'!C186) -> 00:00:00 | E168: =IF(AND(YEAR('front utente'!D186)=2013,'front utente'!$I$15="si"),$D$2,'front utente'!D186) -> 00:00:00 | G168: =IF(D168>E168,0, calcoloperiodi1!H170) -> 0 | H168: 1 | J168: 2173-10-14 | K168: 1 | L168: 2173-10-14 | M168: 1 | N168: 2173-10-14 | O168: 1 | P168: 2173-10-14 | Q168: 1 | R168: 2173-10-14 | S168: 1 | T168: 2173-10-14 | U168: 1 | X168: 0 | Y168: 1899 | AB168: / | AC168: 0 | AD168: 1 | AE168: / | AF168: 1 | AG168: 0 | AH168: 0 | AI168: 0 | AJ168: /
C169: 161 | D169: =IF(AND(YEAR('front utente'!C187)=2013,'front utente'!$I$15="si"),$C$2,'front utente'!C187) -> 00:00:00 | E169: =IF(AND(YEAR('front utente'!D187)=2013,'front utente'!$I$15="si"),$D$2,'front utente'!D187) -> 00:00:00 | G169: =IF(D169>E169,0, calcoloperiodi1!H171) -> 0 | H169: 1 | J169: 2173-10-14 | K169: 1 | L169: 2173-10-14 | M169: 1 | N169: 2173-10-14 | O169: 1 | P169: 2173-10-14 | Q169: 1 | R169: 2173-10-14 | S169: 1 | T169: 2173-10-14 | U169: 1 | X169: 0 | Y169: 1899 | AB169: / | AC169: 0 | AD169: 1 | AE169: / | AF169: 1 | AG169: 0 | AH169: 0 | AI169: 0 | AJ169: /
C170: 162 | D170: =IF(AND(YEAR('front utente'!C188)=2013,'front utente'!$I$15="si"),$C$2,'front utente'!C188) -> 00:00:00 | E170: =IF(AND(YEAR('front utente'!D188)=2013,'front utente'!$I$15="si"),$D$2,'front utente'!D188) -> 00:00:00 | G170: =IF(D170>E170,0, calcoloperiodi1!H172) -> 0 | H170: 1 | J170: 2173-10-14 | K170: 1 | L170: 2173-10-14 | M170: 1 | N170: 2173-10-14 | O170: 1 | P170: 2173-10-14 | Q170: 1 | R170: 2173-10-14 | S170: 1 | T170: 2173-10-14 | U170: 1 | X170: 0 | Y170: 1899 | AB170: / | AC170: 0 | AD170: 1 | AE170: / | AF170: 1 | AG170: 0 | AH170: 0 | AI170: 0 | AJ170: /
C171: 163 | D171: =IF(AND(YEAR('front utente'!C189)=2013,'front utente'!$I$15="si"),$C$2,'front utente'!C189) -> 00:00:00 | E171: =IF(AND(YEAR('front utente'!D189)=2013,'front utente'!$I$15="si"),$D$2,'front utente'!D189) -> 00:00:00 | G171: =IF(D171>E171,0, calcoloperiodi1!H173) -> 0 | H171: 1 | J171: 2173-10-14 | K171: 1 | L171: 2173-10-14 | M171: 1 | N171: 2173-10-14 | O171: 1 | P171: 2173-10-14 | Q171: 1 | R171: 2173-10-14 | S171: 1 | T171: 2173-10-14 | U171: 1 | X171: 0 | Y171: 1899 | AB171: / | AC171: 0 | AD171: 1 | AE171: / | AF171: 1 | AG171: 0 | AH171: 0 | AI171: 0 | AJ171: /
C172: 164 | D172: =IF(AND(YEAR('front utente'!C190)=2013,'front utente'!$I$15="si"),$C$2,'front utente'!C190) -> 00:00:00 | E172: =IF(AND(YEAR('front utente'!D190)=2013,'front utente'!$I$15="si"),$D$2,'front utente'!D190) -> 00:00:00 | G172: =IF(D172>E172,0, calcoloperiodi1!H174) -> 0 | H172: 1 | J172: 2173-10-14 | K172: 1 | L172: 2173-10-14 | M172: 1 | N172: 2173-10-14 | O172: 1 | P172: 2173-10-14 | Q172: 1 | R172: 2173-10-14 | S172: 1 | T172: 2173-10-14 | U172: 1 | X172: 0 | Y172: 1899 | AB172: / | AC172: 0 | AD172: 1 | AE172: / | AF172: 1 | AG172: 0 | AH172: 0 | AI172: 0 | AJ172: /
C173: =C172+1 -> 165 | D173: =IF(AND(YEAR('front utente'!C191)=2013,'front utente'!$I$15="si"),$C$2,'front utente'!C191) -> 00:00:00 | E173: =IF(AND(YEAR('front utente'!D191)=2013,'front utente'!$I$15="si"),$D$2,'front utente'!D191) -> 00:00:00 | G173: =IF(D173>E173,0, calcoloperiodi1!H175) -> 0 | H173: 1 | J173: 2173-10-14 | K173: 1 | L173: 2173-10-14 | M173: 1 | N173: 2173-10-14 | O173: 1 | P173: 2173-10-14 | Q173: 1 | R173: 2173-10-14 | S173: 1 | T173: 2173-10-14 | U173: =S173 -> 1 | X173: 0 | Y173: =IF(MONTH(D173)<9,YEAR(D173)-1,YEAR(D173)) -> 1899 | AA173: =IF(Y173>1900,Z173+1,"") ->  | AB173: =CONCATENATE(Z173,"/",AA173) -> / | AC173: =G173-F173 -> 0 | AD173: =IF(AB173=AB172,AC173+AD172,AC173) -> 1 | AE173: =IF(AB173<>AB253,AB173,"") -> / | AF173: =IF(AE173<>"",AD173,"") -> 1 | AG173: 0 | AH173: =AH172+AG173 -> 0 | AI173: =AH173*AG173 -> 0 | AJ173: =AE173 -> /
C174: 166 | D174: =IF(AND(YEAR('front utente'!C192)=2013,'front utente'!$I$15="si"),$C$2,'front utente'!C192) -> 00:00:00 | E174: =IF(AND(YEAR('front utente'!D192)=2013,'front utente'!$I$15="si"),$D$2,'front utente'!D192) -> 00:00:00 | G174: =IF(D174>E174,0, calcoloperiodi1!H176) -> 0 | H174: 1 | J174: 2173-10-14 | K174: 1 | L174: 2173-10-14 | M174: 1 | N174: 2173-10-14 | O174: 1 | P174: 2173-10-14 | Q174: 1 | R174: 2173-10-14 | S174: 1 | T174: 2173-10-14 | U174: 1 | X174: 0 | Y174: 1899 | AB174: / | AC174: 0 | AD174: 1 | AE174: / | AF174: 1 | AG174: 0 | AH174: 0 | AI174: 0 | AJ174: /
C175: 167 | D175: =IF(AND(YEAR('front utente'!C193)=2013,'front utente'!$I$15="si"),$C$2,'front utente'!C193) -> 00:00:00 | E175: =IF(AND(YEAR('front utente'!D193)=2013,'front utente'!$I$15="si"),$D$2,'front utente'!D193) -> 00:00:00 | G175: =IF(D175>E175,0, calcoloperiodi1!H177) -> 0 | H175: 1 | J175: 2173-10-14 | K175: 1 | L175: 2173-10-14 | M175: 1 | N175: 2173-10-14 | O175: 1 | P175: 2173-10-14 | Q175: 1 | R175: 2173-10-14 | S175: 1 | T175: 2173-10-14 | U175: 1 | X175: 0 | Y175: 1899 | AB175: / | AC175: 0 | AD175: 1 | AE175: / | AF175: 1 | AG175: 0 | AH175: 0 | AI175: 0 | AJ175: /
C176: 168 | D176: =IF(AND(YEAR('front utente'!C194)=2013,'front utente'!$I$15="si"),$C$2,'front utente'!C194) -> 00:00:00 | E176: =IF(AND(YEAR('front utente'!D194)=2013,'front utente'!$I$15="si"),$D$2,'front utente'!D194) -> 00:00:00 | G176: =IF(D176>E176,0, calcoloperiodi1!H178) -> 0 | H176: 1 | J176: 2173-10-14 | K176: 1 | L176: 2173-10-14 | M176: 1 | N176: 2173-10-14 | O176: 1 | P176: 2173-10-14 | Q176: 1 | R176: 2173-10-14 | S176: 1 | T176: 2173-10-14 | U176: 1 | X176: 0 | Y176: 1899 | AB176: / | AC176: 0 | AD176: 1 | AE176: / | AF176: 1 | AG176: 0 | AH176: 0 | AI176: 0 | AJ176: /
C177: 169 | D177: =IF(AND(YEAR('front utente'!C195)=2013,'front utente'!$I$15="si"),$C$2,'front utente'!C195) -> 00:00:00 | E177: =IF(AND(YEAR('front utente'!D195)=2013,'front utente'!$I$15="si"),$D$2,'front utente'!D195) -> 00:00:00 | G177: =IF(D177>E177,0, calcoloperiodi1!H179) -> 0 | H177: 1 | J177: 2173-10-14 | K177: 1 | L177: 2173-10-14 | M177: 1 | N177: 2173-10-14 | O177: 1 | P177: 2173-10-14 | Q177: 1 | R177: 2173-10-14 | S177: 1 | T177: 2173-10-14 | U177: 1 | X177: 0 | Y177: 1899 | AB177: / | AC177: 0 | AD177: 1 | AE177: / | AF177: 1 | AG177: 0 | AH177: 0 | AI177: 0 | AJ177: /
C178: 170 | D178: =IF(AND(YEAR('front utente'!C196)=2013,'front utente'!$I$15="si"),$C$2,'front utente'!C196) -> 00:00:00 | E178: =IF(AND(YEAR('front utente'!D196)=2013,'front utente'!$I$15="si"),$D$2,'front utente'!D196) -> 00:00:00 | G178: =IF(D178>E178,0, calcoloperiodi1!H180) -> 0 | H178: 1 | J178: 2173-10-14 | K178: 1 | L178: 2173-10-14 | M178: 1 | N178: 2173-10-14 | O178: 1 | P178: 2173-10-14 | Q178: 1 | R178: 2173-10-14 | S178: 1 | T178: 2173-10-14 | U178: 1 | X178: 0 | Y178: 1899 | AB178: / | AC178: 0 | AD178: 1 | AE178: / | AF178: 1 | AG178: 0 | AH178: 0 | AI178: 0 | AJ178: /
C179: 171 | D179: =IF(AND(YEAR('front utente'!C197)=2013,'front utente'!$I$15="si"),$C$2,'front utente'!C197) -> 00:00:00 | E179: =IF(AND(YEAR('front utente'!D197)=2013,'front utente'!$I$15="si"),$D$2,'front utente'!D197) -> 00:00:00 | G179: =IF(D179>E179,0, calcoloperiodi1!H181) -> 0 | H179: 1 | J179: 2173-10-14 | K179: 1 | L179: 2173-10-14 | M179: 1 | N179: 2173-10-14 | O179: 1 | P179: 2173-10-14 | Q179: 1 | R179: 2173-10-14 | S179: 1 | T179: 2173-10-14 | U179: 1 | X179: 0 | Y179: 1899 | AB179: / | AC179: 0 | AD179: 1 | AE179: / | AF179: 1 | AG179: 0 | AH179: 0 | AI179: 0 | AJ179: /
C180: 172 | D180: =IF(AND(YEAR('front utente'!C198)=2013,'front utente'!$I$15="si"),$C$2,'front utente'!C198) -> 00:00:00 | E180: =IF(AND(YEAR('front utente'!D198)=2013,'front utente'!$I$15="si"),$D$2,'front utente'!D198) -> 00:00:00 | G180: =IF(D180>E180,0, calcoloperiodi1!H182) -> 0 | H180: 1 | J180: 2173-10-14 | K180: 1 | L180: 2173-10-14 | M180: 1 | N180: 2173-10-14 | O180: 1 | P180: 2173-10-14 | Q180: 1 | R180: 2173-10-14 | S180: 1 | T180: 2173-10-14 | U180: 1 | X180: 0 | Y180: 1899 | AB180: / | AC180: 0 | AD180: 1 | AE180: / | AF180: 1 | AG180: 0 | AH180: 0 | AI180: 0 | AJ180: /
C181: 173 | D181: =IF(AND(YEAR('front utente'!C199)=2013,'front utente'!$I$15="si"),$C$2,'front utente'!C199) -> 00:00:00 | E181: =IF(AND(YEAR('front utente'!D199)=2013,'front utente'!$I$15="si"),$D$2,'front utente'!D199) -> 00:00:00 | G181: =IF(D181>E181,0, calcoloperiodi1!H183) -> 0 | H181: 1 | J181: 2173-10-14 | K181: 1 | L181: 2173-10-14 | M181: 1 | N181: 2173-10-14 | O181: 1 | P181: 2173-10-14 | Q181: 1 | R181: 2173-10-14 | S181: 1 | T181: 2173-10-14 | U181: 1 | X181: 0 | Y181: 1899 | AB181: / | AC181: 0 | AD181: 1 | AE181: / | AF181: 1 | AG181: 0 | AH181: 0 | AI181: 0 | AJ181: /
C182: 174 | D182: =IF(AND(YEAR('front utente'!C200)=2013,'front utente'!$I$15="si"),$C$2,'front utente'!C200) -> 00:00:00 | E182: =IF(AND(YEAR('front utente'!D200)=2013,'front utente'!$I$15="si"),$D$2,'front utente'!D200) -> 00:00:00 | G182: =IF(D182>E182,0, calcoloperiodi1!H184) -> 0 | H182: 1 | J182: 2173-10-14 | K182: 1 | L182: 2173-10-14 | M182: 1 | N182: 2173-10-14 | O182: 1 | P182: 2173-10-14 | Q182: 1 | R182: 2173-10-14 | S182: 1 | T182: 2173-10-14 | U182: 1 | X182: 0 | Y182: 1899 | AB182: / | AC182: 0 | AD182: 1 | AE182: / | AF182: 1 | AG182: 0 | AH182: 0 | AI182: 0 | AJ182: /
C183: 175 | D183: =IF(AND(YEAR('front utente'!C201)=2013,'front utente'!$I$15="si"),$C$2,'front utente'!C201) -> 00:00:00 | E183: =IF(AND(YEAR('front utente'!D201)=2013,'front utente'!$I$15="si"),$D$2,'front utente'!D201) -> 00:00:00 | G183: =IF(D183>E183,0, calcoloperiodi1!H185) -> 0 | H183: 1 | J183: 2173-10-14 | K183: 1 | L183: 2173-10-14 | M183: 1 | N183: 2173-10-14 | O183: 1 | P183: 2173-10-14 | Q183: 1 | R183: 2173-10-14 | S183: 1 | T183: 2173-10-14 | U183: 1 | X183: 0 | Y183: 1899 | AB183: / | AC183: 0 | AD183: 1 | AE183: / | AF183: 1 | AG183: 0 | AH183: 0 | AI183: 0 | AJ183: /
C184: 176 | D184: =IF(AND(YEAR('front utente'!C202)=2013,'front utente'!$I$15="si"),$C$2,'front utente'!C202) -> 00:00:00 | E184: =IF(AND(YEAR('front utente'!D202)=2013,'front utente'!$I$15="si"),$D$2,'front utente'!D202) -> 00:00:00 | G184: =IF(D184>E184,0, calcoloperiodi1!H186) -> 0 | H184: 1 | J184: 2173-10-14 | K184: 1 | L184: 2173-10-14 | M184: 1 | N184: 2173-10-14 | O184: 1 | P184: 2173-10-14 | Q184: 1 | R184: 2173-10-14 | S184: 1 | T184: 2173-10-14 | U184: 1 | X184: 0 | Y184: 1899 | AB184: / | AC184: 0 | AD184: 1 | AE184: / | AF184: 1 | AG184: 0 | AH184: 0 | AI184: 0 | AJ184: /
C185: 177 | D185: =IF(AND(YEAR('front utente'!C203)=2013,'front utente'!$I$15="si"),$C$2,'front utente'!C203) -> 00:00:00 | E185: =IF(AND(YEAR('front utente'!D203)=2013,'front utente'!$I$15="si"),$D$2,'front utente'!D203) -> 00:00:00 | G185: =IF(D185>E185,0, calcoloperiodi1!H187) -> 0 | H185: 1 | J185: 2173-10-14 | K185: 1 | L185: 2173-10-14 | M185: 1 | N185: 2173-10-14 | O185: 1 | P185: 2173-10-14 | Q185: 1 | R185: 2173-10-14 | S185: 1 | T185: 2173-10-14 | U185: 1 | X185: 0 | Y185: 1899 | AB185: / | AC185: 0 | AD185: 1 | AE185: / | AF185: 1 | AG185: 0 | AH185: 0 | AI185: 0 | AJ185: /
C186: 178 | D186: =IF(AND(YEAR('front utente'!C204)=2013,'front utente'!$I$15="si"),$C$2,'front utente'!C204) -> 00:00:00 | E186: =IF(AND(YEAR('front utente'!D204)=2013,'front utente'!$I$15="si"),$D$2,'front utente'!D204) -> 00:00:00 | G186: =IF(D186>E186,0, calcoloperiodi1!H188) -> 0 | H186: 1 | J186: 2173-10-14 | K186: 1 | L186: 2173-10-14 | M186: 1 | N186: 2173-10-14 | O186: 1 | P186: 2173-10-14 | Q186: 1 | R186: 2173-10-14 | S186: 1 | T186: 2173-10-14 | U186: 1 | X186: 0 | Y186: 1899 | AB186: / | AC186: 0 | AD186: 1 | AE186: / | AF186: 1 | AG186: 0 | AH186: 0 | AI186: 0 | AJ186: /
C187: 179 | D187: =IF(AND(YEAR('front utente'!C205)=2013,'front utente'!$I$15="si"),$C$2,'front utente'!C205) -> 00:00:00 | E187: =IF(AND(YEAR('front utente'!D205)=2013,'front utente'!$I$15="si"),$D$2,'front utente'!D205) -> 00:00:00 | G187: =IF(D187>E187,0, calcoloperiodi1!H189) -> 0 | H187: 1 | J187: 2173-10-14 | K187: 1 | L187: 2173-10-14 | M187: 1 | N187: 2173-10-14 | O187: 1 | P187: 2173-10-14 | Q187: 1 | R187: 2173-10-14 | S187: 1 | T187: 2173-10-14 | U187: 1 | X187: 0 | Y187: 1899 | AB187: / | AC187: 0 | AD187: 1 | AE187: / | AF187: 1 | AG187: 0 | AH187: 0 | AI187: 0 | AJ187: /
C188: 180 | D188: =IF(AND(YEAR('front utente'!C206)=2013,'front utente'!$I$15="si"),$C$2,'front utente'!C206) -> 00:00:00 | E188: =IF(AND(YEAR('front utente'!D206)=2013,'front utente'!$I$15="si"),$D$2,'front utente'!D206) -> 00:00:00 | G188: =IF(D188>E188,0, calcoloperiodi1!H190) -> 0 | H188: 1 | J188: 2173-10-14 | K188: 1 | L188: 2173-10-14 | M188: 1 | N188: 2173-10-14 | O188: 1 | P188: 2173-10-14 | Q188: 1 | R188: 2173-10-14 | S188: 1 | T188: 2173-10-14 | U188: 1 | X188: 0 | Y188: 1899 | AB188: / | AC188: 0 | AD188: 1 | AE188: / | AF188: 1 | AG188: 0 | AH188: 0 | AI188: 4 | AJ188: 0
J189: =MIN(J9:J188) -> 2173-10-14 | K189: =VLOOKUP(J189,J9:K188,2,0) -> 1 | L189: =MIN(L9:L188) -> 2173-10-14 | M189: =VLOOKUP(L189,L9:M188,2,0) -> 1 | N189: =MIN(N9:N188) -> 2173-10-14 | O189: =VLOOKUP(N189,N9:O188,2,0) -> 1 | P189: =MIN(P9:P188) -> 2173-10-14 | Q189: =VLOOKUP(P189,P9:Q188,2,0) -> 1 | R189: =MIN(R9:R188) -> 2173-10-14 | S189: =VLOOKUP(R189,R9:S188,2,0) -> 1 | T189: =MIN(T9:T188) -> 2173-10-14 | U189: =VLOOKUP(T189,T9:U188,2,0) -> 1 | Y189: =IF(MONTH(D282)<9,YEAR(D282)-1,YEAR(D282)) -> 1899 | AA189: =IF(Y189>1900,Z189+1,"") ->  | AB189: =CONCATENATE(Z189,"/",AA189) -> / | AC189: =G282-F282 -> 0 | AD189: =IF(AB189=AB188,AC189+AD188,AC189) -> 1 | AE189: =IF(AB189<>AB190,AB189,"") ->  | AF189: =IF(AE189<>"",AD189,"") ->  | AG189: =IF(AE189<>"",IF(AF189>179,1,0),0) -> 0 | AH189: =AH188+AG189 -> 0 | AI189: 10 | AJ189: 0
E190: =MAX(E9:E188) -> 00:00:00 | Y190: =IF(MONTH(D283)<9,YEAR(D283)-1,YEAR(D283)) -> 1899 | AA190: =IF(Y190>1900,Z190+1,"") ->  | AB190: =CONCATENATE(Z190,"/",AA190) -> / | AC190: =G283-F283 -> 0 | AD190: =IF(AB190=AB189,AC190+AD189,AC190) -> 1 | AE190: =IF(AB190<>AB191,AB190,"") ->  | AF190: =IF(AE190<>"",AD190,"") ->  | AG190: =IF(AE190<>"",IF(AF190>179,1,0),0) -> 0 | AH190: =AH189+AG190 -> 0 | AI190: 16 | AJ190: 0
Y191: =IF(MONTH(D284)<9,YEAR(D284)-1,YEAR(D284)) -> 1899 | AA191: =IF(Y191>1900,Z191+1,"") ->  | AB191: =CONCATENATE(Z191,"/",AA191) -> / | AC191: =G284-F284 -> 0 | AD191: =IF(AB191=AB190,AC191+AD190,AC191) -> 1 | AE191: =IF(AB191<>AB192,AB191,"") ->  | AF191: =IF(AE191<>"",AD191,"") ->  | AG191: =IF(AE191<>"",IF(AF191>179,1,0),0) -> 0 | AH191: =AH190+AG191 -> 0 | AI191: 22 | AJ191: 0
N192: =365*15 -> 5475 | Y192: =IF(MONTH(D285)<9,YEAR(D285)-1,YEAR(D285)) -> 1899 | AA192: =IF(Y192>1900,Z192+1,"") ->  | AB192: =CONCATENATE(Z192,"/",AA192) -> / | AC192: =G285-F285 -> 0 | AD192: =IF(AB192=AB191,AC192+AD191,AC192) -> 1 | AE192: =IF(AB192<>AB193,AB192,"") ->  | AF192: =IF(AE192<>"",AD192,"") ->  | AG192: =IF(AE192<>"",IF(AF192>179,1,0),0) -> 0 | AH192: =AH191+AG192 -> 0 | AI192: 29 | AJ192: 0
Y193: =IF(MONTH(D286)<9,YEAR(D286)-1,YEAR(D286)) -> 1899 | AA193: =IF(Y193>1900,Z193+1,"") ->  | AB193: =CONCATENATE(Z193,"/",AA193) -> / | AC193: =G286-F286 -> 0 | AD193: =IF(AB193=AB192,AC193+AD192,AC193) -> 1 | AE193: =IF(AB193<>AB287,AB193,"") -> / | AF193: =IF(AE193<>"",AD193,"") -> 1 | AG193: =IF(AE193<>"",IF(AF193>179,1,0),0) -> 0 | AH193: =AH192+AG193 -> 0 | AI193: 36 | AJ193: 0
N195: =N189-O189+N192 -> 2188-10-09
D198: prima del 1996 e fino al 1990
D199: dal | E199: al | G199: tot gg | J199: 2-3 anni | L199: 4-5 anni
C200: 1 | D200: =IF(YEAR('front utente'!C27)<1996,'front utente'!C27,0) -> 00:00:00 | E200: =IF(YEAR(D200)<>1900,'front utente'!D27,0) -> 00:00:00 | G200: =IF(D200>0,E200-D200+1,0) -> 0 | H200: =G200 -> 0 | J200: =IF( AND(H200>730,D200>0),E200,100000) -> 2173-10-14 | K200: =H200 -> 0 | L200: =IF( AND(H200>1460,D200>0),E200,100000) -> 2173-10-14 | M200: =H200 -> 0
C201: 2 | D201: =IF(YEAR('front utente'!C28)<1996,'front utente'!C28,0) -> 00:00:00 | E201: =IF(YEAR(D201)<>1900,'front utente'!D28,0) -> 00:00:00 | G201: 0 | H201: 0 | J201: 2173-10-14 | K201: 0 | L201: 2173-10-14 | M201: 0
C202: 3 | D202: =IF(YEAR('front utente'!C29)<1996,'front utente'!C29,0) -> 00:00:00 | E202: =IF(YEAR(D202)<>1900,'front utente'!D29,0) -> 00:00:00 | G202: 0 | H202: 0 | J202: 2173-10-14 | K202: 0 | L202: 2173-10-14 | M202: 0
C203: 4 | D203: =IF(YEAR('front utente'!C30)<1996,'front utente'!C30,0) -> 00:00:00 | E203: =IF(YEAR(D203)<>1900,'front utente'!D30,0) -> 00:00:00 | G203: 0 | H203: 0 | J203: 2173-10-14 | K203: 0 | L203: 2173-10-14 | M203: 0
C204: 5 | D204: =IF(YEAR('front utente'!C31)<1996,'front utente'!C31,0) -> 00:00:00 | E204: =IF(YEAR(D204)<>1900,'front utente'!D31,0) -> 00:00:00 | G204: 0 | H204: 0 | J204: 2173-10-14 | K204: 0 | L204: 2173-10-14 | M204: 0
C205: 6 | D205: =IF(YEAR('front utente'!C32)<1996,'front utente'!C32,0) -> 00:00:00 | E205: =IF(YEAR(D205)<>1900,'front utente'!D32,0) -> 00:00:00 | G205: 0 | H205: 0 | J205: 2173-10-14 | K205: 0 | L205: 2173-10-14 | M205: 0
J207: =MIN(J200:J205) -> 2173-10-14 | K207: =VLOOKUP(J207,J200:K205,2,0) -> 0 | L207: =MIN(L200:L205) -> 2173-10-14 | M207: =VLOOKUP(L207,L200:M205,2,0) -> 0
C212: anni | D212: data | E212: Ind Funz | F212: Stip
C213: 0 | D213: =D200 -> 00:00:00 | E213: =VLOOKUP(C213,'pre 1-1-1996'!$A$7:$B$13,2) -> 1416000 | F213: =VLOOKUP(C213,'pre 1-1-1996'!$A$25:$B$31,2) -> 12924000
... 2 more rows

Sheet calcoloperiodi1
A10: giorni da eliminare nel caso ilperiodo siai a cavall0 2013 2014 | B10: giorni da eliminare nel caso ilperiodo siai a cavall0 2012 2013 | G10: tot periodo | H10: tot con giorni non in comune | U10: dalla data | V10: alla data: | W10: subtotale dei giorni effettivamente lavorati alla data | X10: anni | Y10: mesi | Z10: giormi | AA10: giorni prima del 1 1 1996 | AB10: giorni da sottrarre a quelli di fianco | AC10: SE AL 01/01/96 IL RESIDUO GIORNI E PARI AD ALMENO 180GG - ALLORA SI ARROTONDA PER ECCESSO AD ANNO INTERO - SE INERIORE A 180 GG ALLORA SI ARROTONDA PER DIFETT - al 01/01/1996 - vi è un residuo di giorni | AE10: anni | AF10: giorni | AH10: anzianita da arrotondare al 01 01 1996 ANNI
A11: =IF(AND(YEAR(E11)=2013,YEAR(F11)=2014,'front utente'!$I$15="si" ),DATE(2013,12,31)-E11,0) -> 0 | B11: =IF(AND(YEAR(E11)=2012,YEAR(F11)=2013,'front utente'!$I$15="si"),F11-DATE(2013,1,1),0) -> 0 | E11: ='front utente'!C27 -> 00:00:00 | F11: ='front utente'!D27 -> 00:00:00 | G11: =F11-E11+1 -> 1 | H11: =G11 -> 1 | U11: =IF(E11<>0,E11,"") ->  | V11: =IF(F11<>0,F11,"") ->  | W11: =IF(V11<>0,H11,"") -> 1 | X11: =INT(W11/365) -> 0 | Y11: =IF(W11<>"", INT((W11-X11*365)/30),"") -> 0 | Z11: =INT(W11-(X11*365+Y11*30)) -> 1 | AA11: =IF(U11<DATE(1996,1,1),W11,0) -> 0 | AB11: =IF( AND(V11>DATE(1996,1,1),U11<DATE(1996,1,1) ),V11-DATE(1996,1,1),0) -> 0 | AC11: =SUM(AA11:AA43)-(SUM(AB11:AB43)) -> 0 | AE11: =INT(AC11/365) -> 0 | AF11: =AC11-AE11*365 -> 0 | AG11: =IF(AF11<180,0,1) -> 0 | AH11: =IF( OR( LEFT('front utente'!K16,1)<>"1",YEAR(E11)>1995),"NO", AE11+AG11) -> 0
A12: =IF(AND(YEAR(E12)=2013,YEAR(F12)=2014,'front utente'!$I$15="si" ),DATE(2013,12,31)-E12,0) -> 0 | B12: =IF(AND(YEAR(E12)=2012,YEAR(F12)=2013,'front utente'!$I$15="si"),F12-DATE(2013,1,1),0) -> 0 | E12: ='front utente'!C28 -> 00:00:00 | F12: ='front utente'!D28 -> 00:00:00 | G12: 1 | H12: =IF(MAX($F$11:F11)>=F12,0,F12-MAX($F$11:F11)-MIN(I12:U12)-B12-A12) -> 0 | I12: =IF(E12<=F11,0,E12-F11-1) -> 0 | J12: =IF(E12<=F10,0,E12-F10-1) -> 0 | K12: =IF(E12<=F9,0,E12-F9-1) -> 0 | L12: =IF(E12<=F8,0,E12-F8-1) -> 0 | M12: =IF(E12<=F7,0,E12-F7-1) -> 0 | N12: =IF(E12<=F6,0,E12-F6-1) -> 0 | O12: =IF(E12<=F5,0,E12-F5-1) -> 0 | P12: =IF(E12<=F4,0,E12-F4-1) -> 0 | Q12: =IF(E12<=F3,0,E12-F3-1) -> 0 | R12: =IF(E12<=F2,0,E12-F2-1) -> 0 | S12: =IF(E12<=F1,0,E12-F1-1) -> 0 | U12: =IF(E12<>0,E12,"") ->  | V12: =IF(F12<>0,F12,"") ->  | W12: =IF(V12<>0,H12,"") -> 0 | X12: =INT(W12/365) -> 0 | Y12: =IF(W12<>"", INT((W12-X12*365)/30),"") -> 0 | Z12: =INT(W12-(X12*365+Y12*30)) -> 0 | AA12: =IF(U12<DATE(1996,1,1),W12,0) -> 0 | AB12: =IF( AND(V12>DATE(1996,1,1),U12<DATE(1996,1,1) ),V12-DATE(1996,1,1),0) -> 0
A13: =IF(AND(YEAR(E13)=2013,YEAR(F13)=2014,'front utente'!$I$15="si" ),DATE(2013,12,31)-E13,0) -> 0 | B13: =IF(AND(YEAR(E13)=2012,YEAR(F13)=2013,'front utente'!$I$15="si"),F13-DATE(2013,1,1),0) -> 0 | E13: ='front utente'!C29 -> 00:00:00 | F13: ='front utente'!D29 -> 00:00:00 | G13: 1 | H13: =IF(MAX($F$11:F12)>=F13,0,F13-MAX($F$11:F12)-MIN(I13:U13)-B13-A13) -> 0 | I13: 0 | J13: 0 | K13: 0 | L13: 0 | M13: 0 | N13: 0 | O13: 0 | P13: 0 | Q13: 0 | R13: 0 | S13: 0 | T13: =IF(E13<=F1,0,E13-F1-1) -> 0 | W13: 0 | X13: 0 | Y13: 0 | Z13: 0 | AA13: =IF(U13<DATE(1996,1,1),W13,0) -> 0 | AB13: =IF( AND(V13>DATE(1996,1,1),U13<DATE(1996,1,1) ),V13-DATE(1996,1,1),0) -> 0
A14: =IF(AND(YEAR(E14)=2013,YEAR(F14)=2014,'front utente'!$I$15="si" ),DATE(2013,12,31)-E14,0) -> 0 | B14: =IF(AND(YEAR(E14)=2012,YEAR(F14)=2013,'front utente'!$I$15="si"),F14-DATE(2013,1,1),0) -> 0 | E14: ='front utente'!C30 -> 00:00:00 | F14: ='front utente'!D30 -> 00:00:00 | G14: 1 | H14: =IF(MAX($F$11:F13)>=F14,0,F14-MAX($F$11:F13)-MIN(I14:U14)-B14-A14) -> 0 | I14: 0 | J14: 0 | K14: 0 | L14: 0 | M14: 0 | N14: 0 | O14: 0 | P14: 0 | Q14: 0 | R14: 0 | S14: 0 | T14: 0 | W14: 0 | X14: 0 | Y14: 0 | Z14: 0 | AA14: 0 | AB14: =IF( AND(V14>DATE(1996,1,1),U14<DATE(1996,1,1) ),V14-DATE(1996,1,1),0) -> 0
A15: =IF(AND(YEAR(E15)=2013,YEAR(F15)=2014,'front utente'!$I$15="si" ),DATE(2013,12,31)-E15,0) -> 0 | B15: =IF(AND(YEAR(E15)=2012,YEAR(F15)=2013,'front utente'!$I$15="si"),F15-DATE(2013,1,1),0) -> 0 | E15: ='front utente'!C31 -> 00:00:00 | F15: ='front utente'!D31 -> 00:00:00 | G15: 1 | H15: =IF(MAX($F$11:F14)>=F15,0,F15-MAX($F$11:F14)-MIN(I15:U15)-B15-A15) -> 0 | I15: 0 | J15: 0 | K15: 0 | L15: 0 | M15: 0 | N15: 0 | O15: 0 | P15: 0 | Q15: 0 | R15: 0 | S15: 0 | T15: 0 | W15: 0 | X15: 0 | Y15: 0 | Z15: 0 | AA15: 0 | AB15: 0
A16: =IF(AND(YEAR(E16)=2013,YEAR(F16)=2014,'front utente'!$I$15="si" ),DATE(2013,12,31)-E16,0) -> 0 | B16: =IF(AND(YEAR(E16)=2012,YEAR(F16)=2013,'front utente'!$I$15="si"),F16-DATE(2013,1,1),0) -> 0 | E16: ='front utente'!C32 -> 00:00:00 | F16: ='front utente'!D32 -> 00:00:00 | G16: 1 | H16: =IF(MAX($F$11:F15)>=F16,0,F16-MAX($F$11:F15)-MIN(I16:U16)-B16-A16) -> 0 | I16: 0 | J16: 0 | K16: 0 | L16: 0 | M16: 0 | N16: 0 | O16: 0 | P16: 0 | Q16: 0 | R16: 0 | S16: 0 | T16: 0 | W16: 0 | X16: 0 | Y16: 0 | Z16: 0 | AA16: 0 | AB16: 0
A17: =IF(AND(YEAR(E17)=2013,YEAR(F17)=2014,'front utente'!$I$15="si" ),DATE(2013,12,31)-E17,0) -> 0 | B17: =IF(AND(YEAR(E17)=2012,YEAR(F17)=2013,'front utente'!$I$15="si"),F17-DATE(2013,1,1),0) -> 0 | E17: ='front utente'!C33 -> 00:00:00 | F17: ='front utente'!D33 -> 00:00:00 | G17: 1 | H17: =IF(MAX($F$11:F16)>=F17,0,F17-MAX($F$11:F16)-MIN(I17:U17)-B17-A17) -> 0 | I17: 0 | J17: 0 | K17: 0 | L17: 0 | M17: 0 | N17: 0 | O17: 0 | P17: 0 | Q17: 0 | R17: 0 | S17: 0 | T17: 0 | W17: 0 | X17: 0 | Y17: 0 | Z17: 0 | AA17: 0 | AB17: 0
A18: =IF(AND(YEAR(E18)=2013,YEAR(F18)=2014,'front utente'!$I$15="si" ),DATE(2013,12,31)-E18,0) -> 0 | B18: =IF(AND(YEAR(E18)=2012,YEAR(F18)=2013,'front utente'!$I$15="si"),F18-DATE(2013,1,1),0) -> 0 | E18: ='front utente'!C34 -> 00:00:00 | F18: ='front utente'!D34 -> 00:00:00 | G18: 1 | H18: =IF(MAX($F$11:F17)>=F18,0,F18-MAX($F$11:F17)-MIN(I18:U18)-B18-A18) -> 0 | I18: 0 | J18: 0 | K18: 0 | L18: 0 | M18: 0 | N18: 0 | O18: 0 | P18: 0 | Q18: 0 | R18: 0 | S18: 0 | T18: 0 | W18: 0 | X18: 0 | Y18: 0 | Z18: 0 | AA18: 0 | AB18: 0
A19: =IF(AND(YEAR(E19)=2013,YEAR(F19)=2014,'front utente'!$I$15="si" ),DATE(2013,12,31)-E19,0) -> 0 | B19: =IF(AND(YEAR(E19)=2012,YEAR(F19)=2013,'front utente'!$I$15="si"),F19-DATE(2013,1,1),0) -> 0 | E19: ='front utente'!C35 -> 00:00:00 | F19: ='front utente'!D35 -> 00:00:00 | G19: 1 | H19: =IF(MAX($F$11:F18)>=F19,0,F19-MAX($F$11:F18)-MIN(I19:U19)-B19-A19) -> 0 | I19: 0 | J19: 0 | K19: 0 | L19: 0 | M19: 0 | N19: 0 | O19: 0 | P19: 0 | Q19: 0 | R19: 0 | S19: 0 | T19: 0 | W19: 0 | X19: 0 | Y19: 0 | Z19: 0 | AA19: 0 | AB19: 0
A20: =IF(AND(YEAR(E20)=2013,YEAR(F20)=2014,'front utente'!$I$15="si" ),DATE(2013,12,31)-E20,0) -> 0 | B20: =IF(AND(YEAR(E20)=2012,YEAR(F20)=2013,'front utente'!$I$15="si"),F20-DATE(2013,1,1),0) -> 0 | E20: ='front utente'!C36 -> 00:00:00 | F20: ='front utente'!D36 -> 00:00:00 | G20: 1 | H20: =IF(MAX($F$11:F19)>=F20,0,F20-MAX($F$11:F19)-MIN(I20:U20)-B20-A20) -> 0 | I20: 0 | J20: 0 | K20: 0 | L20: 0 | M20: 0 | N20: 0 | O20: 0 | P20: 0 | Q20: 0 | R20: 0 | S20: 0 | T20: 0 | W20: 0 | X20: 0 | Y20: 0 | Z20: 0 | AA20: 0 | AB20: 0
A21: =IF(AND(YEAR(E21)=2013,YEAR(F21)=2014,'front utente'!$I$15="si" ),DATE(2013,12,31)-E21,0) -> 0 | B21: =IF(AND(YEAR(E21)=2012,YEAR(F21)=2013,'front utente'!$I$15="si"),F21-DATE(2013,1,1),0) -> 0 | E21: ='front utente'!C37 -> 00:00:00 | F21: ='front utente'!D37 -> 00:00:00 | G21: 1 | H21: =IF(MAX($F$11:F20)>=F21,0,F21-MAX($F$11:F20)-MIN(I21:U21)-B21-A21) -> 0 | I21: 0 | J21: 0 | K21: 0 | L21: 0 | M21: 0 | N21: 0 | O21: 0 | P21: 0 | Q21: 0 | R21: 0 | S21: 0 | T21: 0 | W21: 0 | X21: 0 | Y21: 0 | Z21: 0 | AA21: 0 | AB21: 0
A22: =IF(AND(YEAR(E22)=2013,YEAR(F22)=2014,'front utente'!$I$15="si" ),DATE(2013,12,31)-E22,0) -> 0 | B22: =IF(AND(YEAR(E22)=2012,YEAR(F22)=2013,'front utente'!$I$15="si"),F22-DATE(2013,1,1),0) -> 0 | E22: ='front utente'!C38 -> 00:00:00 | F22: ='front utente'!D38 -> 00:00:00 | G22: 1 | H22: =IF(MAX($F$11:F21)>=F22,0,F22-MAX($F$11:F21)-MIN(I22:U22)-B22-A22) -> 0 | I22: 0 | J22: 0 | K22: 0 | L22: 0 | M22: 0 | N22: 0 | O22: 0 | P22: 0 | Q22: 0 | R22: 0 | S22: 0 | T22: 0 | W22: 0 | X22: 0 | Y22: 0 | Z22: 0 | AA22: 0 | AB22: 0
A23: =IF(AND(YEAR(E23)=2013,YEAR(F23)=2014,'front utente'!$I$15="si" ),DATE(2013,12,31)-E23,0) -> 0 | B23: =IF(AND(YEAR(E23)=2012,YEAR(F23)=2013,'front utente'!$I$15="si"),F23-DATE(2013,1,1),0) -> 0 | E23: ='front utente'!C39 -> 00:00:00 | F23: ='front utente'!D39 -> 00:00:00 | G23: 1 | H23: =IF(MAX($F$11:F22)>=F23,0,F23-MAX($F$11:F22)-MIN(I23:U23)-B23-A23) -> 0 | I23: 0 | J23: 0 | K23: 0 | L23: 0 | M23: 0 | N23: 0 | O23: 0 | P23: 0 | Q23: 0 | R23: 0 | S23: 0 | T23: 0 | W23: 0 | X23: 0 | Y23: 0 | Z23: 0 | AA23: 0 | AB23: 0
A24: =IF(AND(YEAR(E24)=2013,YEAR(F24)=2014,'front utente'!$I$15="si" ),DATE(2013,12,31)-E24,0) -> 0 | B24: =IF(AND(YEAR(E24)=2012,YEAR(F24)=2013,'front utente'!$I$15="si"),F24-DATE(2013,1,1),0) -> 0 | E24: ='front utente'!C40 -> 00:00:00 | F24: ='front utente'!D40 -> 00:00:00 | G24: 1 | H24: =IF(MAX($F$11:F23)>=F24,0,F24-MAX($F$11:F23)-MIN(I24:U24)-B24-A24) -> 0 | I24: 0 | J24: 0 | K24: 0 | L24: 0 | M24: 0 | N24: 0 | O24: 0 | P24: 0 | Q24: 0 | R24: 0 | S24: 0 | T24: 0 | W24: 0 | X24: 0 | Y24: 0 | Z24: 0 | AA24: 0 | AB24: 0
A25: =IF(AND(YEAR(E25)=2013,YEAR(F25)=2014,'front utente'!$I$15="si" ),DATE(2013,12,31)-E25,0) -> 0 | B25: =IF(AND(YEAR(E25)=2012,YEAR(F25)=2013,'front utente'!$I$15="si"),F25-DATE(2013,1,1),0) -> 0 | E25: ='front utente'!C41 -> 00:00:00 | F25: ='front utente'!D41 -> 00:00:00 | G25: 1 | H25: =IF(MAX($F$11:F24)>=F25,0,F25-MAX($F$11:F24)-MIN(I25:U25)-B25-A25) -> 0 | I25: 0 | J25: 0 | K25: 0 | L25: 0 | M25: 0 | N25: 0 | O25: 0 | P25: 0 | Q25: 0 | R25: 0 | S25: 0 | T25: 0 | W25: 0 | X25: 0 | Y25: 0 | Z25: 0 | AA25: 0 | AB25: 0
A26: =IF(AND(YEAR(E26)=2013,YEAR(F26)=2014,'front utente'!$I$15="si" ),DATE(2013,12,31)-E26,0) -> 0 | B26: =IF(AND(YEAR(E26)=2012,YEAR(F26)=2013,'front utente'!$I$15="si"),F26-DATE(2013,1,1),0) -> 0 | E26: ='front utente'!C42 -> 00:00:00 | F26: ='front utente'!D42 -> 00:00:00 | G26: 1 | H26: =IF(MAX($F$11:F25)>=F26,0,F26-MAX($F$11:F25)-MIN(I26:U26)-B26-A26) -> 0 | I26: 0 | J26: 0 | K26: 0 | L26: 0 | M26: 0 | N26: 0 | O26: 0 | P26: 0 | Q26: 0 | R26: 0 | S26: 0 | T26: 0 | W26: 0 | X26: 0 | Y26: 0 | Z26: 0 | AA26: 0 | AB26: 0
A27: =IF(AND(YEAR(E27)=2013,YEAR(F27)=2014,'front utente'!$I$15="si" ),DATE(2013,12,31)-E27,0) -> 0 | B27: =IF(AND(YEAR(E27)=2012,YEAR(F27)=2013,'front utente'!$I$15="si"),F27-DATE(2013,1,1),0) -> 0 | E27: ='front utente'!C43 -> 00:00:00 | F27: ='front utente'!D43 -> 00:00:00 | G27: 1 | H27: =IF(MAX($F$11:F26)>=F27,0,F27-MAX($F$11:F26)-MIN(I27:U27)-B27-A27) -> 0 | I27: 0 | J27: 0 | K27: 0 | L27: 0 | M27: 0 | N27: 0 | O27: 0 | P27: 0 | Q27: 0 | R27: 0 | S27: 0 | T27: 0 | W27: 0 | X27: 0 | Y27: 0 | Z27: 0 | AA27: 0 | AB27: 0
A28: =IF(AND(YEAR(E28)=2013,YEAR(F28)=2014,'front utente'!$I$15="si" ),DATE(2013,12,31)-E28,0) -> 0 | B28: =IF(AND(YEAR(E28)=2012,YEAR(F28)=2013,'front utente'!$I$15="si"),F28-DATE(2013,1,1),0) -> 0 | E28: ='front utente'!C44 -> 00:00:00 | F28: ='front utente'!D44 -> 00:00:00 | G28: 1 | H28: =IF(MAX($F$11:F27)>=F28,0,F28-MAX($F$11:F27)-MIN(I28:U28)-B28-A28) -> 0 | I28: 0 | J28: 0 | K28: 0 | L28: 0 | M28: 0 | N28: 0 | O28: 0 | P28: 0 | Q28: 0 | R28: 0 | S28: 0 | T28: 0 | W28: 0 | X28: 0 | Y28: 0 | Z28: 0 | AA28: 0 | AB28: 0
A29: =IF(AND(YEAR(E29)=2013,YEAR(F29)=2014,'front utente'!$I$15="si" ),DATE(2013,12,31)-E29,0) -> 0 | B29: =IF(AND(YEAR(E29)=2012,YEAR(F29)=2013,'front utente'!$I$15="si"),F29-DATE(2013,1,1),0) -> 0 | E29: ='front utente'!C45 -> 00:00:00 | F29: ='front utente'!D45 -> 00:00:00 | G29: 1 | H29: =IF(MAX($F$11:F28)>=F29,0,F29-MAX($F$11:F28)-MIN(I29:U29)-B29-A29) -> 0 | I29: 0 | J29: 0 | K29: 0 | L29: 0 | M29: 0 | N29: 0 | O29: 0 | P29: 0 | Q29: 0 | R29: 0 | S29: 0 | T29: 0 | W29: 0 | X29: 0 | Y29: 0 | Z29: 0 | AA29: 0 | AB29: 0
A30: =IF(AND(YEAR(E30)=2013,YEAR(F30)=2014,'front utente'!$I$15="si" ),DATE(2013,12,31)-E30,0) -> 0 | B30: =IF(AND(YEAR(E30)=2012,YEAR(F30)=2013,'front utente'!$I$15="si"),F30-DATE(2013,1,1),0) -> 0 | E30: ='front utente'!C46 -> 00:00:00 | F30: ='front utente'!D46 -> 00:00:00 | G30: 1 | H30: =IF(MAX($F$11:F29)>=F30,0,F30-MAX($F$11:F29)-MIN(I30:U30)-B30-A30) -> 0 | I30: 0 | J30: 0 | K30: 0 | L30: 0 | M30: 0 | N30: 0 | O30: 0 | P30: 0 | Q30: 0 | R30: 0 | S30: 0 | T30: 0 | W30: 0 | X30: 0 | Y30: 0 | Z30: 0 | AA30: 0 | AB30: 0
A31: =IF(AND(YEAR(E31)=2013,YEAR(F31)=2014,'front utente'!$I$15="si" ),DATE(2013,12,31)-E31,0) -> 0 | B31: =IF(AND(YEAR(E31)=2012,YEAR(F31)=2013,'front utente'!$I$15="si"),F31-DATE(2013,1,1),0) -> 0 | E31: ='front utente'!C47 -> 00:00:00 | F31: ='front utente'!D47 -> 00:00:00 | G31: 1 | H31: =IF(MAX($F$11:F30)>=F31,0,F31-MAX($F$11:F30)-MIN(I31:U31)-B31-A31) -> 0 | I31: 0 | J31: 0 | K31: 0 | L31: 0 | M31: 0 | N31: 0 | O31: 0 | P31: 0 | Q31: 0 | R31: 0 | S31: 0 | T31: 0 | W31: 0 | X31: 0 | Y31: 0 | Z31: 0 | AA31: 0 | AB31: 0
A32: =IF(AND(YEAR(E32)=2013,YEAR(F32)=2014,'front utente'!$I$15="si" ),DATE(2013,12,31)-E32,0) -> 0 | B32: =IF(AND(YEAR(E32)=2012,YEAR(F32)=2013,'front utente'!$I$15="si"),F32-DATE(2013,1,1),0) -> 0 | E32: ='front utente'!C48 -> 00:00:00 | F32: ='front utente'!D48 -> 00:00:00 | G32: 1 | H32: =IF(MAX($F$11:F31)>=F32,0,F32-MAX($F$11:F31)-MIN(I32:U32)-B32-A32) -> 0 | I32: 0 | J32: 0 | K32: 0 | L32: 0 | M32: 0 | N32: 0 | O32: 0 | P32: 0 | Q32: 0 | R32: 0 | S32: 0 | T32: 0 | W32: 0 | X32: 0 | Y32: 0 | Z32: 0 | AA32: 0 | AB32: 0
A33: =IF(AND(YEAR(E33)=2013,YEAR(F33)=2014,'front utente'!$I$15="si" ),DATE(2013,12,31)-E33,0) -> 0 | B33: =IF(AND(YEAR(E33)=2012,YEAR(F33)=2013,'front utente'!$I$15="si"),F33-DATE(2013,1,1),0) -> 0 | E33: ='front utente'!C49 -> 00:00:00 | F33: ='front utente'!D49 -> 00:00:00 | G33: 1 | H33: =IF(MAX($F$11:F32)>=F33,0,F33-MAX($F$11:F32)-MIN(I33:U33)-B33-A33) -> 0 | I33: 0 | J33: 0 | K33: 0 | L33: 0 | M33: 0 | N33: 0 | O33: 0 | P33: 0 | Q33: 0 | R33: 0 | S33: 0 | T33: 0 | W33: 0 | X33: 0 | Y33: 0 | Z33: 0 | AA33: 0 | AB33: 0
A34: =IF(AND(YEAR(E34)=2013,YEAR(F34)=2014,'front utente'!$I$15="si" ),DATE(2013,12,31)-E34,0) -> 0 | B34: =IF(AND(YEAR(E34)=2012,YEAR(F34)=2013,'front utente'!$I$15="si"),F34-DATE(2013,1,1),0) -> 0 | E34: ='front utente'!C50 -> 00:00:00 | F34: ='front utente'!D50 -> 00:00:00 | G34: 1 | H34: =IF(MAX($F$11:F33)>=F34,0,F34-MAX($F$11:F33)-MIN(I34:U34)-B34-A34) -> 0 | I34: 0 | J34: 0 | K34: 0 | L34: 0 | M34: 0 | N34: 0 | O34: 0 | P34: 0 | Q34: 0 | R34: 0 | S34: 0 | T34: 0 | W34: 0 | X34: 0 | Y34: 0 | Z34: 0 | AA34: 0 | AB34: 0
A35: =IF(AND(YEAR(E35)=2013,YEAR(F35)=2014,'front utente'!$I$15="si" ),DATE(2013,12,31)-E35,0) -> 0 | B35: =IF(AND(YEAR(E35)=2012,YEAR(F35)=2013,'front utente'!$I$15="si"),F35-DATE(2013,1,1),0) -> 0 | E35: ='front utente'!C51 -> 00:00:00 | F35: ='front utente'!D51 -> 00:00:00 | G35: 1 | H35: =IF(MAX($F$11:F34)>=F35,0,F35-MAX($F$11:F34)-MIN(I35:U35)-B35-A35) -> 0 | I35: 0 | J35: 0 | K35: 0 | L35: 0 | M35: 0 | N35: 0 | O35: 0 | P35: 0 | Q35: 0 | R35: 0 | S35: 0 | T35: 0 | W35: 0 | X35: 0 | Y35: 0 | Z35: 0 | AA35: 0 | AB35: 0
A36: =IF(AND(YEAR(E36)=2013,YEAR(F36)=2014,'front utente'!$I$15="si" ),DATE(2013,12,31)-E36,0) -> 0 | B36: =IF(AND(YEAR(E36)=2012,YEAR(F36)=2013,'front utente'!$I$15="si"),F36-DATE(2013,1,1),0) -> 0 | E36: ='front utente'!C52 -> 00:00:00 | F36: ='front utente'!D52 -> 00:00:00 | G36: 1 | H36: =IF(MAX($F$11:F35)>=F36,0,F36-MAX($F$11:F35)-MIN(I36:U36)-B36-A36) -> 0 | I36: 0 | J36: 0 | K36: 0 | L36: 0 | M36: 0 | N36: 0 | O36: 0 | P36: 0 | Q36: 0 | R36: 0 | S36: 0 | T36: 0 | W36: 0 | X36: 0 | Y36: 0 | Z36: 0 | AA36: 0 | AB36: 0
A37: =IF(AND(YEAR(E37)=2013,YEAR(F37)=2014,'front utente'!$I$15="si" ),DATE(2013,12,31)-E37,0) -> 0 | B37: =IF(AND(YEAR(E37)=2012,YEAR(F37)=2013,'front utente'!$I$15="si"),F37-DATE(2013,1,1),0) -> 0 | E37: ='front utente'!C53 -> 00:00:00 | F37: ='front utente'!D53 -> 00:00:00 | G37: 1 | H37: =IF(MAX($F$11:F36)>=F37,0,F37-MAX($F$11:F36)-MIN(I37:U37)-B37-A37) -> 0 | I37: 0 | J37: 0 | K37: 0 | L37: 0 | M37: 0 | N37: 0 | O37: 0 | P37: 0 | Q37: 0 | R37: 0 | S37: 0 | T37: 0 | W37: 0 | X37: 0 | Y37: 0 | Z37: 0 | AA37: 0 | AB37: 0
A38: =IF(AND(YEAR(E38)=2013,YEAR(F38)=2014,'front utente'!$I$15="si" ),DATE(2013,12,31)-E38,0) -> 0 | B38: =IF(AND(YEAR(E38)=2012,YEAR(F38)=2013,'front utente'!$I$15="si"),F38-DATE(2013,1,1),0) -> 0 | E38: ='front utente'!C54 -> 00:00:00 | F38: ='front utente'!D54 -> 00:00:00 | G38: 1 | H38: =IF(MAX($F$11:F37)>=F38,0,F38-MAX($F$11:F37)-MIN(I38:U38)-B38-A38) -> 0 | I38: 0 | J38: 0 | K38: 0 | L38: 0 | M38: 0 | N38: 0 | O38: 0 | P38: 0 | Q38: 0 | R38: 0 | S38: 0 | T38: 0 | W38: 0 | X38: 0 | Y38: 0 | Z38: 0 | AA38: 0 | AB38: 0
A39: =IF(AND(YEAR(E39)=2013,YEAR(F39)=2014,'front utente'!$I$15="si" ),DATE(2013,12,31)-E39,0) -> 0 | B39: =IF(AND(YEAR(E39)=2012,YEAR(F39)=2013,'front utente'!$I$15="si"),F39-DATE(2013,1,1),0) -> 0 | E39: ='front utente'!C55 -> 00:00:00 | F39: ='front utente'!D55 -> 00:00:00 | G39: 1 | H39: =IF(MAX($F$11:F38)>=F39,0,F39-MAX($F$11:F38)-MIN(I39:U39)-B39-A39) -> 0 | I39: 0 | J39: 0 | K39: 0 | L39: 0 | M39: 0 | N39: 0 | O39: 0 | P39: 0 | Q39: 0 | R39: 0 | S39: 0 | T39: 0 | W39: 0 | X39: 0 | Y39: 0 | Z39: 0 | AA39: 0 | AB39: 0
A40: =IF(AND(YEAR(E40)=2013,YEAR(F40)=2014,'front utente'!$I$15="si" ),DATE(2013,12,31)-E40,0) -> 0 | B40: =IF(AND(YEAR(E40)=2012,YEAR(F40)=2013,'front utente'!$I$15="si"),F40-DATE(2013,1,1),0) -> 0 | C40: =SUM(H11:H265) -> 1 | E40: ='front utente'!C56 -> 00:00:00 | F40: ='front utente'!D56 -> 00:00:00 | G40: 1 | H40: =IF(MAX($F$11:F39)>=F40,0,F40-MAX($F$11:F39)-MIN(I40:U40)-B40-A40) -> 0 | I40: 0 | J40: 0 | K40: 0 | L40: 0 | M40: 0 | N40: 0 | O40: 0 | P40: 0 | Q40: 0 | R40: 0 | S40: 0 | T40: 0 | W40: 0 | X40: 0 | Y40: 0 | Z40: 0 | AA40: 0 | AB40: 0
A41: =IF(AND(YEAR(E41)=2013,YEAR(F41)=2014,'front utente'!$I$15="si" ),DATE(2013,12,31)-E41,0) -> 0 | B41: =IF(AND(YEAR(E41)=2012,YEAR(F41)=2013,'front utente'!$I$15="si"),F41-DATE(2013,1,1),0) -> 0 | E41: ='front utente'!C57 -> 00:00:00 | F41: ='front utente'!D57 -> 00:00:00 | G41: 1 | H41: =IF(MAX($F$11:F40)>=F41,0,F41-MAX($F$11:F40)-MIN(I41:U41)-B41-A41) -> 0 | I41: 0 | J41: 0 | K41: 0 | L41: 0 | M41: 0 | N41: 0 | O41: 0 | P41: 0 | Q41: 0 | R41: 0 | S41: 0 | T41: 0 | W41: 0 | X41: 0 | Y41: 0 | Z41: 0 | AA41: 0 | AB41: 0
A42: =IF(AND(YEAR(E42)=2013,YEAR(F42)=2014,'front utente'!$I$15="si" ),DATE(2013,12,31)-E42,0) -> 0 | B42: =IF(AND(YEAR(E42)=2012,YEAR(F42)=2013,'front utente'!$I$15="si"),F42-DATE(2013,1,1),0) -> 0 | E42: ='front utente'!C58 -> 00:00:00 | F42: ='front utente'!D58 -> 00:00:00 | G42: 1 | H42: =IF(MAX($F$11:F41)>=F42,0,F42-MAX($F$11:F41)-MIN(I42:U42)-B42-A42) -> 0 | I42: 0 | J42: 0 | K42: 0 | L42: 0 | M42: 0 | N42: 0 | O42: 0 | P42: 0 | Q42: 0 | R42: 0 | S42: 0 | T42: 0 | W42: 0 | X42: 0 | Y42: 0 | Z42: 0 | AA42: 0 | AB42: 0
A43: =IF(AND(YEAR(E43)=2013,YEAR(F43)=2014,'front utente'!$I$15="si" ),DATE(2013,12,31)-E43,0) -> 0 | B43: =IF(AND(YEAR(E43)=2012,YEAR(F43)=2013,'front utente'!$I$15="si"),F43-DATE(2013,1,1),0) -> 0 | E43: ='front utente'!C59 -> 00:00:00 | F43: ='front utente'!D59 -> 00:00:00 | G43: 1 | H43: =IF(MAX($F$11:F42)>=F43,0,F43-MAX($F$11:F42)-MIN(I43:U43)-B43-A43) -> 0 | I43: 0 | J43: 0 | K43: 0 | L43: 0 | M43: 0 | N43: 0 | O43: 0 | P43: 0 | Q43: 0 | R43: 0 | S43: 0 | T43: 0 | W43: 0 | X43: 0 | Y43: 0 | Z43: 0 | AA43: 0 | AB43: 0
A44: =IF(AND(YEAR(E44)=2013,YEAR(F44)=2014,'front utente'!$I$15="si" ),DATE(2013,12,31)-E44,0) -> 0 | B44: =IF(AND(YEAR(E44)=2012,YEAR(F44)=2013,'front utente'!$I$15="si"),F44-DATE(2013,1,1),0) -> 0 | E44: ='front utente'!C60 -> 00:00:00 | F44: ='front utente'!D60 -> 00:00:00 | G44: 1 | H44: =IF(MAX($F$11:F43)>=F44,0,F44-MAX($F$11:F43)-MIN(I44:U44)-B44-A44) -> 0 | I44: 0 | J44: 0 | K44: 0 | L44: 0 | M44: 0 | N44: 0 | O44: 0 | P44: 0 | Q44: 0 | R44: 0 | S44: 0 | T44: 0 | W44: 0 | X44: 0 | Y44: 0 | Z44: 0
A45: =IF(AND(YEAR(E45)=2013,YEAR(F45)=2014,'front utente'!$I$15="si" ),DATE(2013,12,31)-E45,0) -> 0 | B45: =IF(AND(YEAR(E45)=2012,YEAR(F45)=2013,'front utente'!$I$15="si"),F45-DATE(2013,1,1),0) -> 0 | E45: ='front utente'!C61 -> 00:00:00 | F45: ='front utente'!D61 -> 00:00:00 | G45: 1 | H45: =IF(MAX($F$11:F44)>=F45,0,F45-MAX($F$11:F44)-MIN(I45:U45)-B45-A45) -> 0 | I45: 0 | J45: 0 | K45: 0 | L45: 0 | M45: 0 | N45: 0 | O45: 0 | P45: 0 | Q45: 0 | R45: 0 | S45: 0 | T45: 0 | W45: 0 | X45: 0 | Y45: 0 | Z45: 0
A46: =IF(AND(YEAR(E46)=2013,YEAR(F46)=2014,'front utente'!$I$15="si" ),DATE(2013,12,31)-E46,0) -> 0 | B46: =IF(AND(YEAR(E46)=2012,YEAR(F46)=2013,'front utente'!$I$15="si"),F46-DATE(2013,1,1),0) -> 0 | E46: ='front utente'!C62 -> 00:00:00 | F46: ='front utente'!D62 -> 00:00:00 | G46: 1 | H46: =IF(MAX($F$11:F45)>=F46,0,F46-MAX($F$11:F45)-MIN(I46:U46)-B46-A46) -> 0 | I46: 0 | J46: 0 | K46: 0 | L46: 0 | M46: 0 | N46: 0 | O46: 0 | P46: 0 | Q46: 0 | R46: 0 | S46: 0 | T46: 0 | W46: 0 | X46: 0 | Y46: 0 | Z46: 0
A47: =IF(AND(YEAR(E47)=2013,YEAR(F47)=2014,'front utente'!$I$15="si" ),DATE(2013,12,31)-E47,0) -> 0 | B47: =IF(AND(YEAR(E47)=2012,YEAR(F47)=2013,'front utente'!$I$15="si"),F47-DATE(2013,1,1),0) -> 0 | E47: ='front utente'!C63 -> 00:00:00 | F47: ='front utente'!D63 -> 00:00:00 | G47: 1 | H47: =IF(MAX($F$11:F46)>=F47,0,F47-MAX($F$11:F46)-MIN(I47:U47)-B47-A47) -> 0 | I47: 0 | J47: 0 | K47: 0 | L47: 0 | M47: 0 | N47: 0 | O47: 0 | P47: 0 | Q47: 0 | R47: 0 | S47: 0 | T47: 0 | W47: 0 | X47: 0 | Y47: 0 | Z47: 0
A48: =IF(AND(YEAR(E48)=2013,YEAR(F48)=2014,'front utente'!$I$15="si" ),DATE(2013,12,31)-E48,0) -> 0 | B48: =IF(AND(YEAR(E48)=2012,YEAR(F48)=2013,'front utente'!$I$15="si"),F48-DATE(2013,1,1),0) -> 0 | E48: ='front utente'!C64 -> 00:00:00 | F48: ='front utente'!D64 -> 00:00:00 | G48: 1 | H48: =IF(MAX($F$11:F47)>=F48,0,F48-MAX($F$11:F47)-MIN(I48:U48)-B48-A48) -> 0 | I48: 0 | J48: 0 | K48: 0 | L48: 0 | M48: 0 | N48: 0 | O48: 0 | P48: 0 | Q48: 0 | R48: 0 | S48: 0 | T48: 0 | W48: 0 | X48: 0 | Y48: 0 | Z48: 0
A49: =IF(AND(YEAR(E49)=2013,YEAR(F49)=2014,'front utente'!$I$15="si" ),DATE(2013,12,31)-E49,0) -> 0 | B49: =IF(AND(YEAR(E49)=2012,YEAR(F49)=2013,'front utente'!$I$15="si"),F49-DATE(2013,1,1),0) -> 0 | E49: ='front utente'!C65 -> 00:00:00 | F49: ='front utente'!D65 -> 00:00:00 | G49: 1 | H49: =IF(MAX($F$11:F48)>=F49,0,F49-MAX($F$11:F48)-MIN(I49:U49)-B49-A49) -> 0 | I49: 0 | J49: 0 | K49: 0 | L49: 0 | M49: 0 | N49: 0 | O49: 0 | P49: 0 | Q49: 0 | R49: 0 | S49: 0 | T49: 0 | W49: 0 | X49: 0 | Y49: 0 | Z49: 0
A50: =IF(AND(YEAR(E50)=2013,YEAR(F50)=2014,'front utente'!$I$15="si" ),DATE(2013,12,31)-E50,0) -> 0 | B50: =IF(AND(YEAR(E50)=2012,YEAR(F50)=2013,'front utente'!$I$15="si"),F50-DATE(2013,1,1),0) -> 0 | E50: ='front utente'!C66 -> 00:00:00 | F50: ='front utente'!D66 -> 00:00:00 | G50: 1 | H50: =IF(MAX($F$11:F49)>=F50,0,F50-MAX($F$11:F49)-MIN(I50:U50)-B50-A50) -> 0 | I50: 0 | J50: 0 | K50: 0 | L50: 0 | M50: 0 | N50: 0 | O50: 0 | P50: 0 | Q50: 0 | R50: 0 | S50: 0 | T50: 0 | W50: 0 | X50: 0 | Y50: 0 | Z50: 0
A51: =IF(AND(YEAR(E51)=2013,YEAR(F51)=2014,'front utente'!$I$15="si" ),DATE(2013,12,31)-E51,0) -> 0 | B51: =IF(AND(YEAR(E51)=2012,YEAR(F51)=2013,'front utente'!$I$15="si"),F51-DATE(2013,1,1),0) -> 0 | E51: ='front utente'!C67 -> 00:00:00 | F51: ='front utente'!D67 -> 00:00:00 | G51: 1 | H51: =IF(MAX($F$11:F50)>=F51,0,F51-MAX($F$11:F50)-MIN(I51:U51)-B51-A51) -> 0 | I51: 0 | J51: 0 | K51: 0 | L51: 0 | M51: 0 | N51: 0 | O51: 0 | P51: 0 | Q51: 0 | R51: 0 | S51: 0 | T51: 0 | W51: 0 | X51: 0 | Y51: 0 | Z51: 0
A52: =IF(AND(YEAR(E52)=2013,YEAR(F52)=2014,'front utente'!$I$15="si" ),DATE(2013,12,31)-E52,0) -> 0 | B52: =IF(AND(YEAR(E52)=2012,YEAR(F52)=2013,'front utente'!$I$15="si"),F52-DATE(2013,1,1),0) -> 0 | E52: ='front utente'!C68 -> 00:00:00 | F52: ='front utente'!D68 -> 00:00:00 | G52: 1 | H52: =IF(MAX($F$11:F51)>=F52,0,F52-MAX($F$11:F51)-MIN(I52:U52)-B52-A52) -> 0 | I52: 0 | J52: 0 | K52: 0 | L52: 0 | M52: 0 | N52: 0 | O52: 0 | P52: 0 | Q52: 0 | R52: 0 | S52: 0 | T52: 0 | W52: 0 | X52: 0 | Y52: 0 | Z52: 0
A53: =IF(AND(YEAR(E53)=2013,YEAR(F53)=2014,'front utente'!$I$15="si" ),DATE(2013,12,31)-E53,0) -> 0 | B53: =IF(AND(YEAR(E53)=2012,YEAR(F53)=2013,'front utente'!$I$15="si"),F53-DATE(2013,1,1),0) -> 0 | E53: ='front utente'!C69 -> 00:00:00 | F53: ='front utente'!D69 -> 00:00:00 | G53: 1 | H53: =IF(MAX($F$11:F52)>=F53,0,F53-MAX($F$11:F52)-MIN(I53:U53)-B53-A53) -> 0 | I53: 0 | J53: 0 | K53: 0 | L53: 0 | M53: 0 | N53: 0 | O53: 0 | P53: 0 | Q53: 0 | R53: 0 | S53: 0 | T53: 0 | W53: 0 | X53: 0 | Y53: 0 | Z53: 0
A54: =IF(AND(YEAR(E54)=2013,YEAR(F54)=2014,'front utente'!$I$15="si" ),DATE(2013,12,31)-E54,0) -> 0 | B54: =IF(AND(YEAR(E54)=2012,YEAR(F54)=2013,'front utente'!$I$15="si"),F54-DATE(2013,1,1),0) -> 0 | E54: ='front utente'!C70 -> 00:00:00 | F54: ='front utente'!D70 -> 00:00:00 | G54: 1 | H54: =IF(MAX($F$11:F53)>=F54,0,F54-MAX($F$11:F53)-MIN(I54:U54)-B54-A54) -> 0 | I54: 0 | J54: 0 | K54: 0 | L54: 0 | M54: 0 | N54: 0 | O54: 0 | P54: 0 | Q54: 0 | R54: 0 | S54: 0 | T54: 0 | W54: 0 | X54: 0 | Y54: 0 | Z54: 0
A55: =IF(AND(YEAR(E55)=2013,YEAR(F55)=2014,'front utente'!$I$15="si" ),DATE(2013,12,31)-E55,0) -> 0 | B55: =IF(AND(YEAR(E55)=2012,YEAR(F55)=2013,'front utente'!$I$15="si"),F55-DATE(2013,1,1),0) -> 0 | E55: ='front utente'!C71 -> 00:00:00 | F55: ='front utente'!D71 -> 00:00:00 | G55: 1 | H55: =IF(MAX($F$11:F54)>=F55,0,F55-MAX($F$11:F54)-MIN(I55:U55)-B55-A55) -> 0 | I55: 0 | J55: 0 | K55: 0 | L55: 0 | M55: 0 | N55: 0 | O55: 0 | P55: 0 | Q55: 0 | R55: 0 | S55: 0 | T55: 0 | W55: 0 | X55: 0 | Y55: 0 | Z55: 0
A56: =IF(AND(YEAR(E56)=2013,YEAR(F56)=2014,'front utente'!$I$15="si" ),DATE(2013,12,31)-E56,0) -> 0 | B56: =IF(AND(YEAR(E56)=2012,YEAR(F56)=2013,'front utente'!$I$15="si"),F56-DATE(2013,1,1),0) -> 0 | E56: ='front utente'!C72 -> 00:00:00 | F56: ='front utente'!D72 -> 00:00:00 | G56: 1 | H56: =IF(MAX($F$11:F55)>=F56,0,F56-MAX($F$11:F55)-MIN(I56:U56)-B56-A56) -> 0 | I56: 0 | J56: 0 | K56: 0 | L56: 0 | M56: 0 | N56: 0 | O56: 0 | P56: 0 | Q56: 0 | R56: 0 | S56: 0 | T56: 0 | W56: 0 | X56: 0 | Y56: 0 | Z56: 0
A57: =IF(AND(YEAR(E57)=2013,YEAR(F57)=2014,'front utente'!$I$15="si" ),DATE(2013,12,31)-E57,0) -> 0 | B57: =IF(AND(YEAR(E57)=2012,YEAR(F57)=2013,'front utente'!$I$15="si"),F57-DATE(2013,1,1),0) -> 0 | E57: ='front utente'!C73 -> 00:00:00 | F57: ='front utente'!D73 -> 00:00:00 | G57: 1 | H57: =IF(MAX($F$11:F56)>=F57,0,F57-MAX($F$11:F56)-MIN(I57:U57)-B57-A57) -> 0 | I57: 0 | J57: 0 | K57: 0 | L57: 0 | M57: 0 | N57: 0 | O57: 0 | P57: 0 | Q57: 0 | R57: 0 | S57: 0 | T57: 0 | W57: 0 | X57: 0 | Y57: 0 | Z57: 0
A58: =IF(AND(YEAR(E58)=2013,YEAR(F58)=2014,'front utente'!$I$15="si" ),DATE(2013,12,31)-E58,0) -> 0 | B58: =IF(AND(YEAR(E58)=2012,YEAR(F58)=2013,'front utente'!$I$15="si"),F58-DATE(2013,1,1),0) -> 0 | E58: ='front utente'!C74 -> 00:00:00 | F58: ='front utente'!D74 -> 00:00:00 | G58: 1 | H58: =IF(MAX($F$11:F57)>=F58,0,F58-MAX($F$11:F57)-MIN(I58:U58)-B58-A58) -> 0 | I58: 0 | J58: 0 | K58: 0 | L58: 0 | M58: 0 | N58: 0 | O58: 0 | P58: 0 | Q58: 0 | R58: 0 | S58: 0 | T58: 0 | W58: 0 | X58: 0 | Y58: 0 | Z58: 0
A59: =IF(AND(YEAR(E59)=2013,YEAR(F59)=2014,'front utente'!$I$15="si" ),DATE(2013,12,31)-E59,0) -> 0 | B59: =IF(AND(YEAR(E59)=2012,YEAR(F59)=2013,'front utente'!$I$15="si"),F59-DATE(2013,1,1),0) -> 0 | E59: ='front utente'!C75 -> 00:00:00 | F59: ='front utente'!D75 -> 00:00:00 | G59: 1 | H59: =IF(MAX($F$11:F58)>=F59,0,F59-MAX($F$11:F58)-MIN(I59:U59)-B59-A59) -> 0 | I59: 0 | J59: 0 | K59: 0 | L59: 0 | M59: 0 | N59: 0 | O59: 0 | P59: 0 | Q59: 0 | R59: 0 | S59: 0 | T59: 0 | W59: 0 | X59: 0 | Y59: 0 | Z59: 0
A60: =IF(AND(YEAR(E60)=2013,YEAR(F60)=2014,'front utente'!$I$15="si" ),DATE(2013,12,31)-E60,0) -> 0 | B60: =IF(AND(YEAR(E60)=2012,YEAR(F60)=2013,'front utente'!$I$15="si"),F60-DATE(2013,1,1),0) -> 0 | E60: ='front utente'!C76 -> 00:00:00 | F60: ='front utente'!D76 -> 00:00:00 | G60: 1 | H60: =IF(MAX($F$11:F59)>=F60,0,F60-MAX($F$11:F59)-MIN(I60:U60)-B60-A60) -> 0 | I60: 0 | J60: 0 | K60: 0 | L60: 0 | M60: 0 | N60: 0 | O60: 0 | P60: 0 | Q60: 0 | R60: 0 | S60: 0 | T60: 0 | W60: 0 | X60: 0 | Y60: 0 | Z60: 0
A61: =IF(AND(YEAR(E61)=2013,YEAR(F61)=2014,'front utente'!$I$15="si" ),DATE(2013,12,31)-E61,0) -> 0 | B61: =IF(AND(YEAR(E61)=2012,YEAR(F61)=2013,'front utente'!$I$15="si"),F61-DATE(2013,1,1),0) -> 0 | E61: ='front utente'!C77 -> 00:00:00 | F61: ='front utente'!D77 -> 00:00:00 | G61: 1 | H61: =IF(MAX($F$11:F60)>=F61,0,F61-MAX($F$11:F60)-MIN(I61:U61)-B61-A61) -> 0 | I61: 0 | J61: 0 | K61: 0 | L61: 0 | M61: 0 | N61: 0 | O61: 0 | P61: 0 | Q61: 0 | R61: 0 | S61: 0 | T61: 0 | W61: 0 | X61: 0 | Y61: 0 | Z61: 0
A62: =IF(AND(YEAR(E62)=2013,YEAR(F62)=2014,'front utente'!$I$15="si" ),DATE(2013,12,31)-E62,0) -> 0 | B62: =IF(AND(YEAR(E62)=2012,YEAR(F62)=2013,'front utente'!$I$15="si"),F62-DATE(2013,1,1),0) -> 0 | E62: ='front utente'!C78 -> 00:00:00 | F62: ='front utente'!D78 -> 00:00:00 | G62: 1 | H62: =IF(MAX($F$11:F61)>=F62,0,F62-MAX($F$11:F61)-MIN(I62:U62)-B62-A62) -> 0 | I62: 0 | J62: 0 | K62: 0 | L62: 0 | M62: 0 | N62: 0 | O62: 0 | P62: 0 | Q62: 0 | R62: 0 | S62: 0 | T62: 0 | W62: 0 | X62: 0 | Y62: 0 | Z62: 0
A63: =IF(AND(YEAR(E63)=2013,YEAR(F63)=2014,'front utente'!$I$15="si" ),DATE(2013,12,31)-E63,0) -> 0 | B63: =IF(AND(YEAR(E63)=2012,YEAR(F63)=2013,'front utente'!$I$15="si"),F63-DATE(2013,1,1),0) -> 0 | E63: ='front utente'!C79 -> 00:00:00 | F63: ='front utente'!D79 -> 00:00:00 | G63: 1 | H63: =IF(MAX($F$11:F62)>=F63,0,F63-MAX($F$11:F62)-MIN(I63:U63)-B63-A63) -> 0 | I63: 0 | J63: 0 | K63: 0 | L63: 0 | M63: 0 | N63: 0 | O63: 0 | P63: 0 | Q63: 0 | R63: 0 | S63: 0 | T63: 0 | W63: 0 | X63: 0 | Y63: 0 | Z63: 0
A64: =IF(AND(YEAR(E64)=2013,YEAR(F64)=2014,'front utente'!$I$15="si" ),DATE(2013,12,31)-E64,0) -> 0 | B64: =IF(AND(YEAR(E64)=2012,YEAR(F64)=2013,'front utente'!$I$15="si"),F64-DATE(2013,1,1),0) -> 0 | E64: ='front utente'!C80 -> 00:00:00 | F64: ='front utente'!D80 -> 00:00:00 | G64: 1 | H64: =IF(MAX($F$11:F63)>=F64,0,F64-MAX($F$11:F63)-MIN(I64:U64)-B64-A64) -> 0 | I64: 0 | J64: 0 | K64: 0 | L64: 0 | M64: 0 | N64: 0 | O64: 0 | P64: 0 | Q64: 0 | R64: 0 | S64: 0 | T64: 0 | W64: 0 | X64: 0 | Y64: 0 | Z64: 0
A65: =IF(AND(YEAR(E65)=2013,YEAR(F65)=2014,'front utente'!$I$15="si" ),DATE(2013,12,31)-E65,0) -> 0 | B65: =IF(AND(YEAR(E65)=2012,YEAR(F65)=2013,'front utente'!$I$15="si"),F65-DATE(2013,1,1),0) -> 0 | E65: ='front utente'!C81 -> 00:00:00 | F65: ='front utente'!D81 -> 00:00:00 | G65: 1 | H65: =IF(MAX($F$11:F64)>=F65,0,F65-MAX($F$11:F64)-MIN(I65:U65)-B65-A65) -> 0 | I65: 0 | J65: 0 | K65: 0 | L65: 0 | M65: 0 | N65: 0 | O65: 0 | P65: 0 | Q65: 0 | R65: 0 | S65: 0 | T65: 0 | W65: 0 | X65: 0 | Y65: 0 | Z65: 0
